Workbook

Sheet Cover
D2: ARP model
D4: Release for 2024/25 charge setting
B6: ='Version control'!F7 -> Model date: | D6: ='Version control'!H7 -> 2022-10-27
B8: ='Version control'!F9 -> Development stage: | D8: ='Version control'!H9 -> Release for charge setting
B10: ='Version control'!F11 -> Model number: | D10: ='Version control'!H11 -> 7
B12: ='Version control'!F13 -> DCUSA text version: | D12: ='Version control'!H13 -> Attachment A_2024-25 Charging Methodologies Pre-Release (shared 06/10/2022)
B14: ='Version control'!F15 -> DCUSA text schedule: | D14: ='Version control'!H15 -> Schedules 16 & 20
B16: DISCLAIMER | D16: Neither the authors nor Cambridge Economic Policy Associates/TNEI accept or assume any responsibility or duty of care to any third party.
D17: © All rights reserved by Cambridge Economic Policy Associates Ltd (CEPA) and TNEI Services Ltd (TNEI).
B19: Charging year: | D19: 2024/25
B21: DNO name: | D21: SP Manweb
B23: Data version: | D23: One
B25: Notes:
B27: Key:
B28: Format | D28: Description
D29: Cell intentionally blank
B30: Value | D30: Hardcoded input
B31: Value | D31: User input
B32: Value | D32: Model output
B33: Value | D33: Calculation
B34: Value | D34: Value from another worksheet
B35: Value | D35: Value used on another worksheet
B36: Value | D36: Issue identified in a check
B37: Text | D37: Label
B38: Text | D38: Annotation
B39: Text | D39: Column heading
B40: Text | D40: Level 1 heading
B41: Text | D41: Level 2 heading
B42: Text | D42: Level 3 and 4 heading
B43: Sheet tab colour | D43: Information sheet
B44: Sheet tab colour | D44: User control sheet
B45: Sheet tab colour | D45: Input sheet
B46: Sheet tab colour | D46: Calculation sheet
B47: Sheet tab colour | D47: Output sheet

Sheet Version control
A1: =MID(CELL("filename",A1),FIND("]",CELL("filename",A1))+1,255) -> Version control
A2: =Cover!D21&" - "&Cover!D23 -> SP Manweb - One
A3: =Cover!D2&" - "&Cover!D8&" v"&Cover!D10&" - "&Cover!D19 -> ARP model - Release for charge setting v7 - 2024/25
A4: =J63 & IF(J63 = 1, " issue", " issues") &" identified in checks on this sheet" -> 0 issues identified in checks on this sheet
B5: Model version
F7: Model date: | H7: =LOOKUP(2,1/(F20:F32<>""),F20:F32) -> 2022-10-27
F9: Development stage: | H9: =LOOKUP(2,1/(G20:G32<>""),G20:G32) -> Release for charge setting
F11: Model number: | H11: =LOOKUP(2,1/(H20:H32<>""),H20:H32) -> 7
F13: DCUSA text version: | H13: =LOOKUP(2,1/(I20:I32<>""),I20:I32) -> Attachment A_2024-25 Charging Methodologies Pre-Release (shared 06/10/2022)
F15: DCUSA text schedule: | H15: =LOOKUP(2,1/(J20:J32<>""),J20:J32) -> Schedules 16 & 20
B17: Version log
F19: Model date | G19: Development stage | H19: Model number | I19: DCUSA text version | J19: DCUSA text schedule | K19: Author | L19: Description of changes
F20: 2018-05-30 | G20: Pre-release | H20: 1 | I20: 2019-20 pre-release plus Expert Panel clarifications | J20: Schedules 16 & 20 | K20: CEPA-TNEI | L20: -
F21: 2018-07-20 | G21: Pre-release | H21: 2 | I21: DCUSA v10.3 (released 28/06/2018) | J21: Schedules 16 & 20 | K21: CEPA-TNEI | L21: References to DCUSA text updated to comply with version 10.3 (released 28/06/2018).
F22: 2018-10-16 | G22: Release for charge setting | H22: 3 | I22: 01 April 2020 DCUSA Charging Methodologies Pre-Release (released 09/10/2018) | J22: Schedules 16 & 20 | K22: CEPA-TNEI | L22: Updated references to legal text version.
F23: 2019-07-17 | G23: Pre-release | H23: 4 | I23: DCP 268 Draft Legal Text v2.0 (shared 10/06/2019) | J23: Schedules 16 & 20 | K23: CEPA-TNEI | L23: Implemented DCP268 as per service 1 request (received 10/06/2019): replaced 33 existing tariffs with 16 enduring tariffs, modified structure of fixed inputs and inputs by customer type, modified pseudo-load coefficient calculation, modified revenue matching calculation, modified ARP_Load characteristics.
F24: 2019-11-08 | G24: Release for charge setting | H24: 5 | I24: Attachment A_01 April 2021 Charging Methodologies Pre-Release_Issued October 2019 (shared 10/10/2019) | J24: Schedules 16 & 20 | K24: CEPA-TNEI | L24: Updated references to legal text version, and implemented DCP332 and DCP333, assuming implementation of DCP 356 (as described in the user guide).
F25: 2020-01-30 | G25: Release for charge setting | H25: 6 | I25: 01 April 2021 Charging Methodologies Pre-Release – December 2019 (Schedules 15-16-17-18-20-29) (DCPs 268-332-333-341-342-356) (shared 19/12/2019) | J25: Schedules 16 & 20 | K25: CEPA-TNEI | L25: Updated references to legal text version, and implemented DCP341 and DCP 356.
F26: 2020-05-26 | G26: Pre-release | H26: 6 | I26: Attachment A_DCP 361 Draft Legal Text v0.2 (shared 15/04/2020) | J26: Schedules 16 & 20 | K26: CEPA-TNEI | L26: Implemented DCP 361.
F27: 2020-11-06 | G27: Release for charge setting | H27: 7 | I27: 01 April 2022 Charging Methodologies Pre-Release – October 2020 (Schedules 16, 17, 18, 20 and 29) DCP 361 | J27: Schedules 16 & 20 | K27: CEPA-TNEI | L27: Updated references to legal text version.
F28: 2021-01-29 | G28: Pre-release | H28: 7 | I28: Attachment A_DCP 379 Draft Legal Text.pdf (shared 14/01/2021) | J28: Schedules 16 & 20 | K28: CEPA-TNEI | L28: Implemented DCP 379
F29: 2021-11-22 | G29: Release for charge setting | H29: 7 | I29: Attachment A_Charging Methodologies Pre-Release_01042023 (shared 15/11/2021) | J29: Schedules 16 & 20 | K29: CEPA-TNEI | L29: Release for charge setting. Cover sheet, version control and annotation changes only.
F30: 2022-10-27 | G30: Release for charge setting | H30: 7 | I30: Attachment A_2024-25 Charging Methodologies Pre-Release (shared 06/10/2022) | J30: Schedules 16 & 20 | K30: CEPA-TNEI | L30: Release for charge setting.
B33: Model checks
E35: Issues identified by in-built model checks, by sheet
F36: ="ARP_"&F40 -> ARP_Inputs by customer type | H36: Input 501 | I36: number of issues | J36: ='ARP_Inputs by customer type'!$H$1994 -> 0
F37: ="ARP_"&F41 -> ARP_Inputs by network level | H37: Input 502 | I37: number of issues | J37: ='ARP_Inputs by network level'!$H$218 -> 0
F38: ="ARP_"&F42 -> ARP_General inputs | H38: Input 503 | I38: number of issues | J38: ='ARP_General inputs'!$H$125 -> 0
F39: Fixed inputs | H39: Input 504 | I39: number of issues | J39: ='Fixed inputs'!H197 -> 0
F40: Inputs by customer type | H40: Section 501 | I40: number of issues | J40: ='Inputs by customer type'!H216 -> 0
F41: Inputs by network level | H41: Section 502 | I41: number of issues | J41: ='General inputs'!H118 -> 0
F42: General inputs | H42: Section 503 | I42: number of issues | J42: ='General inputs'!H118 -> 0
F43: Standing Charge Factors | H43: Section 504 | I43: number of issues | J43: ='Standing charge factors'!H58 -> 0
F44: Load & loss characteristics | H44: Section 505 | I44: number of issues | J44: ='Load & loss characteristics'!H183 -> 0
F45: Customer contributions | H45: Section 506 | I45: number of issues | J45: ='Customer contributions'!H70 -> 0
F46: Volume adjustments | H46: Section 507 | I46: number of issues | J46: ='Volume adjustments'!H693 -> 0
F47: Pseudo-load coefficients | H47: Section 508 | I47: number of issues | J47: ='Pseudo-load coefficients'!H306 -> 0
F48: System peak demand | H48: Section 509 | I48: number of issues | J48: ='System peak demand'!H281 -> 0
F49: Service model assets | H49: Section 510 | I49: number of issues | J49: ='Service model assets'!H38 -> 0
F50: Unit costs | H50: Section 511 | I50: number of issues | J50: ='Unit costs'!H131 -> 0
F51: Initial unit rates | H51: Section 512 | I51: number of issues | J51: ='Initial unit rates'!H241 -> 0
F52: Service model charges | H52: Section 513 | I52: number of issues | J52: ='Service model charges'!H48 -> 0
F53: Unit rate charges | H53: Section 514 | I53: number of issues | J53: ='Unit rate charges'!H223 -> 0
F54: Capacity charges | H54: Section 515 | I54: number of issues | J54: ='Capacity charges'!H295 -> 0
F55: Reactive power charges | H55: Section 516 | I55: number of issues | J55: ='Reactive power charges'!H254 -> 0
F56: Fixed charges | H56: Section 517 | I56: number of issues | J56: ='Fixed charges'!H165 -> 0
F57: SoLR & bad debt adders | H57: Section 518 | I57: number of issues | J57: ='SoLR & bad debt adders'!H71 -> 0
F58: Revenue matching | H58: Section 519 | I58: number of issues | J58: ='Revenue matching'!H433 -> 0
F59: Rounding | H59: Section 520 | I59: number of issues | J59: =Rounding!H178 -> 0
F60: Net revenue summary | H60: Section 521 | I60: number of issues | J60: ='Net revenue summary'!H146 -> 0
F61: Tariff summary | H61: Output 501 | I61: number of issues | J61: ='Tariff summary'!H641 -> 0
F62: Typical bills | H62: Output 502 | I62: number of issues | J62: ='Typical bills'!H121 -> 0
F63: Total | I63: number of issues | J63: =IFERROR(SUM(J36:J62), 1) -> 0
B65: Version log lists
F67: Development stages
F68: Working draft
F69: Interim release
F70: Pre-release
F71: Release for charge setting
F78: …
B80: End of sheet

Sheet Model map
A1: =MID(CELL("filename",A1),FIND("]",CELL("filename",A1))+1,255) -> Model map
A2: =Cover!D21&" - "&Cover!D23 -> SP Manweb - One
A3: =Cover!D2&" - "&Cover!D8&" v"&Cover!D10&" - "&Cover!D19 -> ARP model - Release for charge setting v7 - 2024/25
B5: Model map
B65: End of sheet

Sheet Index
A1: =MID(CELL("filename",A1),FIND("]",CELL("filename",A1))+1,255) -> Index
A2: =Cover!D21&" - "&Cover!D23 -> SP Manweb - One
A3: =Cover!D2&" - "&Cover!D8&" v"&Cover!D10&" - "&Cover!D19 -> ARP model - Release for charge setting v7 - 2024/25
B5: Description
C7: This sheet contains links to each sheet of the model and the main sections within them.
C8: It also contains links to more granular sections within the sheets for inputs, calculations and outputs.
B10: Index of sheets and main sections
C12: The following table provides links to all the sheets within this model and the main sections within them.
F14: Sheet | G14: Section
F15: Cover
F16: Version control | G16: ='Version control'!$B$5 -> Model version
G17: ='Version control'!$B$17 -> Version log
G18: ='Version control'!$B$33 -> Model checks
G19: ='Version control'!$B$65 -> Version log lists
F20: Model map | G20: ='Model map'!$B$5 -> Model map
F21: Named ranges | G21: ='Named ranges'!$B$5 -> List of named ranges
F22: ARP_DNO commentary | G22: ='ARP_DNO commentary'!$B$9 -> Commentary
F23: ARP_CDCM timebands | G23: ='ARP_CDCM timebands'!$B$12 -> CDCM timebands
F24: ARP_Load characteristics | G24: ='ARP_Load characteristics'!$B$13 -> Years
G25: ='ARP_Load characteristics'!$B$20 -> Load characteristics
F26: ARP_Peaking probabilities | G26: ='ARP_Peaking probabilities'!$B$14 -> Years
G27: ='ARP_Peaking probabilities'!$B$21 -> Peaking probabilities, by distribution timeband
F28: ARP_User control | G28: ='ARP_User control'!$B$10 -> User interface
G29: ='ARP_User control'!$B$25 -> Lists
F30: ARP_Inputs by customer type | G30: ='ARP_Inputs by customer type'!$B$14 -> Load characteristics
G31: ='ARP_Inputs by customer type'!$B$56 -> Volumes
G32: ='ARP_Inputs by customer type'!$B$1998 -> Non-Domestic Aggregated (Related MPAN) distribution by bands
G33: ='ARP_Inputs by customer type'!$B$2072 -> Service model asset values
F34: ARP_Inputs by network level | G34: ='ARP_Inputs by network level'!$B$14 -> Inputs by network level
F35: ARP_General inputs | G35: ='ARP_General inputs'!$B$14 -> General inputs
F36: Fixed inputs | G36: ='Fixed inputs'!$B$11 -> Fixed inputs
F37: Inputs by customer type | G37: ='Inputs by customer type'!$B$14 -> Inputs by customer type
F38: Inputs by network level | G38: ='Inputs by network level'!$B$14 -> Inputs by network level
F39: General inputs | G39: ='General inputs'!$B$14 -> General inputs
F40: Standing charge factors | G40: ='Standing charge factors'!$B$17 -> Adjustments to standing charges
F41: Load & loss characteristics | G41: ='Load & loss characteristics'!$B$13 -> Load and loss characteristics
G42: ='Load & loss characteristics'!$B$31 -> User loss factor adjustments
F43: Customer contributions | G43: ='Customer contributions'!$B$12 -> Customer contributions
F44: Volume adjustments | G44: ='Volume adjustments'!$B$13 -> LDNO discounts
G45: ='Volume adjustments'!$B$51 -> Volume discounting
G46: ='Volume adjustments'!$B$310 -> Volume discounting for revenue matching
F47: Pseudo-load coefficients | G47: ='Pseudo-load coefficients'!$B$13 -> Step 1: Ratio of coincidence to load factor assuming units evenly spread within time bands, and peak falls in Red period
G48: ='Pseudo-load coefficients'!$B$56 -> Step 2: Calculate correction factor
G49: ='Pseudo-load coefficients'!$B$95 -> Step 3: Ratio of coincidence factor (to network asset peak) to load factor, given peaking probabilities, multiplied by correction factor
G50: ='Pseudo-load coefficients'!$B$261 -> Step 4: Results of Step 3
F51: System peak demand | G51: ='System peak demand'!$B$16 -> Common inputs for chargeable load calculations
G52: ='System peak demand'!$B$63 -> Load at system peak charged to unit rates
G53: ='System peak demand'!$B$179 -> Load at system peak charged to standing charges
G54: ='System peak demand'!$B$262 -> System peak based on chargeable load
F55: Service model assets | G55: ='Service model assets'!$B$12 -> Service model notional asset values
F56: Unit costs | G56: ='Unit costs'!$B$15 -> 500MW model costs
G57: ='Unit costs'!$B$58 -> Allocation of other costs
G58: ='Unit costs'!$B$102 -> Outputs
F59: Initial unit rates | G59: ='Initial unit rates'!$B$11 -> Inputs for yardstick and unit rate calculations
G60: ='Initial unit rates'!$B$116 -> Calculation of yardstick & unit rate charges
F61: Service model charges | G61: ='Service model charges'!$B$13 -> Inputs to service model charge calculation
G62: ='Service model charges'!$B$29 -> Allocation of service model costs
F63: Unit rate charges | G63: ='Unit rate charges'!$B$15 -> Inputs to unit rate charge calculations
G64: ='Unit rate charges'!$B$122 -> Application of standing charges to unit rates
F65: Capacity charges | G65: ='Capacity charges'!$B$17 -> Inputs to capacity charge calculations
G66: ='Capacity charges'!$B$125 -> Calculation of capacity charges
G67: ='Capacity charges'!$B$249 -> Capacity charges (and elements allocated to fixed charges)
F68: Reactive power charges | G68: ='Reactive power charges'!$B$13 -> Inputs to reactive power charge calculations
G69: ='Reactive power charges'!$B$150 -> Calculation of yardstick charges for generation
G70: ='Reactive power charges'!$B$185 -> Calculation of reactive power charges
F71: Fixed charges | G71: ='Fixed charges'!$B$14 -> Inputs to fixed charge calculations
G72: ='Fixed charges'!$B$65 -> Calculation of fixed charges
F73: SoLR & bad debt adders | G73: ='SoLR & bad debt adders'!$B$12 -> Fixed tariff adjustments
F74: Revenue matching | G74: ='Revenue matching'!$B$13 -> Pre-matching net revenue calculations
G75: ='Revenue matching'!$B$87 -> Residual charge calculation
G76: ='Revenue matching'!$B$210 -> Adjustments for negative fixed charges
G77: ='Revenue matching'!$B$408 -> Final adders
F78: Rounding | G78: =Rounding!$B$12 -> Inputs
G79: =Rounding!$B$103 -> Rounding of tariff forecast
F80: Net revenue summary | G80: ='Net revenue summary'!$B$11 -> Inputs to net revenue summary calculation
G81: ='Net revenue summary'!$B$90 -> Typical bills
F82: Tariff summary | G82: ='Tariff summary'!$B$13 -> Tariff summary
F83: Typical bills | G83: ='Typical bills'!$B$13 -> Typical bills
B85: Index of inputs, calculation sections and outputs
C87: The following table provides links to each input, calculation and output section. Each has a unique identifier for ease of reference.
F89: Sheet | G89: Section
F90: ARP_CDCM timebands | G90: ='ARP_CDCM timebands'!$C$14 -> Distribution time bands
G91: ='ARP_CDCM timebands'!$C$26 -> Special distribution time bands
F92: ARP_User control | G92: ='ARP_User control'!$C$15 -> Inputs for manually running selected year
G93: ='ARP_User control'!$C$19 -> Macro to run all years
F94: ARP_Inputs by customer type | G94: ='ARP_Inputs by customer type'!$C$16 -> Input 501-A: Load factor
G95: ='ARP_Inputs by customer type'!$C$36 -> Input 501-B: Coincidence factor
G96: ='ARP_Inputs by customer type'!$C$58 -> Input 501-C: All-the-way volumes - No residual
G97: ='ARP_Inputs by customer type'!$C$186 -> Input 501-D: All-the-way volumes - Residual Band 1
G98: ='ARP_Inputs by customer type'!$C$314 -> Input 501-E: All-the-way volumes - Residual Band 2
G99: ='ARP_Inputs by customer type'!$C$442 -> Input 501-F: All-the-way volumes - Residual Band 3
G100: ='ARP_Inputs by customer type'!$C$570 -> Input 501-G: All-the-way volumes - Residual Band 4
G101: ='ARP_Inputs by customer type'!$C$698 -> Input 501-H: LDNO LV volumes - No residual
G102: ='ARP_Inputs by customer type'!$C$826 -> Input 501-I: LDNO LV volumes - Residual band 1
G103: ='ARP_Inputs by customer type'!$C$954 -> Input 501-J: LDNO LV volumes - Residual band 2
G104: ='ARP_Inputs by customer type'!$C$1082 -> Input 501-K: LDNO LV volumes - Residual band 3
G105: ='ARP_Inputs by customer type'!$C$1210 -> Input 501-L: LDNO LV volumes - Residual band 4
G106: ='ARP_Inputs by customer type'!$C$1338 -> Input 501-M: LDNO HV volumes - No residual
G107: ='ARP_Inputs by customer type'!$C$1466 -> Input 501-N: LDNO HV volumes - Residual band 1
G108: ='ARP_Inputs by customer type'!$C$1594 -> Input 501-O: LDNO HV volumes - Residual band 2
G109: ='ARP_Inputs by customer type'!$C$1722 -> Input 501-P: LDNO HV volumes - Residual band 3
G110: ='ARP_Inputs by customer type'!$C$1850 -> Input 501-Q: LDNO HV volumes - Residual band 4
G111: ='ARP_Inputs by customer type'!$C$1978 -> Input 501-R: 'Designated Property' MPANs with EDCM-level LDNO boundaries
G112: ='ARP_Inputs by customer type'!$C$2003 -> Input 501-S: All the way non-domestic aggregated (related MPAN) distribution by bands
G113: ='ARP_Inputs by customer type'!$C$2026 -> Input 501-T: LDNO LV non-domestic aggregated (related MPAN) distribution by bands
G114: ='ARP_Inputs by customer type'!$C$2049 -> Input 501-U: LDNO HV non-domestic aggregated (related MPAN) distribution by bands
G115: ='ARP_Inputs by customer type'!$C$2076 -> Input 501-V: LV customer service model asset values
G116: ='ARP_Inputs by customer type'!$C$2096 -> Input 501-W: HV customer service model asset values
G117: ='ARP_Inputs by customer type'!$C$2116 -> Input 501-X: LV UMS customer service model asset values
F118: ARP_Inputs by network level | G118: ='ARP_Inputs by network level'!$C$16 -> Input 502-A: Diversity allowance between top and bottom of network level
G119: ='ARP_Inputs by network level'!$C$30 -> Input 502-B: Proportion of EHV/HV load going through 132kV/HV direct transformation
G120: ='ARP_Inputs by network level'!$C$44 -> Input 502-C: Loss adjustment factors to transmission
G121: ='ARP_Inputs by network level'!$C$58 -> Input 502-D: Average kVAr by kVA, by network level
G122: ='ARP_Inputs by network level'!$C$72 -> Input 502-E: Customer contributions under current connection charging policy
G123: ='ARP_Inputs by network level'!$C$120 -> Input 502-F: Gross asset cost by network level
G124: ='ARP_Inputs by network level'!$C$134 -> Input 502-G: Peaking probabilities, by timeband & network level
F125: ARP_General inputs | G125: ='ARP_General inputs'!$C$16 -> Input 503-A: Split of hours by distribution timeband
G126: ='ARP_General inputs'!$C$28 -> Input 503-B: Embedded network (LDNO) discount percentages
G127: ='ARP_General inputs'!$C$38 -> Input 503-C: CDCM target revenue
G128: ='ARP_General inputs'!$C$99 -> Input 503-D: Financial and general assumptions
G129: ='ARP_General inputs'!$C$104 -> Input 503-E: Transmission exit charges
G130: ='ARP_General inputs'!$C$108 -> Input 503-F: Other expenditure
F131: Fixed inputs | G131: ='Fixed inputs'!$C$13 -> Input 504-A: Conversions and time
G132: ='Fixed inputs'!$C$20 -> Input 504-B: Input 101-B: Rounding
G133: ='Fixed inputs'!$C$33 -> Input 504-C: Financial and general assumptions
G134: ='Fixed inputs'!$C$43 -> Input 504-D: Mappings
G135: ='Fixed inputs'!$C$84 -> Input 504-E: Standing charge factors
G136: ='Fixed inputs'!$C$99 -> Input 504-F: Flags
G137: ='Fixed inputs'!$C$141 -> Input 504-G: Identifiers for customer groupings
G138: ='Fixed inputs'!$C$151 -> Input 504-H: Decimal places for error checks
G139: ='Fixed inputs'!$C$155 -> Input 504-I: Map of applicable MPANs
G140: ='Fixed inputs'!$C$162 -> Input 504-J: Revenue matching inputs
F141: Inputs by customer type | G141: ='Inputs by customer type'!$C$16 -> Section 501-A: Load characteristics
G142: ='Inputs by customer type'!$C$21 -> Section 501-B: Volume forecasts for the charging year
G143: ='Inputs by customer type'!$C$166 -> Section 501-C: Non-Domestic Aggregated (Related MPAN) distribution by bands
G144: ='Inputs by customer type'!$C$186 -> Section 501-D: Service model asset values
F145: Inputs by network level | G145: ='Inputs by network level'!$C$16 -> Section 502-A: Network and load inputs
G146: ='Inputs by network level'!$C$26 -> Section 502-B: Customer contributions under current connection charging policy
G147: ='Inputs by network level'!$C$34 -> Section 502-C: DRM asset costs
G148: ='Inputs by network level'!$C$38 -> Section 502-D: Peaking probabilities by network level
F149: General inputs | G149: ='General inputs'!$C$16 -> Section 503-A: Inputs by distribution timeband
G150: ='General inputs'!$C$28 -> Section 503-B: LDNO discount inputs
G151: ='General inputs'!$C$38 -> Section 503-C: CDCM target revenue
G152: ='General inputs'!$C$93 -> Section 503-D: Financial and general assumptions
G153: ='General inputs'!$C$99 -> Section 503-E: Transmission exit charges
G154: ='General inputs'!$C$103 -> Section 503-F: Other expenditure
F155: Standing charge factors | G155: ='Standing charge factors'!$C$19 -> Section 504-A: Adjustments to standing charges
F156: Load & loss characteristics | G156: ='Load & loss characteristics'!$C$17 -> Section 505-A: Load characteristics
G157: ='Load & loss characteristics'!$C$25 -> Section 505-B: Loss adjustment factors
G158: ='Load & loss characteristics'!$C$35 -> Section 505-C: Proportion of relevant load going through 132kV/HV direct transformation
G159: ='Load & loss characteristics'!$C$40 -> Section 505-D: Network use factors
G160: ='Load & loss characteristics'!$C$121 -> Section 505-E: User loss factors
F161: Customer contributions | G161: ='Customer contributions'!$C$16 -> Section 506-A: Network use factors
G162: ='Customer contributions'!$C$38 -> Section 506-B: Customer contributions
F163: Volume adjustments | G163: ='Volume adjustments'!$C$15 -> Section 507-A: LDNO discounts
G164: ='Volume adjustments'!$C$53 -> Section 507-B: Aggregation of volumes
G165: ='Volume adjustments'!$C$225 -> Section 507-C: Volume discounting
G166: ='Volume adjustments'!$C$332 -> Section 507-D: No residual volume discounting
G167: ='Volume adjustments'!$C$361 -> Section 507-E: Residual band 1 volume discounting
G168: ='Volume adjustments'!$C$390 -> Section 507-F: Residual band 2 volume discounting
G169: ='Volume adjustments'!$C$419 -> Section 507-G: Residual band 3 volume discounting
G170: ='Volume adjustments'!$C$448 -> Section 507-H: Residual band 4 volume discounting
G171: ='Volume adjustments'!$C$477 -> Section 507-I: Discounted volumes by residual band
G172: ='Volume adjustments'!$C$523 -> Section 507-J: Volumes by residual band
G173: ='Volume adjustments'!$C$657 -> Section 507-K: Non-domestic aggregated (related MPAN) distribution across bands
F174: Pseudo-load coefficients | G174: ='Pseudo-load coefficients'!$C$18 -> Section 508-A: Flags and hours in timebands
G175: ='Pseudo-load coefficients'!$C$28 -> Section 508-B: Average load by timeband
G176: ='Pseudo-load coefficients'!$C$36 -> Section 508-C: Aggregated groups for pseudo-load coefficients
G177: ='Pseudo-load coefficients'!$C$52 -> Section 508-D: Ratio of coincidence to load factor assuming units evenly spread within time bands, and peak falls in Red period
G178: ='Pseudo-load coefficients'!$C$60 -> Section 508-E: Load characteristics for all customers
G179: ='Pseudo-load coefficients'!$C$65 -> Section 508-F: Aggregated load characteristics for grouped customers
G180: ='Pseudo-load coefficients'!$C$87 -> Section 508-G: Calculation of correction factor
G181: ='Pseudo-load coefficients'!$C$100 -> Section 508-H: Peaking probabilities, by network level
G182: ='Pseudo-load coefficients'!$C$174 -> Section 508-I: Peaking probabilities, by network level and customer type
G183: ='Pseudo-load coefficients'!$C$221 -> Section 508-J: Ratio of coincidence factor to load factor, based on uniform distribution in timebands and peaking probabilities
G184: ='Pseudo-load coefficients'!$C$265 -> Section 508-K: Load coefficient
G185: ='Pseudo-load coefficients'!$C$269 -> Section 508-L: Pseudo load coefficients, by unit rate
F186: System peak demand | G186: ='System peak demand'!$C$18 -> Section 509-A: Common inputs for chargeable load calculations
G187: ='System peak demand'!$C$67 -> Section 509-B: System peak load, by unit rate
G188: ='System peak demand'!$C$138 -> Section 509-C: System peak load, all unit rates
G189: ='System peak demand'!$C$164 -> Section 509-D: Unit rate contributions to chargeable peak load
G190: ='System peak demand'!$C$184 -> Section 509-E: Adjustment of import and exceeded capacity
G191: ='System peak demand'!$C$194 -> Section 509-F: Calculation of LV circuit diversity factor
G192: ='System peak demand'!$C$236 -> Section 509-G: Import/exceeded capacity contribution to system peak
G193: ='System peak demand'!$C$249 -> Section 509-H: Estimated capacity contribution to system peak
G194: ='System peak demand'!$C$266 -> Section 509-I: System peak based on chargeable load
F195: Service model assets | G195: ='Service model assets'!$C$14 -> Section 510-A: Service model notional asset values
F196: Unit costs | G196: ='Unit costs'!$C$19 -> Section 511-A: Financial data
G197: ='Unit costs'!$C$27 -> Section 511-B: Diversity and loss adjustment factors
G198: ='Unit costs'!$C$35 -> Section 511-C: Maximum demand
G199: ='Unit costs'!$C$42 -> Section 511-D: Rerouting matrix
G200: ='Unit costs'!$C$50 -> Section 511-E: Annuitised cost of assets
G201: ='Unit costs'!$C$62 -> Section 511-F: System simultaneous peak load based on charegable units
G202: ='Unit costs'!$C$69 -> Section 511-G: Notional asset values, by network level
G203: ='Unit costs'!$C$80 -> Section 511-H: Other operating costs
G204: ='Unit costs'!$C$92 -> Section 511-I: Other operating costs by network level
G205: ='Unit costs'!$C$104 -> Section 511-J: Notional asset values by network level
G206: ='Unit costs'!$C$110 -> Section 511-K: Unit costs
G207: ='Unit costs'!$C$117 -> Section 511-L: Values used for allocating costs to service models
F208: Initial unit rates | G208: ='Initial unit rates'!$C$13 -> Section 512-A: Inputs for yardstick and unit rate calculations
... 75 more rows

Sheet Named ranges
A1: =MID(CELL("filename",A1),FIND("]",CELL("filename",A1))+1,255) -> Named ranges
A2: =Cover!D21&" - "&Cover!D23 -> SP Manweb - One
A3: =Cover!D2&" - "&Cover!D8&" v"&Cover!D10&" - "&Cover!D19 -> ARP model - Release for charge setting v7 - 2024/25
B5: List of named ranges
F7: charging_year | G7: Year for which charges are being calculated | H7: Cover
F8: charging_year_selected | G8: Charging year currently selected for ARP | H8: ARP_User control
F9: check_decimals | G9: Number of decimal places of precision for in-built model checks | H9: Fixed inputs
F10: days_in_year | G10: Days in the charging year | H10: General inputs
F11: DNO_name | G11: Name of DNO | H11: Cover
F12: hours_in_day | G12: Hours per day | H12: Fixed inputs
F13: hours_in_year | G13: Hours in the charging year | H13: General inputs
F14: hundred | G14: Equal to 100 | H14: Fixed inputs
F15: live_results_bills | G15: Typical bills for selected charging year | H15: Typical bills
F16: live_results_tariffs | G16: Tariffs for selected charging year | H16: Tariff summary
F17: PowerFactor | G17: Power factor, equal to 0.95 | H17: Fixed inputs
F18: results_4_bills | G18: Typical bills for current charging year | H18: Typical bills
F19: results_4_tariffs | G19: Tariffs for current charging year | H19: Tariff summary
F20: results_5_bills | G20: Typical bills for current charging year + 1 | H20: Typical bills
F21: results_5_tariffs | G21: Tariffs for current charging year + 1 | H21: Tariff summary
F22: results_6_bills | G22: Typical bills for current charging year + 2 | H22: Typical bills
F23: results_6_tariffs | G23: Tariffs for current charging year + 2 | H23: Tariff summary
F24: results_7_bills | G24: Typical bills for current charging year + 3 | H24: Typical bills
F25: results_7_tariffs | G25: Tariffs for current charging year + 3 | H25: Tariff summary
F26: results_8_bills | G26: Typical bills for current charging year + 4 | H26: Typical bills
F27: results_8_tariffs | G27: Tariffs for current charging year + 4 | H27: Tariff summary
F28: ten | G28: Equal to 10 | H28: Fixed inputs
F29: thousand | G29: Equal to 1000 | H29: Fixed inputs
F30: year_selection | G30: Index for selected charging year | H30: ARP_User control
B32: End of sheet

Sheet ARP_DNO commentary
A1: =MID(CELL("filename",A1),FIND("]",CELL("filename",A1))+1,255) -> ARP_DNO commentary
A2: =Cover!D21&" - "&Cover!D23 -> SP Manweb - One
A3: =Cover!D2&" - "&Cover!D8&" v"&Cover!D10&" - "&Cover!D19 -> ARP model - Release for charge setting v7 - 2024/25
B5: Description
C7: This sheet contains the DNO's commentary on its forecast of CDCM input data for the four years following the charging year, as required by DCUSA Schedule 20, Paragraph 2.1 (e).
B9: Commentary
B20: End of sheet

Sheet ARP_CDCM timebands
A1: =MID(CELL("filename",A1),FIND("]",CELL("filename",A1))+1,255) -> ARP_CDCM timebands
A2: =Cover!D21&" - "&Cover!D23 -> SP Manweb - One
A3: =Cover!D2&" - "&Cover!D8&" v"&Cover!D10&" - "&Cover!D19 -> ARP model - Release for charge setting v7 - 2024/25
B5: Click here to return to model map | G5: Units | H5: Constants | J5: =TRANSPOSE('ARP_User control'!G31:G35) -> 2024/25 | K5: 2025/26 | L5: 2026/27 | M5: 2027/28 | N5: 2028/29
B7: Description
C9: This sheet sets out the expected timebands that the DNO plans to use for each of the five years covered by the
C10: Annual Review Pack, as required by DCUSA Schedule 20, Paragraph 2.1 (f).
B12: CDCM timebands
C14: Distribution time bands
E16: Weekdays (including bank holidays)
F17: Red | G17: time of day | J17: 16:30 - 19:30 | K17: 16:30 - 19:30 | L17: 16:30 - 19:30 | M17: 16:30 - 19:30 | N17: 16:30 - 19:30
F18: Amber | G18: time of day | J18: 08:00 - 16:30 19:30 - 22:30 | K18: 08:00 - 16:30 19:30 - 22:30 | L18: 08:00 - 16:30 19:30 - 22:30 | M18: 08:00 - 16:30 19:30 - 22:30 | N18: 08:00 - 16:30 19:30 - 22:30
F19: Green | G19: time of day | J19: 00:00 - 08:00 22:30 - 00:00 | K19: 00:00 - 08:00 22:30 - 00:00 | L19: 00:00 - 08:00 22:30 - 00:00 | M19: 00:00 - 08:00 22:30 - 00:00 | N19: 00:00 - 08:00 22:30 - 00:00
E21: Weekends
F22: Red | G22: time of day
F23: Amber | G23: time of day | J23: 16:00 - 20:00 | K23: 16:00 - 20:00 | L23: 16:00 - 20:00 | M23: 16:00 - 20:00 | N23: 16:00 - 20:00
F24: Green | G24: time of day | J24: 00:00 - 16:00 20:00 - 00:00 | K24: 00:00 - 16:00 20:00 - 00:00 | L24: 00:00 - 16:00 20:00 - 00:00 | M24: 00:00 - 16:00 20:00 - 00:00 | N24: 00:00 - 16:00 20:00 - 00:00
C26: Special distribution time bands
E28: Weekdays (including bank holidays) Nov to Feb
F29: Black | G29: time of day | J29: 16:30 - 19:30 | K29: 16:30 - 19:30 | L29: 16:30 - 19:30 | M29: 16:30 - 19:30 | N29: 16:30 - 19:30
F30: Yellow | G30: time of day | J30: 08:00 - 16:30 19:30 - 22:30 | K30: 08:00 - 16:30 19:30 - 22:30 | L30: 08:00 - 16:30 19:30 - 22:30 | M30: 08:00 - 16:30 19:30 - 22:30 | N30: 08:00 - 16:30 19:30 - 22:30
F31: Green | G31: time of day | J31: 00:00 - 08:00 22:30 - 00:00 | K31: 00:00 - 08:00 22:30 - 00:00 | L31: 00:00 - 08:00 22:30 - 00:00 | M31: 00:00 - 08:00 22:30 - 00:00 | N31: 00:00 - 08:00 22:30 - 00:00
E33: Weekdays (including bank holidays) Mar to Oct
F34: Black | G34: time of day
F35: Yellow | G35: time of day | J35: 08:00 - 22:30 | K35: 08:00 - 22:30 | L35: 08:00 - 22:30 | M35: 08:00 - 22:30 | N35: 08:00 - 22:30
F36: Green | G36: time of day | J36: 00:00 - 08:00 22:30 - 00:00 | K36: 00:00 - 08:00 22:30 - 00:00 | L36: 00:00 - 08:00 22:30 - 00:00 | M36: 00:00 - 08:00 22:30 - 00:00 | N36: 00:00 - 08:00 22:30 - 00:00
E38: Weekends
F39: Black | G39: time of day
F40: Yellow | G40: time of day | J40: 16:00 - 20:00 | K40: 16:00 - 20:00 | L40: 16:00 - 20:00 | M40: 16:00 - 20:00 | N40: 16:00 - 20:00
F41: Green | G41: time of day | J41: 00:00 - 16:00 20:00 - 00:00 | K41: 00:00 - 16:00 20:00 - 00:00 | L41: 00:00 - 16:00 20:00 - 00:00 | M41: 00:00 - 16:00 20:00 - 00:00 | N41: 00:00 - 16:00 20:00 - 00:00
B43: End of sheet

Sheet ARP_Load characteristics
A1: =MID(CELL("filename",A1),FIND("]",CELL("filename",A1))+1,255) -> ARP_Load characteristics
A2: =Cover!D21&" - "&Cover!D23 -> SP Manweb - One
A3: =Cover!D2&" - "&Cover!D8&" v"&Cover!D10&" - "&Cover!D19 -> ARP model - Release for charge setting v7 - 2024/25
B5: Click here to return to model map | G5: Units | H5: Constants | J5: Domestic Aggregated | K5: Domestic Aggregated (Related MPAN) | L5: Non-Domestic Aggregated | M5: Non-Domestic Aggregated (Related MPAN) | N5: LV Site Specific | O5: LV Sub Site Specific | P5: HV Site Specific | Q5: Unmetered Supplies | R5: LV Generation Aggregated | S5: LV Sub Generation Aggregated | T5: LV Generation Site Specific | U5: LV Generation Site Specific no RP Charge | V5: LV Sub Generation Site Specific | W5: LV Sub Generation Site Specific no RP Charge | X5: HV Generation Site Specific | Y5: HV Generation Site Specific no RP Charge
B7: Description
C9: This sheet presents historic data used to calculate average values for load characteristics, as required by DCUSA Schedule 20, Paragraph 2.1 (g).
C10: Charges for year Y are set in year Y-2 using average load characteristics from the three previous years (i.e. Y-3 to Y-5).
C11: This sheet is for information only, and is not linked to following worksheets.
B13: Years
E15: Years to which input data relate
F16: Year 1 | G16: year | H16: =LEFT(H17,4) - 1 & "/" & RIGHT(H17,2) - 1 -> 2019/20
F17: Year 2 | G17: year | H17: =LEFT(H18,4) - 1 & "/" & RIGHT(H18,2) - 1 -> 2020/21
F18: Year 3 | G18: year | H18: ='ARP_User control'!$G$28 -> 2021/22
B20: Load characteristics
E22: Load factor
F23: =$H$16 -> 2019/20 | G23: % | J23: 0.442 | K23: 0.144 | L23: 0.457 | M23: 0.199 | N23: 0.591 | O23: 0.571 | P23: 0.732 | Q23: 0.409
F24: =$H$17 -> 2020/21 | G24: % | J24: 0.449 | K24: 0.13 | L24: 0.423 | M24: 0.169 | N24: 0.555 | O24: 0.539 | P24: 0.734 | Q24: 0.478
F25: =$H$18 -> 2021/22 | G25: % | J25: 0.447 | K25: 0.141 | L25: 0.46 | M25: 0.186 | N25: 0.587 | O25: 0.568 | P25: 0.748 | Q25: 0.493
F26: Average | G26: % | J26: =AVERAGE(J23:J25) -> 0.446 | K26: =AVERAGE(K23:K25) -> 0.1383333333 | L26: 0.4466666667 | M26: 0.1846666667 | N26: 0.5776666667 | O26: 0.5593333333 | P26: 0.738 | Q26: 0.46
E28: Coincidence factor
F29: =$H$16 -> 2019/20 | G29: % | J29: 0.803 | L29: 0.691 | N29: 0.799 | O29: 0.753 | P29: 0.822 | Q29: 0.835
F30: =$H$17 -> 2020/21 | G30: % | J30: 0.852 | L30: 0.702 | N30: 0.85 | O30: 0.775 | P30: 0.836 | Q30: 0.969
F31: =$H$18 -> 2021/22 | G31: % | J31: 0.862 | L31: 0.738 | N31: 0.83 | O31: 0.775 | P31: 0.867 | Q31: 0.921
F32: Average | G32: % | J32: =AVERAGE(J29:J31) -> 0.839 | L32: =AVERAGE(L29:L31) -> 0.7103333333 | N32: 0.8263333333 | O32: 0.7676666667 | P32: =AVERAGE(P29:P31) -> 0.8416666667 | Q32: 0.9083333333
B34: End of sheet

Sheet ARP_Peaking probabilities
A1: =MID(CELL("filename",A1),FIND("]",CELL("filename",A1))+1,255) -> ARP_Peaking probabilities
A2: =Cover!D21&" - "&Cover!D23 -> SP Manweb - One
A3: =Cover!D2&" - "&Cover!D8&" v"&Cover!D10&" - "&Cover!D19 -> ARP model - Release for charge setting v7 - 2024/25
B5: Click here to return to model map | G5: Units | H5: Constants | J5: Transmission exit | K5: GSPs | L5: 132kV | M5: 132kV/EHV | N5: EHV | O5: EHV/HV | P5: 132kV/HV | Q5: HV | R5: HV/LV | S5: LV circuits
B7: Description
C9: This sheet presents historic data used to calculate average values for peaking probabilities, as required by
C10: DCUSA Schedule 20, Paragraph 2.1 (e).
C11: Charges for year Y are set in year Y-2 using average peaking probabilities from the three previous years (i.e. Y-3 to Y-5).
C12: This sheet is for information only, and is not linked to following worksheets.
B14: Years
E16: Years to which input data relate
F17: Year 1 | G17: year | H17: =LEFT(H18,4) - 1 & "/" & RIGHT(H18,2) - 1 -> 2019/20
F18: Year 2 | G18: year | H18: =LEFT(H19,4) - 1 & "/" & RIGHT(H19,2) - 1 -> 2020/21
F19: Year 3 | G19: year | H19: ='ARP_User control'!$G$28 -> 2021/22
B21: Peaking probabilities, by distribution timeband
E23: Red period
F24: =$H$17 -> 2019/20 | G24: % | K24: 0.6721157398 | L24: 0.6721157398 | M24: 0.3850483803 | N24: 0.3850483803 | O24: 0.2934284722 | P24: 0.2934284722 | Q24: 0.2934284722 | R24: 0.2934284722 | S24: 0.2934284722
F25: =$H$18 -> 2020/21 | G25: % | K25: 0.6063091556 | L25: 0.6063091556 | M25: 0.3436392004 | N25: 0.3436392004 | O25: 0.2444058912 | P25: 0.2444058912 | Q25: 0.2444058912 | R25: 0.2444058912 | S25: 0.2444058912
F26: =$H$19 -> 2021/22 | G26: % | K26: 0.5871149682 | L26: 0.5871149682 | M26: 0.344638784 | N26: 0.344638784 | O26: 0.3048119423 | P26: 0.3048119423 | Q26: 0.3048119423 | R26: 0.3048119423 | S26: 0.3048119423
F27: Average | G27: % | K27: =AVERAGE(K24:K26) -> 0.6218466212 | L27: 0.6218466212 | M27: 0.3577754549 | N27: 0.3577754549 | O27: 0.2808821019 | P27: 0.2808821019 | Q27: 0.2808821019 | R27: 0.2808821019 | S27: 0.2808821019
E29: Amber period
F30: =$H$17 -> 2019/20 | G30: % | K30: 0.3278842602 | L30: 0.3278842602 | M30: 0.5491459364 | N30: 0.5491459364 | O30: 0.6111840793 | P30: 0.6111840793 | Q30: 0.6111840793 | R30: 0.6111840793 | S30: 0.6111840793
F31: =$H$18 -> 2020/21 | G31: % | K31: 0.3936908444 | L31: 0.3936908444 | M31: 0.5831120462 | N31: 0.5831120462 | O31: 0.6295306639 | P31: 0.6295306639 | Q31: 0.6295306639 | R31: 0.6295306639 | S31: 0.6295306639
F32: =$H$19 -> 2021/22 | G32: % | K32: 0.4128850318 | L32: 0.4128850318 | M32: 0.5382656062 | N32: 0.5382656062 | O32: 0.6018535491 | P32: 0.6018535491 | Q32: 0.6018535491 | R32: 0.6018535491 | S32: 0.6018535491
F33: Average | G33: % | K33: =AVERAGE(K30:K32) -> 0.3781533788 | L33: 0.3781533788 | M33: 0.5568411963 | N33: 0.5568411963 | O33: 0.6141894308 | P33: 0.6141894308 | Q33: 0.6141894308 | R33: 0.6141894308 | S33: 0.6141894308
E35: Green period
F36: =$H$17 -> 2019/20 | G36: % | K36: 0 | L36: 0 | M36: 0.06580568322 | N36: 0.06580568322 | O36: 0.09538744849 | P36: 0.09538744849 | Q36: 0.09538744849 | R36: 0.09538744849 | S36: 0.09538744849
F37: =$H$18 -> 2020/21 | G37: % | K37: 0 | L37: 0 | M37: 0.07324875343 | N37: 0.07324875343 | O37: 0.1260634449 | P37: 0.1260634449 | Q37: 0.1260634449 | R37: 0.1260634449 | S37: 0.1260634449
F38: =$H$19 -> 2021/22 | G38: % | K38: 0 | L38: 0 | M38: 0.1170956098 | N38: 0.1170956098 | O38: 0.0933345086 | P38: 0.0933345086 | Q38: 0.0933345086 | R38: 0.0933345086 | S38: 0.0933345086
F39: Average | G39: % | K39: =AVERAGE(K36:K38) -> 0 | L39: 0 | M39: 0.08538334881 | N39: 0.08538334881 | O39: 0.1049284673 | P39: 0.1049284673 | Q39: 0.1049284673 | R39: 0.1049284673 | S39: 0.1049284673
E41: Black period
F42: =$H$17 -> 2019/20 | G42: % | K42: 0.484101764 | L42: 0.484101764 | M42: 0.1915655997 | N42: 0.1915655997 | O42: 0.1994311461 | P42: 0.1994311461 | Q42: 0.1994311461 | R42: 0.1994311461 | S42: 0.1994311461
F43: =$H$18 -> 2020/21 | G43: % | K43: 0.556351217 | L43: 0.556351217 | M43: 0.2045666642 | N43: 0.2045666642 | O43: 0.1933720586 | P43: 0.1933720586 | Q43: 0.1933720586 | R43: 0.1933720586 | S43: 0.1933720586
F44: =$H$19 -> 2021/22 | G44: % | K44: 0.5871149682 | L44: 0.5871149682 | M44: 0.2461381516 | N44: 0.2461381516 | O44: 0.2040558519 | P44: 0.2040558519 | Q44: 0.2040558519 | R44: 0.2040558519 | S44: 0.2040558519
F45: Average | G45: % | K45: =AVERAGE(K42:K44) -> 0.5425226498 | L45: 0.5425226498 | M45: 0.2140901385 | N45: 0.2140901385 | O45: 0.1989530189 | P45: 0.1989530189 | Q45: 0.1989530189 | R45: 0.1989530189 | S45: 0.1989530189
B47: End of sheet

Sheet ARP_User control
A1: =MID(CELL("filename",A1),FIND("]",CELL("filename",A1))+1,255) -> ARP_User control
A2: =Cover!D21&" - "&Cover!D23 -> SP Manweb - One
A3: =Cover!D2&" - "&Cover!D8&" v"&Cover!D10&" - "&Cover!D19 -> ARP model - Release for charge setting v7 - 2024/25
B5: Description
C7: This sheet contains the user interface for the ARP, which is used to select the "live" year used for input data.
C8: It houses the Macro Button which should be pressed to update results for all years of the forecast period.
B10: User interface
C12: Users can select which year of input data is pulled into the model using the yellow cell.
C13: Users should press the "Run all years" macro button to update multi-year results on the 'Tariff summary' and 'Typical bills' sheets.
C15: Inputs for manually running selected year
E17: Year selection | G17: 2024/25
C19: Macro to run all years
B25: Lists
D27: List of years
E28: Year -3 | G28: =LEFT(G29,4) - 1 & "/" & RIGHT(G29,2) - 1 -> 2021/22 | H28: Historic
E29: Year -2 | G29: =LEFT(G30,4) - 1 & "/" & RIGHT(G30,2) - 1 -> 2022/23 | H29: Historic
E30: Year -1 | G30: =LEFT(G31,4) - 1 & "/" & RIGHT(G31,2) - 1 -> 2023/24 | H30: Historic
E31: ="Charging year (" & charging_year &")" -> Charging year (2024/25) | G31: =charging_year -> 2024/25 | H31: Current
E32: Year +1 | G32: =LEFT(G31,4) + 1 & "/" & RIGHT(G31,2) + 1 -> 2025/26 | H32: Forecast
E33: Year +2 | G33: =LEFT(G32,4) + 1 & "/" & RIGHT(G32,2) + 1 -> 2026/27 | H33: Forecast
E34: Year +3 | G34: 2027/28 | H34: Forecast
E35: Year +4 | G35: 2028/29 | H35: Forecast
E36: Year selection (index) | G36: =MATCH(G17,G28:G35) -> 4 | H36: =INDEX(H28:H35,MATCH($G$17,$G$28:$G$35,0)) -> Current
B38: End of sheet

Sheet ARP_Inputs by customer type
A1: =MID(CELL("filename",A1),FIND("]",CELL("filename",A1))+1,255) -> ARP_Inputs by customer type
A2: =Cover!D21&" - "&Cover!D23 -> SP Manweb - One
A3: =Cover!D2&" - "&Cover!D8&" v"&Cover!D10&" - "&Cover!D19 -> ARP model - Release for charge setting v7 - 2024/25
A4: =H2140 & IF(H2140 = 1, " issue", " issues") &" identified in checks on this sheet" -> 0 issues identified in checks on this sheet
J5: ="Year selected ("& charging_year_selected &")" -> Year selected (2024/25) | L5: =TRANSPOSE('ARP_User control'!G28:H35) -> 2021/22 | M5: 2022/23 | N5: 2023/24 | O5: 2024/25 | P5: 2025/26 | Q5: 2026/27 | R5: 2027/28 | S5: 2028/29
B6: Click here to return to model map | G6: Units | H6: Constants | J6: ='ARP_User control'!$H$36 -> Current | L6: Historic | M6: Historic | N6: Historic | O6: Current | P6: Forecast | Q6: Forecast | R6: Forecast | S6: Forecast | U6: Legal text reference
B8: Description
C10: This sheet sets out inputs by customer type and by year.
C11: DNOs should populate the inputs for the charging year and the four following years.
C12: DNOs can also populate the three years preceding the charging year, but are not obliged to do so.
B14: Load characteristics
C16: =INDEX('Version control'!$H$36:$H$62,MATCH($A$1,'Version control'!$F$36:$F$62,0),1)&"-A: Load factor" -> Input 501-A: Load factor
E18: Load factor | I18: > | U18: Paragraphs 42 (a) and 52
F19: Domestic Aggregated | G19: % | J19: =CHOOSE(year_selection, L19,M19,N19,O19,P19,Q19,R19,S19) -> 0.446 | M19: 0.454 | N19: 0.4473333333 | O19: 0.446 | P19: =$O19 -> 0.446 | Q19: =$O19 -> 0.446 | R19: 0.446 | S19: 0.446
F20: Domestic Aggregated (Related MPAN) | G20: % | J20: =CHOOSE(year_selection, L20,M20,N20,O20,P20,Q20,R20,S20) -> 0.1383333333 | M20: 0.1326666667 | N20: 0.1353333333 | O20: 0.1383333333 | P20: =$O20 -> 0.1383333333 | Q20: 0.1383333333 | R20: 0.1383333333 | S20: 0.1383333333
F21: Non-Domestic Aggregated | G21: % | J21: 0.4466666667 | M21: 0.4356666667 | N21: 0.4373333333 | O21: 0.4466666667 | P21: 0.4466666667 | Q21: 0.4466666667 | R21: 0.4466666667 | S21: 0.4466666667
F22: Non-Domestic Aggregated (Related MPAN) | G22: % | J22: 0.1846666667 | M22: 0.176 | N22: 0.1803333333 | O22: 0.1846666667 | P22: 0.1846666667 | Q22: 0.1846666667 | R22: 0.1846666667 | S22: 0.1846666667
F23: LV Site Specific | G23: % | J23: 0.5776666667 | M23: 0.5813333333 | N23: 0.5793333333 | O23: 0.5776666667 | P23: 0.5776666667 | Q23: 0.5776666667 | R23: 0.5776666667 | S23: 0.5776666667
F24: LV Sub Site Specific | G24: % | J24: 0.5593333333 | M24: 0.5686666667 | N24: 0.5633333333 | O24: 0.5593333333 | P24: 0.5593333333 | Q24: 0.5593333333 | R24: 0.5593333333 | S24: 0.5593333333
F25: HV Site Specific | G25: % | J25: 0.738 | M25: 0.741 | N25: 0.7376666667 | O25: 0.738 | P25: 0.738 | Q25: 0.738 | R25: 0.738 | S25: 0.738
F26: Unmetered Supplies | G26: % | J26: 0.46 | M26: 0.446 | N26: 0.4486666667 | O26: 0.46 | P26: 0.46 | Q26: 0.46 | R26: 0.46 | S26: 0.46
F27: LV Generation Aggregated | G27: %
F28: LV Sub Generation Aggregated | G28: %
F29: LV Generation Site Specific | G29: %
F30: LV Generation Site Specific no RP Charge | G30: %
F31: LV Sub Generation Site Specific | G31: %
F32: LV Sub Generation Site Specific no RP Charge | G32: %
F33: HV Generation Site Specific | G33: %
F34: HV Generation Site Specific no RP Charge | G34: %
C36: =INDEX('Version control'!$H$36:$H$62,MATCH($A$1,'Version control'!$F$36:$F$62,0),1)&"-B: Coincidence factor" -> Input 501-B: Coincidence factor
E38: Coincidence factor | I38: > | U38: Paragraphs 42 (b) and 52
F39: Domestic Aggregated | G39: % | J39: =CHOOSE(year_selection, L39,M39,N39,O39,P39,Q39,R39,S39) -> 0.839 | M39: 0.86 | N39: 0.8363333333 | O39: 0.839 | P39: =$O39 -> 0.839 | Q39: =$O39 -> 0.839 | R39: 0.839 | S39: 0.839
F40: Domestic Aggregated (Related MPAN) | G40: %
F41: Non-Domestic Aggregated | G41: % | J41: 0.7103333333 | M41: 0.698 | N41: 0.701 | O41: 0.7103333333 | P41: =$O41 -> 0.7103333333 | Q41: 0.7103333333 | R41: 0.7103333333 | S41: 0.7103333333
F42: Non-Domestic Aggregated (Related MPAN) | G42: %
F43: LV Site Specific | G43: % | J43: 0.8263333333 | M43: 0.8143333333 | N43: 0.836 | O43: 0.8263333333 | P43: =$O43 -> 0.8263333333 | Q43: 0.8263333333 | R43: 0.8263333333 | S43: 0.8263333333
F44: LV Sub Site Specific | G44: % | J44: 0.7676666667 | M44: 0.7523333333 | N44: 0.772 | O44: 0.7676666667 | P44: 0.7676666667 | Q44: 0.7676666667 | R44: 0.7676666667 | S44: 0.7676666667
F45: HV Site Specific | G45: % | J45: 0.8416666667 | M45: 0.8326666667 | N45: 0.832 | O45: 0.8416666667 | P45: 0.8416666667 | Q45: 0.8416666667 | R45: 0.8416666667 | S45: 0.8416666667
F46: Unmetered Supplies | G46: % | J46: 0.9083333333 | M46: 0.8353333333 | N46: 0.8626666667 | O46: 0.9083333333 | P46: 0.9083333333 | Q46: 0.9083333333 | R46: 0.9083333333 | S46: 0.9083333333
F47: LV Generation Aggregated | G47: %
F48: LV Sub Generation Aggregated | G48: %
F49: LV Generation Site Specific | G49: %
F50: LV Generation Site Specific no RP Charge | G50: %
F51: LV Sub Generation Site Specific | G51: %
F52: LV Sub Generation Site Specific no RP Charge | G52: %
F53: HV Generation Site Specific | G53: %
F54: HV Generation Site Specific no RP Charge | G54: %
B56: Volumes
C58: =INDEX('Version control'!$H$36:$H$62,MATCH($A$1,'Version control'!$F$36:$F$62,0),1)&"-C: All-the-way volumes - No residual" -> Input 501-C: All-the-way volumes - No residual
E60: Rate 1 units | I60: > | U60: Paragraph 52
F61: Domestic Aggregated | G61: MWh | H61: All the way customers
F62: Domestic Aggregated (Related MPAN) | G62: MWh | H62: All the way customers | J62: =CHOOSE(year_selection, L62,M62,N62,O62,P62,Q62,R62,S62) -> 32.089 | M62: 50.68554117 | N62: 38.75831811 | O62: 32.089 | P62: =$O62 -> 32.089 | Q62: 32.089 | R62: 32.089 | S62: 32.089
F63: Non-Domestic Aggregated | G63: MWh | H63: All the way customers | J63: 48.92907436 | M63: 0 | N63: 37.26050459 | O63: 48.92907436 | P63: 48.92907436 | Q63: 48.92907436 | R63: 48.92907436 | S63: 48.92907436
F64: Non-Domestic Aggregated (Related MPAN) | G64: MWh | H64: All the way customers | J64: 5.328 | M64: 6.122697781 | N64: 7.594 | O64: 5.328 | P64: 5.328 | Q64: 5.328 | R64: 5.328 | S64: 5.328
F65: LV Site Specific | G65: MWh | H65: All the way customers | J65: 17.87464222 | M65: 0 | N65: 11.87353012 | O65: 17.87464222 | P65: 17.87464222 | Q65: 17.87464222 | R65: 17.87464222 | S65: 17.87464222
F66: LV Sub Site Specific | G66: MWh | H66: All the way customers | J66: 1.02893858 | M66: 0 | N66: 1.187473135 | O66: 1.02893858 | P66: 1.02893858 | Q66: 1.02893858 | R66: 1.02893858 | S66: 1.02893858
F67: HV Site Specific | G67: MWh | H67: All the way customers | J67: 175.3916604 | M67: 0 | N67: 283.2929164 | O67: 175.3916604 | P67: 175.3916604 | Q67: 175.3916604 | R67: 175.3916604 | S67: 175.3916604
F68: Unmetered Supplies | G68: MWh | H68: All the way customers
F69: LV Generation Aggregated | G69: MWh | H69: All the way customers | J69: 2038.954569 | M69: 138.207145 | N69: 266.0428919 | O69: 2038.954569 | P69: 2038.954569 | Q69: 2038.954569 | R69: 2038.954569 | S69: 2038.954569
F70: LV Sub Generation Aggregated | G70: MWh | H70: All the way customers | J70: 34.08550267 | M70: 19.85097716 | N70: 23.14877048 | O70: 34.08550267 | P70: 34.08550267 | Q70: 34.08550267 | R70: 34.08550267 | S70: 34.08550267
F71: LV Generation Site Specific | G71: MWh | H71: All the way customers | J71: 3793.449 | M71: 4602.429973 | N71: 3939.091709 | O71: 3793.449 | P71: 3793.449 | Q71: 3793.449 | R71: 3793.449 | S71: 3793.449
F72: LV Generation Site Specific no RP Charge | G72: MWh | H72: All the way customers | J72: 0 | M72: 0 | N72: 0 | O72: 0 | P72: 0 | Q72: 0 | R72: 0 | S72: 0
F73: LV Sub Generation Site Specific | G73: MWh | H73: All the way customers | J73: 1172.297 | M73: 1319.59269 | N73: 1281.503134 | O73: 1172.297 | P73: 1172.297 | Q73: 1172.297 | R73: 1172.297 | S73: 1172.297
F74: LV Sub Generation Site Specific no RP Charge | G74: MWh | H74: All the way customers | J74: 0 | M74: 0 | N74: 0 | O74: 0 | P74: 0 | Q74: 0 | R74: 0 | S74: 0
F75: HV Generation Site Specific | G75: MWh | H75: All the way customers | J75: 51281.671 | M75: 42346.3771 | N75: 51413.60164 | O75: 51281.671 | P75: 51281.671 | Q75: 51281.671 | R75: 51281.671 | S75: 51281.671
F76: HV Generation Site Specific no RP Charge | G76: MWh | H76: All the way customers | J76: 0 | M76: 0 | N76: 0 | O76: 0 | P76: 0 | Q76: 0 | R76: 0 | S76: 0
E78: Rate 2 units
F79: Domestic Aggregated | G79: MWh | H79: All the way customers
F80: Domestic Aggregated (Related MPAN) | G80: MWh | H80: All the way customers | J80: =CHOOSE(year_selection, L80,M80,N80,O80,P80,Q80,R80,S80) -> 557.914 | M80: 876.88932 | N80: 925.1828516 | O80: 557.914 | P80: =$O80 -> 557.914 | Q80: 557.914 | R80: 557.914 | S80: 557.914
F81: Non-Domestic Aggregated | G81: MWh | H81: All the way customers | J81: 260.6422565 | M81: 0 | N81: 195.8773002 | O81: 260.6422565 | P81: 260.6422565 | Q81: 260.6422565 | R81: 260.6422565 | S81: 260.6422565
F82: Non-Domestic Aggregated (Related MPAN) | G82: MWh | H82: All the way customers | J82: 317.86 | M82: 315.9983054 | N82: 388.228 | O82: 317.86 | P82: 317.86 | Q82: 317.86 | R82: 317.86 | S82: 317.86
F83: LV Site Specific | G83: MWh | H83: All the way customers | J83: 105.4816807 | M83: 0 | N83: 53.98271135 | O83: 105.4816807 | P83: 105.4816807 | Q83: 105.4816807 | R83: 105.4816807 | S83: 105.4816807
F84: LV Sub Site Specific | G84: MWh | H84: All the way customers | J84: 4.150458719 | M84: 0 | N84: 5.738731593 | O84: 4.150458719 | P84: 4.150458719 | Q84: 4.150458719 | R84: 4.150458719 | S84: 4.150458719
F85: HV Site Specific | G85: MWh | H85: All the way customers | J85: 1149.126321 | M85: 0 | N85: 1298.563053 | O85: 1149.126321 | P85: 1149.126321 | Q85: 1149.126321 | R85: 1149.126321 | S85: 1149.126321
F86: Unmetered Supplies | G86: MWh | H86: All the way customers
F87: LV Generation Aggregated | G87: MWh | H87: All the way customers | J87: =CHOOSE(year_selection, L87,M87,N87,O87,P87,Q87,R87,S87) -> 12274.52828 | M87: 675.422622 | N87: 1297.903334 | O87: 12274.52828 | P87: =$O87 -> 12274.52828 | Q87: 12274.52828 | R87: 12274.52828 | S87: 12274.52828
F88: LV Sub Generation Aggregated | G88: MWh | H88: All the way customers | J88: 143.9227273 | M88: 89.28326292 | N88: 104.23768 | O88: 143.9227273 | P88: 143.9227273 | Q88: 143.9227273 | R88: 143.9227273 | S88: 143.9227273
F89: LV Generation Site Specific | G89: MWh | H89: All the way customers | J89: 18380.287 | M89: 22397.41404 | N89: 18949.3197 | O89: 18380.287 | P89: 18380.287 | Q89: 18380.287 | R89: 18380.287 | S89: 18380.287
F90: LV Generation Site Specific no RP Charge | G90: MWh | H90: All the way customers | J90: 0 | M90: 0 | N90: 0 | O90: 0 | P90: 0 | Q90: 0 | R90: 0 | S90: 0
F91: LV Sub Generation Site Specific | G91: MWh | H91: All the way customers | J91: 5289.195 | M91: 5938.01821 | N91: 5747.740337 | O91: 5289.195 | P91: 5289.195 | Q91: 5289.195 | R91: 5289.195 | S91: 5289.195
F92: LV Sub Generation Site Specific no RP Charge | G92: MWh | H92: All the way customers | J92: 0 | M92: 0 | N92: 0 | O92: 0 | P92: 0 | Q92: 0 | R92: 0 | S92: 0
F93: HV Generation Site Specific | G93: MWh | H93: All the way customers | J93: 176930.155 | M93: 169950.3767 | N93: 171647.4102 | O93: 176930.155 | P93: 176930.155 | Q93: 176930.155 | R93: 176930.155 | S93: 176930.155
F94: HV Generation Site Specific no RP Charge | G94: MWh | H94: All the way customers | J94: 0 | M94: 0 | N94: 0 | O94: 0 | P94: 0 | Q94: 0 | R94: 0 | S94: 0
E96: Rate 3 units
F97: Domestic Aggregated | G97: MWh | H97: All the way customers
F98: Domestic Aggregated (Related MPAN) | G98: MWh | H98: All the way customers | J98: =CHOOSE(year_selection, L98,M98,N98,O98,P98,Q98,R98,S98) -> 6679.759 | M98: 11792.87328 | N98: 10757.96876 | O98: 6679.759 | P98: =$O98 -> 6679.759 | Q98: 6679.759 | R98: 6679.759 | S98: 6679.759
F99: Non-Domestic Aggregated | G99: MWh | H99: All the way customers | J99: 218.7632633 | M99: 0 | N99: 189.6930283 | O99: 218.7632633 | P99: 218.7632633 | Q99: 218.7632633 | R99: 218.7632633 | S99: 218.7632633
F100: Non-Domestic Aggregated (Related MPAN) | G100: MWh | H100: All the way customers | J100: 3640.25 | M100: 3822.627749 | N100: 4699.629 | O100: 3640.25 | P100: 3640.25 | Q100: 3640.25 | R100: 3640.25 | S100: 3640.25
F101: LV Site Specific | G101: MWh | H101: All the way customers | J101: 94.33406445 | M101: 0 | N101: 47.5314034 | O101: 94.33406445 | P101: 94.33406445 | Q101: 94.33406445 | R101: 94.33406445 | S101: 94.33406445
F102: LV Sub Site Specific | G102: MWh | H102: All the way customers | J102: 5.884740792 | M102: 0 | N102: 5.07546195 | O102: 5.884740792 | P102: 5.884740792 | Q102: 5.884740792 | R102: 5.884740792 | S102: 5.884740792
F103: HV Site Specific | G103: MWh | H103: All the way customers | J103: 1706.545262 | M103: 0 | N103: 1409.774835 | O103: 1706.545262 | P103: 1706.545262 | Q103: 1706.545262 | R103: 1706.545262 | S103: 1706.545262
F104: Unmetered Supplies | G104: MWh | H104: All the way customers
F105: LV Generation Aggregated | G105: MWh | H105: All the way customers | J105: =CHOOSE(year_selection, L105,M105,N105,O105,P105,Q105,R105,S105) -> 6127.115168 | M105: 734.6243035 | N105: 1385.295595 | O105: 6127.115168 | P105: =$O105 -> 6127.115168 | Q105: 6127.115168 | R105: 6127.115168 | S105: 6127.115168
F106: LV Sub Generation Aggregated | G106: MWh | H106: All the way customers | J106: 95.50759893 | M106: 112.337807 | N106: 130.2480852 | O106: 95.50759893 | P106: 95.50759893 | Q106: 95.50759893 | R106: 95.50759893 | S106: 95.50759893
F107: LV Generation Site Specific | G107: MWh | H107: All the way customers | J107: 20626.524 | M107: 25989.19533 | N107: 21397.33839 | O107: 20626.524 | P107: 20626.524 | Q107: 20626.524 | R107: 20626.524 | S107: 20626.524
F108: LV Generation Site Specific no RP Charge | G108: MWh | H108: All the way customers | J108: 0 | M108: 0 | N108: 0 | O108: 0 | P108: 0 | Q108: 0 | R108: 0 | S108: 0
F109: LV Sub Generation Site Specific | G109: MWh | H109: All the way customers | J109: 6499.353 | M109: 7475.178151 | N109: 7131.747479 | O109: 6499.353 | P109: 6499.353 | Q109: 6499.353 | R109: 6499.353 | S109: 6499.353
F110: LV Sub Generation Site Specific no RP Charge | G110: MWh | H110: All the way customers | J110: 0 | M110: 0 | N110: 0 | O110: 0 | P110: 0 | Q110: 0 | R110: 0 | S110: 0
F111: HV Generation Site Specific | G111: MWh | H111: All the way customers | J111: 157737.588 | M111: 176946.0466 | N111: 150497.5017 | O111: 157737.588 | P111: 157737.588 | Q111: 157737.588 | R111: 157737.588 | S111: 157737.588
F112: HV Generation Site Specific no RP Charge | G112: MWh | H112: All the way customers | J112: 0 | M112: 0 | N112: 0 | O112: 0 | P112: 0 | Q112: 0 | R112: 0 | S112: 0
E114: MPANs
F115: Domestic Aggregated | G115: MPANs | H115: All the way customers
F116: Domestic Aggregated (Related MPAN) | G116: MPANs | H116: All the way customers | J116: =CHOOSE(year_selection, L116,M116,N116,O116,P116,Q116,R116,S116) -> 2859 | M116: 3156 | N116: 3006 | O116: 2859 | P116: =$O116 -> 2859 | Q116: 2859 | R116: 2859 | S116: 2859
F117: Non-Domestic Aggregated | G117: MPANs | H117: All the way customers | J117: 43 | M117: 0 | N117: 38 | O117: 43 | P117: 43 | Q117: 43 | R117: 43 | S117: 43
F118: Non-Domestic Aggregated (Related MPAN) | G118: MPANs | H118: All the way customers | J118: 940 | M118: 997 | N118: 964 | O118: 940 | P118: 940 | Q118: 940 | R118: 940 | S118: 940
F119: LV Site Specific | G119: MPANs | H119: All the way customers | J119: 28 | M119: 0 | N119: 22 | O119: 28 | P119: 28 | Q119: 28 | R119: 28 | S119: 28
F120: LV Sub Site Specific | G120: MPANs | H120: All the way customers | J120: 5 | M120: 0 | N120: 3 | O120: 5 | P120: 5 | Q120: 5 | R120: 5 | S120: 5
F121: HV Site Specific | G121: MPANs | H121: All the way customers | J121: 59 | M121: 0 | N121: 49 | O121: 59 | P121: 59 | Q121: 59 | R121: 59 | S121: 59
F122: Unmetered Supplies | G122: MPANs | H122: All the way customers
F123: LV Generation Aggregated | G123: MPANs | H123: All the way customers | J123: =CHOOSE(year_selection, L123,M123,N123,O123,P123,Q123,R123,S123) -> 2180 | M123: 283 | N123: 636 | O123: 2180 | P123: =$O123 -> 2180 | Q123: 2180 | R123: 2180 | S123: 2180
F124: LV Sub Generation Aggregated | G124: MPANs | H124: All the way customers | J124: 24 | M124: 25 | N124: 25 | O124: 24 | P124: 24 | Q124: 24 | R124: 24 | S124: 24
F125: LV Generation Site Specific | G125: MPANs | H125: All the way customers | J125: 344 | M125: 317 | N125: 327 | O125: 344 | P125: 344 | Q125: 344 | R125: 344 | S125: 344
F126: LV Generation Site Specific no RP Charge | G126: MPANs | H126: All the way customers | J126: 0 | M126: 0 | N126: 0 | O126: 0 | P126: 0 | Q126: 0 | R126: 0 | S126: 0
F127: LV Sub Generation Site Specific | G127: MPANs | H127: All the way customers | J127: 42 | M127: 41 | N127: 41 | O127: 42 | P127: 42 | Q127: 42 | R127: 42 | S127: 42
F128: LV Sub Generation Site Specific no RP Charge | G128: MPANs | H128: All the way customers | J128: 0 | M128: 0 | N128: 0 | O128: 0 | P128: 0 | Q128: 0 | R128: 0 | S128: 0
F129: HV Generation Site Specific | G129: MPANs | H129: All the way customers | J129: 152 | M129: 138 | N129: 144 | O129: 152 | P129: 152 | Q129: 152 | R129: 152 | S129: 152
F130: HV Generation Site Specific no RP Charge | G130: MPANs | H130: All the way customers | J130: 0 | M130: 0 | N130: 0 | O130: 0 | P130: 0 | Q130: 0 | R130: 0 | S130: 0
E132: Import capacity
F133: Domestic Aggregated | G133: kVA | H133: All the way customers
F134: Domestic Aggregated (Related MPAN) | G134: kVA | H134: All the way customers
F135: Non-Domestic Aggregated | G135: kVA | H135: All the way customers
F136: Non-Domestic Aggregated (Related MPAN) | G136: kVA | H136: All the way customers
F137: LV Site Specific | G137: kVA | H137: All the way customers | J137: =CHOOSE(year_selection, L137,M137,N137,O137,P137,Q137,R137,S137) -> 1378 | M137: 0 | N137: 1288 | O137: 1378 | P137: =$O137 -> 1378 | Q137: 1378 | R137: 1378 | S137: 1378
F138: LV Sub Site Specific | G138: kVA | H138: All the way customers | J138: 118 | M138: 0 | N138: 103 | O138: 118 | P138: 118 | Q138: 118 | R138: 118 | S138: 118
F139: HV Site Specific | G139: kVA | H139: All the way customers | J139: 6929 | M139: 0 | N139: 6873 | O139: 6929 | P139: 6929 | Q139: 6929 | R139: 6929 | S139: 6929
F140: Unmetered Supplies | G140: kVA | H140: All the way customers
F141: LV Generation Aggregated | G141: kVA | H141: All the way customers
F142: LV Sub Generation Aggregated | G142: kVA | H142: All the way customers
F143: LV Generation Site Specific | G143: kVA | H143: All the way customers
F144: LV Generation Site Specific no RP Charge | G144: kVA | H144: All the way customers
F145: LV Sub Generation Site Specific | G145: kVA | H145: All the way customers
F146: LV Sub Generation Site Specific no RP Charge | G146: kVA | H146: All the way customers
F147: HV Generation Site Specific | G147: kVA | H147: All the way customers
F148: HV Generation Site Specific no RP Charge | G148: kVA | H148: All the way customers
E150: Exceeded capacity
F151: Domestic Aggregated | G151: kVA | H151: All the way customers
F152: Domestic Aggregated (Related MPAN) | G152: kVA | H152: All the way customers
F153: Non-Domestic Aggregated | G153: kVA | H153: All the way customers
F154: Non-Domestic Aggregated (Related MPAN) | G154: kVA | H154: All the way customers
F155: LV Site Specific | G155: kVA | H155: All the way customers | J155: =CHOOSE(year_selection, L155,M155,N155,O155,P155,Q155,R155,S155) -> 4 | M155: 0 | N155: 2 | O155: 4 | P155: =$O155 -> 4 | Q155: 4 | R155: 4 | S155: 4
F156: LV Sub Site Specific | G156: kVA | H156: All the way customers | J156: 0 | M156: 0 | N156: 1 | O156: 0 | P156: 0 | Q156: 0 | R156: 0 | S156: 0
F157: HV Site Specific | G157: kVA | H157: All the way customers | J157: 246.9166667 | M157: 0 | N157: 1203 | O157: 246.9166667 | P157: 246.9166667 | Q157: 246.9166667 | R157: 246.9166667 | S157: 246.9166667
F158: Unmetered Supplies | G158: kVA | H158: All the way customers
F159: LV Generation Aggregated | G159: kVA | H159: All the way customers
F160: LV Sub Generation Aggregated | G160: kVA | H160: All the way customers
F161: LV Generation Site Specific | G161: kVA | H161: All the way customers
F162: LV Generation Site Specific no RP Charge | G162: kVA | H162: All the way customers
F163: LV Sub Generation Site Specific | G163: kVA | H163: All the way customers
F164: LV Sub Generation Site Specific no RP Charge | G164: kVA | H164: All the way customers
F165: HV Generation Site Specific | G165: kVA | H165: All the way customers
F166: HV Generation Site Specific no RP Charge | G166: kVA | H166: All the way customers
E168: Reactive power units
F169: Domestic Aggregated | G169: MVArh | H169: All the way customers
F170: Domestic Aggregated (Related MPAN) | G170: MVArh | H170: All the way customers
F171: Non-Domestic Aggregated | G171: MVArh | H171: All the way customers
F172: Non-Domestic Aggregated (Related MPAN) | G172: MVArh | H172: All the way customers
F173: LV Site Specific | G173: MVArh | H173: All the way customers | J173: =CHOOSE(year_selection, L173,M173,N173,O173,P173,Q173,R173,S173) -> 49 | M173: 0 | N173: 25.078 | O173: 49 | P173: =$O173 -> 49 | Q173: 49 | R173: 49 | S173: 49
F174: LV Sub Site Specific | G174: MVArh | H174: All the way customers | J174: 4.248 | M174: 0 | N174: 4.311 | O174: 4.248 | P174: 4.248 | Q174: 4.248 | R174: 4.248 | S174: 4.248
F175: HV Site Specific | G175: MVArh | H175: All the way customers | J175: 1606.79 | M175: 0 | N175: 1351.843 | O175: 1606.79 | P175: 1606.79 | Q175: 1606.79 | R175: 1606.79 | S175: 1606.79
F176: Unmetered Supplies | G176: MVArh | H176: All the way customers
F177: LV Generation Aggregated | G177: MVArh | H177: All the way customers
F178: LV Sub Generation Aggregated | G178: MVArh | H178: All the way customers
F179: LV Generation Site Specific | G179: MVArh | H179: All the way customers | J179: =CHOOSE(year_selection, L179,M179,N179,O179,P179,Q179,R179,S179) -> 5712.562 | M179: 4390.8 | N179: 4754.4 | O179: 5712.562 | P179: =$O179 -> 5712.562 | Q179: 5712.562 | R179: 5712.562 | S179: 5712.562
F180: LV Generation Site Specific no RP Charge | G180: MVArh | H180: All the way customers
F181: LV Sub Generation Site Specific | G181: MVArh | H181: All the way customers | J181: =CHOOSE(year_selection, L181,M181,N181,O181,P181,Q181,R181,S181) -> 573.778 | M181: 172.2 | N181: 519.96 | O181: 573.778 | P181: 573.778 | Q181: 573.778 | R181: 573.778 | S181: 573.778
F182: LV Sub Generation Site Specific no RP Charge | G182: MVArh | H182: All the way customers
F183: HV Generation Site Specific | G183: MVArh | H183: All the way customers | J183: =CHOOSE(year_selection, L183,M183,N183,O183,P183,Q183,R183,S183) -> 9164.714 | M183: 7419.6 | N183: 7350 | O183: 9164.714 | P183: 9164.714 | Q183: 9164.714 | R183: 9164.714 | S183: 9164.714
F184: HV Generation Site Specific no RP Charge | G184: MVArh | H184: All the way customers
C186: =INDEX('Version control'!$H$36:$H$62,MATCH($A$1,'Version control'!$F$36:$F$62,0),1)&"-D: All-the-way volumes - Residual Band 1" -> Input 501-D: All-the-way volumes - Residual Band 1
E188: Rate 1 units | I188: > | U188: Paragraph 52
F189: Domestic Aggregated | G189: MWh | H189: All the way customers | J189: =CHOOSE(year_selection, L189,M189,N189,O189,P189,Q189,R189,S189) -> 542392.9205 | M189: 645101.5235 | N189: 589826.8922 | O189: 542392.9205 | P189: =$O189 -> 542392.9205 | Q189: 542392.9205 | R189: 542392.9205 | S189: 542392.9205
F190: Domestic Aggregated (Related MPAN) | G190: MWh | H190: All the way customers
F191: Non-Domestic Aggregated | G191: MWh | H191: All the way customers | J191: 13142.79174 | M191: 4302.272546 | N191: 11537.95129 | O191: 13142.79174 | P191: =$O191 -> 13142.79174 | Q191: 13142.79174 | R191: 13142.79174 | S191: 13142.79174
F192: Non-Domestic Aggregated (Related MPAN) | G192: MWh | H192: All the way customers
F193: LV Site Specific | G193: MWh | H193: All the way customers | J193: 28709.25947 | M193: 23229.56627 | N193: 28044.29966 | O193: 28709.25947 | P193: =$O193 -> 28709.25947 | Q193: 28709.25947 | R193: 28709.25947 | S193: 28709.25947
F194: LV Sub Site Specific | G194: MWh | H194: All the way customers | J194: 9636.740466 | M194: 10012.85173 | N194: 10469.36869 | O194: 9636.740466 | P194: 9636.740466 | Q194: 9636.740466 | R194: 9636.740466 | S194: 9636.740466
F195: HV Site Specific | G195: MWh | H195: All the way customers | J195: 11697.3744 | M195: 13670.70727 | N195: 12165.49265 | O195: 11697.3744 | P195: 11697.3744 | Q195: 11697.3744 | R195: 11697.3744 | S195: 11697.3744
F196: Unmetered Supplies | G196: MWh | H196: All the way customers | J196: 6404.747543 | M196: 6448.805012 | N196: 6905.762476 | O196: 6404.747543 | P196: 6404.747543 | Q196: 6404.747543 | R196: 6404.747543 | S196: 6404.747543
F197: LV Generation Aggregated | G197: MWh | H197: All the way customers
F198: LV Sub Generation Aggregated | G198: MWh | H198: All the way customers
F199: LV Generation Site Specific | G199: MWh | H199: All the way customers
F200: LV Generation Site Specific no RP Charge | G200: MWh | H200: All the way customers
F201: LV Sub Generation Site Specific | G201: MWh | H201: All the way customers
F202: LV Sub Generation Site Specific no RP Charge | G202: MWh | H202: All the way customers
F203: HV Generation Site Specific | G203: MWh | H203: All the way customers
F204: HV Generation Site Specific no RP Charge | G204: MWh | H204: All the way customers
E206: Rate 2 units
F207: Domestic Aggregated | G207: MWh | H207: All the way customers | J207: =CHOOSE(year_selection, L207,M207,N207,O207,P207,Q207,R207,S207) -> 1892156.584 | M207: 2282979.763 | N207: 2089101.532 | O207: 1892156.584 | P207: =$O207 -> 1892156.584 | Q207: 1892156.584 | R207: 1892156.584 | S207: 1892156.584
F208: Domestic Aggregated (Related MPAN) | G208: MWh | H208: All the way customers
F209: Non-Domestic Aggregated | G209: MWh | H209: All the way customers | J209: =CHOOSE(year_selection, L209,M209,N209,O209,P209,Q209,R209,S209) -> 66780.27256 | M209: 22616.91139 | N209: 60654.64688 | O209: 66780.27256 | P209: =$O209 -> 66780.27256 | Q209: 66780.27256 | R209: 66780.27256 | S209: 66780.27256
F210: Non-Domestic Aggregated (Related MPAN) | G210: MWh | H210: All the way customers
F211: LV Site Specific | G211: MWh | H211: All the way customers | J211: =CHOOSE(year_selection, L211,M211,N211,O211,P211,Q211,R211,S211) -> 129817.1052 | M211: 105605.3201 | N211: 127502.7156 | O211: 129817.1052 | P211: =$O211 -> 129817.1052 | Q211: 129817.1052 | R211: 129817.1052 | S211: 129817.1052
F212: LV Sub Site Specific | G212: MWh | H212: All the way customers | J212: 48097.83145 | M212: 48392.29503 | N212: 50595.58408 | O212: 48097.83145 | P212: 48097.83145 | Q212: 48097.83145 | R212: 48097.83145 | S212: 48097.83145
F213: HV Site Specific | G213: MWh | H213: All the way customers | J213: 57111.12232 | M213: 62662.96762 | N213: 55764.39922 | O213: 57111.12232 | P213: 57111.12232 | Q213: 57111.12232 | R213: 57111.12232 | S213: 57111.12232
F214: Unmetered Supplies | G214: MWh | H214: All the way customers | J214: 35748.58558 | M214: 52561.37096 | N214: 38961.18373 | O214: 35748.58558 | P214: 35748.58558 | Q214: 35748.58558 | R214: 35748.58558 | S214: 35748.58558
F215: LV Generation Aggregated | G215: MWh | H215: All the way customers
F216: LV Sub Generation Aggregated | G216: MWh | H216: All the way customers
F217: LV Generation Site Specific | G217: MWh | H217: All the way customers
F218: LV Generation Site Specific no RP Charge | G218: MWh | H218: All the way customers
F219: LV Sub Generation Site Specific | G219: MWh | H219: All the way customers
... 1786 more rows

Sheet ARP_Inputs by network level
A1: =MID(CELL("filename",A1),FIND("]",CELL("filename",A1))+1,255) -> ARP_Inputs by network level
A2: =Cover!D21&" - "&Cover!D23 -> SP Manweb - One
A3: =Cover!D2&" - "&Cover!D8&" v"&Cover!D10&" - "&Cover!D19 -> ARP model - Release for charge setting v7 - 2024/25
A4: =H218 & IF(H218 = 1, " issue", " issues") &" identified in checks on this sheet" -> 0 issues identified in checks on this sheet
J5: ="Year selected ("& charging_year_selected &")" -> Year selected (2024/25) | L5: =TRANSPOSE('ARP_User control'!G28:H35) -> 2021/22 | M5: 2022/23 | N5: 2023/24 | O5: 2024/25 | P5: 2025/26 | Q5: 2026/27 | R5: 2027/28 | S5: 2028/29
B6: Click here to return to model map | G6: Units | H6: Constants | J6: ='ARP_User control'!$H$36 -> Current | L6: Historic | M6: Historic | N6: Historic | O6: Current | P6: Forecast | Q6: Forecast | R6: Forecast | S6: Forecast | U6: Legal text reference
B8: Description
C10: This sheet sets out inputs by network level and by year.
C11: DNOs should populate the inputs for the charging year and the four following years.
C12: DNOs can also populate the three years preceding the charging year, but are not obliged to do so.
B14: Inputs by network level
C16: =INDEX('Version control'!$H$36:$H$62,MATCH($A$1,'Version control'!$F$36:$F$62,0),1)&"-A: Diversity allowance between top and bottom of network level" -> Input 502-A: Diversity allowance between top and bottom of network level
E18: Diversity allowance between top and bottom of network level | I18: > | U18: Paragraphs 26 to 28
F19: Transmission exit | G19: %
F20: GSPs | G20: % | J20: =CHOOSE(year_selection, L20,M20,N20,O20,P20,Q20,R20,S20) -> 0.025 | L20: 0.025 | M20: 0.025 | N20: 0.025 | O20: 0.025 | P20: =$O20 -> 0.025 | Q20: =$O20 -> 0.025 | R20: 0.025 | S20: 0.025
F21: 132kV | G21: % | J21: =CHOOSE(year_selection, L21,M21,N21,O21,P21,Q21,R21,S21) -> 0.1 | L21: 0.1 | M21: 0.1 | N21: 0.1 | O21: 0.1 | P21: =$O21 -> 0.1 | Q21: 0.1 | R21: 0.1 | S21: 0.1
F22: 132kV/EHV | G22: %
F23: EHV | G23: % | J23: =CHOOSE(year_selection, L23,M23,N23,O23,P23,Q23,R23,S23) -> 0.26 | L23: 0.26 | M23: 0.26 | N23: 0.26 | O23: 0.26 | P23: =$O23 -> 0.26 | Q23: 0.26 | R23: 0.26 | S23: 0.26
F24: EHV/HV | G24: %
F25: 132kV/HV | G25: %
F26: HV | G26: % | J26: =CHOOSE(year_selection, L26,M26,N26,O26,P26,Q26,R26,S26) -> 0.2 | L26: 0.2 | M26: 0.2 | N26: 0.2 | O26: 0.2 | P26: =$O26 -> 0.2 | Q26: =$O26 -> 0.2 | R26: 0.2 | S26: 0.2
F27: HV/LV | G27: %
F28: LV circuits | G28: %
C30: =INDEX('Version control'!$H$36:$H$62,MATCH($A$1,'Version control'!$F$36:$F$62,0),1)&"-B: Proportion of EHV/HV load going through 132kV/HV direct transformation" -> Input 502-B: Proportion of EHV/HV load going through 132kV/HV direct transformation
E32: Proportion of EHV/HV load going through 132kV/HV direct transformation
F33: Transmission exit | G33: %
F34: GSPs | G34: %
F35: 132kV | G35: %
F36: 132kV/EHV | G36: %
F37: EHV | G37: %
F38: EHV/HV | G38: %
F39: 132kV/HV | G39: % | J39: =CHOOSE(year_selection, L39,M39,N39,O39,P39,Q39,R39,S39) -> 0 | L39: 0 | M39: 0 | N39: 0 | O39: 0 | P39: =$O39 -> 0 | Q39: =$O39 -> 0 | R39: 0 | S39: 0
F40: HV | G40: %
F41: HV/LV | G41: %
F42: LV circuits | G42: %
C44: =INDEX('Version control'!$H$36:$H$62,MATCH($A$1,'Version control'!$F$36:$F$62,0),1)&"-C: Loss adjustment factors to transmission" -> Input 502-C: Loss adjustment factors to transmission
E46: Loss adjustment factors to transmission | I46: > | U46: Paragraph 47
F47: Transmission exit | G47: scalar
F48: GSPs | G48: scalar | J48: =CHOOSE(year_selection, L48,M48,N48,O48,P48,Q48,R48,S48) -> 1 | L48: 1 | M48: 1 | N48: 1 | O48: 1 | P48: =$O48 -> 1 | Q48: 1 | R48: 1 | S48: 1
F49: 132kV | G49: scalar | J49: =CHOOSE(year_selection, L49,M49,N49,O49,P49,Q49,R49,S49) -> 1.004 | L49: 1.005 | M49: 1.005 | N49: 1.004 | O49: 1.004 | P49: 1.004 | Q49: 1.004 | R49: 1.004 | S49: 1.004
F50: 132kV/EHV | G50: scalar | J50: =CHOOSE(year_selection, L50,M50,N50,O50,P50,Q50,R50,S50) -> 1.012 | L50: 1.012 | M50: 1.012 | N50: 1.012 | O50: 1.012 | P50: 1.012 | Q50: 1.012 | R50: 1.012 | S50: 1.012
F51: EHV | G51: scalar | J51: =CHOOSE(year_selection, L51,M51,N51,O51,P51,Q51,R51,S51) -> 1.017 | L51: 1.018 | M51: 1.018 | N51: 1.018 | O51: 1.017 | P51: 1.017 | Q51: 1.017 | R51: 1.017 | S51: 1.017
F52: EHV/HV | G52: scalar | J52: =CHOOSE(year_selection, L52,M52,N52,O52,P52,Q52,R52,S52) -> 1.025 | L52: 1.027 | M52: 1.026 | N52: 1.026 | O52: 1.025 | P52: 1.025 | Q52: 1.025 | R52: 1.025 | S52: 1.025
F53: 132kV/HV | G53: scalar
F54: HV | G54: scalar | J54: =CHOOSE(year_selection, L54,M54,N54,O54,P54,Q54,R54,S54) -> 1.036 | L54: 1.038 | M54: 1.037 | N54: 1.037 | O54: 1.036 | P54: =$O54 -> 1.036 | Q54: 1.036 | R54: 1.036 | S54: 1.036
F55: HV/LV | G55: scalar | J55: =CHOOSE(year_selection, L55,M55,N55,O55,P55,Q55,R55,S55) -> 1.059 | L55: 1.06 | M55: 1.059 | N55: 1.06 | O55: 1.059 | P55: 1.059 | Q55: 1.059 | R55: 1.059 | S55: 1.059
F56: LV circuits | G56: scalar | J56: =CHOOSE(year_selection, L56,M56,N56,O56,P56,Q56,R56,S56) -> 1.115 | L56: 1.112 | M56: 1.108 | N56: 1.116 | O56: 1.115 | P56: 1.115 | Q56: 1.115 | R56: 1.115 | S56: 1.115
C58: =INDEX('Version control'!$H$36:$H$62,MATCH($A$1,'Version control'!$F$36:$F$62,0),1)&"-D: Average kVAr by kVA, by network level" -> Input 502-D: Average kVAr by kVA, by network level
E60: Average kVAr by kVA, by network level | I60: > | U60: Paragraphs 50 to 51
F61: Transmission exit | G61: kVAr/ kVA
F62: GSPs | G62: kVAr/ kVA | J62: =CHOOSE(year_selection, L62,M62,N62,O62,P62,Q62,R62,S62) -> 0.1973565628 | L62: 0.2505628278 | M62: 0.2360698132 | N62: 0.2389558455 | O62: 0.1973565628 | P62: =$O62 -> 0.1973565628 | Q62: 0.1973565628 | R62: 0.1973565628 | S62: 0.1973565628
F63: 132kV | G63: kVAr/ kVA | J63: 0.1973565628 | L63: 0.2505628278 | M63: 0.2360698132 | N63: 0.2389558455 | O63: 0.1973565628 | P63: 0.1973565628 | Q63: 0.1973565628 | R63: 0.1973565628 | S63: 0.1973565628
F64: 132kV/EHV | G64: kVAr/ kVA | J64: 0.3062997976 | L64: 0.2415105681 | M64: 0.292744657 | N64: 0.3562208439 | O64: 0.3062997976 | P64: 0.3062997976 | Q64: 0.3062997976 | R64: 0.3062997976 | S64: 0.3062997976
F65: EHV | G65: kVAr/ kVA | J65: 0.3062997976 | L65: 0.2415105681 | M65: 0.292744657 | N65: 0.3562208439 | O65: 0.3062997976 | P65: 0.3062997976 | Q65: 0.3062997976 | R65: 0.3062997976 | S65: 0.3062997976
F66: EHV/HV | G66: kVAr/ kVA | J66: 0.3377818202 | L66: 0.3175458874 | M66: 0.3034882179 | N66: 0.3361191975 | O66: 0.3377818202 | P66: 0.3377818202 | Q66: 0.3377818202 | R66: 0.3377818202 | S66: 0.3377818202
F67: 132kV/HV | G67: kVAr/ kVA | J67: 0.3377818202 | L67: 0.3175458874 | M67: 0.3034882179 | N67: 0.3361191975 | O67: 0.3377818202 | P67: 0.3377818202 | Q67: 0.3377818202 | R67: 0.3377818202 | S67: 0.3377818202
F68: HV | G68: kVAr/ kVA | J68: 0.3377818202 | L68: 0.3175458874 | M68: 0.3034882179 | N68: 0.3361191975 | O68: 0.3377818202 | P68: 0.3377818202 | Q68: 0.3377818202 | R68: 0.3377818202 | S68: 0.3377818202
F69: HV/LV | G69: kVAr/ kVA | J69: 0.3377818202 | L69: 0.3175458874 | M69: 0.3034882179 | N69: 0.3361191975 | O69: 0.3377818202 | P69: 0.3377818202 | Q69: 0.3377818202 | R69: 0.3377818202 | S69: 0.3377818202
F70: LV circuits | G70: kVAr/ kVA | J70: 0.3377818202 | L70: 0.3175458874 | M70: 0.3034882179 | N70: 0.3361191975 | O70: 0.3377818202 | P70: 0.3377818202 | Q70: 0.3377818202 | R70: 0.3377818202 | S70: 0.3377818202
C72: =INDEX('Version control'!$H$36:$H$62,MATCH($A$1,'Version control'!$F$36:$F$62,0),1)&"-E: Customer contributions under current connection charging policy" -> Input 502-E: Customer contributions under current connection charging policy
D74: Customer contributions under current connection charging policy | I74: > | U74: Paragraphs 29 to 31
E75: LV network
F76: Transmission exit | G76: %
F77: GSPs | G77: %
F78: 132kV | G78: % | J78: =CHOOSE(year_selection, L78,M78,N78,O78,P78,Q78,R78,S78) -> 0 | L78: 0 | M78: 0 | N78: 0 | O78: 0 | P78: =$O78 -> 0 | Q78: 0 | R78: 0 | S78: 0
F79: 132kV/EHV | G79: % | J79: 0 | L79: 0 | M79: 0 | N79: 0 | O79: 0 | P79: 0 | Q79: 0 | R79: 0 | S79: 0
F80: EHV | G80: % | J80: 0 | L80: 0 | M80: 0 | N80: 0 | O80: 0 | P80: 0 | Q80: 0 | R80: 0 | S80: 0
F81: EHV/HV | G81: % | J81: 0 | L81: 0 | M81: 0 | N81: 0 | O81: 0 | P81: 0 | Q81: 0 | R81: 0 | S81: 0
F82: 132kV/HV | G82: % | J82: 0 | L82: 0 | M82: 0 | N82: 0 | O82: 0 | P82: 0 | Q82: 0 | R82: 0 | S82: 0
F83: HV | G83: % | J83: 0.3263512902 | L83: 0.3263512902 | M83: 0.3263512902 | N83: 0.3263512902 | O83: 0.3263512902 | P83: 0.3263512902 | Q83: 0.3263512902 | R83: 0.3263512902 | S83: 0.3263512902
F84: HV/LV | G84: % | J84: 0.7109728507 | L84: 0.7109728507 | M84: 0.7109728507 | N84: 0.7109728507 | O84: 0.7109728507 | P84: 0.7109728507 | Q84: 0.7109728507 | R84: 0.7109728507 | S84: 0.7109728507
F85: LV circuits | G85: % | J85: 0.9309486908 | L85: 0.9309486908 | M85: 0.9309486908 | N85: 0.9309486908 | O85: 0.9309486908 | P85: 0.9309486908 | Q85: 0.9309486908 | R85: 0.9309486908 | S85: 0.9309486908
E86: LV substation
F87: Transmission exit | G87: %
F88: GSPs | G88: %
F89: 132kV | G89: % | J89: =CHOOSE(year_selection, L89,M89,N89,O89,P89,Q89,R89,S89) -> 0 | L89: 0 | M89: 0 | N89: 0 | O89: 0 | P89: =$O89 -> 0 | Q89: 0 | R89: 0 | S89: 0
F90: 132kV/EHV | G90: % | J90: 0 | L90: 0 | M90: 0 | N90: 0 | O90: 0 | P90: 0 | Q90: 0 | R90: 0 | S90: 0
F91: EHV | G91: % | J91: 0 | L91: 0 | M91: 0 | N91: 0 | O91: 0 | P91: 0 | Q91: 0 | R91: 0 | S91: 0
F92: EHV/HV | G92: % | J92: 0 | L92: 0 | M92: 0 | N92: 0 | O92: 0 | P92: 0 | Q92: 0 | R92: 0 | S92: 0
F93: 132kV/HV | G93: % | J93: 0 | L93: 0 | M93: 0 | N93: 0 | O93: 0 | P93: 0 | Q93: 0 | R93: 0 | S93: 0
F94: HV | G94: % | J94: 0.3263512902 | L94: 0.3263512902 | M94: 0.3263512902 | N94: 0.3263512902 | O94: 0.3263512902 | P94: 0.3263512902 | Q94: 0.3263512902 | R94: 0.3263512902 | S94: 0.3263512902
F95: HV/LV | G95: % | J95: 0.7109728507 | L95: 0.7109728507 | M95: 0.7109728507 | N95: 0.7109728507 | O95: 0.7109728507 | P95: =$O95 -> 0.7109728507 | Q95: 0.7109728507 | R95: 0.7109728507 | S95: 0.7109728507
F96: LV circuits | G96: %
E97: HV network
F98: Transmission exit | G98: %
F99: GSPs | G99: %
F100: 132kV | G100: % | J100: =CHOOSE(year_selection, L100,M100,N100,O100,P100,Q100,R100,S100) -> 0 | L100: 0 | M100: 0 | N100: 0 | O100: 0 | P100: =$O100 -> 0 | Q100: 0 | R100: 0 | S100: 0
F101: 132kV/EHV | G101: % | J101: 0 | L101: 0 | M101: 0 | N101: 0 | O101: 0 | P101: 0 | Q101: 0 | R101: 0 | S101: 0
F102: EHV | G102: % | J102: 0.2944301994 | L102: 0.2944301994 | M102: 0.2944301994 | N102: 0.2944301994 | O102: 0.2944301994 | P102: 0.2944301994 | Q102: 0.2944301994 | R102: 0.2944301994 | S102: 0.2944301994
F103: EHV/HV | G103: % | J103: 0.1431705882 | L103: 0.1431705882 | M103: 0.1431705882 | N103: 0.1431705882 | O103: 0.1431705882 | P103: 0.1431705882 | Q103: 0.1431705882 | R103: 0.1431705882 | S103: 0.1431705882
F104: 132kV/HV | G104: % | J104: 0 | L104: 0 | M104: 0 | N104: 0 | O104: 0 | P104: 0 | Q104: 0 | R104: 0 | S104: 0
F105: HV | G105: % | J105: 0.7342904029 | L105: 0.7342904029 | M105: 0.7342904029 | N105: 0.7342904029 | O105: 0.7342904029 | P105: 0.7342904029 | Q105: 0.7342904029 | R105: 0.7342904029 | S105: 0.7342904029
F106: HV/LV | G106: %
F107: LV circuits | G107: %
E108: HV substation
F109: Transmission exit | G109: %
F110: GSPs | G110: %
F111: 132kV | G111: % | J111: =CHOOSE(year_selection, L111,M111,N111,O111,P111,Q111,R111,S111) -> 0 | L111: 0 | M111: 0 | N111: 0 | O111: 0 | P111: =$O111 -> 0 | Q111: 0 | R111: 0 | S111: 0
F112: 132kV/EHV | G112: % | J112: 0 | L112: 0 | M112: 0 | N112: 0 | O112: 0 | P112: 0 | Q112: 0 | R112: 0 | S112: 0
F113: EHV | G113: % | J113: 0.2944301994 | L113: 0.2944301994 | M113: 0.2944301994 | N113: 0.2944301994 | O113: 0.2944301994 | P113: 0.2944301994 | Q113: 0.2944301994 | R113: 0.2944301994 | S113: 0.2944301994
F114: EHV/HV | G114: % | J114: 0.1431705882 | L114: 0.1431705882 | M114: 0.1431705882 | N114: 0.1431705882 | O114: 0.1431705882 | P114: 0.1431705882 | Q114: 0.1431705882 | R114: 0.1431705882 | S114: 0.1431705882
F115: 132kV/HV | G115: %
F116: HV | G116: %
F117: HV/LV | G117: %
F118: LV circuits | G118: %
C120: =INDEX('Version control'!$H$36:$H$62,MATCH($A$1,'Version control'!$F$36:$F$62,0),1)&"-F: Gross asset cost by network level" -> Input 502-F: Gross asset cost by network level
E122: Gross asset cost by network level
A123: RV | B123: RPI | F123: Transmission exit | G123: £
A124: RV | B124: RPI | F124: GSPs | G124: £
A125: RV | B125: RPI | F125: 132kV | G125: £ | J125: =CHOOSE(year_selection, L125,M125,N125,O125,P125,Q125,R125,S125) -> 209465521.7 | L125: 176579243.7 | M125: 182180488.5 | N125: 182180488.5 | O125: 209465521.7 | P125: =O125*'ARP_General inputs'!P$46/'ARP_General inputs'!O$46 -> 208338210.7 | Q125: =P125*'ARP_General inputs'!Q$46/'ARP_General inputs'!P$46 -> 209502057.6 | R125: =Q125*'ARP_General inputs'!R$46/'ARP_General inputs'!Q$46 -> 213245684.2 | S125: =R125*'ARP_General inputs'!S$46/'ARP_General inputs'!R$46 -> 217510597.9
A126: RV | B126: RPI | F126: 132kV/EHV | G126: £ | J126: 17562013.75 | L126: 14804761.57 | M126: 15274381.29 | N126: 15274381.29 | O126: 17562013.75 | P126: =O126*'ARP_General inputs'!P$46/'ARP_General inputs'!O$46 -> 17467497.71 | Q126: =P126*'ARP_General inputs'!Q$46/'ARP_General inputs'!P$46 -> 17565077 | R126: =Q126*'ARP_General inputs'!R$46/'ARP_General inputs'!Q$46 -> 17878950.23 | S126: =R126*'ARP_General inputs'!S$46/'ARP_General inputs'!R$46 -> 18236529.24
A127: RV | B127: RPI | F127: EHV | G127: £ | J127: 179285414.1 | L127: 151137440.6 | M127: 155931649.6 | N127: 155931649.6 | O127: 179285414.1 | P127: =O127*'ARP_General inputs'!P$46/'ARP_General inputs'!O$46 -> 178320527.8 | Q127: =P127*'ARP_General inputs'!Q$46/'ARP_General inputs'!P$46 -> 179316685.9 | R127: =Q127*'ARP_General inputs'!R$46/'ARP_General inputs'!Q$46 -> 182520925.2 | S127: =R127*'ARP_General inputs'!S$46/'ARP_General inputs'!R$46 -> 186171343.7
A128: RV | B128: RPI | F128: EHV/HV | G128: £ | J128: 29777427.97 | L128: 25102344.61 | M128: 25898612.48 | N128: 25898612.48 | O128: 29777427.97 | P128: =O128*'ARP_General inputs'!P$46/'ARP_General inputs'!O$46 -> 29617170.47 | Q128: =P128*'ARP_General inputs'!Q$46/'ARP_General inputs'!P$46 -> 29782621.88 | R128: =Q128*'ARP_General inputs'!R$46/'ARP_General inputs'!Q$46 -> 30314812.43 | S128: =R128*'ARP_General inputs'!S$46/'ARP_General inputs'!R$46 -> 30921108.68
A129: RV | B129: RPI | F129: 132kV/HV | G129: £ | J129: 0 | L129: 0 | M129: 0 | N129: 0 | O129: 0 | P129: =O129*'ARP_General inputs'!P$46/'ARP_General inputs'!O$46 -> 0 | Q129: =P129*'ARP_General inputs'!Q$46/'ARP_General inputs'!P$46 -> 0 | R129: =Q129*'ARP_General inputs'!R$46/'ARP_General inputs'!Q$46 -> 0 | S129: =R129*'ARP_General inputs'!S$46/'ARP_General inputs'!R$46 -> 0
A130: RV | B130: RPI | F130: HV | G130: £ | J130: 244397297.7 | L130: 206026699 | M130: 212562042.4 | N130: 212562042.4 | O130: 244397297.7 | P130: =O130*'ARP_General inputs'!P$46/'ARP_General inputs'!O$46 -> 243081989.4 | Q130: =P130*'ARP_General inputs'!Q$46/'ARP_General inputs'!P$46 -> 244439926.6 | R130: =Q130*'ARP_General inputs'!R$46/'ARP_General inputs'!Q$46 -> 248807863.7 | S130: =R130*'ARP_General inputs'!S$46/'ARP_General inputs'!R$46 -> 253784021
A131: RV | B131: RPI | F131: HV/LV | G131: £ | J131: 95589313.07 | L131: 80581703.72 | M131: 83137824.38 | N131: 83137824.38 | O131: 95589313.07 | P131: =O131*'ARP_General inputs'!P$46/'ARP_General inputs'!O$46 -> 95074866.21 | Q131: =P131*'ARP_General inputs'!Q$46/'ARP_General inputs'!P$46 -> 95605986.2 | R131: =Q131*'ARP_General inputs'!R$46/'ARP_General inputs'!Q$46 -> 97314385.23 | S131: =R131*'ARP_General inputs'!S$46/'ARP_General inputs'!R$46 -> 99260672.93
A132: RV | B132: RPI | F132: LV circuits | G132: £ | J132: 58531202.48 | L132: 49341750.3 | M132: 50906912.88 | N132: 50906912.88 | O132: 58531202.48 | P132: =O132*'ARP_General inputs'!P$46/'ARP_General inputs'!O$46 -> 58216196.63 | Q132: =P132*'ARP_General inputs'!Q$46/'ARP_General inputs'!P$46 -> 58541411.76 | R132: =Q132*'ARP_General inputs'!R$46/'ARP_General inputs'!Q$46 -> 59587497.84 | S132: =R132*'ARP_General inputs'!S$46/'ARP_General inputs'!R$46 -> 60779247.8
C134: =INDEX('Version control'!$H$36:$H$62,MATCH($A$1,'Version control'!$F$36:$F$62,0),1)&"-G: Peaking probabilities, by timeband & network level" -> Input 502-G: Peaking probabilities, by timeband & network level
C136: Red, Amber & Green peaking probabilities must sum to 100%, except for unused network levels, which should sum to 0%
E138: Red peaking probabilities, by network level | I138: > | U138: Paragraphs 48 to 49
F139: Transmission exit | G139: %
F140: GSPs | G140: % | J140: =CHOOSE(year_selection, L140,M140,N140,O140,P140,Q140,R140,S140) -> 0.6218466212 | L140: 0.640593938 | M140: 0.693018677 | N140: 0.6218816353 | O140: 0.6218466212 | P140: =$O140 -> 0.6218466212 | Q140: =$O140 -> 0.6218466212 | R140: 0.6218466212 | S140: 0.6218466212
F141: 132kV | G141: % | J141: 0.6218466212 | L141: 0.640593938 | M141: 0.693018677 | N141: 0.6218816353 | O141: 0.6218466212 | P141: =$O141 -> 0.6218466212 | Q141: 0.6218466212 | R141: 0.6218466212 | S141: 0.6218466212
F142: 132kV/EHV | G142: % | J142: 0.3577754549 | L142: 0.5321791037 | M142: 0.4693628565 | N142: 0.4093318507 | O142: 0.3577754549 | P142: 0.3577754549 | Q142: 0.3577754549 | R142: 0.3577754549 | S142: 0.3577754549
F143: EHV | G143: % | J143: 0.3577754549 | L143: 0.5321791037 | M143: 0.4693628565 | N143: 0.4093318507 | O143: 0.3577754549 | P143: 0.3577754549 | Q143: 0.3577754549 | R143: 0.3577754549 | S143: 0.3577754549
F144: EHV/HV | G144: % | J144: 0.2808821019 | L144: 0.4775323472 | M144: 0.3958867328 | N144: 0.3211128121 | O144: 0.2808821019 | P144: 0.2808821019 | Q144: 0.2808821019 | R144: 0.2808821019 | S144: 0.2808821019
F145: 132kV/HV | G145: % | J145: 0 | L145: 0 | M145: 0 | N145: 0 | O145: 0 | P145: 0 | Q145: 0 | R145: 0 | S145: 0
F146: HV | G146: % | J146: 0.2808821019 | L146: 0.4775323472 | M146: 0.3958867328 | N146: 0.3211128121 | O146: 0.2808821019 | P146: 0.2808821019 | Q146: 0.2808821019 | R146: 0.2808821019 | S146: 0.2808821019
F147: HV/LV | G147: % | J147: 0.2808821019 | L147: 0.4775323472 | M147: 0.3958867328 | N147: 0.3211128121 | O147: 0.2808821019 | P147: 0.2808821019 | Q147: 0.2808821019 | R147: 0.2808821019 | S147: 0.2808821019
F148: LV circuits | G148: % | J148: 0.2808821019 | L148: 0.4775323472 | M148: 0.3958867328 | N148: 0.3211128121 | O148: 0.2808821019 | P148: 0.2808821019 | Q148: 0.2808821019 | R148: 0.2808821019 | S148: 0.2808821019
E150: Amber peaking probabilities, by network level | I150: > | U150: Paragraphs 48 to 49
F151: Transmission exit | G151: %
F152: GSPs | G152: % | J152: =CHOOSE(year_selection, L152,M152,N152,O152,P152,Q152,R152,S152) -> 0.3781533788 | L152: 0.2989392891 | M152: 0.2683864125 | N152: 0.3573524391 | O152: 0.3781533788 | P152: =$O152 -> 0.3781533788 | Q152: =$O152 -> 0.3781533788 | R152: 0.3781533788 | S152: 0.3781533788
F153: 132kV | G153: % | J153: 0.3781533788 | L153: 0.2989392891 | M153: 0.2683864125 | N153: 0.3573524391 | O153: 0.3781533788 | P153: =$O153 -> 0.3781533788 | Q153: 0.3781533788 | R153: 0.3781533788 | S153: 0.3781533788
F154: 132kV/EHV | G154: % | J154: 0.5568411963 | L154: 0.3736564481 | M154: 0.4400722018 | N154: 0.504767796 | O154: 0.5568411963 | P154: 0.5568411963 | Q154: 0.5568411963 | R154: 0.5568411963 | S154: 0.5568411963
F155: EHV | G155: % | J155: 0.5568411963 | L155: 0.3736564481 | M155: 0.4400722018 | N155: 0.504767796 | O155: 0.5568411963 | P155: 0.5568411963 | Q155: 0.5568411963 | R155: 0.5568411963 | S155: 0.5568411963
F156: EHV/HV | G156: % | J156: 0.6141894308 | L156: 0.4778450025 | M156: 0.5410490958 | N156: 0.5887429325 | O156: 0.6141894308 | P156: 0.6141894308 | Q156: 0.6141894308 | R156: 0.6141894308 | S156: 0.6141894308
F157: 132kV/HV | G157: % | J157: 0 | L157: 0 | M157: 0 | N157: 0 | O157: 0 | P157: 0 | Q157: 0 | R157: 0 | S157: 0
F158: HV | G158: % | J158: 0.6141894308 | L158: 0.4778450025 | M158: 0.5410490958 | N158: 0.5887429325 | O158: 0.6141894308 | P158: 0.6141894308 | Q158: 0.6141894308 | R158: 0.6141894308 | S158: 0.6141894308
F159: HV/LV | G159: % | J159: 0.6141894308 | L159: 0.4778450025 | M159: 0.5410490958 | N159: 0.5887429325 | O159: 0.6141894308 | P159: 0.6141894308 | Q159: 0.6141894308 | R159: 0.6141894308 | S159: 0.6141894308
F160: LV circuits | G160: % | J160: 0.6141894308 | L160: 0.4778450025 | M160: 0.5410490958 | N160: 0.5887429325 | O160: 0.6141894308 | P160: 0.6141894308 | Q160: 0.6141894308 | R160: 0.6141894308 | S160: 0.6141894308
E162: Green peaking probabilities, by network level | I162: > | U162: Paragraphs 48 to 49
F163: Transmission exit | G163: %
F164: GSPs | G164: % | J164: =CHOOSE(year_selection, L164,M164,N164,O164,P164,Q164,R164,S164) -> 0 | L164: 0.06046677293 | M164: 0.03859491049 | N164: 0.02076592559 | O164: 0 | P164: =$O164 -> 0 | Q164: =$O164 -> 0 | R164: 0 | S164: 0
F165: 132kV | G165: % | J165: 0 | L165: 0.06046677293 | M165: 0.03859491049 | N165: 0.02076592559 | O165: 0 | P165: =$O165 -> 0 | Q165: 0 | R165: 0 | S165: 0
F166: 132kV/EHV | G166: % | J166: 0.08538334881 | L166: 0.09416444816 | M166: 0.09056494177 | N166: 0.08590035337 | O166: 0.08538334881 | P166: 0.08538334881 | Q166: 0.08538334881 | R166: 0.08538334881 | S166: 0.08538334881
F167: EHV | G167: % | J167: 0.08538334881 | L167: 0.09416444816 | M167: 0.09056494177 | N167: 0.08590035337 | O167: 0.08538334881 | P167: 0.08538334881 | Q167: 0.08538334881 | R167: 0.08538334881 | S167: 0.08538334881
F168: EHV/HV | G168: % | J168: 0.1049284673 | L168: 0.04462265031 | M168: 0.06306417141 | N168: 0.09014425539 | O168: 0.1049284673 | P168: 0.1049284673 | Q168: 0.1049284673 | R168: 0.1049284673 | S168: 0.1049284673
F169: 132kV/HV | G169: % | J169: 0 | L169: 0 | M169: 0 | N169: 0 | O169: 0 | P169: 0 | Q169: 0 | R169: 0 | S169: 0
F170: HV | G170: % | J170: 0.1049284673 | L170: 0.04462265031 | M170: 0.06306417141 | N170: 0.09014425539 | O170: 0.1049284673 | P170: 0.1049284673 | Q170: 0.1049284673 | R170: 0.1049284673 | S170: 0.1049284673
F171: HV/LV | G171: % | J171: 0.1049284673 | L171: 0.04462265031 | M171: 0.06306417141 | N171: 0.09014425539 | O171: 0.1049284673 | P171: 0.1049284673 | Q171: 0.1049284673 | R171: 0.1049284673 | S171: 0.1049284673
F172: LV circuits | G172: % | J172: 0.1049284673 | L172: 0.04462265031 | M172: 0.06306417141 | N172: 0.09014425539 | O172: 0.1049284673 | P172: 0.1049284673 | Q172: 0.1049284673 | R172: 0.1049284673 | S172: 0.1049284673
E174: Black peaking probabilities, by network level
F175: Transmission exit | G175: %
F176: GSPs | G176: % | J176: =CHOOSE(year_selection, L176,M176,N176,O176,P176,Q176,R176,S176) -> 0.5425226498 | L176: 0.4345252585 | M176: 0.4242786722 | N176: 0.497433608 | O176: 0.5425226498 | P176: =$O176 -> 0.5425226498 | Q176: =$O176 -> 0.5425226498 | R176: 0.5425226498 | S176: 0.5425226498
F177: 132kV | G177: % | J177: 0.5425226498 | L177: 0.4345252585 | M177: 0.4242786722 | N177: 0.497433608 | O177: 0.5425226498 | P177: =$O177 -> 0.5425226498 | Q177: 0.5425226498 | R177: 0.5425226498 | S177: 0.5425226498
F178: 132kV/EHV | G178: % | J178: 0.2140901385 | L178: 0.2763257848 | M178: 0.21935206 | N178: 0.1981315899 | O178: 0.2140901385 | P178: 0.2140901385 | Q178: 0.2140901385 | R178: 0.2140901385 | S178: 0.2140901385
F179: EHV | G179: % | J179: 0.2140901385 | L179: 0.2763257848 | M179: 0.21935206 | N179: 0.1981315899 | O179: 0.2140901385 | P179: 0.2140901385 | Q179: 0.2140901385 | R179: 0.2140901385 | S179: =$O179 -> 0.2140901385
F180: EHV/HV | G180: % | J180: 0.1989530189 | L180: 0.3276947123 | M180: 0.2389299207 | N180: 0.2413037499 | O180: 0.1989530189 | P180: 0.1989530189 | Q180: 0.1989530189 | R180: 0.1989530189 | S180: 0.1989530189
F181: 132kV/HV | G181: % | J181: 0 | L181: 0 | M181: 0 | N181: 0 | O181: 0 | P181: 0 | Q181: 0 | R181: 0 | S181: 0
F182: HV | G182: % | J182: 0.1989530189 | L182: 0.3276947123 | M182: 0.2389299207 | N182: 0.2413037499 | O182: 0.1989530189 | P182: 0.1989530189 | Q182: 0.1989530189 | R182: 0.1989530189 | S182: 0.1989530189
F183: HV/LV | G183: % | J183: 0.1989530189 | L183: 0.3276947123 | M183: 0.2389299207 | N183: 0.2413037499 | O183: 0.1989530189 | P183: 0.1989530189 | Q183: 0.1989530189 | R183: 0.1989530189 | S183: 0.1989530189
F184: LV circuits | G184: % | J184: 0.1989530189 | L184: 0.3276947123 | M184: 0.2389299207 | N184: 0.2413037499 | O184: 0.1989530189 | P184: 0.1989530189 | Q184: 0.1989530189 | R184: 0.1989530189 | S184: 0.1989530189
B186: Checks
C188: Checks are not run for historic years, for which DNOs are not obliged to enter inputs.
E190: Check for error values | G190: number of issues | H190: =SUM(IF(ISERROR(H18:T185), 1)) -> 0
E192: Check that loss adjustment factor = 1 at grid supply point | G192: number of issues | H192: =SUM(L192:S192) -> 0 | O192: =IF(O48 = 1, 0, 1) -> 0 | P192: =IF(P48 = 1, 0, 1) -> 0 | Q192: =IF(Q48 = 1, 0, 1) -> 0 | R192: =IF(R48 = 1, 0, 1) -> 0 | S192: =IF(S48 = 1, 0, 1) -> 0
E194: Peaking probabilities check - General
F195: Transmission exit | G195: number of issues
F196: GSPs | G196: number of issues | H196: =SUM(L196:S196) -> 0 | O196: =IF(ABS(SUM(O140,O152,O164) - 1) < 10^-check_decimals,0,1) -> 0 | P196: =IF(ABS(SUM(P140,P152,P164) - 1) < 10^-check_decimals,0,1) -> 0 | Q196: =IF(ABS(SUM(Q140,Q152,Q164) - 1) < 10^-check_decimals,0,1) -> 0 | R196: =IF(ABS(SUM(R140,R152,R164) - 1) < 10^-check_decimals,0,1) -> 0 | S196: =IF(ABS(SUM(S140,S152,S164) - 1) < 10^-check_decimals,0,1) -> 0
F197: 132kV | G197: number of issues
F198: 132kV/EHV | G198: number of issues
F199: EHV | G199: number of issues | H199: 0 | O199: =IF(ABS(SUM(O143,O155,O167) - 1) < 10^-check_decimals,0,1) -> 0 | P199: 0 | Q199: 0 | R199: 0 | S199: 0
F200: EHV/HV | G200: number of issues | H200: 0 | O200: 0 | P200: 0 | Q200: 0 | R200: 0 | S200: 0
F201: 132kV/HV | G201: number of issues
F202: HV | G202: number of issues | H202: 0 | O202: =IF(ABS(SUM(O146,O158,O170) - 1) < 10^-check_decimals,0,1) -> 0 | P202: 0 | Q202: 0 | R202: 0 | S202: 0
F203: HV/LV | G203: number of issues | H203: 0 | O203: 0 | P203: 0 | Q203: 0 | R203: 0 | S203: 0
F204: LV circuits | G204: number of issues | H204: =SUM(L204:S204) -> 0 | O204: 0 | P204: 0 | Q204: 0 | R204: 0 | S204: 0
E206: Peaking probabilities check - 132kV/HV
F207: Transmission exit | G207: number of issues
F208: GSPs | G208: number of issues
F209: 132kV | G209: number of issues | H209: =SUM(L209:S209) -> 0 | O209: =IF(OR(ABS(SUM(O141,O153,O165) - 1) < 10^-check_decimals, ABS(SUM(O141,O153,O165) - 0) < 10^-check_decimals),0,1) -> 0 | P209: 0 | Q209: 0 | R209: 0 | S209: 0
F210: 132kV/EHV | G210: number of issues | H210: =SUM(L210:S210) -> 0 | O210: 0 | P210: 0 | Q210: 0 | R210: 0 | S210: 0
F211: EHV | G211: number of issues
F212: EHV/HV | G212: number of issues
F213: 132kV/HV | G213: number of issues | H213: =SUM(L213:S213) -> 0 | O213: =IF(OR(ABS(SUM(O145,O157,O169) - 1) < 10^-check_decimals, ABS(SUM(O145,O157,O169) - 0) < 10^-check_decimals),0,1) -> 0 | P213: =IF(OR(ABS(SUM(P145,P157,P169) - 1) < 10^-check_decimals, ABS(SUM(P145,P157,P169) - 0) < 10^-check_decimals),0,1) -> 0 | Q213: =IF(OR(ABS(SUM(Q145,Q157,Q169) - 1) < 10^-check_decimals, ABS(SUM(Q145,Q157,Q169) - 0) < 10^-check_decimals),0,1) -> 0 | R213: =IF(OR(ABS(SUM(R145,R157,R169) - 1) < 10^-check_decimals, ABS(SUM(R145,R157,R169) - 0) < 10^-check_decimals),0,1) -> 0 | S213: =IF(OR(ABS(SUM(S145,S157,S169) - 1) < 10^-check_decimals, ABS(SUM(S145,S157,S169) - 0) < 10^-check_decimals),0,1) -> 0
F214: HV | G214: number of issues
F215: HV/LV | G215: number of issues
F216: LV circuits | G216: number of issues
E218: Summary of checks | G218: number of issues | H218: =SUM(H190,H192,H195:H204,H207:H216) -> 0
B220: End of sheet

Sheet ARP_General inputs
A1: =MID(CELL("filename",A1),FIND("]",CELL("filename",A1))+1,255) -> ARP_General inputs
A2: =Cover!D21&" - "&Cover!D23 -> SP Manweb - One
A3: =Cover!D2&" - "&Cover!D8&" v"&Cover!D10&" - "&Cover!D19 -> ARP model - Release for charge setting v7 - 2024/25
A4: =H125 & IF(H125 = 1, " issue", " issues") &" identified in checks on this sheet" -> 0 issues identified in checks on this sheet
J5: ="Year selected ("& charging_year_selected &")" -> Year selected (2024/25) | L5: =TRANSPOSE('ARP_User control'!G28:H35) -> 2021/22 | M5: 2022/23 | N5: 2023/24 | O5: 2024/25 | P5: 2025/26 | Q5: 2026/27 | R5: 2027/28 | S5: 2028/29
B6: Click here to return to model map | G6: Units | H6: Constants | J6: ='ARP_User control'!$H$36 -> Current | L6: Historic | M6: Historic | N6: Historic | O6: Current | P6: Forecast | Q6: Forecast | R6: Forecast | S6: Forecast | U6: Legal text reference
B8: Description
C10: This sheet sets out general inputs by year.
C11: DNOs should populate the inputs for the charging year and the four following years.
C12: DNOs can also populate the three years preceding the charging year, but are not obliged to do so.
B14: General inputs
C16: =INDEX('Version control'!$H$36:$H$62,MATCH($A$1,'Version control'!$F$36:$F$62,0),1)&"-A: Split of hours by distribution timeband" -> Input 503-A: Split of hours by distribution timeband
E18: Typical annual hours by special distribution time band | I18: > | U18: Paragraphs 40 to 41
F19: Black | G19: hours per year | J19: =CHOOSE(year_selection, L19,M19,N19,O19,P19,Q19,R19,S19) -> 258 | L19: 258 | M19: 258 | N19: 261 | O19: 258 | P19: 255 | Q19: 255 | R19: 261 | S19: 258
F20: Yellow | G20: hours per year | J20: =CHOOSE(year_selection, L20,M20,N20,O20,P20,Q20,R20,S20) -> 3942.5 | L20: 3942.5 | M20: 3942.5 | N20: 3933 | O20: 3942.5 | P20: 3945.5 | Q20: 3945.5 | R20: 3954 | S20: 3932
F21: Green | G21: hours per year | J21: =CHOOSE(year_selection, L21,M21,N21,O21,P21,Q21,R21,S21) -> 4559.5 | L21: 4559.5 | M21: 4559.5 | N21: 4590 | O21: 4559.5 | P21: 4559.5 | Q21: 4559.5 | R21: 4569 | S21: 4570
E23: Typical annual hours by distribution time band | I23: > | U23: Paragraphs 40 to 41
F24: Red | G24: hours per year | J24: =CHOOSE(year_selection, L24,M24,N24,O24,P24,Q24,R24,S24) -> 783 | L24: 783 | M24: 783 | N24: 780 | O24: 783 | P24: 783 | Q24: 783 | R24: 786 | S24: 780
F25: Amber | G25: hours per year | J25: =CHOOSE(year_selection, L25,M25,N25,O25,P25,Q25,R25,S25) -> 3417.5 | L25: 3417.5 | M25: 3417.5 | N25: 3414 | O25: 3417.5 | P25: 3417.5 | Q25: 3417.5 | R25: 3429 | S25: 3410
F26: Green | G26: hours per year | J26: =CHOOSE(year_selection, L26,M26,N26,O26,P26,Q26,R26,S26) -> 4559.5 | L26: 4559.5 | M26: 4559.5 | N26: 4590 | O26: 4559.5 | P26: 4559.5 | Q26: 4559.5 | R26: 4569 | S26: 4570
C28: =INDEX('Version control'!$H$36:$H$62,MATCH($A$1,'Version control'!$F$36:$F$62,0),1)&"-B: Embedded network (LDNO) discount percentages" -> Input 503-B: Embedded network (LDNO) discount percentages
D30: Inputs sourced from PCDM
E32: Embedded network (LDNO) discount percentages | I32: > | U32: Paragraph 53
F33: LDNO LV: LV user | G33: % | J33: =CHOOSE(year_selection, L33,M33,N33,O33,P33,Q33,R33,S33) -> 0.3944551209 | L33: 0.3800227456 | M33: 0.3796542894 | N33: 0.3808307416 | O33: 0.3944551209 | P33: =$O33 -> 0.3944551209 | Q33: =$O33 -> 0.3944551209 | R33: 0.3944551209 | S33: 0.3944551209
F34: LDNO HV: LV user | G34: % | J34: =CHOOSE(year_selection, L34,M34,N34,O34,P34,Q34,R34,S34) -> 0.5604265994 | L34: 0.5571010781 | M34: 0.5489630013 | N34: 0.5526918817 | O34: 0.5604265994 | P34: =$O34 -> 0.5604265994 | Q34: 0.5604265994 | R34: 0.5604265994 | S34: 0.5604265994 | W34: NHH UMS category D | X34: LV UMS (Pseudo HH Metered) | Y34: LV Generation NHH or Aggregate HH | Z34: LV Sub Generation NHH | AA34: LV Generation Intermittent | AB34: LV Generation Intermittent no RP charge | AC34: LV Generation Non-Intermittent | AD34: LV Generation Non-Intermittent no RP charge | AE34: LV Sub Generation Intermittent | AF34: LV Sub Generation Intermittent no RP charge | AG34: LV Sub Generation Non-Intermittent | AH34: LV Sub Generation Non-Intermittent no RP charge | AI34: HV Generation Intermittent | AJ34: HV Generation Intermittent no RP charge | AK34: HV Generation Non-Intermittent | AL34: HV Generation Non-Intermittent no RP charge
F35: LDNO HV: LV Sub user | G35: % | J35: =CHOOSE(year_selection, L35,M35,N35,O35,P35,Q35,R35,S35) -> 0.2724475054 | L35: 0.2840214702 | M35: 0.2712920321 | N35: 0.2758790035 | O35: 0.2724475054 | P35: 0.2724475054 | Q35: 0.2724475054 | R35: 0.2724475054 | S35: 0.2724475054
F36: LDNO HV: HV user | G36: % | J36: =CHOOSE(year_selection, L36,M36,N36,O36,P36,Q36,R36,S36) -> 0.1787927473 | L36: 0.190975906 | M36: 0.1767479849 | N36: 0.181403555 | O36: 0.1787927473 | P36: 0.1787927473 | Q36: 0.1787927473 | R36: 0.1787927473 | S36: 0.1787927473
C38: =INDEX('Version control'!$H$36:$H$62,MATCH($A$1,'Version control'!$F$36:$F$62,0),1)&"-C: CDCM target revenue" -> Input 503-C: CDCM target revenue
D40: The contents of this section are defined in Paragraph 1.5 of Schedule 15 (Table 1). | I40: > | U40: Paragraph 54, Schedule 15 Table 1
D41: The only rows used as inputs to the model itself are "Latest forecast of CDCM Revenue" and "Pass-through… Adjustment" items.
E43: Base Demand Revenue before inflation | G43: £ | J43: =CHOOSE(year_selection, L43,M43,N43,O43,P43,Q43,R43,S43) -> 435292920 | L43: 310900000 | M43: 310900000 | N43: 437524530.3 | O43: 435292920 | P43: 432595837.7 | Q43: 421850567.5 | R43: 409035341.8 | S43: 409035341.8
E44: Annual Iteration adjustment before inflation | G44: £ | J44: 744078.2012 | L44: 533025.1712 | M44: -23000000 | N44: 609704.4368 | O44: 744078.2012 | P44: 773525.566 | Q44: 804097.7877 | R44: 835563.8932 | S44: 0
E45: RPI True-up before inflation | G45: £ | J45: 25308644.63 | L45: -2355921.995 | M45: -2513814.362 | N45: 5179970.009 | O45: 25308644.63 | P45: 0 | Q45: 0 | R45: 0 | S45: 0
E46: Price index adjustment (RPI index) | G46: scalar | J46: 1.248711688 | L46: 1.261 | M46: 1.277 | N46: 1.126644253 | O46: 1.248711688 | P46: 1.241991316 | Q46: 1.248929494 | R46: 1.27124682 | S46: 1.296671756
E47: Base demand revenue | G47: £ | J47: 461345642.8 | L47: =SUM(L43:L45) -> 309077103.2 | M47: =SUM(M43:M45) -> 285386185.6 | N47: 443314204.7 | O47: 461345642.8 | P47: 433369363.3 | Q47: 422654665.3 | R47: 409870905.7 | S47: 409035341.8
E48: Inflation adjustment | G48: £ | J48: 114742053.7 | L48: =L47 * (L46 - 1) -> 80669123.93 | M48: 79051973.42 | N48: 56143196.52 | O48: 114742053.7 | P48: =P47 * (P46 - 1) -> 104871622.3 | Q48: 105211212.1 | R48: 111176179.8 | S48: 121349233.3
E50: Pass-Through Licence Fees | G50: £ | J50: =CHOOSE(year_selection, L50,M50,N50,O50,P50,Q50,R50,S50) -> 725704.6041 | L50: 362400.2219 | M50: 352247.8354 | N50: 575906.1039 | O50: 725704.6041 | P50: 0 | Q50: 0 | R50: 0 | S50: 0
E51: Pass-Through Business Rates | G51: £ | J51: 3396467.602 | L51: 6721889.856 | M51: 6808700.595 | N51: 6267275.09 | O51: 3396467.602 | P51: 0 | Q51: 0 | R51: 0 | S51: 0
E52: Pass-Through Transmission Connection Point Charges | G52: £ | J52: -7940332.013 | L52: -121325.8578 | M52: 394234.7214 | N52: -5916902.772 | O52: -7940332.013 | P52: 0 | Q52: 0 | R52: 0 | S52: 0
E53: Pass-through Smart Meter Communication Licence Costs | G53: £ | J53: 5137940.538 | L53: 1497149.562 | M53: 1719916.615 | N53: 2304145.275 | O53: 5137940.538 | P53: 0 | Q53: 0 | R53: 0 | S53: 0
E54: Pass-through Smart Meter IT Costs | G54: £ | J54: 379162.8254 | L54: 70277.08504 | M54: 0 | N54: 0 | O54: 379162.8254 | P54: 0 | Q54: 0 | R54: 0 | S54: 0
E55: Pass-through Ring Fence Costs | G55: £ | J55: 0 | L55: 0 | M55: 0 | N55: 0 | O55: 0 | P55: 0 | Q55: 0 | R55: 0 | S55: 0
E56: Pass-through Supplier of Last Resort Adjustment | G56: £ | J56: 921460.1159 | L56: 35542.57927 | M56: 431905.065 | N56: 756531.8495 | O56: 921460.1159 | P56: 0 | Q56: 0 | R56: 0 | S56: 0
E57: Pass-through Eligible Bad Debt Adjustment | G57: £ | J57: 3206631.106 | L57: 1428543.453 | M57: 380045.2444 | N57: 1093613.379 | O57: 3206631.106 | P57: 0 | Q57: 0 | R57: 0 | S57: 0
E58: Pass-through COVID-19 Bad Debt Adjustment | G58: £ | J58: 0 | L58: 0 | M58: 0 | N58: 0 | O58: 0 | P58: 0 | Q58: 0 | R58: 0 | S58: 0
E59: Pass-Through Others | G59: £ | J59: 0 | N59: 0 | O59: 0 | P59: 0 | Q59: 0 | R59: 0 | S59: 0
E60: Allowed Pass-Through Items | G60: £ | J60: 5827034.778 | L60: =SUM(L50:L59) -> 9994476.899 | M60: 10087050.08 | N60: 5080568.924 | O60: =SUM(O50:O59) -> 5827034.778 | P60: 0 | Q60: 0 | R60: 0 | S60: 0
E62: Broad Measure of Customer Service incentive | G62: £ | J62: =CHOOSE(year_selection, L62,M62,N62,O62,P62,Q62,R62,S62) -> 4817000.952 | L62: 4163072.234 | M62: 4107410.872 | N62: 4263510.371 | O62: 4817000.952 | P62: 0 | Q62: 0 | R62: 0 | S62: 0
E63: Quality of Service incentive | G63: £ | J63: 3216674.341 | L63: 4710478.78 | M63: 3526359.128 | N63: 3245226.939 | O63: 3216674.341 | P63: 0 | Q63: 0 | R63: 0 | S63: 0
E64: Connections Engagement incentive | G64: £ | J64: 0 | L64: 0 | M64: 0 | N64: 0 | O64: 0 | P64: 0 | Q64: 0 | R64: 0 | S64: 0
E65: Time to Connect incentive | G65: £ | J65: 566705.9943 | L65: 713669.5259 | M65: 724837.2126 | N65: 752384.1831 | O65: 566705.9943 | P65: 0 | Q65: 0 | R65: 0 | S65: 0
E66: Losses Discretionary Reward incentive | G66: £ | J66: 0 | L66: 735163 | M66: 0 | N66: 0 | O66: 0 | P66: 0 | Q66: 0 | R66: 0 | S66: 0
E67: Network Innovation Allowance | G67: £ | J67: 0 | L67: 1364836.536 | M67: 1360800 | N67: 0 | O67: 0 | P67: 0 | Q67: 0 | R67: 0 | S67: 0
E68: Low Carbon Network Fund - Tier 1 unrecoverable | G68: £ | J68: 0 | L68: 0 | M68: 0 | N68: 0 | O68: 0 | P68: 0 | Q68: 0 | R68: 0 | S68: 0
E69: Low Carbon Network Fund - Tier 2 & Discretionary Funding | G69: £ | J69: 0 | L69: 0 | M69: 0 | N69: 0 | O69: 0 | P69: 0 | Q69: 0 | R69: 0 | S69: 0
E70: Connection Guaranteed Standards Systems & Processes penalty | G70: £ | J70: 0 | L70: 0 | M70: 0 | N70: 0 | O70: 0 | P70: 0 | Q70: 0 | R70: 0 | S70: 0
E71: Residual Losses and Growth Incentive - Losses | G71: £ | J71: 0 | L71: 0 | M71: 0 | N71: 0 | O71: 0 | P71: 0 | Q71: 0 | R71: 0 | S71: 0
E72: Residual Losses and Growth Incentive - Growth | G72: £ | J72: 0 | L72: 0 | M72: 0 | N72: 0 | O72: 0 | P72: 0 | Q72: 0 | R72: 0 | S72: 0
E73: Incentive Revenue and Other Adjustments | G73: £ | J73: 8600381.287 | L73: =SUM(L62:L72) -> 11687220.08 | M73: 9719407.212 | N73: 8261121.493 | O73: =SUM(O62:O72) -> 8600381.287 | P73: 0 | Q73: 0 | R73: 0 | S73: 0
E75: Correction Factor | G75: £ | J75: =CHOOSE(year_selection, L75,M75,N75,O75,P75,Q75,R75,S75) -> 0 | L75: -17629263.19 | M75: 18724950.06 | N75: -28248014.8 | O75: 0 | P75: 0 | Q75: 0 | R75: 0 | S75: 0
E76: Total allowed Revenue | G76: £ | J76: =CHOOSE(year_selection, L76,M76,N76,O76,P76,Q76,R76,S76) -> 590515112.6 | L76: =L75 + L73 + L60 + L48 + L47 -> 393798660.9 | M76: 402969566.4 | N76: 484551076.8 | O76: 590515112.6 | P76: 538240985.6 | Q76: 527865877.3 | R76: 521047085.6 | S76: 530384575.2
E78: Other 1. Excluded services - Top-up, standby, and enhanced system security | G78: £ | J78: =CHOOSE(year_selection, L78,M78,N78,O78,P78,Q78,R78,S78) -> 0 | L78: 0 | M78: 0 | N78: 0 | O78: 0 | P78: 0 | Q78: 0 | R78: 0 | S78: 0
E79: Other 2. Excluded services - Revenue protection services | G79: £ | J79: 540013.2303 | L79: 550076.8282 | M79: 560220.9384 | N79: 515675.1061 | O79: 540013.2303 | P79: 537106.9628 | Q79: 540107.4218 | R79: 549758.6898 | S79: 560753.8636
E80: Other 3. Excluded services - Miscellaneous | G80: £ | J80: 0 | L80: 0 | M80: 0 | N80: 0 | O80: 0 | P80: 0 | Q80: 0 | R80: 0 | S80: 0
E81: Other 4. Please describe if used | G81: £ | J81: 0 | L81: 0 | M81: 0 | N81: 0 | O81: 0 | P81: 0 | Q81: 0 | R81: 0 | S81: 0
E82: Other 5. Please describe if used | G82: £ | J82: 0 | L82: 0 | M82: 0 | N82: 0 | O82: 0 | P82: 0 | Q82: 0 | R82: 0 | S82: 0
E83: Total other revenue recovered by Use of System Charges | G83: £ | J83: 540013.2303 | L83: =SUM(L78:L82) -> 550076.8282 | M83: 560220.9384 | N83: 515675.1061 | O83: =SUM(O78:O82) -> 540013.2303 | P83: 537106.9628 | Q83: 540107.4218 | R83: 549758.6898 | S83: 560753.8636
E84: Total Revenue for Use of System Charges | G84: £ | J84: 591055125.8 | L84: =L76+L83 -> 394348737.7 | M84: 403529787.3 | N84: 485066751.9 | O84: 591055125.8 | P84: 538778092.6 | Q84: 528405984.8 | R84: 521596844.2 | S84: 530945329
E86: 1. Revenue raised outside CDCM - EDCM and Certain Interconnector Revenue | G86: £ | J86: =CHOOSE(year_selection, L86,M86,N86,O86,P86,Q86,R86,S86) -> 48125358.66 | L86: 32062587.73 | M86: 31470144.18 | N86: 36434579.11 | O86: 48125358.66 | P86: 0 | Q86: 0 | R86: 0 | S86: 0
E87: 2. Revenue raised outside CDCM - Voluntary under-recovery | G87: £ | J87: 0 | L87: 0 | M87: 0 | N87: 0 | O87: 0 | P87: 0 | Q87: 0 | R87: 0 | S87: 0
E88: 3. Revenue raised outside CDCM - Please describe if used | G88: £ | J88: 0 | L88: 0 | M88: 0 | N88: 0 | O88: 0 | P88: 0 | Q88: 0 | R88: 0 | S88: 0
E89: 4. Revenue raised outside CDCM - Please describe if used | G89: £ | J89: 0 | L89: 0 | M89: 0 | N89: 0 | O89: 0 | P89: 0 | Q89: 0 | R89: 0 | S89: 0
E90: Total Revenue to be raised outside the CDCM | G90: £ | J90: 48125358.66 | L90: =SUM(L86:L89) -> 32062587.73 | M90: 31470144.18 | N90: 36434579.11 | O90: =SUM(O86:O89) -> 48125358.66 | P90: =SUM(P86:P89) -> 0 | Q90: 0 | R90: 0 | S90: 0
E91: Latest forecast of CDCM Revenue | G91: £ | J91: 542929767.1 | L91: =L84-L90 -> 362286150 | M91: 372059643.2 | N91: 448632172.8 | O91: 542929767.1 | P91: 538778092.6 | Q91: 528405984.8 | R91: 521596844.2 | S91: 530945329
E92: CDCM Revenue Used in Charging Model | G92: £ | J92: =CHOOSE(year_selection, L92,M92,N92,O92,P92,Q92,R92,S92) -> 542929767.1 | L92: =L91 -> 362286150 | M92: 372059643.2 | N92: 448632172.8 | O92: 542929767.1 | P92: 538778092.6 | Q92: 528405984.8 | R92: 521596844.2 | S92: 530945329
E94: Final Collected Revenue Forecast | G94: £ | J94: =CHOOSE(year_selection, L94,M94,N94,O94,P94,Q94,R94,S94) -> 591055125.8 | L94: 394348737.7 | M94: 403529787.3 | N94: 485066751.9 | O94: =O84 -> 591055125.8 | P94: =P84 -> 538778092.6 | Q94: 528405984.8 | R94: 521596844.2 | S94: 530945329
E95: Forecast Over / (Under) Recovery | G95: £ | J95: =CHOOSE(year_selection, L95,M95,N95,O95,P95,Q95,R95,S95) -> 0 | L95: =L94 - L83 - L76 + L87 -> 0 | M95: 0 | N95: 0 | O95: =O94 - O83 - O76 + O87 -> 0 | P95: 0 | Q95: 0 | R95: 0 | S95: 0
E96: Forecast overall percentage change to Allowed Revenue | G96: % | J96: =CHOOSE(year_selection, L96,M96,N96,O96,P96,Q96,R96,S96) -> 0.2186849659 | L96: =IF( K76 <> 0, L76 / K76 - 1, 0) -> 0 | M96: 0.02328831057 | N96: 0.2024507984 | O96: 0.2186849659 | P96: =IF( O76 <> 0, P76 / O76 - 1, 0) -> -0.08852292826 | Q96: -0.01927595363 | R96: -0.01291765971 | S96: 0.01792062535
E97: Overall % change to Use of System Charges effective 1st April of Regulatory Year to balance | G97: % | J97: =CHOOSE(year_selection, L97,M97,N97,O97,P97,Q97,R97,S97) -> 0.2185026564 | L97: =IF( K94 <> 0, L94 / K94 - 1, 0) -> 0 | M97: 0.02328154942 | N97: 0.2020593452 | O97: 0.2185026564 | P97: -0.08844696701 | Q97: -0.01925116846 | R97: -0.01288619112 | S97: 0.01792281699
C99: =INDEX('Version control'!$H$36:$H$62,MATCH($A$1,'Version control'!$F$36:$F$62,0),1)&"-D: Financial and general assumptions" -> Input 503-D: Financial and general assumptions
E101: Real post-tax cost of capital | G101: % | I101: > | J101: =CHOOSE(year_selection, L101,M101,N101,O101,P101,Q101,R101,S101) -> 0.0374 | L101: 0.0369 | M101: 0.0365 | N101: 0.0374 | O101: 0.0374 | P101: =$O101 -> 0.0374 | Q101: =$O101 -> 0.0374 | R101: 0.0374 | S101: 0.0374 | U101: Paragraph 57
E102: Days in the charging year | G102: days | J102: =CHOOSE(year_selection, L102,M102,N102,O102,P102,Q102,R102,S102) -> 365 | L102: 365 | M102: 365 | N102: 366 | O102: 365 | P102: 365 | Q102: 365 | R102: 366 | S102: 365
C104: =INDEX('Version control'!$H$36:$H$62,MATCH($A$1,'Version control'!$F$36:$F$62,0),1)&"-E: Transmission exit charges" -> Input 503-E: Transmission exit charges
B106: RPI | E106: Transmission exit charges | G106: £ per year | I106: > | J106: =CHOOSE(year_selection, L106,M106,N106,O106,P106,Q106,R106,S106) -> 10412089.28 | L106: 21063474.14 | M106: 21592434.72 | N106: 11135241.68 | O106: 10412089.28 | P106: =O106*(P$46/O$46) -> 10356053.03 | Q106: =P106*(Q$46/P$46) -> 10413905.41 | R106: 10599993.19 | S106: 10811993.05 | U106: Paragraph 38
C108: =INDEX('Version control'!$H$36:$H$62,MATCH($A$1,'Version control'!$F$36:$F$62,0),1)&"-F: Other expenditure" -> Input 503-F: Other expenditure
E110: Other expenditure | I110: > | U110: Paragraph 39
B111: RPI | F111: Direct cost | G111: £ per year | J111: =CHOOSE(year_selection, L111,M111,N111,O111,P111,Q111,R111,S111) -> 30262434.67 | L111: 27148683.07 | M111: 29914542.57 | N111: 26057242.85 | O111: 30262434.67 | P111: =O111*(P$46/O$46) -> 30099566.94 | Q111: 30267713.18 | R111: 30808571.91 | S111: 31424743.35
B112: RPI | F112: Indirect cost | G112: £ per year | J112: =CHOOSE(year_selection, L112,M112,N112,O112,P112,Q112,R112,S112) -> 125876892.9 | L112: 65878403.73 | M112: 106888436.2 | N112: 118553053.4 | O112: 125876892.9 | P112: =O112*(P$46/O$46) -> 125199443 | Q112: 125898848.9 | R112: 128148556.1 | S112: 130711527.2
B113: RPI | F113: Network rates | G113: £ per year | J113: =CHOOSE(year_selection, L113,M113,N113,O113,P113,Q113,R113,S113) -> 33209591.6 | L113: 25006389.86 | M113: 25325200.59 | N113: 35380534.7 | O113: 33209591.6 | P113: =O113*(P$46/O$46) -> 33030862.73 | Q113: 33215384.17 | R113: 33808915.31 | S113: 34485093.62
B115: Checks
C117: Checks are not run for historic years, for which DNOs are not obliged to enter inputs.
E119: Check for error values | G119: number of issues | H119: =SUM(IF(ISERROR(H15:S114), 1)) -> 0
E121: Hours in charging year check
F122: Normal distribution timebands | G122: number of issues | H122: =SUM(L122:S122) -> 0 | M122: =IF(SUM(M19:M21) = M$102 * hours_in_day, 0, 1) -> 0 | N122: 0 | O122: 0 | P122: 0 | Q122: 0 | R122: 0 | S122: 0
F123: Special distribution timebands | G123: number of issues | H123: =SUM(L123:S123) -> 0 | M123: =IF(SUM(M24:M26) = M$102 * hours_in_day, 0, 1) -> 0 | N123: 0 | O123: 0 | P123: 0 | Q123: 0 | R123: 0 | S123: 0
E125: Summary of checks | G125: number of issues | H125: =SUM(H119, H122:H123) -> 0
B127: End of sheet

Sheet Fixed inputs
A1: =MID(CELL("filename",A1),FIND("]",CELL("filename",A1))+1,255) -> Fixed inputs
A2: =Cover!D21&" - "&Cover!D23 -> SP Manweb - One
A3: =Cover!D2&" - "&Cover!D8&" v"&Cover!D10&" - "&Cover!D19 -> ARP model - Release for charge setting v7 - 2024/25
A4: =H197 & IF(H197 = 1, " issue", " issues") &" identified in checks on this sheet" -> 0 issues identified in checks on this sheet
B5: Click here to return to model map | G5: Units | H5: Constants | J5: Domestic Aggregated | K5: Domestic Aggregated (Related MPAN) | L5: Non-Domestic Aggregated | M5: Non-Domestic Aggregated (Related MPAN) | N5: LV Site Specific | O5: LV Sub Site Specific | P5: HV Site Specific | Q5: Unmetered Supplies | R5: LV Generation Aggregated | S5: LV Sub Generation Aggregated | T5: LV Generation Site Specific | U5: LV Generation Site Specific no RP Charge | V5: LV Sub Generation Site Specific | W5: LV Sub Generation Site Specific no RP Charge | X5: HV Generation Site Specific | Y5: HV Generation Site Specific no RP Charge | AQ5: Legal text reference
B7: Description
C9: This sheet sets out the inputs that should be constant across DNOs
B11: Fixed inputs
C13: =INDEX('Version control'!$H$36:$H$62,MATCH($A$1,'Version control'!$F$36:$F$62,0),1)&"-A: Conversions and time" -> Input 504-A: Conversions and time
E15: Hours per day | G15: hours | H15: 24
E16: Ten | G16: integer | H16: 10
E17: One hundred | G17: integer | H17: 100
E18: One thousand | G18: integer | H18: 1000
C20: =INDEX('Version control'!$H$36:$H$62,MATCH($A$1,'Version control'!$F$36:$F$62,0),1)&"-B: Input 101-B: Rounding" -> Input 504-B: Input 101-B: Rounding
D22: Number of decimal places each final charge should be rounded to, specified in Paragraph 14.
E24: Decimal places | I24: > | AQ24: Paragraph 14
F25: Unit rate 1 | G25: integer | H25: 3
F26: Unit rate 2 | G26: integer | H26: 3
F27: Unit rate 3 | G27: integer | H27: 3
F28: Fixed charge | G28: integer | H28: 2
F29: Capacity charge | G29: integer | H29: 2
F30: Exceeded capacity charge | G30: integer | H30: 2
F31: Reactive power charge | G31: integer | H31: 3
C33: =INDEX('Version control'!$H$36:$H$62,MATCH($A$1,'Version control'!$F$36:$F$62,0),1)&"-C: Financial and general assumptions" -> Input 504-C: Financial and general assumptions
E35: Annualisation period | G35: years | H35: 40 | I35: > | AQ35: Paragraph 57
E37: Power factor | G37: % | H37: 0.95 | I37: > | AQ37: Paragraphs 21 & 79
E39: Indirect cost proportion | G39: % | H39: 0.6 | I39: > | AQ39: Paragraph 39
E41: Network model GSP peak demand | G41: MW | H41: 500 | I41: > | AQ41: Paragraph 20
C43: =INDEX('Version control'!$H$36:$H$62,MATCH($A$1,'Version control'!$F$36:$F$62,0),1)&"-D: Mappings" -> Input 504-D: Mappings
E45: LDNO discount map
F46: LDNO LV: LV user | G46: 1 or 0 | J46: 1 | K46: 1 | L46: 1 | M46: 1 | N46: 1 | O46: 0 | P46: 0 | Q46: 1
F47: LDNO HV: LV user | G47: 1 or 0 | J47: 1 | K47: 1 | L47: 1 | M47: 1 | N47: 1 | O47: 0 | P47: 0 | Q47: 1
F48: LDNO HV: LV Sub user | G48: 1 or 0 | J48: 0 | K48: 0 | L48: 0 | M48: 0 | N48: 0 | O48: 1 | P48: 0 | Q48: 0
F49: LDNO HV: HV user | G49: 1 or 0 | J49: 0 | K49: 0 | L49: 0 | M49: 0 | N49: 0 | O49: 0 | P49: 1 | Q49: 0
E51: Network level at which users are supplied | I51: > | AQ51: Paragraph 30
E52: Network use factors based on customer contributed assets
F53: HV substation | G53: 1 or 0 | J53: 0 | K53: 0 | L53: 0 | M53: 0 | N53: 0 | O53: 0 | P53: 0 | Q53: 0 | R53: 0 | S53: 0 | T53: 0 | U53: 0 | V53: 0 | W53: 0 | X53: 0 | Y53: 0
F54: HV network | G54: 1 or 0 | J54: 0 | K54: 0 | L54: 0 | M54: 0 | N54: 0 | O54: 0 | P54: 1 | Q54: 0 | R54: 0 | S54: 0 | T54: 0 | U54: 0 | V54: 0 | W54: 0 | X54: 1 | Y54: 1
F55: LV substation | G55: 1 or 0 | J55: 0 | K55: 0 | L55: 0 | M55: 0 | N55: 0 | O55: 1 | P55: 0 | Q55: 0 | R55: 0 | S55: 1 | T55: 0 | U55: 0 | V55: 1 | W55: 1 | X55: 0 | Y55: 0
F56: LV network | G56: 1 or 0 | J56: 1 | K56: 1 | L56: 1 | M56: 1 | N56: 1 | O56: 0 | P56: 0 | Q56: 1 | R56: 1 | S56: 0 | T56: 1 | U56: 1 | V56: 0 | W56: 0 | X56: 0 | Y56: 0
E58: Network use factors (assuming generation contributes at level of connection)
E59: These assume demand and generation use the network from the point of connection.
F60: Transmission exit | G60: 1, 0 or -1 | J60: 1 | K60: 1 | L60: 1 | M60: 1 | N60: 1 | O60: 1 | P60: 1 | Q60: 1 | R60: -1 | S60: -1 | T60: -1 | U60: -1 | V60: -1 | W60: -1 | X60: -1 | Y60: -1
F61: GSPs | G61: 1, 0 or -1 | J61: 1 | K61: 1 | L61: 1 | M61: 1 | N61: 1 | O61: 1 | P61: 1 | Q61: 1 | R61: -1 | S61: -1 | T61: -1 | U61: -1 | V61: -1 | W61: -1 | X61: -1 | Y61: -1
F62: 132kV | G62: 1, 0 or -1 | J62: 1 | K62: 1 | L62: 1 | M62: 1 | N62: 1 | O62: 1 | P62: 1 | Q62: 1 | R62: -1 | S62: -1 | T62: -1 | U62: -1 | V62: -1 | W62: -1 | X62: -1 | Y62: -1
F63: 132kV/EHV | G63: 1, 0 or -1 | J63: 1 | K63: 1 | L63: 1 | M63: 1 | N63: 1 | O63: 1 | P63: 1 | Q63: 1 | R63: -1 | S63: -1 | T63: -1 | U63: -1 | V63: -1 | W63: -1 | X63: -1 | Y63: -1
F64: EHV | G64: 1, 0 or -1 | J64: 1 | K64: 1 | L64: 1 | M64: 1 | N64: 1 | O64: 1 | P64: 1 | Q64: 1 | R64: -1 | S64: -1 | T64: -1 | U64: -1 | V64: -1 | W64: -1 | X64: -1 | Y64: -1
F65: EHV/HV | G65: 1, 0 or -1 | J65: 1 | K65: 1 | L65: 1 | M65: 1 | N65: 1 | O65: 1 | P65: 1 | Q65: 1 | R65: -1 | S65: -1 | T65: -1 | U65: -1 | V65: -1 | W65: -1 | X65: -1 | Y65: -1
F66: 132kV/HV | G66: 1, 0 or -1 | J66: 1 | K66: 1 | L66: 1 | M66: 1 | N66: 1 | O66: 1 | P66: 1 | Q66: 1 | R66: -1 | S66: -1 | T66: -1 | U66: -1 | V66: -1 | W66: -1 | X66: -1 | Y66: -1
F67: HV | G67: 1, 0 or -1 | J67: 1 | K67: 1 | L67: 1 | M67: 1 | N67: 1 | O67: 1 | P67: 1 | Q67: 1 | R67: -1 | S67: -1 | T67: -1 | U67: -1 | V67: -1 | W67: -1 | X67: -1 | Y67: -1
F68: HV/LV | G68: 1, 0 or -1 | J68: 1 | K68: 1 | L68: 1 | M68: 1 | N68: 1 | O68: 1 | P68: 0 | Q68: 1 | R68: -1 | S68: -1 | T68: -1 | U68: -1 | V68: -1 | W68: -1 | X68: 0 | Y68: 0
F69: LV circuits | G69: 1, 0 or -1 | J69: 1 | K69: 1 | L69: 1 | M69: 1 | N69: 1 | O69: 0 | P69: 0 | Q69: 1 | R69: -1 | S69: 0 | T69: -1 | U69: -1 | V69: 0 | W69: 0 | X69: 0 | Y69: 0
E71: Network use factors (assuming generation makes no contribution at level of connection) | I71: > | AQ71: Paragraphs 62 & 71
E72: Equal to 0 for the network level at which generation is connected, otherwise equal to network use factor
F73: Transmission exit | G73: 1, 0 or -1 | J73: 1 | K73: 1 | L73: 1 | M73: 1 | N73: 1 | O73: 1 | P73: 1 | Q73: 1 | R73: -1 | S73: -1 | T73: -1 | U73: -1 | V73: -1 | W73: -1 | X73: -1 | Y73: -1
F74: GSPs | G74: 1, 0 or -1 | J74: 1 | K74: 1 | L74: 1 | M74: 1 | N74: 1 | O74: 1 | P74: 1 | Q74: 1 | R74: -1 | S74: -1 | T74: -1 | U74: -1 | V74: -1 | W74: -1 | X74: -1 | Y74: -1
F75: 132kV | G75: 1, 0 or -1 | J75: 1 | K75: 1 | L75: 1 | M75: 1 | N75: 1 | O75: 1 | P75: 1 | Q75: 1 | R75: -1 | S75: -1 | T75: -1 | U75: -1 | V75: -1 | W75: -1 | X75: -1 | Y75: -1
F76: 132kV/EHV | G76: 1, 0 or -1 | J76: 1 | K76: 1 | L76: 1 | M76: 1 | N76: 1 | O76: 1 | P76: 1 | Q76: 1 | R76: -1 | S76: -1 | T76: -1 | U76: -1 | V76: -1 | W76: -1 | X76: -1 | Y76: -1
F77: EHV | G77: 1, 0 or -1 | J77: 1 | K77: 1 | L77: 1 | M77: 1 | N77: 1 | O77: 1 | P77: 1 | Q77: 1 | R77: -1 | S77: -1 | T77: -1 | U77: -1 | V77: -1 | W77: -1 | X77: -1 | Y77: -1
F78: EHV/HV | G78: 1, 0 or -1 | J78: 1 | K78: 1 | L78: 1 | M78: 1 | N78: 1 | O78: 1 | P78: 1 | Q78: 1 | R78: -1 | S78: -1 | T78: -1 | U78: -1 | V78: -1 | W78: -1 | X78: -1 | Y78: -1
F79: 132kV/HV | G79: 1, 0 or -1 | J79: 1 | K79: 1 | L79: 1 | M79: 1 | N79: 1 | O79: 1 | P79: 1 | Q79: 1 | R79: -1 | S79: -1 | T79: -1 | U79: -1 | V79: -1 | W79: -1 | X79: -1 | Y79: -1
F80: HV | G80: 1, 0 or -1 | J80: 1 | K80: 1 | L80: 1 | M80: 1 | N80: 1 | O80: 1 | P80: 1 | Q80: 1 | R80: -1 | S80: -1 | T80: -1 | U80: -1 | V80: -1 | W80: -1 | X80: 0 | Y80: 0
F81: HV/LV | G81: 1, 0 or -1 | J81: 1 | K81: 1 | L81: 1 | M81: 1 | N81: 1 | O81: 1 | P81: 0 | Q81: 1 | R81: -1 | S81: 0 | T81: -1 | U81: -1 | V81: 0 | W81: 0 | X81: 0 | Y81: 0
F82: LV circuits | G82: 1, 0 or -1 | J82: 1 | K82: 1 | L82: 1 | M82: 1 | N82: 1 | O82: 0 | P82: 0 | Q82: 1 | R82: 0 | S82: 0 | T82: 0 | U82: 0 | V82: 0 | W82: 0 | X82: 0 | Y82: 0
C84: =INDEX('Version control'!$H$36:$H$62,MATCH($A$1,'Version control'!$F$36:$F$62,0),1)&"-E: Standing charge factors" -> Input 504-E: Standing charge factors
E86: Standing charge factors | I86: > | AQ86: Paragraph 74
E87: Sets the proportion of costs to be recovered through fixed and capacity charge components.
F88: Transmission exit | G88: %
F89: GSPs | G89: %
F90: 132kV | G90: %
F91: 132kV/EHV | G91: %
F92: EHV | G92: % | P92: 0.2
F93: EHV/HV | G93: % | P93: 1
F94: 132kV/HV | G94: %
F95: HV | G95: % | N95: 0.2 | O95: 1 | P95: 1
F96: HV/LV | G96: % | N96: 1 | O96: 1
F97: LV circuits | G97: % | J97: 1 | K97: 1 | L97: 1 | M97: 1 | N97: 1 | Q97: 0
C99: =INDEX('Version control'!$H$36:$H$62,MATCH($A$1,'Version control'!$F$36:$F$62,0),1)&"-F: Flags" -> Input 504-F: Flags
D101: Override discount rate applied
D102: See Schedule 16, para 125. This has been interpreted to mean that MPANs are fully discounted,
D103: and everything else is not
E104: MWh
F105: Override discount | G105: TRUE / FALSE | I105: > | J105: FALSE | K105: FALSE | L105: FALSE | M105: FALSE | N105: FALSE | O105: FALSE | P105: FALSE | Q105: FALSE | R105: TRUE | S105: TRUE | T105: TRUE | U105: TRUE | V105: TRUE | W105: TRUE | X105: TRUE | Y105: TRUE | AQ105: Paragraph 99
F106: Discount % | G106: % | R106: 0 | S106: 0 | T106: 0 | U106: 0 | V106: 0 | W106: 0 | X106: 0 | Y106: 0
E108: MPANs
F109: Override discount | G109: TRUE / FALSE | J109: FALSE | K109: FALSE | L109: FALSE | M109: FALSE | N109: FALSE | O109: FALSE | P109: FALSE | Q109: FALSE | R109: TRUE | S109: TRUE | T109: TRUE | U109: TRUE | V109: TRUE | W109: TRUE | X109: TRUE | Y109: TRUE
F110: Discount % | G110: % | R110: 1 | S110: 1 | T110: 1 | U110: 1 | V110: 1 | W110: 1 | X110: 1 | Y110: 1
E112: Import capacity (kVA)
F113: Override discount | G113: TRUE / FALSE | J113: FALSE | K113: FALSE | L113: FALSE | M113: FALSE | N113: FALSE | O113: FALSE | P113: FALSE | Q113: FALSE | R113: TRUE | S113: TRUE | T113: TRUE | U113: TRUE | V113: TRUE | W113: TRUE | X113: TRUE | Y113: TRUE
F114: Discount % | G114: % | R114: 0 | S114: 0 | T114: 0 | U114: 0 | V114: 0 | W114: 0 | X114: 0 | Y114: 0
E116: Exceeded capacity (kVA)
F117: Override discount | G117: TRUE / FALSE | J117: FALSE | K117: FALSE | L117: FALSE | M117: FALSE | N117: FALSE | O117: FALSE | P117: FALSE | Q117: FALSE | R117: TRUE | S117: TRUE | T117: TRUE | U117: TRUE | V117: TRUE | W117: TRUE | X117: TRUE | Y117: TRUE
F118: Discount % | G118: % | R118: 0 | S118: 0 | T118: 0 | U118: 0 | V118: 0 | W118: 0 | X118: 0 | Y118: 0
E120: Reactive power units (MVArh)
F121: Override discount | G121: TRUE / FALSE | J121: FALSE | K121: FALSE | L121: FALSE | M121: FALSE | N121: FALSE | O121: FALSE | P121: FALSE | Q121: FALSE | R121: TRUE | S121: TRUE | T121: TRUE | U121: TRUE | V121: TRUE | W121: TRUE | X121: TRUE | Y121: TRUE
F122: Discount % | G122: % | R122: 0 | S122: 0 | T122: 0 | U122: 0 | V122: 0 | W122: 0 | X122: 0 | Y122: 0
E124: Unmetered supply flags
E125: These are used to flag UMS tariff forecast in the pseudo load coefficient calculations, because UMS
E126: customers are subject to a different timebanding
F127: Unmetered supply flags | G127: TRUE / FALSE | J127: FALSE | K127: FALSE | L127: FALSE | M127: FALSE | N127: FALSE | O127: FALSE | P127: FALSE | Q127: TRUE | R127: FALSE | S127: FALSE | T127: FALSE | U127: FALSE | V127: FALSE | W127: FALSE | X127: FALSE | Y127: FALSE
E129: Flags used in calculation of LV diversity allowance
E130: FALSE = exclude
F131: Flag for customers included in aggregate maximum demand | G131: TRUE / FALSE | J131: TRUE | K131: FALSE | L131: TRUE | M131: FALSE | N131: TRUE | O131: TRUE | P131: TRUE | Q131: TRUE | R131: TRUE | S131: TRUE | T131: TRUE | U131: TRUE | V131: TRUE | W131: TRUE | X131: TRUE | Y131: TRUE
E133: Flags for applicability of capacity & reactive charges | I133: > | AQ133: Paragraphs 141 & 146
E134: 0 = charges not applicable to customer type
E135: For fixed charges, 1 = capacity element is allocated to fixed charges
F136: Capacity charge | G136: 1 or 0 | J136: 0 | K136: 0 | L136: 0 | M136: 0 | N136: 1 | O136: 1 | P136: 1 | Q136: 0 | R136: 0 | S136: 0 | T136: 0 | U136: 0 | V136: 0 | W136: 0 | X136: 0 | Y136: 0
F137: Exceeded capacity charge | G137: 1 or 0 | J137: 0 | K137: 0 | L137: 0 | M137: 0 | N137: 1 | O137: 1 | P137: 1 | Q137: 0 | R137: 0 | S137: 0 | T137: 0 | U137: 0 | V137: 0 | W137: 0 | X137: 0 | Y137: 0
F138: Reactive power | G138: 1 or 0 | J138: 0 | K138: 0 | L138: 0 | M138: 0 | N138: 1 | O138: 1 | P138: 1 | Q138: 0 | R138: 0 | S138: 0 | T138: 1 | U138: 0 | V138: 1 | W138: 0 | X138: 1 | Y138: 0
F139: Capacity charge allocated to fixed charge | G139: 1 or 0 | J139: 1 | K139: 0 | L139: 1 | M139: 0 | N139: 0 | O139: 0 | P139: 0 | Q139: 0 | R139: 0 | S139: 0 | T139: 0 | U139: 0 | V139: 0 | W139: 0 | X139: 0 | Y139: 0
C141: =INDEX('Version control'!$H$36:$H$62,MATCH($A$1,'Version control'!$F$36:$F$62,0),1)&"-G: Identifiers for customer groupings" -> Input 504-G: Identifiers for customer groupings
E143: Groupings for fixed charges
E144: Sets out the groups that are aggregated when calculating fixed charges. Each group is given an identifier. | I144: > | AQ144: Paragraph 83
F145: Groupings for fixed charges | G145: integer | J145: 1 | L145: 1
E147: Groupings for aggregated pseudo-load coefficients | I147: > | AQ147: Paragraph 70 c) iv
E148: Sets out the groups that are equalised for unit rates, as set out in Paragraph 70 c) iv
F149: Pseudo-load coefficient aggregation group | G149: integer | J149: 1 | K149: 1 | L149: 2 | M149: 2 | N149: 3 | O149: 4 | P149: 5
C151: =INDEX('Version control'!$H$36:$H$62,MATCH($A$1,'Version control'!$F$36:$F$62,0),1)&"-H: Decimal places for error checks" -> Input 504-H: Decimal places for error checks
E153: Decimals of precision for error checks | G153: integer | H153: 3
C155: =INDEX('Version control'!$H$36:$H$62,MATCH($A$1,'Version control'!$F$36:$F$62,0),1)&"-I: Map of applicable MPANs" -> Input 504-I: Map of applicable MPANs
E157: Map of applicable MPANs | I157: > | AQ157: Paragraphs 101 and 103
F158: Pass-through Supplier of Last Resort Adjustment | G158: 1 or 0 | J158: 1 | K158: 0 | L158: 0 | M158: 0 | N158: 0 | O158: 0 | P158: 0 | Q158: 0 | R158: 0 | S158: 0 | T158: 0 | U158: 0 | V158: 0 | W158: 0 | X158: 0 | Y158: 0
F159: Pass-through Eligible Bad Debt Adjustment | G159: 1 or 0 | J159: 1 | K159: 0 | L159: 1 | M159: 0 | N159: 1 | O159: 1 | P159: 1 | Q159: 0 | R159: 0 | S159: 0 | T159: 0 | U159: 0 | V159: 0 | W159: 0 | X159: 0 | Y159: 0
F160: Pass-through COVID-19 Bad Debt Adjustment | G160: 1 or 0 | J160: 1 | K160: 0 | L160: 1 | M160: 0 | N160: 1 | O160: 1 | P160: 1 | Q160: 0 | R160: 0 | S160: 0 | T160: 0 | U160: 0 | V160: 0 | W160: 0 | X160: 0 | Y160: 0
C162: =INDEX('Version control'!$H$36:$H$62,MATCH($A$1,'Version control'!$F$36:$F$62,0),1)&"-J: Revenue matching inputs" -> Input 504-J: Revenue matching inputs
E164: Flags for calculation of revenue matching | J164: Domestic Aggregated with Residual | K164: Domestic Aggregated (Related MPAN) | L164: Non-Domestic Aggregated No Residual | M164: Non-Domestic Aggregated Band 1 | N164: Non-Domestic Aggregated Band 2 | O164: Non-Domestic Aggregated Band 3 | P164: Non-Domestic Aggregated Band 4 | Q164: Non-Domestic Aggregated (Related MPAN) | R164: LV Site Specific No Residual | S164: LV Site Specific Band 1 | T164: LV Site Specific Band 2 | U164: LV Site Specific Band 3 | V164: LV Site Specific Band 4 | W164: LV Sub Site Specific No Residual | X164: LV Sub Site Specific Band 1 | Y164: LV Sub Site Specific Band 2 | Z164: LV Sub Site Specific Band 3 | AA164: LV Sub Site Specific Band 4 | AB164: HV Site Specific No Residual | AC164: HV Site Specific Band 1 | AD164: HV Site Specific Band 2 | AE164: HV Site Specific Band 3 | AF164: HV Site Specific Band 4 | AG164: Unmetered Supplies | AH164: LV Generation Aggregated | AI164: LV Sub Generation Aggregated | AJ164: LV Generation Site Specific | AK164: LV Generation Site Specific no RP Charge | AL164: LV Sub Generation Site Specific | AM164: LV Sub Generation Site Specific no RP Charge | AN164: HV Generation Site Specific | AO164: HV Generation Site Specific no RP Charge
F165: Residual charges | G165: TRUE or FALSE | J165: TRUE | K165: FALSE | L165: FALSE | M165: TRUE | N165: TRUE | O165: TRUE | P165: TRUE | Q165: FALSE | R165: FALSE | S165: TRUE | T165: TRUE | U165: TRUE | V165: TRUE | W165: FALSE | X165: TRUE | Y165: TRUE | Z165: TRUE | AA165: TRUE | AB165: FALSE | AC165: TRUE | AD165: TRUE | AE165: TRUE | AF165: TRUE | AG165: TRUE | AH165: FALSE | AI165: FALSE | AJ165: FALSE | AK165: FALSE | AL165: FALSE | AM165: FALSE | AN165: FALSE | AO165: FALSE
F166: Residual fixed charge | G166: TRUE or FALSE | J166: TRUE | M166: TRUE | N166: TRUE | O166: TRUE | P166: TRUE | S166: TRUE | T166: TRUE | U166: TRUE | V166: TRUE | X166: TRUE | Y166: TRUE | Z166: TRUE | AA166: TRUE | AC166: TRUE | AD166: TRUE | AE166: TRUE | AF166: TRUE | AG166: FALSE
F167: Residual, no fixed charge | G167: TRUE or FALSE | J167: FALSE | M167: FALSE | N167: FALSE | O167: FALSE | P167: FALSE | S167: FALSE | T167: FALSE | U167: FALSE | V167: FALSE | X167: FALSE | Y167: FALSE | Z167: FALSE | AA167: FALSE | AC167: FALSE | AD167: FALSE | AE167: FALSE | AF167: FALSE | AG167: TRUE
F168: Residual group | G168: integer | J168: 1 | M168: 2 | N168: 2 | O168: 2 | P168: 2 | S168: 3 | T168: 3 | U168: 3 | V168: 3 | X168: 3 | Y168: 3 | Z168: 3 | AA168: 3 | AC168: 4 | AD168: 4 | AE168: 4 | AF168: 4 | AG168: 5
F169: Residual band | G169: integer | J169: 1 | M169: 1 | N169: 2 | O169: 3 | P169: 4 | S169: 1 | T169: 2 | U169: 3 | V169: 4 | X169: 1 | Y169: 2 | Z169: 3 | AA169: 4 | AC169: 1 | AD169: 2 | AE169: 3 | AF169: 4 | AG169: 1
F170: Index of tariff before revenue matching | G170: integer | J170: 1 | K170: 2 | L170: 3 | M170: 3 | N170: 3 | O170: 3 | P170: 3 | Q170: 4 | R170: 5 | S170: 5 | T170: 5 | U170: 5 | V170: 5 | W170: 6 | X170: 6 | Y170: 6 | Z170: 6 | AA170: 6 | AB170: 7 | AC170: 7 | AD170: 7 | AE170: 7 | AF170: 7 | AG170: 8 | AH170: 9 | AI170: 10 | AJ170: 11 | AK170: 12 | AL170: 13 | AM170: 14 | AN170: 15 | AO170: 16
E172: Minimum number of MPANs in residual band | G172: integer | H172: 2
E174: Band grouping configurations
F175: The legal text requires that any bands with fewer than 2 customers are combined with another band. This input
F176: defines the different possible configurations of these band combinations. | J176: Domestic Aggregated with Residual | K176: Domestic Aggregated (Related MPAN) | L176: Non-Domestic Aggregated No Residual | M176: Non-Domestic Aggregated Band 1 | N176: Non-Domestic Aggregated Band 2 | O176: Non-Domestic Aggregated Band 3 | P176: Non-Domestic Aggregated Band 4 | Q176: Non-Domestic Aggregated (Related MPAN) | R176: LV Site Specific No Residual | S176: LV Site Specific Band 1 | T176: LV Site Specific Band 2 | U176: LV Site Specific Band 3 | V176: LV Site Specific Band 4 | W176: LV Sub Site Specific No Residual | X176: LV Sub Site Specific Band 1 | Y176: LV Sub Site Specific Band 2 | Z176: LV Sub Site Specific Band 3 | AA176: LV Sub Site Specific Band 4 | AB176: HV Site Specific No Residual | AC176: HV Site Specific Band 1 | AD176: HV Site Specific Band 2 | AE176: HV Site Specific Band 3 | AF176: HV Site Specific Band 4 | AG176: Unmetered Supplies | AH176: LV Generation Aggregated | AI176: LV Sub Generation Aggregated | AJ176: LV Generation Site Specific | AK176: LV Generation Site Specific no RP Charge | AL176: LV Sub Generation Site Specific | AM176: LV Sub Generation Site Specific no RP Charge | AN176: HV Generation Site Specific | AO176: HV Generation Site Specific no RP Charge
F177: Band grouping configuration 1 | G177: integer | J177: 1 | M177: 1 | N177: 2 | O177: 3 | P177: 4 | S177: 1 | T177: 2 | U177: 3 | V177: 4 | X177: 1 | Y177: 2 | Z177: 3 | AA177: 4 | AC177: 1 | AD177: 2 | AE177: 3 | AF177: 4 | AG177: 1
F178: Band grouping configuration 2 | G178: integer | J178: 1 | M178: 1 | N178: 1 | O178: 2 | P178: 3 | S178: 1 | T178: 1 | U178: 2 | V178: 3 | X178: 1 | Y178: 1 | Z178: 2 | AA178: 3 | AC178: 1 | AD178: 1 | AE178: 2 | AF178: 3 | AG178: 1
F179: Band grouping configuration 3 | G179: integer | J179: 1 | M179: 1 | N179: 2 | O179: 2 | P179: 3 | S179: 1 | T179: 2 | U179: 2 | V179: 3 | X179: 1 | Y179: 2 | Z179: 2 | AA179: 3 | AC179: 1 | AD179: 2 | AE179: 2 | AF179: 3 | AG179: 1
F180: Band grouping configuration 4 | G180: integer | J180: 1 | M180: 1 | N180: 2 | O180: 3 | P180: 3 | S180: 1 | T180: 2 | U180: 3 | V180: 3 | X180: 1 | Y180: 2 | Z180: 3 | AA180: 3 | AC180: 1 | AD180: 2 | AE180: 3 | AF180: 3 | AG180: 1
F181: Band grouping configuration 5 | G181: integer | J181: 1 | M181: 1 | N181: 1 | O181: 2 | P181: 2 | S181: 1 | T181: 1 | U181: 2 | V181: 2 | X181: 1 | Y181: 1 | Z181: 2 | AA181: 2 | AC181: 1 | AD181: 1 | AE181: 2 | AF181: 2 | AG181: 1
F182: Band grouping configuration 6 | G182: integer | J182: 1 | M182: 1 | N182: 1 | O182: 1 | P182: 2 | S182: 1 | T182: 1 | U182: 1 | V182: 2 | X182: 1 | Y182: 1 | Z182: 1 | AA182: 2 | AC182: 1 | AD182: 1 | AE182: 1 | AF182: 2 | AG182: 1
F183: Band grouping configuration 7 | G183: integer | J183: 1 | M183: 1 | N183: 2 | O183: 2 | P183: 2 | S183: 1 | T183: 2 | U183: 2 | V183: 2 | X183: 1 | Y183: 2 | Z183: 2 | AA183: 2 | AC183: 1 | AD183: 2 | AE183: 2 | AF183: 2 | AG183: 1
F184: Band grouping configuration 8 | G184: integer | J184: 1 | M184: 1 | N184: 1 | O184: 1 | P184: 1 | S184: 1 | T184: 1 | U184: 1 | V184: 1 | X184: 1 | Y184: 1 | Z184: 1 | AA184: 1 | AC184: 1 | AD184: 1 | AE184: 1 | AF184: 1 | AG184: 1
B186: Checks
E188: Check for error values | G188: number of issues | H188: =SUM(IF(ISERROR(H15:Y146), 1)) -> 0
E190: Check that discount overrides are either FALSE, or non-zero
F191: MWh override | G191: number of issues | H191: =SUM(J191:Y191) -> 0 | J191: =IF( OR( AND(J105 = TRUE, NOT(ISBLANK(J106))), AND(J105 = FALSE, J106 = 0)), 0, 1) -> 0 | K191: 0 | L191: 0 | M191: 0 | N191: 0 | O191: 0 | P191: 0 | Q191: 0 | R191: 0 | S191: 0 | T191: 0 | U191: 0 | V191: 0 | W191: 0 | X191: 0 | Y191: 0
F192: MPAN override | G192: number of issues | H192: =SUM(J192:Y192) -> 0 | J192: =IF( OR( AND(J109 = TRUE, NOT(ISBLANK(J110))), AND(J109 = FALSE, J110 = 0)), 0, 1) -> 0 | K192: 0 | L192: 0 | M192: 0 | N192: 0 | O192: 0 | P192: 0 | Q192: 0 | R192: 0 | S192: 0 | T192: 0 | U192: 0 | V192: 0 | W192: 0 | X192: 0 | Y192: 0
F193: Import capacity override | G193: number of issues | H193: =SUM(J193:Y193) -> 0 | J193: =IF( OR( AND(J113 = TRUE, NOT(ISBLANK(J114))), AND(J113 = FALSE, J114 = 0)), 0, 1) -> 0 | K193: 0 | L193: 0 | M193: 0 | N193: 0 | O193: 0 | P193: 0 | Q193: 0 | R193: 0 | S193: 0 | T193: 0 | U193: 0 | V193: 0 | W193: 0 | X193: 0 | Y193: 0
F194: Exceeded capacity override | G194: number of issues | H194: =SUM(J194:Y194) -> 0 | J194: =IF( OR( AND(J117 = TRUE, NOT(ISBLANK(J118))), AND(J117 = FALSE, J118 = 0)), 0, 1) -> 0 | K194: 0 | L194: 0 | M194: 0 | N194: 0 | O194: 0 | P194: 0 | Q194: 0 | R194: 0 | S194: 0 | T194: 0 | U194: 0 | V194: 0 | W194: 0 | X194: 0 | Y194: 0
F195: Reactive power override | G195: number of issues | H195: =SUM(J195:Y195) -> 0 | J195: =IF( OR( AND(J121 = TRUE, NOT(ISBLANK(J122))), AND(J121 = FALSE, J122 = 0)), 0, 1) -> 0 | K195: 0 | L195: 0 | M195: 0 | N195: 0 | O195: 0 | P195: 0 | Q195: 0 | R195: 0 | S195: 0 | T195: 0 | U195: 0 | V195: 0 | W195: 0 | X195: 0 | Y195: 0
E197: Summary of checks | G197: number of issues | H197: =H188 + SUM(H191:H195) -> 0
B199: End of sheet

Sheet Inputs by customer type
A1: =MID(CELL("filename",A1),FIND("]",CELL("filename",A1))+1,255) -> Inputs by customer type
A2: =Cover!D21&" - "&Cover!D23 -> SP Manweb - One
A3: =Cover!D2&" - "&Cover!D8&" v"&Cover!D10&" - "&Cover!D19 -> ARP model - Release for charge setting v7 - 2024/25
A4: =H216 & IF(H216 = 1, " issue", " issues") &" identified in checks on this sheet" -> 0 issues identified in checks on this sheet
B5: Click here to return to model map | G5: Units | H5: Constants | J5: Domestic Aggregated | K5: Domestic Aggregated (Related MPAN) | L5: Non-Domestic Aggregated | M5: Non-Domestic Aggregated (Related MPAN) | N5: LV Site Specific | O5: LV Sub Site Specific | P5: HV Site Specific | Q5: Unmetered Supplies | R5: LV Generation Aggregated | S5: LV Sub Generation Aggregated | T5: LV Generation Site Specific | U5: LV Generation Site Specific no RP Charge | V5: LV Sub Generation Site Specific | W5: LV Sub Generation Site Specific no RP Charge | X5: HV Generation Site Specific | Y5: HV Generation Site Specific no RP Charge | AQ5: Legal text reference
B7: Description
C9: This sheet sets out the inputs by customer type to be filled in by DNOs.
E11: Charging year selected | G11: year | H11: =charging_year_selected -> 2024/25
E12: Historic / current / forecast | G12: text | H12: ='ARP_User control'!$H$36 -> Current
B14: Inputs by customer type
C16: =INDEX('Version control'!$H$36:$H$62,MATCH($A$1,'Version control'!$F$36:$F$62,0),1)&"-A: Load characteristics" -> Section 501-A: Load characteristics
E18: Load factor | G18: % | I18: > | J18: =TRANSPOSE('ARP_Inputs by customer type'!J19:J34) -> 0.446 | K18: 0.1383333333 | L18: 0.4466666667 | M18: 0.1846666667 | N18: 0.5776666667 | O18: 0.5593333333 | P18: 0.738 | Q18: 0.46 | R18: 0 | S18: 0 | T18: 0 | U18: 0 | V18: 0 | W18: 0 | X18: 0 | Y18: 0 | AQ18: Paragraph 42 (a)
E19: Coincidence factor | G19: % | I19: > | J19: =TRANSPOSE('ARP_Inputs by customer type'!J39:J54) -> 0.839 | K19: 0 | L19: 0.7103333333 | M19: 0 | N19: 0.8263333333 | O19: 0.7676666667 | P19: 0.8416666667 | Q19: 0.9083333333 | R19: 0 | S19: 0 | T19: 0 | U19: 0 | V19: 0 | W19: 0 | X19: 0 | Y19: 0 | AQ19: Paragraph 42 (b)
C21: =INDEX('Version control'!$H$36:$H$62,MATCH($A$1,'Version control'!$F$36:$F$62,0),1)&"-B: Volume forecasts for the charging year" -> Section 501-B: Volume forecasts for the charging year
D23: Volumes for all the way tariffs are entered here, separately for each residual band. | I23: > | AQ23: Paragraph 52
E25: All the way volume forecast - No Residual
F26: Rate 1 units | G26: MWh | J26: =TRANSPOSE('ARP_Inputs by customer type'!J61:J76) -> 0 | K26: 32.089 | L26: 48.92907436 | M26: 5.328 | N26: 17.87464222 | O26: 1.02893858 | P26: 175.3916604 | Q26: 0 | R26: 2038.954569 | S26: 34.08550267 | T26: 3793.449 | U26: 0 | V26: 1172.297 | W26: 0 | X26: 51281.671 | Y26: 0
F27: Rate 2 units | G27: MWh | J27: =TRANSPOSE('ARP_Inputs by customer type'!J79:J94) -> 0 | K27: 557.914 | L27: 260.6422565 | M27: 317.86 | N27: 105.4816807 | O27: 4.150458719 | P27: 1149.126321 | Q27: 0 | R27: 12274.52828 | S27: 143.9227273 | T27: 18380.287 | U27: 0 | V27: 5289.195 | W27: 0 | X27: 176930.155 | Y27: 0
F28: Rate 3 units | G28: MWh | J28: =TRANSPOSE('ARP_Inputs by customer type'!J97:J112) -> 0 | K28: 6679.759 | L28: 218.7632633 | M28: 3640.25 | N28: 94.33406445 | O28: 5.884740792 | P28: 1706.545262 | Q28: 0 | R28: 6127.115168 | S28: 95.50759893 | T28: 20626.524 | U28: 0 | V28: 6499.353 | W28: 0 | X28: 157737.588 | Y28: 0
F29: MPANs | G29: MPANs | J29: =TRANSPOSE('ARP_Inputs by customer type'!J115:J130) -> 0 | K29: 2859 | L29: 43 | M29: 940 | N29: 28 | O29: 5 | P29: 59 | Q29: 0 | R29: 2180 | S29: 24 | T29: 344 | U29: 0 | V29: 42 | W29: 0 | X29: 152 | Y29: 0
F30: Import capacity | G30: kVA | J30: =TRANSPOSE('ARP_Inputs by customer type'!J133:J148) -> 0 | K30: 0 | L30: 0 | M30: 0 | N30: 1378 | O30: 118 | P30: 6929 | Q30: 0 | R30: 0 | S30: 0 | T30: 0 | U30: 0 | V30: 0 | W30: 0 | X30: 0 | Y30: 0
F31: Exceeded capacity | G31: kVA | J31: =TRANSPOSE('ARP_Inputs by customer type'!J151:J166) -> 0 | K31: 0 | L31: 0 | M31: 0 | N31: 4 | O31: 0 | P31: 246.9166667 | Q31: 0 | R31: 0 | S31: 0 | T31: 0 | U31: 0 | V31: 0 | W31: 0 | X31: 0 | Y31: 0
F32: Reactive power units | G32: MVArh | J32: =TRANSPOSE('ARP_Inputs by customer type'!J169:J184) -> 0 | K32: 0 | L32: 0 | M32: 0 | N32: 49 | O32: 4.248 | P32: 1606.79 | Q32: 0 | R32: 0 | S32: 0 | T32: 5712.562 | U32: 0 | V32: 573.778 | W32: 0 | X32: 9164.714 | Y32: 0
E34: All the way volume forecast - Residual Band 1
F35: Rate 1 units | G35: MWh | J35: =TRANSPOSE('ARP_Inputs by customer type'!J189:J204) -> 542392.9205 | K35: 0 | L35: 13142.79174 | M35: 0 | N35: 28709.25947 | O35: 9636.740466 | P35: 11697.3744 | Q35: 6404.747543 | R35: 0 | S35: 0 | T35: 0 | U35: 0 | V35: 0 | W35: 0 | X35: 0 | Y35: 0
F36: Rate 2 units | G36: MWh | J36: =TRANSPOSE('ARP_Inputs by customer type'!J207:J222) -> 1892156.584 | K36: 0 | L36: 66780.27256 | M36: 0 | N36: 129817.1052 | O36: 48097.83145 | P36: 57111.12232 | Q36: 35748.58558 | R36: 0 | S36: 0 | T36: 0 | U36: 0 | V36: 0 | W36: 0 | X36: 0 | Y36: 0
F37: Rate 3 units | G37: MWh | J37: =TRANSPOSE('ARP_Inputs by customer type'!J225:J240) -> 1827461.78 | K37: 0 | L37: 53491.72347 | M37: 0 | N37: 117418.1964 | O37: 40457.07613 | P37: 59452.75135 | Q37: 82463.46021 | R37: 0 | S37: 0 | T37: 0 | U37: 0 | V37: 0 | W37: 0 | X37: 0 | Y37: 0
F38: MPANs | G38: MPANs | J38: =TRANSPOSE('ARP_Inputs by customer type'!J243:J258) -> 1400937 | K38: 0 | L38: 38321 | M38: 0 | N38: 2869 | O38: 1010 | P38: 248 | Q38: 570 | R38: 0 | S38: 0 | T38: 0 | U38: 0 | V38: 0 | W38: 0 | X38: 0 | Y38: 0
F39: Import capacity | G39: kVA | J39: =TRANSPOSE('ARP_Inputs by customer type'!J261:J276) -> 0 | K39: 0 | L39: 0 | M39: 0 | N39: 147844 | O39: 56061 | P39: 53000 | Q39: 0 | R39: 0 | S39: 0 | T39: 0 | U39: 0 | V39: 0 | W39: 0 | X39: 0 | Y39: 0
F40: Exceeded capacity | G40: kVA | J40: =TRANSPOSE('ARP_Inputs by customer type'!J279:J294) -> 0 | K40: 0 | L40: 0 | M40: 0 | N40: 7679.5 | O40: 4072.833333 | P40: 4000.333333 | Q40: 0 | R40: 0 | S40: 0 | T40: 0 | U40: 0 | V40: 0 | W40: 0 | X40: 0 | Y40: 0
F41: Reactive power units | G41: MVArh | J41: =TRANSPOSE('ARP_Inputs by customer type'!J297:J312) -> 0 | K41: 0 | L41: 0 | M41: 0 | N41: 23543.742 | O41: 11326.072 | P41: 15001.021 | Q41: 0 | R41: 0 | S41: 0 | T41: 0 | U41: 0 | V41: 0 | W41: 0 | X41: 0 | Y41: 0
E43: All the way volume forecast - Residual Band 2
F44: Rate 1 units | G44: MWh | J44: =TRANSPOSE('ARP_Inputs by customer type'!J317:J332) -> 0 | K44: 0 | L44: 24501.17931 | M44: 0 | N44: 35914.50927 | O44: 18046.1326 | P44: 44472.44994 | Q44: 0 | R44: 0 | S44: 0 | T44: 0 | U44: 0 | V44: 0 | W44: 0 | X44: 0 | Y44: 0
F45: Rate 2 units | G45: MWh | J45: =TRANSPOSE('ARP_Inputs by customer type'!J335:J350) -> 0 | K45: 0 | L45: 125535.0506 | M45: 0 | N45: 161968.832 | O45: 87720.41963 | P45: 205198.7036 | Q45: 0 | R45: 0 | S45: 0 | T45: 0 | U45: 0 | V45: 0 | W45: 0 | X45: 0 | Y45: 0
F46: Rate 3 units | G46: MWh | J46: =TRANSPOSE('ARP_Inputs by customer type'!J353:J368) -> 0 | K46: 0 | L46: 101325.4576 | M46: 0 | N46: 143438.7859 | O46: 76645.07202 | P46: 214345.2089 | Q46: 0 | R46: 0 | S46: 0 | T46: 0 | U46: 0 | V46: 0 | W46: 0 | X46: 0 | Y46: 0
F47: MPANs | G47: MPANs | J47: =TRANSPOSE('ARP_Inputs by customer type'!J371:J386) -> 0 | K47: 0 | L47: 30423 | M47: 0 | N47: 1990 | O47: 801 | P47: 289 | Q47: 0 | R47: 0 | S47: 0 | T47: 0 | U47: 0 | V47: 0 | W47: 0 | X47: 0 | Y47: 0
F48: Import capacity | G48: kVA | J48: =TRANSPOSE('ARP_Inputs by customer type'!J389:J404) -> 0 | K48: 0 | L48: 0 | M48: 0 | N48: 228911 | O48: 95342 | P48: 197665 | Q48: 0 | R48: 0 | S48: 0 | T48: 0 | U48: 0 | V48: 0 | W48: 0 | X48: 0 | Y48: 0
F49: Exceeded capacity | G49: kVA | J49: =TRANSPOSE('ARP_Inputs by customer type'!J407:J422) -> 0 | K49: 0 | L49: 0 | M49: 0 | N49: 3181.166667 | O49: 3639 | P49: 3025.583333 | Q49: 0 | R49: 0 | S49: 0 | T49: 0 | U49: 0 | V49: 0 | W49: 0 | X49: 0 | Y49: 0
F50: Reactive power units | G50: MVArh | J50: =TRANSPOSE('ARP_Inputs by customer type'!J425:J440) -> 0 | K50: 0 | L50: 0 | M50: 0 | N50: 26742.13 | O50: 14727.264 | P50: 39577.704 | Q50: 0 | R50: 0 | S50: 0 | T50: 0 | U50: 0 | V50: 0 | W50: 0 | X50: 0 | Y50: 0
E52: All the way volume forecast - Residual Band 3
F53: Rate 1 units | G53: MWh | J53: =TRANSPOSE('ARP_Inputs by customer type'!J445:J460) -> 0 | K53: 0 | L53: 26645.7987 | M53: 0 | N53: 12485.11259 | O53: 14865.90106 | P53: 41065.02512 | Q53: 0 | R53: 0 | S53: 0 | T53: 0 | U53: 0 | V53: 0 | W53: 0 | X53: 0 | Y53: 0
F54: Rate 2 units | G54: MWh | J54: =TRANSPOSE('ARP_Inputs by customer type'!J463:J478) -> 0 | K54: 0 | L54: 136841.0219 | M54: 0 | N54: 56592.58328 | O54: 72160.0338 | P54: 192800.3585 | Q54: 0 | R54: 0 | S54: 0 | T54: 0 | U54: 0 | V54: 0 | W54: 0 | X54: 0 | Y54: 0
F55: Rate 3 units | G55: MWh | J55: =TRANSPOSE('ARP_Inputs by customer type'!J481:J496) -> 0 | K55: 0 | L55: 111661.8786 | M55: 0 | N55: 50801.73103 | O55: 63081.44984 | P55: 204256.1313 | Q55: 0 | R55: 0 | S55: 0 | T55: 0 | U55: 0 | V55: 0 | W55: 0 | X55: 0 | Y55: 0
F56: MPANs | G56: MPANs | J56: =TRANSPOSE('ARP_Inputs by customer type'!J499:J514) -> 0 | K56: 0 | L56: 15615 | M56: 0 | N56: 481 | O56: 428 | P56: 124 | Q56: 0 | R56: 0 | S56: 0 | T56: 0 | U56: 0 | V56: 0 | W56: 0 | X56: 0 | Y56: 0
F57: Import capacity | G57: kVA | J57: =TRANSPOSE('ARP_Inputs by customer type'!J517:J532) -> 0 | K57: 0 | L57: 0 | M57: 0 | N57: 90300 | O57: 82725 | P57: 166886 | Q57: 0 | R57: 0 | S57: 0 | T57: 0 | U57: 0 | V57: 0 | W57: 0 | X57: 0 | Y57: 0
F58: Exceeded capacity | G58: kVA | J58: =TRANSPOSE('ARP_Inputs by customer type'!J535:J550) -> 0 | K58: 0 | L58: 0 | M58: 0 | N58: 289.5833333 | O58: 995.5833333 | P58: 3033.916667 | Q58: 0 | R58: 0 | S58: 0 | T58: 0 | U58: 0 | V58: 0 | W58: 0 | X58: 0 | Y58: 0
F59: Reactive power units | G59: MVArh | J59: =TRANSPOSE('ARP_Inputs by customer type'!J553:J568) -> 0 | K59: 0 | L59: 0 | M59: 0 | N59: 9391.513 | O59: 10892.271 | P59: 32304.661 | Q59: 0 | R59: 0 | S59: 0 | T59: 0 | U59: 0 | V59: 0 | W59: 0 | X59: 0 | Y59: 0
E61: All the way volume forecast - Residual Band 4
F62: Rate 1 units | G62: MWh | J62: =TRANSPOSE('ARP_Inputs by customer type'!J573:J588) -> 0 | K62: 0 | L62: 85383.98342 | M62: 0 | N62: 15097.08583 | O62: 58559.21413 | P62: 57171.93113 | Q62: 0 | R62: 0 | S62: 0 | T62: 0 | U62: 0 | V62: 0 | W62: 0 | X62: 0 | Y62: 0
F63: Rate 2 units | G63: MWh | J63: =TRANSPOSE('ARP_Inputs by customer type'!J591:J606) -> 0 | K63: 0 | L63: 426416.0441 | M63: 0 | N63: 70646.93601 | O63: 282729.1607 | P63: 256813.3171 | Q63: 0 | R63: 0 | S63: 0 | T63: 0 | U63: 0 | V63: 0 | W63: 0 | X63: 0 | Y63: 0
F64: Rate 3 units | G64: MWh | J64: =TRANSPOSE('ARP_Inputs by customer type'!J609:J624) -> 0 | K64: 0 | L64: 375148.9194 | M64: 0 | N64: 64792.58314 | O64: 262460.5752 | P64: 301300.8094 | Q64: 0 | R64: 0 | S64: 0 | T64: 0 | U64: 0 | V64: 0 | W64: 0 | X64: 0 | Y64: 0
F65: MPANs | G65: MPANs | J65: =TRANSPOSE('ARP_Inputs by customer type'!J627:J642) -> 0 | K65: 0 | L65: 16866 | M65: 0 | N65: 290 | O65: 819 | P65: 91 | Q65: 0 | R65: 0 | S65: 0 | T65: 0 | U65: 0 | V65: 0 | W65: 0 | X65: 0 | Y65: 0
F66: Import capacity | G66: kVA | J66: =TRANSPOSE('ARP_Inputs by customer type'!J645:J660) -> 0 | K66: 0 | L66: 0 | M66: 0 | N66: 110205 | O66: 322654 | P66: 227191 | Q66: 0 | R66: 0 | S66: 0 | T66: 0 | U66: 0 | V66: 0 | W66: 0 | X66: 0 | Y66: 0
F67: Exceeded capacity | G67: kVA | J67: =TRANSPOSE('ARP_Inputs by customer type'!J663:J678) -> 0 | K67: 0 | L67: 0 | M67: 0 | N67: 333.9166667 | O67: 2721.666667 | P67: 2536.166667 | Q67: 0 | R67: 0 | S67: 0 | T67: 0 | U67: 0 | V67: 0 | W67: 0 | X67: 0 | Y67: 0
F68: Reactive power units | G68: MVArh | J68: =TRANSPOSE('ARP_Inputs by customer type'!J681:J696) -> 0 | K68: 0 | L68: 0 | M68: 0 | N68: 14088.576 | O68: 45798.346 | P68: 31588.052 | Q68: 0 | R68: 0 | S68: 0 | T68: 0 | U68: 0 | V68: 0 | W68: 0 | X68: 0 | Y68: 0
D70: Volumes for LNDO LV tariffs are entered here, separately for each residual band. | I70: > | AQ70: Paragraph 52
E72: LDNO LV volume forecast - No Residual
F73: Rate 1 units | G73: MWh | J73: =TRANSPOSE('ARP_Inputs by customer type'!J701:J716) -> 0 | K73: 0 | L73: 0 | M73: 0 | N73: 0 | O73: 0 | P73: 0 | Q73: 0 | R73: 106.8876791 | S73: 0 | T73: 0 | U73: 0 | V73: 0 | W73: 0 | X73: 0 | Y73: 0
F74: Rate 2 units | G74: MWh | J74: =TRANSPOSE('ARP_Inputs by customer type'!J719:J734) -> 0 | K74: 0 | L74: 0 | M74: 0 | N74: 0 | O74: 0 | P74: 0 | Q74: 0 | R74: 399.9344765 | S74: 0 | T74: 0 | U74: 0 | V74: 0 | W74: 0 | X74: 0 | Y74: 0
F75: Rate 3 units | G75: MWh | J75: =TRANSPOSE('ARP_Inputs by customer type'!J737:J752) -> 0 | K75: 0 | L75: 0 | M75: 0 | N75: 0 | O75: 0 | P75: 0 | Q75: 0 | R75: 328.9019928 | S75: 0 | T75: 0 | U75: 0 | V75: 0 | W75: 0 | X75: 0 | Y75: 0
F76: MPANs | G76: MPANs | J76: =TRANSPOSE('ARP_Inputs by customer type'!J755:J770) -> 0 | K76: 0 | L76: 0 | M76: 0 | N76: 0 | O76: 0 | P76: 0 | Q76: 0 | R76: 384 | S76: 0 | T76: 0 | U76: 0 | V76: 0 | W76: 0 | X76: 0 | Y76: 0
F77: Import capacity | G77: kVA | J77: =TRANSPOSE('ARP_Inputs by customer type'!J773:J788) -> 0 | K77: 0 | L77: 0 | M77: 0 | N77: 0 | O77: 0 | P77: 0 | Q77: 0 | R77: 0 | S77: 0 | T77: 0 | U77: 0 | V77: 0 | W77: 0 | X77: 0 | Y77: 0
F78: Exceeded capacity | G78: kVA | J78: =TRANSPOSE('ARP_Inputs by customer type'!J791:J806) -> 0 | K78: 0 | L78: 0 | M78: 0 | N78: 0 | O78: 0 | P78: 0 | Q78: 0 | R78: 0 | S78: 0 | T78: 0 | U78: 0 | V78: 0 | W78: 0 | X78: 0 | Y78: 0
F79: Reactive power units | G79: MVArh | J79: =TRANSPOSE('ARP_Inputs by customer type'!J809:J824) -> 0 | K79: 0 | L79: 0 | M79: 0 | N79: 0 | O79: 0 | P79: 0 | Q79: 0 | R79: 0 | S79: 0 | T79: 0 | U79: 0 | V79: 0 | W79: 0 | X79: 0 | Y79: 0
E81: LDNO LV volume forecast - Residual Band 1
F82: Rate 1 units | G82: MWh | J82: =TRANSPOSE('ARP_Inputs by customer type'!J829:J844) -> 10639.12071 | K82: 0 | L82: 102.4349764 | M82: 0 | N82: 56.75283952 | O82: 0 | P82: 0 | Q82: 2.152615385 | R82: 0 | S82: 0 | T82: 0 | U82: 0 | V82: 0 | W82: 0 | X82: 0 | Y82: 0
F83: Rate 2 units | G83: MWh | J83: =TRANSPOSE('ARP_Inputs by customer type'!J847:J862) -> 36658.88084 | K83: 0 | L83: 541.7721884 | M83: 0 | N83: 257.7457581 | O83: 0 | P83: 0 | Q83: 27.2700232 | R83: 0 | S83: 0 | T83: 0 | U83: 0 | V83: 0 | W83: 0 | X83: 0 | Y83: 0
F84: Rate 3 units | G84: MWh | J84: =TRANSPOSE('ARP_Inputs by customer type'!J865:J880) -> 33040.2969 | K84: 0 | L84: 402.9213104 | M84: 0 | N84: 225.0450034 | O84: 0 | P84: 0 | Q84: 30.74966606 | R84: 0 | S84: 0 | T84: 0 | U84: 0 | V84: 0 | W84: 0 | X84: 0 | Y84: 0
F85: MPANs | G85: MPANs | J85: =TRANSPOSE('ARP_Inputs by customer type'!J883:J898) -> 27457 | K85: 0 | L85: 174 | M85: 0 | N85: 10 | O85: 0 | P85: 0 | Q85: 33 | R85: 0 | S85: 0 | T85: 0 | U85: 0 | V85: 0 | W85: 0 | X85: 0 | Y85: 0
F86: Import capacity | G86: kVA | J86: =TRANSPOSE('ARP_Inputs by customer type'!J901:J916) -> 0 | K86: 0 | L86: 0 | M86: 0 | N86: 703 | O86: 0 | P86: 0 | Q86: 0 | R86: 0 | S86: 0 | T86: 0 | U86: 0 | V86: 0 | W86: 0 | X86: 0 | Y86: 0
F87: Exceeded capacity | G87: kVA | J87: =TRANSPOSE('ARP_Inputs by customer type'!J919:J934) -> 0 | K87: 0 | L87: 0 | M87: 0 | N87: 1 | O87: 0 | P87: 0 | Q87: 0 | R87: 0 | S87: 0 | T87: 0 | U87: 0 | V87: 0 | W87: 0 | X87: 0 | Y87: 0
F88: Reactive power units | G88: MVArh | J88: =TRANSPOSE('ARP_Inputs by customer type'!J937:J952) -> 0 | K88: 0 | L88: 0 | M88: 0 | N88: 14.888 | O88: 0 | P88: 0 | Q88: 0 | R88: 0 | S88: 0 | T88: 0 | U88: 0 | V88: 0 | W88: 0 | X88: 0 | Y88: 0
E90: LDNO LV volume forecast - Residual Band 2
F91: Rate 1 units | G91: MWh | J91: =TRANSPOSE('ARP_Inputs by customer type'!J957:J972) -> 0 | K91: 0 | L91: 58.60408248 | M91: 0 | N91: 315.67574 | O91: 0 | P91: 0 | Q91: 0 | R91: 0 | S91: 0 | T91: 0 | U91: 0 | V91: 0 | W91: 0 | X91: 0 | Y91: 0
F92: Rate 2 units | G92: MWh | J92: =TRANSPOSE('ARP_Inputs by customer type'!J975:J990) -> 0 | K92: 0 | L92: 312.4494662 | M92: 0 | N92: 1470.864512 | O92: 0 | P92: 0 | Q92: 0 | R92: 0 | S92: 0 | T92: 0 | U92: 0 | V92: 0 | W92: 0 | X92: 0 | Y92: 0
F93: Rate 3 units | G93: MWh | J93: =TRANSPOSE('ARP_Inputs by customer type'!J993:J1008) -> 0 | K93: 0 | L93: 236.4865741 | M93: 0 | N93: 1332.71297 | O93: 0 | P93: 0 | Q93: 0 | R93: 0 | S93: 0 | T93: 0 | U93: 0 | V93: 0 | W93: 0 | X93: 0 | Y93: 0
F94: MPANs | G94: MPANs | J94: =TRANSPOSE('ARP_Inputs by customer type'!J1011:J1026) -> 0 | K94: 0 | L94: 82 | M94: 0 | N94: 31 | O94: 0 | P94: 0 | Q94: 0 | R94: 0 | S94: 0 | T94: 0 | U94: 0 | V94: 0 | W94: 0 | X94: 0 | Y94: 0
F95: Import capacity | G95: kVA | J95: =TRANSPOSE('ARP_Inputs by customer type'!J1029:J1044) -> 0 | K95: 0 | L95: 0 | M95: 0 | N95: 3745 | O95: 0 | P95: 0 | Q95: 0 | R95: 0 | S95: 0 | T95: 0 | U95: 0 | V95: 0 | W95: 0 | X95: 0 | Y95: 0
F96: Exceeded capacity | G96: kVA | J96: =TRANSPOSE('ARP_Inputs by customer type'!J1047:J1062) -> 0 | K96: 0 | L96: 0 | M96: 0 | N96: 25.33333333 | O96: 0 | P96: 0 | Q96: 0 | R96: 0 | S96: 0 | T96: 0 | U96: 0 | V96: 0 | W96: 0 | X96: 0 | Y96: 0
F97: Reactive power units | G97: MVArh | J97: =TRANSPOSE('ARP_Inputs by customer type'!J1065:J1080) -> 0 | K97: 0 | L97: 0 | M97: 0 | N97: 223.528 | O97: 0 | P97: 0 | Q97: 0 | R97: 0 | S97: 0 | T97: 0 | U97: 0 | V97: 0 | W97: 0 | X97: 0 | Y97: 0
E99: LDNO LV volume forecast - Residual Band 3
F100: Rate 1 units | G100: MWh | J100: =TRANSPOSE('ARP_Inputs by customer type'!J1085:J1100) -> 0 | K100: 0 | L100: 62.41962176 | M100: 0 | N100: 239.6837292 | O100: 0 | P100: 0 | Q100: 0 | R100: 0 | S100: 0 | T100: 0 | U100: 0 | V100: 0 | W100: 0 | X100: 0 | Y100: 0
F101: Rate 2 units | G101: MWh | J101: =TRANSPOSE('ARP_Inputs by customer type'!J1103:J1118) -> 0 | K101: 0 | L101: 317.2807996 | M101: 0 | N101: 1046.505638 | O101: 0 | P101: 0 | Q101: 0 | R101: 0 | S101: 0 | T101: 0 | U101: 0 | V101: 0 | W101: 0 | X101: 0 | Y101: 0
F102: Rate 3 units | G102: MWh | J102: =TRANSPOSE('ARP_Inputs by customer type'!J1121:J1136) -> 0 | K102: 0 | L102: 256.6094359 | M102: 0 | N102: 986.3809646 | O102: 0 | P102: 0 | Q102: 0 | R102: 0 | S102: 0 | T102: 0 | U102: 0 | V102: 0 | W102: 0 | X102: 0 | Y102: 0
F103: MPANs | G103: MPANs | J103: =TRANSPOSE('ARP_Inputs by customer type'!J1139:J1154) -> 0 | K103: 0 | L103: 66 | M103: 0 | N103: 14 | O103: 0 | P103: 0 | Q103: 0 | R103: 0 | S103: 0 | T103: 0 | U103: 0 | V103: 0 | W103: 0 | X103: 0 | Y103: 0
F104: Import capacity | G104: kVA | J104: =TRANSPOSE('ARP_Inputs by customer type'!J1157:J1172) -> 0 | K104: 0 | L104: 0 | M104: 0 | N104: 2577 | O104: 0 | P104: 0 | Q104: 0 | R104: 0 | S104: 0 | T104: 0 | U104: 0 | V104: 0 | W104: 0 | X104: 0 | Y104: 0
F105: Exceeded capacity | G105: kVA | J105: =TRANSPOSE('ARP_Inputs by customer type'!J1175:J1190) -> 0 | K105: 0 | L105: 0 | M105: 0 | N105: 0 | O105: 0 | P105: 0 | Q105: 0 | R105: 0 | S105: 0 | T105: 0 | U105: 0 | V105: 0 | W105: 0 | X105: 0 | Y105: 0
F106: Reactive power units | G106: MVArh | J106: =TRANSPOSE('ARP_Inputs by customer type'!J1193:J1208) -> 0 | K106: 0 | L106: 0 | M106: 0 | N106: 76.532 | O106: 0 | P106: 0 | Q106: 0 | R106: 0 | S106: 0 | T106: 0 | U106: 0 | V106: 0 | W106: 0 | X106: 0 | Y106: 0
E108: LDNO LV volume forecast - Residual Band 4
F109: Rate 1 units | G109: MWh | J109: =TRANSPOSE('ARP_Inputs by customer type'!J1213:J1228) -> 0 | K109: 0 | L109: 62.34448398 | M109: 0 | N109: 578.8656912 | O109: 0 | P109: 0 | Q109: 0 | R109: 0 | S109: 0 | T109: 0 | U109: 0 | V109: 0 | W109: 0 | X109: 0 | Y109: 0
F110: Rate 2 units | G110: MWh | J110: =TRANSPOSE('ARP_Inputs by customer type'!J1231:J1246) -> 0 | K110: 0 | L110: 323.2969414 | M110: 0 | N110: 2651.742092 | O110: 0 | P110: 0 | Q110: 0 | R110: 0 | S110: 0 | T110: 0 | U110: 0 | V110: 0 | W110: 0 | X110: 0 | Y110: 0
F111: Rate 3 units | G111: MWh | J111: =TRANSPOSE('ARP_Inputs by customer type'!J1249:J1264) -> 0 | K111: 0 | L111: 259.9625062 | M111: 0 | N111: 2596.492062 | O111: 0 | P111: 0 | Q111: 0 | R111: 0 | S111: 0 | T111: 0 | U111: 0 | V111: 0 | W111: 0 | X111: 0 | Y111: 0
F112: MPANs | G112: MPANs | J112: =TRANSPOSE('ARP_Inputs by customer type'!J1267:J1282) -> 0 | K112: 0 | L112: 32 | M112: 0 | N112: 9 | O112: 0 | P112: 0 | Q112: 0 | R112: 0 | S112: 0 | T112: 0 | U112: 0 | V112: 0 | W112: 0 | X112: 0 | Y112: 0
F113: Import capacity | G113: kVA | J113: =TRANSPOSE('ARP_Inputs by customer type'!J1285:J1300) -> 0 | K113: 0 | L113: 0 | M113: 0 | N113: 2888 | O113: 0 | P113: 0 | Q113: 0 | R113: 0 | S113: 0 | T113: 0 | U113: 0 | V113: 0 | W113: 0 | X113: 0 | Y113: 0
F114: Exceeded capacity | G114: kVA | J114: =TRANSPOSE('ARP_Inputs by customer type'!J1303:J1318) -> 0 | K114: 0 | L114: 0 | M114: 0 | N114: 0 | O114: 0 | P114: 0 | Q114: 0 | R114: 0 | S114: 0 | T114: 0 | U114: 0 | V114: 0 | W114: 0 | X114: 0 | Y114: 0
F115: Reactive power units | G115: MVArh | J115: =TRANSPOSE('ARP_Inputs by customer type'!J1321:J1336) -> 0 | K115: 0 | L115: 0 | M115: 0 | N115: 70.558 | O115: 0 | P115: 0 | Q115: 0 | R115: 0 | S115: 0 | T115: 0 | U115: 0 | V115: 0 | W115: 0 | X115: 0 | Y115: 0
D117: Volumes for LNDO HV tariffs are entered here, separately for each residual band. | I117: > | AQ117: Paragraph 52
E119: LDNO HV volume forecast - No Residual
F120: Rate 1 units | G120: MWh | J120: =TRANSPOSE('ARP_Inputs by customer type'!J1341:J1356) -> 0 | K120: 0 | L120: 0 | M120: 0 | N120: 0 | O120: 0 | P120: 0 | Q120: 0 | R120: 98.54483415 | S120: 0 | T120: 47.366 | U120: 0 | V120: 0 | W120: 0 | X120: 122.746 | Y120: 0
F121: Rate 2 units | G121: MWh | J121: =TRANSPOSE('ARP_Inputs by customer type'!J1359:J1374) -> 0 | K121: 0 | L121: 0 | M121: 0 | N121: 0 | O121: 0 | P121: 0 | Q121: 0 | R121: 472.0442685 | S121: 0 | T121: 262.865 | U121: 0 | V121: 0 | W121: 0 | X121: 497.669 | Y121: 0
F122: Rate 3 units | G122: MWh | J122: =TRANSPOSE('ARP_Inputs by customer type'!J1377:J1392) -> 0 | K122: 0 | L122: 0 | M122: 0 | N122: 0 | O122: 0 | P122: 0 | Q122: 0 | R122: 208.2744828 | S122: 0 | T122: 292.089 | U122: 0 | V122: 0 | W122: 0 | X122: 505.047 | Y122: 0
F123: MPANs | G123: MPANs | J123: =TRANSPOSE('ARP_Inputs by customer type'!J1395:J1410) -> 0 | K123: 0 | L123: 0 | M123: 0 | N123: 0 | O123: 0 | P123: 0 | Q123: 0 | R123: 54 | S123: 0 | T123: 4 | U123: 0 | V123: 0 | W123: 0 | X123: 1 | Y123: 0
F124: Import capacity | G124: kVA | J124: =TRANSPOSE('ARP_Inputs by customer type'!J1413:J1428) -> 0 | K124: 0 | L124: 0 | M124: 0 | N124: 0 | O124: 0 | P124: 0 | Q124: 0 | R124: 0 | S124: 0 | T124: 0 | U124: 0 | V124: 0 | W124: 0 | X124: 0 | Y124: 0
F125: Exceeded capacity | G125: kVA | J125: =TRANSPOSE('ARP_Inputs by customer type'!J1431:J1446) -> 0 | K125: 0 | L125: 0 | M125: 0 | N125: 0 | O125: 0 | P125: 0 | Q125: 0 | R125: 0 | S125: 0 | T125: 0 | U125: 0 | V125: 0 | W125: 0 | X125: 0 | Y125: 0
F126: Reactive power units | G126: MVArh | J126: =TRANSPOSE('ARP_Inputs by customer type'!J1449:J1464) -> 0 | K126: 0 | L126: 0 | M126: 0 | N126: 0 | O126: 0 | P126: 0 | Q126: 0 | R126: 0 | S126: 0 | T126: 74.465 | U126: 0 | V126: 0 | W126: 0 | X126: 399.52 | Y126: 0
E128: LDNO HV volume forecast - Residual Band 1
F129: Rate 1 units | G129: MWh | J129: =TRANSPOSE('ARP_Inputs by customer type'!J1469:J1484) -> 16244.06642 | K129: 0 | L129: 181.9761529 | M129: 0 | N129: 324.2429003 | O129: 0 | P129: 173.4767683 | Q129: 9.271428571 | R129: 0 | S129: 0 | T129: 0 | U129: 0 | V129: 0 | W129: 0 | X129: 0 | Y129: 0
F130: Rate 2 units | G130: MWh | J130: =TRANSPOSE('ARP_Inputs by customer type'!J1487:J1502) -> 55415.25811 | K130: 0 | L130: 949.1240056 | M130: 0 | N130: 1417.191686 | O130: 0 | P130: 761.8387172 | Q130: 113.3077282 | R130: 0 | S130: 0 | T130: 0 | U130: 0 | V130: 0 | W130: 0 | X130: 0 | Y130: 0
F131: Rate 3 units | G131: MWh | J131: =TRANSPOSE('ARP_Inputs by customer type'!J1505:J1520) -> 50907.20679 | K131: 0 | L131: 765.1743585 | M131: 0 | N131: 1353.35151 | O131: 0 | P131: 746.5764264 | Q131: 137.4635853 | R131: 0 | S131: 0 | T131: 0 | U131: 0 | V131: 0 | W131: 0 | X131: 0 | Y131: 0
F132: MPANs | G132: MPANs | J132: =TRANSPOSE('ARP_Inputs by customer type'!J1523:J1538) -> 41239 | K132: 0 | L132: 204 | M132: 0 | N132: 37 | O132: 0 | P132: 4 | Q132: 66 | R132: 0 | S132: 0 | T132: 0 | U132: 0 | V132: 0 | W132: 0 | X132: 0 | Y132: 0
F133: Import capacity | G133: kVA | J133: =TRANSPOSE('ARP_Inputs by customer type'!J1541:J1556) -> 0 | K133: 0 | L133: 0 | M133: 0 | N133: 2163 | O133: 0 | P133: 1084 | Q133: 0 | R133: 0 | S133: 0 | T133: 0 | U133: 0 | V133: 0 | W133: 0 | X133: 0 | Y133: 0
F134: Exceeded capacity | G134: kVA | J134: =TRANSPOSE('ARP_Inputs by customer type'!J1559:J1574) -> 0 | K134: 0 | L134: 0 | M134: 0 | N134: 95 | O134: 0 | P134: 0 | Q134: 0 | R134: 0 | S134: 0 | T134: 0 | U134: 0 | V134: 0 | W134: 0 | X134: 0 | Y134: 0
F135: Reactive power units | G135: MVArh | J135: =TRANSPOSE('ARP_Inputs by customer type'!J1577:J1592) -> 0 | K135: 0 | L135: 0 | M135: 0 | N135: 613.156 | O135: 0 | P135: 192.51 | Q135: 0 | R135: 0 | S135: 0 | T135: 0 | U135: 0 | V135: 0 | W135: 0 | X135: 0 | Y135: 0
E137: LDNO HV volume forecast - Residual Band 2
F138: Rate 1 units | G138: MWh | J138: =TRANSPOSE('ARP_Inputs by customer type'!J1597:J1612) -> 0 | K138: 0 | L138: 185.3728647 | M138: 0 | N138: 1672.803784 | O138: 42.61611591 | P138: 884.3606002 | Q138: 0 | R138: 0 | S138: 0 | T138: 0 | U138: 0 | V138: 0 | W138: 0 | X138: 0 | Y138: 0
F139: Rate 2 units | G139: MWh | J139: =TRANSPOSE('ARP_Inputs by customer type'!J1615:J1630) -> 0 | K139: 0 | L139: 947.7328578 | M139: 0 | N139: 7289.29594 | O139: 186.301609 | P139: 4167.42421 | Q139: 0 | R139: 0 | S139: 0 | T139: 0 | U139: 0 | V139: 0 | W139: 0 | X139: 0 | Y139: 0
F140: Rate 3 units | G140: MWh | J140: =TRANSPOSE('ARP_Inputs by customer type'!J1633:J1648) -> 0 | K140: 0 | L140: 715.6996843 | M140: 0 | N140: 6643.555381 | O140: 180.9085619 | P140: 4144.63778 | Q140: 0 | R140: 0 | S140: 0 | T140: 0 | U140: 0 | V140: 0 | W140: 0 | X140: 0 | Y140: 0
F141: MPANs | G141: MPANs | J141: =TRANSPOSE('ARP_Inputs by customer type'!J1651:J1666) -> 0 | K141: 0 | L141: 150 | M141: 0 | N141: 106 | O141: 2 | P141: 10 | Q141: 0 | R141: 0 | S141: 0 | T141: 0 | U141: 0 | V141: 0 | W141: 0 | X141: 0 | Y141: 0
F142: Import capacity | G142: kVA | J142: =TRANSPOSE('ARP_Inputs by customer type'!J1669:J1684) -> 0 | K142: 0 | L142: 0 | M142: 0 | N142: 12820 | O142: 290 | P142: 6759 | Q142: 0 | R142: 0 | S142: 0 | T142: 0 | U142: 0 | V142: 0 | W142: 0 | X142: 0 | Y142: 0
F143: Exceeded capacity | G143: kVA | J143: =TRANSPOSE('ARP_Inputs by customer type'!J1687:J1702) -> 0 | K143: 0 | L143: 0 | M143: 0 | N143: 0 | O143: 0 | P143: 0 | Q143: 0 | R143: 0 | S143: 0 | T143: 0 | U143: 0 | V143: 0 | W143: 0 | X143: 0 | Y143: 0
F144: Reactive power units | G144: MVArh | J144: =TRANSPOSE('ARP_Inputs by customer type'!J1705:J1720) -> 0 | K144: 0 | L144: 0 | M144: 0 | N144: 769.776 | O144: 48.858 | P144: 367.234 | Q144: 0 | R144: 0 | S144: 0 | T144: 0 | U144: 0 | V144: 0 | W144: 0 | X144: 0 | Y144: 0
E146: LDNO HV volume forecast - Residual Band 3
F147: Rate 1 units | G147: MWh | J147: =TRANSPOSE('ARP_Inputs by customer type'!J1725:J1740) -> 0 | K147: 0 | L147: 257.1795732 | M147: 0 | N147: 1420.250036 | O147: 0 | P147: 958.5728137 | Q147: 0 | R147: 0 | S147: 0 | T147: 0 | U147: 0 | V147: 0 | W147: 0 | X147: 0 | Y147: 0
F148: Rate 2 units | G148: MWh | J148: =TRANSPOSE('ARP_Inputs by customer type'!J1743:J1758) -> 0 | K148: 0 | L148: 1330.853802 | M148: 0 | N148: 6088.181595 | O148: 0 | P148: 4183.885134 | Q148: 0 | R148: 0 | S148: 0 | T148: 0 | U148: 0 | V148: 0 | W148: 0 | X148: 0 | Y148: 0
F149: Rate 3 units | G149: MWh | J149: =TRANSPOSE('ARP_Inputs by customer type'!J1761:J1776) -> 0 | K149: 0 | L149: 1085.633748 | M149: 0 | N149: 5645.063962 | O149: 0 | P149: 4605.628423 | Q149: 0 | R149: 0 | S149: 0 | T149: 0 | U149: 0 | V149: 0 | W149: 0 | X149: 0 | Y149: 0
F150: MPANs | G150: MPANs | J150: =TRANSPOSE('ARP_Inputs by customer type'!J1779:J1794) -> 0 | K150: 0 | L150: 193 | M150: 0 | N150: 55 | O150: 0 | P150: 4 | Q150: 0 | R150: 0 | S150: 0 | T150: 0 | U150: 0 | V150: 0 | W150: 0 | X150: 0 | Y150: 0
F151: Import capacity | G151: kVA | J151: =TRANSPOSE('ARP_Inputs by customer type'!J1797:J1812) -> 0 | K151: 0 | L151: 0 | M151: 0 | N151: 9987 | O151: 0 | P151: 5100 | Q151: 0 | R151: 0 | S151: 0 | T151: 0 | U151: 0 | V151: 0 | W151: 0 | X151: 0 | Y151: 0
F152: Exceeded capacity | G152: kVA | J152: =TRANSPOSE('ARP_Inputs by customer type'!J1815:J1830) -> 0 | K152: 0 | L152: 0 | M152: 0 | N152: 0 | O152: 0 | P152: 0 | Q152: 0 | R152: 0 | S152: 0 | T152: 0 | U152: 0 | V152: 0 | W152: 0 | X152: 0 | Y152: 0
F153: Reactive power units | G153: MVArh | J153: =TRANSPOSE('ARP_Inputs by customer type'!J1833:J1848) -> 0 | K153: 0 | L153: 0 | M153: 0 | N153: 542.872 | O153: 0 | P153: 4.326 | Q153: 0 | R153: 0 | S153: 0 | T153: 0 | U153: 0 | V153: 0 | W153: 0 | X153: 0 | Y153: 0
E155: LDNO HV volume forecast - Residual Band 4
F156: Rate 1 units | G156: MWh | J156: =TRANSPOSE('ARP_Inputs by customer type'!J1853:J1868) -> 0 | K156: 0 | L156: 354.1166783 | M156: 0 | N156: 5607.432279 | O156: 1843.338884 | P156: 725.6008178 | Q156: 0 | R156: 0 | S156: 0 | T156: 0 | U156: 0 | V156: 0 | W156: 0 | X156: 0 | Y156: 0
F157: Rate 2 units | G157: MWh | J157: =TRANSPOSE('ARP_Inputs by customer type'!J1871:J1886) -> 0 | K157: 0 | L157: 1836.535658 | M157: 0 | N157: 24660.76078 | O157: 8365.398391 | P157: 3214.929939 | Q157: 0 | R157: 0 | S157: 0 | T157: 0 | U157: 0 | V157: 0 | W157: 0 | X157: 0 | Y157: 0
F158: Rate 3 units | G158: MWh | J158: =TRANSPOSE('ARP_Inputs by customer type'!J1889:J1904) -> 0 | K158: 0 | L158: 1474.605939 | M158: 0 | N158: 23702.92715 | O158: 7158.690438 | P158: 3280.246371 | Q158: 0 | R158: 0 | S158: 0 | T158: 0 | U158: 0 | V158: 0 | W158: 0 | X158: 0 | Y158: 0
F159: MPANs | G159: MPANs | J159: =TRANSPOSE('ARP_Inputs by customer type'!J1907:J1922) -> 0 | K159: 0 | L159: 133 | M159: 0 | N159: 111 | O159: 22 | P159: 3 | Q159: 0 | R159: 0 | S159: 0 | T159: 0 | U159: 0 | V159: 0 | W159: 0 | X159: 0 | Y159: 0
F160: Import capacity | G160: kVA | J160: =TRANSPOSE('ARP_Inputs by customer type'!J1925:J1940) -> 0 | K160: 0 | L160: 0 | M160: 0 | N160: 52867 | O160: 14471 | P160: 6600 | Q160: 0 | R160: 0 | S160: 0 | T160: 0 | U160: 0 | V160: 0 | W160: 0 | X160: 0 | Y160: 0
F161: Exceeded capacity | G161: kVA | J161: =TRANSPOSE('ARP_Inputs by customer type'!J1943:J1958) -> 0 | K161: 0 | L161: 0 | M161: 0 | N161: 14.66666667 | O161: 0 | P161: 0 | Q161: 0 | R161: 0 | S161: 0 | T161: 0 | U161: 0 | V161: 0 | W161: 0 | X161: 0 | Y161: 0
F162: Reactive power units | G162: MVArh | J162: =TRANSPOSE('ARP_Inputs by customer type'!J1961:J1976) -> 0 | K162: 0 | L162: 0 | M162: 0 | N162: 3518.704 | O162: 3178.464 | P162: 14.748 | Q162: 0 | R162: 0 | S162: 0 | T162: 0 | U162: 0 | V162: 0 | W162: 0 | X162: 0 | Y162: 0
E164: 'Designated Property' MPANs with EDCM-level LDNO boundaries | G164: MPANs | I164: > | J164: =TRANSPOSE('ARP_Inputs by customer type'!J1981:J1996) -> 735 | K164: 0 | L164: 0 | M164: 2 | N164: 2 | O164: 4 | P164: 3 | Q164: 0 | R164: 0 | S164: 3 | T164: 10 | U164: 6 | V164: 4 | W164: 0 | X164: 1 | Y164: 0 | AQ164: Paragraphs 53A, 53B, 101 and 102
C166: =INDEX('Version control'!$H$36:$H$62,MATCH($A$1,'Version control'!$F$36:$F$62,0),1)&"-C: Non-Domestic Aggregated (Related MPAN) distribution by bands" -> Section 501-C: Non-Domestic Aggregated (Related MPAN) distribution by bands
D168: The split of Non-Domestic Aggregated (Related MPAN) units by residual band is used to allocate residual revenue | I168: > | AQ168: Paragraph 92 (a)
D169: between bands to be recovered from Non-Domestic Aggregated customers.
E171: All the way non-domestic aggregated (related MPAN) distribution by bands | J171: No residual | K171: Band 1 | L171: Band 2 | M171: Band 3 | N171: Band 4
F172: Rate 1 units | G172: % | J172: =TRANSPOSE('ARP_Inputs by customer type'!J2006:J2010) -> 0 | K172: 0.0862479926 | L172: 0.1624965368 | M172: 0.1778740076 | N172: 0.5733814631
F173: Rate 2 units | G173: % | J173: =TRANSPOSE('ARP_Inputs by customer type'!J2013:J2017) -> 0 | K173: 0.0862479926 | L173: 0.1624965368 | M173: 0.1778740076 | N173: 0.5733814631
F174: Rate 3 units | G174: % | J174: =TRANSPOSE('ARP_Inputs by customer type'!J2020:J2024) -> 0 | K174: 0.0862479926 | L174: 0.1624965368 | M174: 0.1778740076 | N174: 0.5733814631
E176: LDNO LV non-domestic aggregated (related MPAN) distribution by bands | J176: No residual | K176: Band 1 | L176: Band 2 | M176: Band 3 | N176: Band 4
F177: Rate 1 units | G177: % | J177: =TRANSPOSE('ARP_Inputs by customer type'!J2029:J2033) -> 0 | K177: 0.3565806564 | L177: 0.2068867965 | M177: 0.2166838091 | N177: 0.2198487379
F178: Rate 2 units | G178: % | J178: =TRANSPOSE('ARP_Inputs by customer type'!J2036:J2040) -> 0 | K178: 0.3565806564 | L178: 0.2068867965 | M178: 0.2166838091 | N178: 0.2198487379
F179: Rate 3 units | G179: % | J179: =TRANSPOSE('ARP_Inputs by customer type'!J2043:J2047) -> 0 | K179: 0.3565806564 | L179: 0.2068867965 | M179: 0.2166838091 | N179: 0.2198487379
E181: LDNO HV non-domestic aggregated (related MPAN) distribution by bands | J181: No residual | K181: Band 1 | L181: Band 2 | M181: Band 3 | N181: Band 4
F182: Rate 1 units | G182: % | J182: =TRANSPOSE('ARP_Inputs by customer type'!J2052:J2056) -> 0 | K182: 0.1880477505 | L182: 0.1833403839 | M182: 0.2651394002 | N182: 0.3634724654
F183: Rate 2 units | G183: % | J183: =TRANSPOSE('ARP_Inputs by customer type'!J2059:J2063) -> 0 | K183: 0.1880477505 | L183: 0.1833403839 | M183: 0.2651394002 | N183: 0.3634724654
F184: Rate 3 units | G184: % | J184: =TRANSPOSE('ARP_Inputs by customer type'!J2066:J2070) -> 0 | K184: 0.1880477505 | L184: 0.1833403839 | M184: 0.2651394002 | N184: 0.3634724654
C186: =INDEX('Version control'!$H$36:$H$62,MATCH($A$1,'Version control'!$F$36:$F$62,0),1)&"-D: Service model asset values" -> Section 501-D: Service model asset values
D188: Service model costs should be entered per customer or per MWh for unmetered customers
I189: > | AQ189: Paragraphs 32 to 37
E190: LV customer service model asset values | G190: £ per MPAN | J190: =TRANSPOSE('ARP_Inputs by customer type'!J2079:J2094) -> 377.7 | K190: 0 | L190: 508.75 | M190: 0 | N190: 2380 | O190: 840 | P190: 0 | Q190: 0 | R190: 0 | S190: 0 | T190: 0 | U190: 0 | V190: 0 | W190: 0 | X190: 0 | Y190: 0
E191: HV customer service model asset values | G191: £ per MPAN | J191: =TRANSPOSE('ARP_Inputs by customer type'!J2099:J2114) -> 0 | K191: 0 | L191: 0 | M191: 0 | N191: 0 | O191: 0 | P191: 12718.10554 | Q191: 0 | R191: 0 | S191: 0 | T191: 0 | U191: 0 | V191: 0 | W191: 0 | X191: 9287 | Y191: 9287
E193: LV UMS customer service model asset values | G193: £/MWh/year | I193: > | J193: =TRANSPOSE('ARP_Inputs by customer type'!J2119:J2134) -> 0 | K193: 0 | L193: 0 | M193: 0 | N193: 0 | O193: 0 | P193: 0 | Q193: 120.51 | R193: 0 | S193: 0 | T193: 0 | U193: 0 | V193: 0 | W193: 0 | X193: 0 | Y193: 0 | AQ193: Paragraph 36
B195: Checks
E197: Check that all the way non-domestic aggregated (related MPAN) distribution by bands adds to 100%
F198: Rate 1 units | G198: TRUE / FALSE | H198: =SUM(J172:N172)=1 -> TRUE
F199: Rate 2 units | G199: TRUE / FALSE | H199: =SUM(J173:N173)=1 -> TRUE
F200: Rate 3 units | G200: TRUE / FALSE | H200: TRUE
E202: Check that LDNO LV non-domestic aggregated (related MPAN) distribution by bands adds to 100%
F203: Rate 1 units | G203: TRUE / FALSE | H203: =SUM(J177:N177)=1 -> TRUE
F204: Rate 2 units | G204: TRUE / FALSE | H204: =SUM(J178:N178)=1 -> TRUE
F205: Rate 3 units | G205: TRUE / FALSE | H205: TRUE
E207: Check that LDNO HV non-domestic aggregated (related MPAN) distribution by bands adds to 100%
F208: Rate 1 units | G208: TRUE / FALSE | H208: =SUM(J182:N182)=1 -> TRUE
F209: Rate 2 units | G209: TRUE / FALSE | H209: =SUM(J183:N183)=1 -> TRUE
F210: Rate 3 units | G210: TRUE / FALSE | H210: TRUE
E212: Checks on non-domestic aggregated (related MPAN) distributions | G212: number of issues | H212: =COUNTIF(H198:H210,FALSE) -> 0
E214: Check for error values | G214: number of issues | H214: =SUM(IF(ISERROR(H16:Y194), 1)) -> 0
E216: Summary of checks | G216: number of issues | H216: =H212 + H214 -> 0
B218: End of sheet

Sheet Inputs by network level
A1: =MID(CELL("filename",A1),FIND("]",CELL("filename",A1))+1,255) -> Inputs by network level
A2: =Cover!D21&" - "&Cover!D23 -> SP Manweb - One
A3: =Cover!D2&" - "&Cover!D8&" v"&Cover!D10&" - "&Cover!D19 -> ARP model - Release for charge setting v7 - 2024/25
A4: =H59 & IF(H59 = 1, " issue", " issues") &" identified in checks on this sheet" -> 0 issues identified in checks on this sheet
B5: Click here to return to model map | G5: Units | H5: Constants | J5: Transmission exit | K5: GSPs | L5: 132kV | M5: 132kV/EHV | N5: EHV | O5: EHV/HV | P5: 132kV/HV | Q5: HV | R5: HV/LV | S5: LV circuits | U5: Legal text reference
B7: Description
C9: This sheet sets out the inputs by network level to be filled in by DNOs.
E11: Charging year selected | G11: year | H11: =charging_year_selected -> 2024/25
E12: Historic / current / forecast | G12: text | H12: ='ARP_User control'!$H$36 -> Current
B14: Inputs by network level
C16: =INDEX('Version control'!$H$36:$H$62,MATCH($A$1,'Version control'!$F$36:$F$62,0),1)&"-A: Network and load inputs" -> Section 502-A: Network and load inputs
E18: Diversity allowance between top and bottom of network level | G18: % | I18: > | K18: ='ARP_Inputs by network level'!J20 -> 0.025 | L18: ='ARP_Inputs by network level'!J21 -> 0.1 | N18: ='ARP_Inputs by network level'!J23 -> 0.26 | Q18: ='ARP_Inputs by network level'!J26 -> 0.2 | U18: Paragraphs 26 to 28
E20: Proportion of load going through 132kV/HV direct transformation | G20: % | P20: ='ARP_Inputs by network level'!J39 -> 0
E22: Loss adjustment factors to transmission | G22: scalar | I22: > | K22: ='ARP_Inputs by network level'!J48 -> 1 | L22: ='ARP_Inputs by network level'!J49 -> 1.004 | M22: ='ARP_Inputs by network level'!J50 -> 1.012 | N22: ='ARP_Inputs by network level'!J51 -> 1.017 | O22: ='ARP_Inputs by network level'!J52 -> 1.025 | Q22: ='ARP_Inputs by network level'!J54 -> 1.036 | R22: ='ARP_Inputs by network level'!J55 -> 1.059 | S22: ='ARP_Inputs by network level'!J56 -> 1.115 | U22: Paragraph 47
E24: Average kVAr by kVA, by network level | G24: kVAr/kVA | I24: > | K24: ='ARP_Inputs by network level'!J62 -> 0.1973565628 | L24: ='ARP_Inputs by network level'!J63 -> 0.1973565628 | M24: ='ARP_Inputs by network level'!J64 -> 0.3062997976 | N24: ='ARP_Inputs by network level'!J65 -> 0.3062997976 | O24: ='ARP_Inputs by network level'!J66 -> 0.3377818202 | P24: ='ARP_Inputs by network level'!J67 -> 0.3377818202 | Q24: ='ARP_Inputs by network level'!J68 -> 0.3377818202 | R24: ='ARP_Inputs by network level'!J69 -> 0.3377818202 | S24: ='ARP_Inputs by network level'!J70 -> 0.3377818202 | U24: Paragraphs 50 to 51
C26: =INDEX('Version control'!$H$36:$H$62,MATCH($A$1,'Version control'!$F$36:$F$62,0),1)&"-B: Customer contributions under current connection charging policy" -> Section 502-B: Customer contributions under current connection charging policy
I27: > | U27: Paragraphs 29 to 31
E28: Customer contributions under current connection charging policy
F29: LV network | G29: % | L29: ='ARP_Inputs by network level'!J78 -> 0 | M29: ='ARP_Inputs by network level'!J79 -> 0 | N29: ='ARP_Inputs by network level'!J80 -> 0 | O29: ='ARP_Inputs by network level'!J81 -> 0 | P29: ='ARP_Inputs by network level'!J82 -> 0 | Q29: ='ARP_Inputs by network level'!J83 -> 0.3263512902 | R29: ='ARP_Inputs by network level'!J84 -> 0.7109728507 | S29: ='ARP_Inputs by network level'!J85 -> 0.9309486908
F30: LV substation | G30: % | L30: ='ARP_Inputs by network level'!J89 -> 0 | M30: ='ARP_Inputs by network level'!J90 -> 0 | N30: ='ARP_Inputs by network level'!J91 -> 0 | O30: ='ARP_Inputs by network level'!J92 -> 0 | P30: ='ARP_Inputs by network level'!J93 -> 0 | Q30: ='ARP_Inputs by network level'!J94 -> 0.3263512902 | R30: ='ARP_Inputs by network level'!J95 -> 0.7109728507
F31: HV network | G31: % | L31: ='ARP_Inputs by network level'!J100 -> 0 | M31: ='ARP_Inputs by network level'!J101 -> 0 | N31: ='ARP_Inputs by network level'!J102 -> 0.2944301994 | O31: ='ARP_Inputs by network level'!J103 -> 0.1431705882 | P31: ='ARP_Inputs by network level'!J104 -> 0 | Q31: ='ARP_Inputs by network level'!J105 -> 0.7342904029
F32: HV substation | G32: % | L32: ='ARP_Inputs by network level'!J111 -> 0 | M32: ='ARP_Inputs by network level'!J112 -> 0 | N32: ='ARP_Inputs by network level'!J113 -> 0.2944301994 | O32: ='ARP_Inputs by network level'!J114 -> 0.1431705882
C34: =INDEX('Version control'!$H$36:$H$62,MATCH($A$1,'Version control'!$F$36:$F$62,0),1)&"-C: DRM asset costs" -> Section 502-C: DRM asset costs
E36: Gross asset cost by network level | G36: £ | I36: > | L36: ='ARP_Inputs by network level'!J125 -> 209465521.7 | M36: ='ARP_Inputs by network level'!J126 -> 17562013.75 | N36: ='ARP_Inputs by network level'!J127 -> 179285414.1 | O36: ='ARP_Inputs by network level'!J128 -> 29777427.97 | P36: ='ARP_Inputs by network level'!J129 -> 0 | Q36: ='ARP_Inputs by network level'!J130 -> 244397297.7 | R36: ='ARP_Inputs by network level'!J131 -> 95589313.07 | S36: ='ARP_Inputs by network level'!J132 -> 58531202.48
C38: =INDEX('Version control'!$H$36:$H$62,MATCH($A$1,'Version control'!$F$36:$F$62,0),1)&"-D: Peaking probabilities by network level" -> Section 502-D: Peaking probabilities by network level
D40: Red, Amber & Green peaking probabilities must sum to 100%, except for unused network levels, which should sum to 0%
E42: Peaking probabilities by network level | I42: > | U42: Paragraphs 48 to 49
F43: Red | G43: % | K43: ='ARP_Inputs by network level'!J140 -> 0.6218466212 | L43: ='ARP_Inputs by network level'!J141 -> 0.6218466212 | M43: ='ARP_Inputs by network level'!J142 -> 0.3577754549 | N43: ='ARP_Inputs by network level'!J143 -> 0.3577754549 | O43: ='ARP_Inputs by network level'!J144 -> 0.2808821019 | P43: ='ARP_Inputs by network level'!J145 -> 0 | Q43: ='ARP_Inputs by network level'!J146 -> 0.2808821019 | R43: ='ARP_Inputs by network level'!J147 -> 0.2808821019 | S43: ='ARP_Inputs by network level'!J148 -> 0.2808821019
F44: Amber | G44: % | K44: ='ARP_Inputs by network level'!J152 -> 0.3781533788 | L44: ='ARP_Inputs by network level'!J153 -> 0.3781533788 | M44: ='ARP_Inputs by network level'!J154 -> 0.5568411963 | N44: ='ARP_Inputs by network level'!J155 -> 0.5568411963 | O44: ='ARP_Inputs by network level'!J156 -> 0.6141894308 | P44: ='ARP_Inputs by network level'!J157 -> 0 | Q44: ='ARP_Inputs by network level'!J158 -> 0.6141894308 | R44: ='ARP_Inputs by network level'!J159 -> 0.6141894308 | S44: ='ARP_Inputs by network level'!J160 -> 0.6141894308
F45: Green | G45: % | K45: ='ARP_Inputs by network level'!J164 -> 0 | L45: ='ARP_Inputs by network level'!J165 -> 0 | M45: ='ARP_Inputs by network level'!J166 -> 0.08538334881 | N45: ='ARP_Inputs by network level'!J167 -> 0.08538334881 | O45: ='ARP_Inputs by network level'!J168 -> 0.1049284673 | P45: ='ARP_Inputs by network level'!J169 -> 0 | Q45: ='ARP_Inputs by network level'!J170 -> 0.1049284673 | R45: ='ARP_Inputs by network level'!J171 -> 0.1049284673 | S45: ='ARP_Inputs by network level'!J172 -> 0.1049284673
F46: Black | G46: % | K46: ='ARP_Inputs by network level'!J176 -> 0.5425226498 | L46: ='ARP_Inputs by network level'!J177 -> 0.5425226498 | M46: ='ARP_Inputs by network level'!J178 -> 0.2140901385 | N46: ='ARP_Inputs by network level'!J179 -> 0.2140901385 | O46: ='ARP_Inputs by network level'!J180 -> 0.1989530189 | P46: ='ARP_Inputs by network level'!J181 -> 0 | Q46: ='ARP_Inputs by network level'!J182 -> 0.1989530189 | R46: ='ARP_Inputs by network level'!J183 -> 0.1989530189 | S46: ='ARP_Inputs by network level'!J184 -> 0.1989530189
B48: Checks
E50: Check for error values | G50: number of issues | H50: =SUM(IF(ISERROR(H18:AA47), 1)) -> 0
E52: Check that loss adjustment factor = 1 at grid supply point | G52: number of issues | H52: =IF(K22 = 1, 0, 1) -> 0
E54: Peaking probabilities check
E55: 0% peaking probabilities are permitted for 132kV, 132kV/EHV & 132kV/HV network levels, which do not exist for all DNOs
F56: General | G56: number of issues | H56: =SUM(K56:S56) -> 0 | K56: =IF(ABS(SUM(K43:K45) - 1) < 10^-check_decimals, 0, 1) -> 0 | N56: =IF(ABS(SUM(N43:N45) - 1) < 10^-check_decimals, 0, 1) -> 0 | O56: =IF(ABS(SUM(O43:O45) - 1) < 10^-check_decimals, 0, 1) -> 0 | Q56: =IF(ABS(SUM(Q43:Q45) - 1) < 10^-check_decimals, 0, 1) -> 0 | R56: =IF(ABS(SUM(R43:R45) - 1) < 10^-check_decimals, 0, 1) -> 0 | S56: =IF(ABS(SUM(S43:S45) - 1) < 10^-check_decimals, 0, 1) -> 0
F57: 132kV | G57: number of issues | H57: =SUM(K57:S57) -> 0 | L57: =IF(OR(ABS(SUM(L43:L45) - 1) < 10^-check_decimals, ABS(SUM(L43:L45) - 0) < 10^-check_decimals), 0, 1) -> 0 | M57: =IF(OR(ABS(SUM(M43:M45) - 1) < 10^-check_decimals, ABS(SUM(M43:M45) - 0) < 10^-check_decimals), 0, 1) -> 0 | P57: =IF(OR(ABS(SUM(P43:P45) - 1) < 10^-check_decimals, ABS(SUM(P43:P45) - 0) < 10^-check_decimals), 0, 1) -> 0
E59: Summary of checks | G59: number of issues | H59: =SUM(H50:H57) -> 0
B61: End of sheet

Sheet General inputs
A1: =MID(CELL("filename",A1),FIND("]",CELL("filename",A1))+1,255) -> General inputs
A2: =Cover!D21&" - "&Cover!D23 -> SP Manweb - One
A3: =Cover!D2&" - "&Cover!D8&" v"&Cover!D10&" - "&Cover!D19 -> ARP model - Release for charge setting v7 - 2024/25
A4: =H118 & IF(H118 = 1, " issue", " issues") &" identified in checks on this sheet" -> 0 issues identified in checks on this sheet
B5: Click here to return to model map | G5: Units | H5: Constants | J5: Legal text reference
B7: Description
C9: This sheet sets out the other inputs to be filled in by DNOs
E11: Charging year selected | G11: year | H11: =charging_year_selected -> 2024/25
E12: Historic / current / forecast | G12: text | H12: ='ARP_User control'!$H$36 -> Current
B14: General inputs
C16: =INDEX('Version control'!$H$36:$H$62,MATCH($A$1,'Version control'!$F$36:$F$62,0),1)&"-A: Inputs by distribution timeband" -> Section 503-A: Inputs by distribution timeband
D18: Typical annual hours by special distribution time band | I18: > | J18: Paragraphs 40 to 41
E19: Black | G19: hours per year | H19: ='ARP_General inputs'!J19 -> 258
E20: Yellow | G20: hours per year | H20: ='ARP_General inputs'!J20 -> 3942.5
E21: Green | G21: hours per year | H21: ='ARP_General inputs'!J21 -> 4559.5
D23: Typical annual hours by distribution time band | I23: > | J23: Paragraphs 40 to 41
E24: Red | G24: hours per year | H24: ='ARP_General inputs'!J24 -> 783
E25: Amber | G25: hours per year | H25: ='ARP_General inputs'!J25 -> 3417.5
E26: Green | G26: hours per year | H26: ='ARP_General inputs'!J26 -> 4559.5
C28: =INDEX('Version control'!$H$36:$H$62,MATCH($A$1,'Version control'!$F$36:$F$62,0),1)&"-B: LDNO discount inputs" -> Section 503-B: LDNO discount inputs
D30: Inputs sourced from the PCDM
D32: Embedded network (LDNO) discount percentages | I32: > | J32: Paragraph 53
E33: LDNO LV: LV user | G33: % | H33: ='ARP_General inputs'!J33 -> 0.3944551209
E34: LDNO HV: LV user | G34: % | H34: ='ARP_General inputs'!J34 -> 0.5604265994
E35: LDNO HV: LV Sub user | G35: % | H35: ='ARP_General inputs'!J35 -> 0.2724475054
E36: LDNO HV: HV user | G36: % | H36: ='ARP_General inputs'!J36 -> 0.1787927473
C38: =INDEX('Version control'!$H$36:$H$62,MATCH($A$1,'Version control'!$F$36:$F$62,0),1)&"-C: CDCM target revenue" -> Section 503-C: CDCM target revenue
D40: The contents of this table are defined in Paragraph 1.5 of Schedule 15 (Table 1) | I40: > | J40: Paragraph 54, Schedule 15 Table 1
D41: The only rows used as inputs to the model itself are "Latest forecast of CDCM Revenue" and "Pass-through… Adjustment" items.
E43: Base Demand Revenue before inflation | G43: £ | H43: ='ARP_General inputs'!J43 -> 435292920
E44: Annual Iteration adjustment before inflation | G44: £ | H44: ='ARP_General inputs'!J44 -> 744078.2012
E45: RPI True-up before inflation | G45: £ | H45: ='ARP_General inputs'!J45 -> 25308644.63
E46: Price index adjustment (RPI index) | G46: scalar | H46: ='ARP_General inputs'!J46 -> 1.248711688
E47: Base demand revenue | G47: £ | H47: =SUM(H43:H45) -> 461345642.8
E48: Inflation adjustment | G48: £ | H48: =H47 * (H46 - 1) -> 114742053.7
E50: Pass-Through Licence Fees | G50: £ | H50: ='ARP_General inputs'!J50 -> 725704.6041
E51: Pass-Through Business Rates | G51: £ | H51: ='ARP_General inputs'!J51 -> 3396467.602
E52: Pass-Through Transmission Connection Point Charges | G52: £ | H52: ='ARP_General inputs'!J52 -> -7940332.013
E53: Pass-through Smart Meter Communication Licence Costs | G53: £ | H53: ='ARP_General inputs'!J53 -> 5137940.538
E54: Pass-through Smart Meter IT Costs | G54: £ | H54: ='ARP_General inputs'!J54 -> 379162.8254
E55: Pass-through Ring Fence Costs | G55: £ | H55: ='ARP_General inputs'!J55 -> 0
E56: Pass-through Supplier of Last Resort Adjustment | G56: £ | H56: ='ARP_General inputs'!J56 -> 921460.1159
E57: Pass-through Eligible Bad Debt Adjustment | G57: £ | H57: ='ARP_General inputs'!J57 -> 3206631.106
E58: Pass-through COVID-19 Bad Debt Adjustment | G58: £ | H58: ='ARP_General inputs'!J58 -> 0
E59: Pass-Through Others | G59: £ | H59: ='ARP_General inputs'!J59 -> 0
E60: Allowed Pass-Through Items | G60: £ | H60: =SUM(H50:H59) -> 5827034.778
E62: Broad Measure of Customer Service incentive | G62: £ | H62: ='ARP_General inputs'!J62 -> 4817000.952
E63: Quality of Service incentive | G63: £ | H63: ='ARP_General inputs'!J63 -> 3216674.341
E64: Connections Engagement incentive | G64: £ | H64: ='ARP_General inputs'!J64 -> 0
E65: Time to Connect incentive | G65: £ | H65: ='ARP_General inputs'!J65 -> 566705.9943
E66: Losses Discretionary Reward incentive | G66: £ | H66: ='ARP_General inputs'!J66 -> 0
E67: Network Innovation Allowance | G67: £ | H67: ='ARP_General inputs'!J67 -> 0
E68: Low Carbon Network Fund - Tier 1 unrecoverable | G68: £ | H68: ='ARP_General inputs'!J68 -> 0
E69: Low Carbon Network Fund - Tier 2 & Discretionary Funding | G69: £ | H69: ='ARP_General inputs'!J69 -> 0
E70: Connection Guaranteed Standards Systems & Processes penalty | G70: £ | H70: ='ARP_General inputs'!J70 -> 0
E71: Residual Losses and Growth Incentive - Losses | G71: £ | H71: ='ARP_General inputs'!J71 -> 0
E72: Residual Losses and Growth Incentive - Growth | G72: £ | H72: ='ARP_General inputs'!J72 -> 0
E73: Incentive Revenue and Other Adjustments | G73: £ | H73: =SUM(H62:H72) -> 8600381.287
E75: Correction Factor | G75: £ | H75: ='ARP_General inputs'!J75 -> 0
E76: Total allowed Revenue | G76: £ | H76: =H75 + H73 + H60 + H48 + H47 -> 590515112.6
E78: Other 1. Excluded services - Top-up, standby, and enhanced system security | G78: £ | H78: ='ARP_General inputs'!J78 -> 0
E79: Other 2. Excluded services - Revenue protection services | G79: £ | H79: ='ARP_General inputs'!J79 -> 540013.2303
E80: Other 3. Excluded services - Miscellaneous | G80: £ | H80: ='ARP_General inputs'!J80 -> 0
E81: Other 4. Please describe if used | G81: £ | H81: ='ARP_General inputs'!J81 -> 0
E82: Other 5. Please describe if used | G82: £ | H82: ='ARP_General inputs'!J82 -> 0
E83: Total other revenue recovered by Use of System Charges | G83: £ | H83: =SUM(H78:H82) -> 540013.2303
E84: Total Revenue for Use of System Charges | G84: £ | H84: =H76+H83 -> 591055125.8
E86: 1. Revenue raised outside CDCM - EDCM and Certain Interconnector Revenue | G86: £ | H86: ='ARP_General inputs'!J86 -> 48125358.66
E87: 2. Revenue raised outside CDCM - Voluntary under-recovery | G87: £ | H87: ='ARP_General inputs'!J87 -> 0
E88: 3. Revenue raised outside CDCM - Please describe if used | G88: £ | H88: ='ARP_General inputs'!J88 -> 0
E89: 4. Revenue raised outside CDCM - Please describe if used | G89: £ | H89: ='ARP_General inputs'!J89 -> 0
E90: Total Revenue to be raised outside the CDCM | G90: £ | H90: =SUM(H86:H89) -> 48125358.66
E91: Latest forecast of CDCM Revenue | G91: £ | H91: =H84-H90 -> 542929767.1
C93: =INDEX('Version control'!$H$36:$H$62,MATCH($A$1,'Version control'!$F$36:$F$62,0),1)&"-D: Financial and general assumptions" -> Section 503-D: Financial and general assumptions
E95: Real pre-tax cost of capital | G95: % | H95: ='ARP_General inputs'!J101 -> 0.0374 | I95: > | J95: Paragraph 57
E96: Days in the charging year | G96: days | H96: ='ARP_General inputs'!J102 -> 365
E97: Hours in charging year | G97: hours | H97: =days_in_year * hours_in_day -> 8760
C99: =INDEX('Version control'!$H$36:$H$62,MATCH($A$1,'Version control'!$F$36:$F$62,0),1)&"-E: Transmission exit charges" -> Section 503-E: Transmission exit charges
E101: Transmission exit charges | G101: £ per year | H101: ='ARP_General inputs'!J106 -> 10412089.28 | I101: > | J101: Paragraph 38
C103: =INDEX('Version control'!$H$36:$H$62,MATCH($A$1,'Version control'!$F$36:$F$62,0),1)&"-F: Other expenditure" -> Section 503-F: Other expenditure
E105: Other expenditure | I105: > | J105: Paragraph 39
F106: Direct cost | G106: £ per year | H106: ='ARP_General inputs'!J111 -> 30262434.67
F107: Indirect cost | G107: £ per year | H107: ='ARP_General inputs'!J112 -> 125876892.9
F108: Network rates | G108: £ per year | H108: ='ARP_General inputs'!J113 -> 33209591.6
B110: Checks
E112: Check for error values | G112: number of issues | H112: =SUM(IF(ISERROR(H6:H109), 1)) -> 0
E114: Hours in charging year check
F115: Normal distribution timebands | G115: number of issues | H115: =IF(SUM(H19:H21) = hours_in_year, 0, 1) -> 0
F116: Special distribution timebands | G116: number of issues | H116: =IF(SUM(H24:H26) = hours_in_year, 0, 1) -> 0
E118: Summary of checks | G118: number of issues | H118: =SUM(H112,H115:H116) -> 0
B120: End of sheet

Sheet Standing charge factors
A1: =MID(CELL("filename",A1),FIND("]",CELL("filename",A1))+1,255) -> Standing charge factors
A2: =Cover!D21&" - "&Cover!D23 -> SP Manweb - One
A3: =Cover!D2&" - "&Cover!D8&" v"&Cover!D10&" - "&Cover!D19 -> ARP model - Release for charge setting v7 - 2024/25
A4: =H58 & IF(H58 = 1, " issue", " issues") &" identified in checks on this sheet" -> 0 issues identified in checks on this sheet
B5: Click here to return to model map | G5: Units | H5: Constants | J5: Domestic Aggregated | K5: Domestic Aggregated (Related MPAN) | L5: Non-Domestic Aggregated | M5: Non-Domestic Aggregated (Related MPAN) | N5: LV Site Specific | O5: LV Sub Site Specific | P5: HV Site Specific | Q5: Unmetered Supplies | R5: LV Generation Aggregated | S5: LV Sub Generation Aggregated | T5: LV Generation Site Specific | U5: LV Generation Site Specific no RP Charge | V5: LV Sub Generation Site Specific | W5: LV Sub Generation Site Specific no RP Charge | X5: HV Generation Site Specific | Y5: HV Generation Site Specific no RP Charge | AA5: Legal text reference
B7: Description
C9: This sheet contains standing charge factors, as described in DCUSA Schedule 16, Paragraphs 74-76.
C10: Standing charge factors are used to split network costs between those to be recovered through unit rate charges
C11: and those to be recovered through standing (capacity or fixed) charges, depending on the customer class and
C12: the network level at which costs occur.
C14: Standing charge factors are only applied for demand users.
C15: A factor of 100% implies that all costs will be allocated to standing charges.
B17: Adjustments to standing charges
C19: =INDEX('Version control'!$H$36:$H$62,MATCH($A$1,'Version control'!$F$36:$F$62,0),1)&"-A: Adjustments to standing charges" -> Section 504-A: Adjustments to standing charges
D21: Brings in standing charge factors and adjusts them for share of load going through 132/HV
E23: Raw inputs for standing charge factors, by network level | I23: > | AA23: Paragraph 74
E24: Standing charge factors as specified in Paragraph 74
F25: Transmission exit | G25: % | J25: ='Fixed inputs'!J88 -> 0 | K25: ='Fixed inputs'!K88 -> 0 | L25: ='Fixed inputs'!L88 -> 0 | M25: ='Fixed inputs'!M88 -> 0 | N25: ='Fixed inputs'!N88 -> 0 | O25: ='Fixed inputs'!O88 -> 0 | P25: ='Fixed inputs'!P88 -> 0 | Q25: ='Fixed inputs'!Q88 -> 0
F26: GSPs | G26: % | J26: ='Fixed inputs'!J89 -> 0 | K26: ='Fixed inputs'!K89 -> 0 | L26: ='Fixed inputs'!L89 -> 0 | M26: ='Fixed inputs'!M89 -> 0 | N26: ='Fixed inputs'!N89 -> 0 | O26: ='Fixed inputs'!O89 -> 0 | P26: ='Fixed inputs'!P89 -> 0 | Q26: ='Fixed inputs'!Q89 -> 0
F27: 132kV | G27: % | J27: ='Fixed inputs'!J90 -> 0 | K27: ='Fixed inputs'!K90 -> 0 | L27: ='Fixed inputs'!L90 -> 0 | M27: ='Fixed inputs'!M90 -> 0 | N27: ='Fixed inputs'!N90 -> 0 | O27: ='Fixed inputs'!O90 -> 0 | P27: ='Fixed inputs'!P90 -> 0 | Q27: ='Fixed inputs'!Q90 -> 0
F28: 132kV/EHV | G28: % | J28: ='Fixed inputs'!J91 -> 0 | K28: ='Fixed inputs'!K91 -> 0 | L28: ='Fixed inputs'!L91 -> 0 | M28: ='Fixed inputs'!M91 -> 0 | N28: ='Fixed inputs'!N91 -> 0 | O28: ='Fixed inputs'!O91 -> 0 | P28: ='Fixed inputs'!P91 -> 0 | Q28: ='Fixed inputs'!Q91 -> 0
F29: EHV | G29: % | J29: ='Fixed inputs'!J92 -> 0 | K29: ='Fixed inputs'!K92 -> 0 | L29: ='Fixed inputs'!L92 -> 0 | M29: ='Fixed inputs'!M92 -> 0 | N29: ='Fixed inputs'!N92 -> 0 | O29: ='Fixed inputs'!O92 -> 0 | P29: ='Fixed inputs'!P92 -> 0.2 | Q29: ='Fixed inputs'!Q92 -> 0
F30: EHV/HV | G30: % | J30: ='Fixed inputs'!J93 -> 0 | K30: ='Fixed inputs'!K93 -> 0 | L30: ='Fixed inputs'!L93 -> 0 | M30: ='Fixed inputs'!M93 -> 0 | N30: ='Fixed inputs'!N93 -> 0 | O30: ='Fixed inputs'!O93 -> 0 | P30: ='Fixed inputs'!P93 -> 1 | Q30: ='Fixed inputs'!Q93 -> 0
F31: 132kV/HV | G31: % | J31: ='Fixed inputs'!J94 -> 0 | K31: ='Fixed inputs'!K94 -> 0 | L31: ='Fixed inputs'!L94 -> 0 | M31: ='Fixed inputs'!M94 -> 0 | N31: ='Fixed inputs'!N94 -> 0 | O31: ='Fixed inputs'!O94 -> 0 | P31: ='Fixed inputs'!P94 -> 0 | Q31: ='Fixed inputs'!Q94 -> 0
F32: HV | G32: % | J32: ='Fixed inputs'!J95 -> 0 | K32: ='Fixed inputs'!K95 -> 0 | L32: ='Fixed inputs'!L95 -> 0 | M32: ='Fixed inputs'!M95 -> 0 | N32: ='Fixed inputs'!N95 -> 0.2 | O32: ='Fixed inputs'!O95 -> 1 | P32: ='Fixed inputs'!P95 -> 1 | Q32: ='Fixed inputs'!Q95 -> 0
F33: HV/LV | G33: % | J33: ='Fixed inputs'!J96 -> 0 | K33: ='Fixed inputs'!K96 -> 0 | L33: ='Fixed inputs'!L96 -> 0 | M33: ='Fixed inputs'!M96 -> 0 | N33: ='Fixed inputs'!N96 -> 1 | O33: ='Fixed inputs'!O96 -> 1 | P33: ='Fixed inputs'!P96 -> 0 | Q33: ='Fixed inputs'!Q96 -> 0
F34: LV circuits | G34: % | J34: ='Fixed inputs'!J97 -> 1 | K34: ='Fixed inputs'!K97 -> 1 | L34: ='Fixed inputs'!L97 -> 1 | M34: ='Fixed inputs'!M97 -> 1 | N34: ='Fixed inputs'!N97 -> 1 | O34: ='Fixed inputs'!O97 -> 0 | P34: ='Fixed inputs'!P97 -> 0 | Q34: ='Fixed inputs'!Q97 -> 0
F35: LV customers | G35: %
F36: HV customers | G36: %
E38: Proportion of load going through 132kV/HV direct transformation
F39: Proportion of load going through 132kV/HV direct transformation | G39: % | H39: ='Inputs by network level'!P20 -> 0
E41: Standing charges factors adapted to use 132kV/HV, by network level
E42: Adjustments as described in Paragraph 75 and 76
F43: Transmission exit | G43: %
F44: GSPs | G44: %
F45: 132kV | G45: % | I45: > | J45: =IF($H$39 = 0, J27, J29 * $H$39) -> 0 | K45: =IF($H$39 = 0, K27, K29 * $H$39) -> 0 | L45: 0 | M45: 0 | N45: 0 | O45: 0 | P45: 0 | Q45: 0 | AA45: Paragraph 76
F46: 132kV/EHV | G46: % | J46: =J28 -> 0 | K46: 0 | L46: 0 | M46: 0 | N46: 0 | O46: 0 | P46: 0 | Q46: 0
F47: EHV | G47: % | J47: 0 | K47: 0 | L47: 0 | M47: 0 | N47: 0 | O47: 0 | P47: 0.2 | Q47: 0
F48: EHV/HV | G48: % | J48: 0 | K48: 0 | L48: 0 | M48: 0 | N48: 0 | O48: 0 | P48: 1 | Q48: 0
F49: 132kV/HV | G49: % | I49: > | J49: =J30 -> 0 | K49: 0 | L49: 0 | M49: 0 | N49: 0 | O49: 0 | P49: 1 | Q49: 0 | AA49: Paragraph 75
F50: HV | G50: % | J50: =J32 -> 0 | K50: 0 | L50: 0 | M50: 0 | N50: 0.2 | O50: 1 | P50: 1 | Q50: 0
F51: HV/LV | G51: % | J51: 0 | K51: 0 | L51: 0 | M51: 0 | N51: 1 | O51: 1 | P51: 0 | Q51: 0
F52: LV circuits | G52: % | J52: 1 | K52: 1 | L52: 1 | M52: 1 | N52: 1 | O52: 0 | P52: 0 | Q52: 0
F53: LV customers | G53: %
F54: HV customers | G54: %
B56: Checks
E58: Check for error values | G58: number of issues | H58: =SUM(IF(ISERROR(H25:Y54), 1)) -> 0
B60: End of sheet

Sheet Load & loss characteristics
A1: =MID(CELL("filename",A1),FIND("]",CELL("filename",A1))+1,255) -> Load & loss characteristics
A2: =Cover!D21&" - "&Cover!D23 -> SP Manweb - One
A3: =Cover!D2&" - "&Cover!D8&" v"&Cover!D10&" - "&Cover!D19 -> ARP model - Release for charge setting v7 - 2024/25
A4: =H183 & IF(H183 = 1, " issue", " issues") &" identified in checks on this sheet" -> 0 issues identified in checks on this sheet
B5: Click here to return to model map | G5: Units | H5: Constants | J5: Transmission exit | K5: GSPs | L5: 132kV | M5: 132kV/EHV | N5: EHV | O5: EHV/HV | P5: 132kV/HV | Q5: HV | R5: HV/LV | S5: LV circuits | T5: LV customers | U5: HV customers | W5: Legal text reference
B7: Description
C9: This sheet adjusts diversity allowances, coincidence factors and loss adjustment factors for use in the model
C10: This sheet then uses network use factors and loss adjustment factors to calculate user loss factors
C11: Network use factors and user loss factors are also adjusted for the share of load going through 132/HV transformation
B13: Load and loss characteristics
C15: Brings in diversity allowances to calculate coincidence and cumulative diversity factors. Also adjusts loss adjustment factors.
C17: =INDEX('Version control'!$H$36:$H$62,MATCH($A$1,'Version control'!$F$36:$F$62,0),1)&"-A: Load characteristics" -> Section 505-A: Load characteristics
E19: Network model diversity allowances | G19: % | K19: ='Inputs by network level'!K18 -> 0.025 | L19: ='Inputs by network level'!L18 -> 0.1 | N19: ='Inputs by network level'!N18 -> 0.26 | Q19: ='Inputs by network level'!Q18 -> 0.2
E20: Coincidence factor | G20: % | J20: =IF(I20 = "", 1, I20 / (1 + J19)) -> 1 | K20: =IF(J20 = "", 1, J20 / (1 + K19)) -> 0.9756097561 | L20: =IF(K20 = "", 1, K20 / (1 + L19)) -> 0.8869179601 | M20: 0.8869179601 | N20: 0.7039031429 | O20: 0.7039031429 | P20: 0.7039031429 | Q20: 0.5865859524 | R20: 0.5865859524 | S20: 0.5865859524
E21: Network model cumulative diversity factor | G21: % | J21: =1 / J20 - 1 -> 0 | K21: =1 / K20 - 1 -> 0.025 | L21: 0.1275 | M21: 0.1275 | N21: 0.42065 | O21: 0.42065 | P21: 0.42065 | Q21: 0.70478 | R21: 0.70478 | S21: 0.70478
E22: Adjustment for 132/HV diversity | G22: % | P22: =M21 -> 0.1275
E23: Adjusted network model cumulative diversity factor | G23: % | I23: > | J23: =IF(J22 = "", J21, J22) -> 0 | K23: 0.025 | L23: 0.1275 | M23: 0.1275 | N23: 0.42065 | O23: 0.42065 | P23: 0.1275 | Q23: 0.70478 | R23: 0.70478 | S23: 0.70478 | W23: Paragraphs 42 to 44
C25: =INDEX('Version control'!$H$36:$H$62,MATCH($A$1,'Version control'!$F$36:$F$62,0),1)&"-B: Loss adjustment factors" -> Section 505-B: Loss adjustment factors
E27: Loss adjustment factor to transmission | G27: scalar | K27: ='Inputs by network level'!K22 -> 1 | L27: ='Inputs by network level'!L22 -> 1.004 | M27: ='Inputs by network level'!M22 -> 1.012 | N27: ='Inputs by network level'!N22 -> 1.017 | O27: ='Inputs by network level'!O22 -> 1.025 | Q27: ='Inputs by network level'!Q22 -> 1.036 | R27: ='Inputs by network level'!R22 -> 1.059 | S27: ='Inputs by network level'!S22 -> 1.115
E28: Adjustment for 132/HV transformation & transmission exit | G28: scalar | J28: =K27 -> 1 | P28: =O27 -> 1.025
E29: Loss adjustment factor to transmission for each DRM network level | G29: scalar | I29: > | J29: =J27 + J28 -> 1 | K29: 1 | L29: 1.004 | M29: 1.012 | N29: 1.017 | O29: 1.025 | P29: 1.025 | Q29: 1.036 | R29: 1.059 | S29: 1.115 | W29: Paragraph 47
B31: User loss factor adjustments
C33: Calculates user loss factors and makes adjustments for share of load going through 132kV/HV
C35: =INDEX('Version control'!$H$36:$H$62,MATCH($A$1,'Version control'!$F$36:$F$62,0),1)&"-C: Proportion of relevant load going through 132kV/HV direct transformation" -> Section 505-C: Proportion of relevant load going through 132kV/HV direct transformation
E37: 132kV/HV | G37: % | H37: ='Inputs by network level'!P20 -> 0
E38: Adjustment to network use factors for 132/HV share | G38: % | M38: =1 - $H$37 -> 1 | N38: =1 - $H$37 -> 1 | O38: =1 - $H$37 -> 1 | P38: =H37 -> 0
C40: =INDEX('Version control'!$H$36:$H$62,MATCH($A$1,'Version control'!$F$36:$F$62,0),1)&"-D: Network use factors" -> Section 505-D: Network use factors
D42: Network use factors assume demand and generation use the network from the point of connection.
E44: Network use factors (assuming generation contributes at level of connection)
E45: These values are drawn from the "Fixed inputs" sheet.
F46: Domestic Aggregated | G46: 1, 0 or -1 | J46: =TRANSPOSE('Fixed inputs'!J60:Y69) -> 1 | K46: 1 | L46: 1 | M46: 1 | N46: 1 | O46: 1 | P46: 1 | Q46: 1 | R46: 1 | S46: 1
F47: Domestic Aggregated (Related MPAN) | G47: 1, 0 or -1 | J47: 1 | K47: 1 | L47: 1 | M47: 1 | N47: 1 | O47: 1 | P47: 1 | Q47: 1 | R47: 1 | S47: 1
F48: Non-Domestic Aggregated | G48: 1, 0 or -1 | J48: 1 | K48: 1 | L48: 1 | M48: 1 | N48: 1 | O48: 1 | P48: 1 | Q48: 1 | R48: 1 | S48: 1
F49: Non-Domestic Aggregated (Related MPAN) | G49: 1, 0 or -1 | J49: 1 | K49: 1 | L49: 1 | M49: 1 | N49: 1 | O49: 1 | P49: 1 | Q49: 1 | R49: 1 | S49: 1
F50: LV Site Specific | G50: 1, 0 or -1 | J50: 1 | K50: 1 | L50: 1 | M50: 1 | N50: 1 | O50: 1 | P50: 1 | Q50: 1 | R50: 1 | S50: 1
F51: LV Sub Site Specific | G51: 1, 0 or -1 | J51: 1 | K51: 1 | L51: 1 | M51: 1 | N51: 1 | O51: 1 | P51: 1 | Q51: 1 | R51: 1 | S51: 0
F52: HV Site Specific | G52: 1, 0 or -1 | J52: 1 | K52: 1 | L52: 1 | M52: 1 | N52: 1 | O52: 1 | P52: 1 | Q52: 1 | R52: 0 | S52: 0
F53: Unmetered Supplies | G53: 1, 0 or -1 | J53: 1 | K53: 1 | L53: 1 | M53: 1 | N53: 1 | O53: 1 | P53: 1 | Q53: 1 | R53: 1 | S53: 1
F54: LV Generation Aggregated | G54: 1, 0 or -1 | J54: -1 | K54: -1 | L54: -1 | M54: -1 | N54: -1 | O54: -1 | P54: -1 | Q54: -1 | R54: -1 | S54: -1
F55: LV Sub Generation Aggregated | G55: 1, 0 or -1 | J55: -1 | K55: -1 | L55: -1 | M55: -1 | N55: -1 | O55: -1 | P55: -1 | Q55: -1 | R55: -1 | S55: 0
F56: LV Generation Site Specific | G56: 1, 0 or -1 | J56: -1 | K56: -1 | L56: -1 | M56: -1 | N56: -1 | O56: -1 | P56: -1 | Q56: -1 | R56: -1 | S56: -1
F57: LV Generation Site Specific no RP Charge | G57: 1, 0 or -1 | J57: -1 | K57: -1 | L57: -1 | M57: -1 | N57: -1 | O57: -1 | P57: -1 | Q57: -1 | R57: -1 | S57: -1
F58: LV Sub Generation Site Specific | G58: 1, 0 or -1 | J58: -1 | K58: -1 | L58: -1 | M58: -1 | N58: -1 | O58: -1 | P58: -1 | Q58: -1 | R58: -1 | S58: 0
F59: LV Sub Generation Site Specific no RP Charge | G59: 1, 0 or -1 | J59: -1 | K59: -1 | L59: -1 | M59: -1 | N59: -1 | O59: -1 | P59: -1 | Q59: -1 | R59: -1 | S59: 0
F60: HV Generation Site Specific | G60: 1, 0 or -1 | J60: -1 | K60: -1 | L60: -1 | M60: -1 | N60: -1 | O60: -1 | P60: -1 | Q60: -1 | R60: 0 | S60: 0
F61: HV Generation Site Specific no RP Charge | G61: 1, 0 or -1 | J61: -1 | K61: -1 | L61: -1 | M61: -1 | N61: -1 | O61: -1 | P61: -1 | Q61: -1 | R61: 0 | S61: 0
E63: Network use factors (assuming generation contributes at level of connection) scaled for 132/HV
E64: These have been adjusted for the share of load going through 132/HV transformation
F65: Domestic Aggregated | G65: 1, 0 or -1 | J65: =IF(J$38 = "", J46, J46 * J$38) -> 1 | K65: 1 | L65: 1 | M65: 1 | N65: 1 | O65: 1 | P65: 0 | Q65: 1 | R65: 1 | S65: 1
F66: Domestic Aggregated (Related MPAN) | G66: 1, 0 or -1 | J66: 1 | K66: 1 | L66: 1 | M66: 1 | N66: 1 | O66: 1 | P66: 0 | Q66: 1 | R66: 1 | S66: 1
F67: Non-Domestic Aggregated | G67: 1, 0 or -1 | J67: 1 | K67: 1 | L67: 1 | M67: 1 | N67: 1 | O67: 1 | P67: 0 | Q67: 1 | R67: 1 | S67: 1
F68: Non-Domestic Aggregated (Related MPAN) | G68: 1, 0 or -1 | J68: 1 | K68: 1 | L68: 1 | M68: 1 | N68: 1 | O68: 1 | P68: 0 | Q68: 1 | R68: 1 | S68: 1
F69: LV Site Specific | G69: 1, 0 or -1 | J69: 1 | K69: 1 | L69: 1 | M69: 1 | N69: 1 | O69: 1 | P69: 0 | Q69: 1 | R69: 1 | S69: 1
F70: LV Sub Site Specific | G70: 1, 0 or -1 | J70: 1 | K70: 1 | L70: 1 | M70: 1 | N70: 1 | O70: 1 | P70: 0 | Q70: 1 | R70: 1 | S70: 0
F71: HV Site Specific | G71: 1, 0 or -1 | J71: 1 | K71: 1 | L71: 1 | M71: 1 | N71: 1 | O71: 1 | P71: 0 | Q71: 1 | R71: 0 | S71: 0
F72: Unmetered Supplies | G72: 1, 0 or -1 | J72: 1 | K72: 1 | L72: 1 | M72: 1 | N72: 1 | O72: 1 | P72: 0 | Q72: 1 | R72: 1 | S72: 1
F73: LV Generation Aggregated | G73: 1, 0 or -1 | J73: -1 | K73: -1 | L73: -1 | M73: -1 | N73: -1 | O73: -1 | P73: 0 | Q73: -1 | R73: -1 | S73: -1
F74: LV Sub Generation Aggregated | G74: 1, 0 or -1 | J74: -1 | K74: -1 | L74: -1 | M74: -1 | N74: -1 | O74: -1 | P74: 0 | Q74: -1 | R74: -1 | S74: 0
F75: LV Generation Site Specific | G75: 1, 0 or -1 | J75: -1 | K75: -1 | L75: -1 | M75: -1 | N75: -1 | O75: -1 | P75: 0 | Q75: -1 | R75: -1 | S75: -1
F76: LV Generation Site Specific no RP Charge | G76: 1, 0 or -1 | J76: -1 | K76: -1 | L76: -1 | M76: -1 | N76: -1 | O76: -1 | P76: 0 | Q76: -1 | R76: -1 | S76: -1
F77: LV Sub Generation Site Specific | G77: 1, 0 or -1 | J77: -1 | K77: -1 | L77: -1 | M77: -1 | N77: -1 | O77: -1 | P77: 0 | Q77: -1 | R77: -1 | S77: 0
F78: LV Sub Generation Site Specific no RP Charge | G78: 1, 0 or -1 | J78: -1 | K78: -1 | L78: -1 | M78: -1 | N78: -1 | O78: -1 | P78: 0 | Q78: -1 | R78: -1 | S78: 0
F79: HV Generation Site Specific | G79: 1, 0 or -1 | J79: -1 | K79: -1 | L79: -1 | M79: -1 | N79: -1 | O79: -1 | P79: 0 | Q79: -1 | R79: 0 | S79: 0
F80: HV Generation Site Specific no RP Charge | G80: 1, 0 or -1 | J80: -1 | K80: -1 | L80: -1 | M80: -1 | N80: -1 | O80: -1 | P80: 0 | Q80: -1 | R80: 0 | S80: 0
E82: Network use factors (assuming generation makes no contribution at level of connection) | I82: > | W82: Paragraphs 62 and 71
E83: Equal to 0 for the network level at which generation is connected, otherwise equal to network use factor
F84: Domestic Aggregated | G84: 1 or 0 | J84: =TRANSPOSE('Fixed inputs'!J73:Y82) -> 1 | K84: 1 | L84: 1 | M84: 1 | N84: 1 | O84: 1 | P84: 1 | Q84: 1 | R84: 1 | S84: 1
F85: Domestic Aggregated (Related MPAN) | G85: 1 or 0 | J85: 1 | K85: 1 | L85: 1 | M85: 1 | N85: 1 | O85: 1 | P85: 1 | Q85: 1 | R85: 1 | S85: 1
F86: Non-Domestic Aggregated | G86: 1 or 0 | J86: 1 | K86: 1 | L86: 1 | M86: 1 | N86: 1 | O86: 1 | P86: 1 | Q86: 1 | R86: 1 | S86: 1
F87: Non-Domestic Aggregated (Related MPAN) | G87: 1 or 0 | J87: 1 | K87: 1 | L87: 1 | M87: 1 | N87: 1 | O87: 1 | P87: 1 | Q87: 1 | R87: 1 | S87: 1
F88: LV Site Specific | G88: 1 or 0 | J88: 1 | K88: 1 | L88: 1 | M88: 1 | N88: 1 | O88: 1 | P88: 1 | Q88: 1 | R88: 1 | S88: 1
F89: LV Sub Site Specific | G89: 1 or 0 | J89: 1 | K89: 1 | L89: 1 | M89: 1 | N89: 1 | O89: 1 | P89: 1 | Q89: 1 | R89: 1 | S89: 0
F90: HV Site Specific | G90: 1 or 0 | J90: 1 | K90: 1 | L90: 1 | M90: 1 | N90: 1 | O90: 1 | P90: 1 | Q90: 1 | R90: 0 | S90: 0
F91: Unmetered Supplies | G91: 1 or 0 | J91: 1 | K91: 1 | L91: 1 | M91: 1 | N91: 1 | O91: 1 | P91: 1 | Q91: 1 | R91: 1 | S91: 1
F92: LV Generation Aggregated | G92: 1 or 0 | J92: -1 | K92: -1 | L92: -1 | M92: -1 | N92: -1 | O92: -1 | P92: -1 | Q92: -1 | R92: -1 | S92: 0
F93: LV Sub Generation Aggregated | G93: 1 or 0 | J93: -1 | K93: -1 | L93: -1 | M93: -1 | N93: -1 | O93: -1 | P93: -1 | Q93: -1 | R93: 0 | S93: 0
F94: LV Generation Site Specific | G94: 1 or 0 | J94: -1 | K94: -1 | L94: -1 | M94: -1 | N94: -1 | O94: -1 | P94: -1 | Q94: -1 | R94: -1 | S94: 0
F95: LV Generation Site Specific no RP Charge | G95: 1 or 0 | J95: -1 | K95: -1 | L95: -1 | M95: -1 | N95: -1 | O95: -1 | P95: -1 | Q95: -1 | R95: -1 | S95: 0
F96: LV Sub Generation Site Specific | G96: 1 or 0 | J96: -1 | K96: -1 | L96: -1 | M96: -1 | N96: -1 | O96: -1 | P96: -1 | Q96: -1 | R96: 0 | S96: 0
F97: LV Sub Generation Site Specific no RP Charge | G97: 1 or 0 | J97: -1 | K97: -1 | L97: -1 | M97: -1 | N97: -1 | O97: -1 | P97: -1 | Q97: -1 | R97: 0 | S97: 0
F98: HV Generation Site Specific | G98: 1 or 0 | J98: -1 | K98: -1 | L98: -1 | M98: -1 | N98: -1 | O98: -1 | P98: -1 | Q98: 0 | R98: 0 | S98: 0
F99: HV Generation Site Specific no RP Charge | G99: 1 or 0 | J99: -1 | K99: -1 | L99: -1 | M99: -1 | N99: -1 | O99: -1 | P99: -1 | Q99: 0 | R99: 0 | S99: 0
E101: Network use factors (assuming generation makes no contribution at level of connection), scaled for 132/HV | I101: > | W101: Paragraphs 62 and 71
E102: Equal to 0 for the network level at which generation is connected, otherwise equal to network use factor
E103: These have been adjusted for the share of load going through 132/HV transformation
F104: Domestic Aggregated | G104: 1 or 0 | J104: =IF(J$38 = "", J84, J84 * J$38) -> 1 | K104: 1 | L104: 1 | M104: 1 | N104: 1 | O104: 1 | P104: 0 | Q104: 1 | R104: 1 | S104: 1
F105: Domestic Aggregated (Related MPAN) | G105: 1 or 0 | J105: 1 | K105: 1 | L105: 1 | M105: 1 | N105: 1 | O105: 1 | P105: 0 | Q105: 1 | R105: 1 | S105: 1
F106: Non-Domestic Aggregated | G106: 1 or 0 | J106: 1 | K106: 1 | L106: 1 | M106: 1 | N106: 1 | O106: 1 | P106: 0 | Q106: 1 | R106: 1 | S106: 1
F107: Non-Domestic Aggregated (Related MPAN) | G107: 1 or 0 | J107: 1 | K107: 1 | L107: 1 | M107: 1 | N107: 1 | O107: 1 | P107: 0 | Q107: 1 | R107: 1 | S107: 1
F108: LV Site Specific | G108: 1 or 0 | J108: 1 | K108: 1 | L108: 1 | M108: 1 | N108: 1 | O108: 1 | P108: 0 | Q108: 1 | R108: 1 | S108: 1
F109: LV Sub Site Specific | G109: 1 or 0 | J109: 1 | K109: 1 | L109: 1 | M109: 1 | N109: 1 | O109: 1 | P109: 0 | Q109: 1 | R109: 1 | S109: 0
F110: HV Site Specific | G110: 1 or 0 | J110: 1 | K110: 1 | L110: 1 | M110: 1 | N110: 1 | O110: 1 | P110: 0 | Q110: 1 | R110: 0 | S110: 0
F111: Unmetered Supplies | G111: 1 or 0 | J111: 1 | K111: 1 | L111: 1 | M111: 1 | N111: 1 | O111: 1 | P111: 0 | Q111: 1 | R111: 1 | S111: 1
F112: LV Generation Aggregated | G112: 1 or 0 | J112: -1 | K112: -1 | L112: -1 | M112: -1 | N112: -1 | O112: -1 | P112: 0 | Q112: -1 | R112: -1 | S112: 0
F113: LV Sub Generation Aggregated | G113: 1 or 0 | J113: -1 | K113: -1 | L113: -1 | M113: -1 | N113: -1 | O113: -1 | P113: 0 | Q113: -1 | R113: 0 | S113: 0
F114: LV Generation Site Specific | G114: 1 or 0 | J114: -1 | K114: -1 | L114: -1 | M114: -1 | N114: -1 | O114: -1 | P114: 0 | Q114: -1 | R114: -1 | S114: 0
F115: LV Generation Site Specific no RP Charge | G115: 1 or 0 | J115: -1 | K115: -1 | L115: -1 | M115: -1 | N115: -1 | O115: -1 | P115: 0 | Q115: -1 | R115: -1 | S115: 0
F116: LV Sub Generation Site Specific | G116: 1 or 0 | J116: -1 | K116: -1 | L116: -1 | M116: -1 | N116: -1 | O116: -1 | P116: 0 | Q116: -1 | R116: 0 | S116: 0
F117: LV Sub Generation Site Specific no RP Charge | G117: 1 or 0 | J117: -1 | K117: -1 | L117: -1 | M117: -1 | N117: -1 | O117: -1 | P117: 0 | Q117: -1 | R117: 0 | S117: 0
F118: HV Generation Site Specific | G118: 1 or 0 | J118: -1 | K118: -1 | L118: -1 | M118: -1 | N118: -1 | O118: -1 | P118: 0 | Q118: 0 | R118: 0 | S118: 0
F119: HV Generation Site Specific no RP Charge | G119: 1 or 0 | J119: -1 | K119: -1 | L119: -1 | M119: -1 | N119: -1 | O119: -1 | P119: 0 | Q119: 0 | R119: 0 | S119: 0
C121: =INDEX('Version control'!$H$36:$H$62,MATCH($A$1,'Version control'!$F$36:$F$62,0),1)&"-E: User loss factors" -> Section 505-E: User loss factors
E123: User loss factor (assuming generation contributes at level of connection)
E124: For demand, it is the loss factor at network level which user is supplied.
E125: For generation, it is the loss factor at network level which user is supplied. | H125: Maximum
F126: Domestic Aggregated | G126: scalar | H126: =MAX(J126:S126) -> 1.115 | J126: =OR(SUM(J65:$S65) = 1, SUM(J65:$S65) = -1) * J$29 -> 0 | K126: =OR(SUM(K65:$S65) = 1, SUM(K65:$S65) = -1) * K$29 -> 0 | L126: =OR(SUM(L65:$S65) = 1, SUM(L65:$S65) = -1) * L$29 -> 0 | M126: =OR(SUM(M65:$S65) = 1, SUM(M65:$S65) = -1) * M$29 -> 0 | N126: =OR(SUM(N65:$S65) = 1, SUM(N65:$S65) = -1) * N$29 -> 0 | O126: =OR(SUM(O65:$S65) = 1, SUM(O65:$S65) = -1) * O$29 -> 0 | P126: =OR(SUM(P65:$S65) = 1, SUM(P65:$S65) = -1) * P$29 -> 0 | Q126: =OR(SUM(Q65:$S65) = 1, SUM(Q65:$S65) = -1) * Q$29 -> 0 | R126: =OR(SUM(R65:$S65) = 1, SUM(R65:$S65) = -1) * R$29 -> 0 | S126: =OR(SUM(S65:$S65) = 1, SUM(S65:$S65) = -1) * S$29 -> 1.115
F127: Domestic Aggregated (Related MPAN) | G127: scalar | H127: 1.115 | J127: =OR(SUM(J66:$S66) = 1, SUM(J66:$S66) = -1) * J$29 -> 0 | K127: =OR(SUM(K66:$S66) = 1, SUM(K66:$S66) = -1) * K$29 -> 0 | L127: =OR(SUM(L66:$S66) = 1, SUM(L66:$S66) = -1) * L$29 -> 0 | M127: =OR(SUM(M66:$S66) = 1, SUM(M66:$S66) = -1) * M$29 -> 0 | N127: =OR(SUM(N66:$S66) = 1, SUM(N66:$S66) = -1) * N$29 -> 0 | O127: =OR(SUM(O66:$S66) = 1, SUM(O66:$S66) = -1) * O$29 -> 0 | P127: =OR(SUM(P66:$S66) = 1, SUM(P66:$S66) = -1) * P$29 -> 0 | Q127: =OR(SUM(Q66:$S66) = 1, SUM(Q66:$S66) = -1) * Q$29 -> 0 | R127: =OR(SUM(R66:$S66) = 1, SUM(R66:$S66) = -1) * R$29 -> 0 | S127: =OR(SUM(S66:$S66) = 1, SUM(S66:$S66) = -1) * S$29 -> 1.115
F128: Non-Domestic Aggregated | G128: scalar | H128: 1.115 | J128: =OR(SUM(J67:$S67) = 1, SUM(J67:$S67) = -1) * J$29 -> 0 | K128: =OR(SUM(K67:$S67) = 1, SUM(K67:$S67) = -1) * K$29 -> 0 | L128: =OR(SUM(L67:$S67) = 1, SUM(L67:$S67) = -1) * L$29 -> 0 | M128: =OR(SUM(M67:$S67) = 1, SUM(M67:$S67) = -1) * M$29 -> 0 | N128: =OR(SUM(N67:$S67) = 1, SUM(N67:$S67) = -1) * N$29 -> 0 | O128: =OR(SUM(O67:$S67) = 1, SUM(O67:$S67) = -1) * O$29 -> 0 | P128: =OR(SUM(P67:$S67) = 1, SUM(P67:$S67) = -1) * P$29 -> 0 | Q128: =OR(SUM(Q67:$S67) = 1, SUM(Q67:$S67) = -1) * Q$29 -> 0 | R128: =OR(SUM(R67:$S67) = 1, SUM(R67:$S67) = -1) * R$29 -> 0 | S128: =OR(SUM(S67:$S67) = 1, SUM(S67:$S67) = -1) * S$29 -> 1.115
F129: Non-Domestic Aggregated (Related MPAN) | G129: scalar | H129: 1.115 | J129: =OR(SUM(J68:$S68) = 1, SUM(J68:$S68) = -1) * J$29 -> 0 | K129: =OR(SUM(K68:$S68) = 1, SUM(K68:$S68) = -1) * K$29 -> 0 | L129: =OR(SUM(L68:$S68) = 1, SUM(L68:$S68) = -1) * L$29 -> 0 | M129: =OR(SUM(M68:$S68) = 1, SUM(M68:$S68) = -1) * M$29 -> 0 | N129: =OR(SUM(N68:$S68) = 1, SUM(N68:$S68) = -1) * N$29 -> 0 | O129: =OR(SUM(O68:$S68) = 1, SUM(O68:$S68) = -1) * O$29 -> 0 | P129: =OR(SUM(P68:$S68) = 1, SUM(P68:$S68) = -1) * P$29 -> 0 | Q129: =OR(SUM(Q68:$S68) = 1, SUM(Q68:$S68) = -1) * Q$29 -> 0 | R129: =OR(SUM(R68:$S68) = 1, SUM(R68:$S68) = -1) * R$29 -> 0 | S129: =OR(SUM(S68:$S68) = 1, SUM(S68:$S68) = -1) * S$29 -> 1.115
F130: LV Site Specific | G130: scalar | H130: 1.115 | J130: =OR(SUM(J69:$S69) = 1, SUM(J69:$S69) = -1) * J$29 -> 0 | K130: =OR(SUM(K69:$S69) = 1, SUM(K69:$S69) = -1) * K$29 -> 0 | L130: =OR(SUM(L69:$S69) = 1, SUM(L69:$S69) = -1) * L$29 -> 0 | M130: =OR(SUM(M69:$S69) = 1, SUM(M69:$S69) = -1) * M$29 -> 0 | N130: =OR(SUM(N69:$S69) = 1, SUM(N69:$S69) = -1) * N$29 -> 0 | O130: =OR(SUM(O69:$S69) = 1, SUM(O69:$S69) = -1) * O$29 -> 0 | P130: =OR(SUM(P69:$S69) = 1, SUM(P69:$S69) = -1) * P$29 -> 0 | Q130: =OR(SUM(Q69:$S69) = 1, SUM(Q69:$S69) = -1) * Q$29 -> 0 | R130: =OR(SUM(R69:$S69) = 1, SUM(R69:$S69) = -1) * R$29 -> 0 | S130: =OR(SUM(S69:$S69) = 1, SUM(S69:$S69) = -1) * S$29 -> 1.115
F131: LV Sub Site Specific | G131: scalar | H131: 1.059 | J131: =OR(SUM(J70:$S70) = 1, SUM(J70:$S70) = -1) * J$29 -> 0 | K131: =OR(SUM(K70:$S70) = 1, SUM(K70:$S70) = -1) * K$29 -> 0 | L131: =OR(SUM(L70:$S70) = 1, SUM(L70:$S70) = -1) * L$29 -> 0 | M131: =OR(SUM(M70:$S70) = 1, SUM(M70:$S70) = -1) * M$29 -> 0 | N131: =OR(SUM(N70:$S70) = 1, SUM(N70:$S70) = -1) * N$29 -> 0 | O131: =OR(SUM(O70:$S70) = 1, SUM(O70:$S70) = -1) * O$29 -> 0 | P131: =OR(SUM(P70:$S70) = 1, SUM(P70:$S70) = -1) * P$29 -> 0 | Q131: =OR(SUM(Q70:$S70) = 1, SUM(Q70:$S70) = -1) * Q$29 -> 0 | R131: =OR(SUM(R70:$S70) = 1, SUM(R70:$S70) = -1) * R$29 -> 1.059 | S131: =OR(SUM(S70:$S70) = 1, SUM(S70:$S70) = -1) * S$29 -> 0
F132: HV Site Specific | G132: scalar | H132: 1.036 | J132: =OR(SUM(J71:$S71) = 1, SUM(J71:$S71) = -1) * J$29 -> 0 | K132: =OR(SUM(K71:$S71) = 1, SUM(K71:$S71) = -1) * K$29 -> 0 | L132: =OR(SUM(L71:$S71) = 1, SUM(L71:$S71) = -1) * L$29 -> 0 | M132: =OR(SUM(M71:$S71) = 1, SUM(M71:$S71) = -1) * M$29 -> 0 | N132: =OR(SUM(N71:$S71) = 1, SUM(N71:$S71) = -1) * N$29 -> 0 | O132: =OR(SUM(O71:$S71) = 1, SUM(O71:$S71) = -1) * O$29 -> 0 | P132: =OR(SUM(P71:$S71) = 1, SUM(P71:$S71) = -1) * P$29 -> 1.025 | Q132: =OR(SUM(Q71:$S71) = 1, SUM(Q71:$S71) = -1) * Q$29 -> 1.036 | R132: =OR(SUM(R71:$S71) = 1, SUM(R71:$S71) = -1) * R$29 -> 0 | S132: =OR(SUM(S71:$S71) = 1, SUM(S71:$S71) = -1) * S$29 -> 0
F133: Unmetered Supplies | G133: scalar | H133: 1.115 | J133: =OR(SUM(J72:$S72) = 1, SUM(J72:$S72) = -1) * J$29 -> 0 | K133: =OR(SUM(K72:$S72) = 1, SUM(K72:$S72) = -1) * K$29 -> 0 | L133: =OR(SUM(L72:$S72) = 1, SUM(L72:$S72) = -1) * L$29 -> 0 | M133: =OR(SUM(M72:$S72) = 1, SUM(M72:$S72) = -1) * M$29 -> 0 | N133: =OR(SUM(N72:$S72) = 1, SUM(N72:$S72) = -1) * N$29 -> 0 | O133: =OR(SUM(O72:$S72) = 1, SUM(O72:$S72) = -1) * O$29 -> 0 | P133: =OR(SUM(P72:$S72) = 1, SUM(P72:$S72) = -1) * P$29 -> 0 | Q133: =OR(SUM(Q72:$S72) = 1, SUM(Q72:$S72) = -1) * Q$29 -> 0 | R133: =OR(SUM(R72:$S72) = 1, SUM(R72:$S72) = -1) * R$29 -> 0 | S133: =OR(SUM(S72:$S72) = 1, SUM(S72:$S72) = -1) * S$29 -> 1.115
F134: LV Generation Aggregated | G134: scalar | H134: 1.115 | J134: =OR(SUM(J73:$S73) = 1, SUM(J73:$S73) = -1) * J$29 -> 0 | K134: =OR(SUM(K73:$S73) = 1, SUM(K73:$S73) = -1) * K$29 -> 0 | L134: =OR(SUM(L73:$S73) = 1, SUM(L73:$S73) = -1) * L$29 -> 0 | M134: =OR(SUM(M73:$S73) = 1, SUM(M73:$S73) = -1) * M$29 -> 0 | N134: =OR(SUM(N73:$S73) = 1, SUM(N73:$S73) = -1) * N$29 -> 0 | O134: =OR(SUM(O73:$S73) = 1, SUM(O73:$S73) = -1) * O$29 -> 0 | P134: =OR(SUM(P73:$S73) = 1, SUM(P73:$S73) = -1) * P$29 -> 0 | Q134: =OR(SUM(Q73:$S73) = 1, SUM(Q73:$S73) = -1) * Q$29 -> 0 | R134: =OR(SUM(R73:$S73) = 1, SUM(R73:$S73) = -1) * R$29 -> 0 | S134: =OR(SUM(S73:$S73) = 1, SUM(S73:$S73) = -1) * S$29 -> 1.115
F135: LV Sub Generation Aggregated | G135: scalar | H135: 1.059 | J135: =OR(SUM(J74:$S74) = 1, SUM(J74:$S74) = -1) * J$29 -> 0 | K135: =OR(SUM(K74:$S74) = 1, SUM(K74:$S74) = -1) * K$29 -> 0 | L135: =OR(SUM(L74:$S74) = 1, SUM(L74:$S74) = -1) * L$29 -> 0 | M135: =OR(SUM(M74:$S74) = 1, SUM(M74:$S74) = -1) * M$29 -> 0 | N135: =OR(SUM(N74:$S74) = 1, SUM(N74:$S74) = -1) * N$29 -> 0 | O135: =OR(SUM(O74:$S74) = 1, SUM(O74:$S74) = -1) * O$29 -> 0 | P135: =OR(SUM(P74:$S74) = 1, SUM(P74:$S74) = -1) * P$29 -> 0 | Q135: =OR(SUM(Q74:$S74) = 1, SUM(Q74:$S74) = -1) * Q$29 -> 0 | R135: =OR(SUM(R74:$S74) = 1, SUM(R74:$S74) = -1) * R$29 -> 1.059 | S135: =OR(SUM(S74:$S74) = 1, SUM(S74:$S74) = -1) * S$29 -> 0
F136: LV Generation Site Specific | G136: scalar | H136: 1.115 | J136: =OR(SUM(J75:$S75) = 1, SUM(J75:$S75) = -1) * J$29 -> 0 | K136: =OR(SUM(K75:$S75) = 1, SUM(K75:$S75) = -1) * K$29 -> 0 | L136: =OR(SUM(L75:$S75) = 1, SUM(L75:$S75) = -1) * L$29 -> 0 | M136: =OR(SUM(M75:$S75) = 1, SUM(M75:$S75) = -1) * M$29 -> 0 | N136: =OR(SUM(N75:$S75) = 1, SUM(N75:$S75) = -1) * N$29 -> 0 | O136: =OR(SUM(O75:$S75) = 1, SUM(O75:$S75) = -1) * O$29 -> 0 | P136: =OR(SUM(P75:$S75) = 1, SUM(P75:$S75) = -1) * P$29 -> 0 | Q136: =OR(SUM(Q75:$S75) = 1, SUM(Q75:$S75) = -1) * Q$29 -> 0 | R136: =OR(SUM(R75:$S75) = 1, SUM(R75:$S75) = -1) * R$29 -> 0 | S136: =OR(SUM(S75:$S75) = 1, SUM(S75:$S75) = -1) * S$29 -> 1.115
F137: LV Generation Site Specific no RP Charge | G137: scalar | H137: 1.115 | J137: =OR(SUM(J76:$S76) = 1, SUM(J76:$S76) = -1) * J$29 -> 0 | K137: =OR(SUM(K76:$S76) = 1, SUM(K76:$S76) = -1) * K$29 -> 0 | L137: =OR(SUM(L76:$S76) = 1, SUM(L76:$S76) = -1) * L$29 -> 0 | M137: =OR(SUM(M76:$S76) = 1, SUM(M76:$S76) = -1) * M$29 -> 0 | N137: =OR(SUM(N76:$S76) = 1, SUM(N76:$S76) = -1) * N$29 -> 0 | O137: =OR(SUM(O76:$S76) = 1, SUM(O76:$S76) = -1) * O$29 -> 0 | P137: =OR(SUM(P76:$S76) = 1, SUM(P76:$S76) = -1) * P$29 -> 0 | Q137: =OR(SUM(Q76:$S76) = 1, SUM(Q76:$S76) = -1) * Q$29 -> 0 | R137: =OR(SUM(R76:$S76) = 1, SUM(R76:$S76) = -1) * R$29 -> 0 | S137: =OR(SUM(S76:$S76) = 1, SUM(S76:$S76) = -1) * S$29 -> 1.115
F138: LV Sub Generation Site Specific | G138: scalar | H138: 1.059 | J138: =OR(SUM(J77:$S77) = 1, SUM(J77:$S77) = -1) * J$29 -> 0 | K138: =OR(SUM(K77:$S77) = 1, SUM(K77:$S77) = -1) * K$29 -> 0 | L138: =OR(SUM(L77:$S77) = 1, SUM(L77:$S77) = -1) * L$29 -> 0 | M138: =OR(SUM(M77:$S77) = 1, SUM(M77:$S77) = -1) * M$29 -> 0 | N138: =OR(SUM(N77:$S77) = 1, SUM(N77:$S77) = -1) * N$29 -> 0 | O138: =OR(SUM(O77:$S77) = 1, SUM(O77:$S77) = -1) * O$29 -> 0 | P138: =OR(SUM(P77:$S77) = 1, SUM(P77:$S77) = -1) * P$29 -> 0 | Q138: =OR(SUM(Q77:$S77) = 1, SUM(Q77:$S77) = -1) * Q$29 -> 0 | R138: =OR(SUM(R77:$S77) = 1, SUM(R77:$S77) = -1) * R$29 -> 1.059 | S138: =OR(SUM(S77:$S77) = 1, SUM(S77:$S77) = -1) * S$29 -> 0
F139: LV Sub Generation Site Specific no RP Charge | G139: scalar | H139: 1.059 | J139: =OR(SUM(J78:$S78) = 1, SUM(J78:$S78) = -1) * J$29 -> 0 | K139: =OR(SUM(K78:$S78) = 1, SUM(K78:$S78) = -1) * K$29 -> 0 | L139: =OR(SUM(L78:$S78) = 1, SUM(L78:$S78) = -1) * L$29 -> 0 | M139: =OR(SUM(M78:$S78) = 1, SUM(M78:$S78) = -1) * M$29 -> 0 | N139: =OR(SUM(N78:$S78) = 1, SUM(N78:$S78) = -1) * N$29 -> 0 | O139: =OR(SUM(O78:$S78) = 1, SUM(O78:$S78) = -1) * O$29 -> 0 | P139: =OR(SUM(P78:$S78) = 1, SUM(P78:$S78) = -1) * P$29 -> 0 | Q139: =OR(SUM(Q78:$S78) = 1, SUM(Q78:$S78) = -1) * Q$29 -> 0 | R139: =OR(SUM(R78:$S78) = 1, SUM(R78:$S78) = -1) * R$29 -> 1.059 | S139: =OR(SUM(S78:$S78) = 1, SUM(S78:$S78) = -1) * S$29 -> 0
F140: HV Generation Site Specific | G140: scalar | H140: 1.036 | J140: =OR(SUM(J79:$S79) = 1, SUM(J79:$S79) = -1) * J$29 -> 0 | K140: =OR(SUM(K79:$S79) = 1, SUM(K79:$S79) = -1) * K$29 -> 0 | L140: =OR(SUM(L79:$S79) = 1, SUM(L79:$S79) = -1) * L$29 -> 0 | M140: =OR(SUM(M79:$S79) = 1, SUM(M79:$S79) = -1) * M$29 -> 0 | N140: =OR(SUM(N79:$S79) = 1, SUM(N79:$S79) = -1) * N$29 -> 0 | O140: =OR(SUM(O79:$S79) = 1, SUM(O79:$S79) = -1) * O$29 -> 0 | P140: =OR(SUM(P79:$S79) = 1, SUM(P79:$S79) = -1) * P$29 -> 1.025 | Q140: =OR(SUM(Q79:$S79) = 1, SUM(Q79:$S79) = -1) * Q$29 -> 1.036 | R140: =OR(SUM(R79:$S79) = 1, SUM(R79:$S79) = -1) * R$29 -> 0 | S140: =OR(SUM(S79:$S79) = 1, SUM(S79:$S79) = -1) * S$29 -> 0
F141: HV Generation Site Specific no RP Charge | G141: scalar | H141: 1.036 | J141: =OR(SUM(J80:$S80) = 1, SUM(J80:$S80) = -1) * J$29 -> 0 | K141: =OR(SUM(K80:$S80) = 1, SUM(K80:$S80) = -1) * K$29 -> 0 | L141: =OR(SUM(L80:$S80) = 1, SUM(L80:$S80) = -1) * L$29 -> 0 | M141: =OR(SUM(M80:$S80) = 1, SUM(M80:$S80) = -1) * M$29 -> 0 | N141: =OR(SUM(N80:$S80) = 1, SUM(N80:$S80) = -1) * N$29 -> 0 | O141: =OR(SUM(O80:$S80) = 1, SUM(O80:$S80) = -1) * O$29 -> 0 | P141: =OR(SUM(P80:$S80) = 1, SUM(P80:$S80) = -1) * P$29 -> 1.025 | Q141: =OR(SUM(Q80:$S80) = 1, SUM(Q80:$S80) = -1) * Q$29 -> 1.036 | R141: =OR(SUM(R80:$S80) = 1, SUM(R80:$S80) = -1) * R$29 -> 0 | S141: =OR(SUM(S80:$S80) = 1, SUM(S80:$S80) = -1) * S$29 -> 0
E143: User loss factor (assuming generation does not contribute at level of connection) | I143: > | W143: Paragraph 70 (a)
E144: These have been adjusted for the share of load going through 132/HV transformation
F145: Domestic Aggregated | G145: scalar | J145: =$H126 * J104 -> 1.115 | K145: 1.115 | L145: 1.115 | M145: 1.115 | N145: 1.115 | O145: 1.115 | P145: 0 | Q145: 1.115 | R145: 1.115 | S145: 1.115
F146: Domestic Aggregated (Related MPAN) | G146: scalar | J146: 1.115 | K146: 1.115 | L146: 1.115 | M146: 1.115 | N146: 1.115 | O146: 1.115 | P146: 0 | Q146: 1.115 | R146: 1.115 | S146: 1.115
F147: Non-Domestic Aggregated | G147: scalar | J147: 1.115 | K147: 1.115 | L147: 1.115 | M147: 1.115 | N147: 1.115 | O147: 1.115 | P147: 0 | Q147: 1.115 | R147: 1.115 | S147: 1.115
F148: Non-Domestic Aggregated (Related MPAN) | G148: scalar | J148: 1.115 | K148: 1.115 | L148: 1.115 | M148: 1.115 | N148: 1.115 | O148: 1.115 | P148: 0 | Q148: 1.115 | R148: 1.115 | S148: 1.115
F149: LV Site Specific | G149: scalar | J149: 1.115 | K149: 1.115 | L149: 1.115 | M149: 1.115 | N149: 1.115 | O149: 1.115 | P149: 0 | Q149: 1.115 | R149: 1.115 | S149: 1.115
F150: LV Sub Site Specific | G150: scalar | J150: 1.059 | K150: 1.059 | L150: 1.059 | M150: 1.059 | N150: 1.059 | O150: 1.059 | P150: 0 | Q150: 1.059 | R150: 1.059 | S150: 0
F151: HV Site Specific | G151: scalar | J151: 1.036 | K151: 1.036 | L151: 1.036 | M151: 1.036 | N151: 1.036 | O151: 1.036 | P151: 0 | Q151: 1.036 | R151: 0 | S151: 0
F152: Unmetered Supplies | G152: scalar | J152: 1.115 | K152: 1.115 | L152: 1.115 | M152: 1.115 | N152: 1.115 | O152: 1.115 | P152: 0 | Q152: 1.115 | R152: 1.115 | S152: 1.115
F153: LV Generation Aggregated | G153: scalar | J153: -1.115 | K153: -1.115 | L153: -1.115 | M153: -1.115 | N153: -1.115 | O153: -1.115 | P153: 0 | Q153: -1.115 | R153: -1.115 | S153: 0
F154: LV Sub Generation Aggregated | G154: scalar | J154: -1.059 | K154: -1.059 | L154: -1.059 | M154: -1.059 | N154: -1.059 | O154: -1.059 | P154: 0 | Q154: -1.059 | R154: 0 | S154: 0
F155: LV Generation Site Specific | G155: scalar | J155: -1.115 | K155: -1.115 | L155: -1.115 | M155: -1.115 | N155: -1.115 | O155: -1.115 | P155: 0 | Q155: -1.115 | R155: -1.115 | S155: 0
F156: LV Generation Site Specific no RP Charge | G156: scalar | J156: -1.115 | K156: -1.115 | L156: -1.115 | M156: -1.115 | N156: -1.115 | O156: -1.115 | P156: 0 | Q156: -1.115 | R156: -1.115 | S156: 0
F157: LV Sub Generation Site Specific | G157: scalar | J157: -1.059 | K157: -1.059 | L157: -1.059 | M157: -1.059 | N157: -1.059 | O157: -1.059 | P157: 0 | Q157: -1.059 | R157: 0 | S157: 0
F158: LV Sub Generation Site Specific no RP Charge | G158: scalar | J158: -1.059 | K158: -1.059 | L158: -1.059 | M158: -1.059 | N158: -1.059 | O158: -1.059 | P158: 0 | Q158: -1.059 | R158: 0 | S158: 0
F159: HV Generation Site Specific | G159: scalar | J159: -1.036 | K159: -1.036 | L159: -1.036 | M159: -1.036 | N159: -1.036 | O159: -1.036 | P159: 0 | Q159: 0 | R159: 0 | S159: 0
F160: HV Generation Site Specific no RP Charge | G160: scalar | J160: -1.036 | K160: -1.036 | L160: -1.036 | M160: -1.036 | N160: -1.036 | O160: -1.036 | P160: 0 | Q160: 0 | R160: 0 | S160: 0
E162: User loss factor (assuming generation contributes at level of connection) | I162: > | W162: Paragraph 70 (a)
E163: These have been adjusted for the share of load going through 132/HV transformation
F164: Domestic Aggregated | G164: scalar
F165: Domestic Aggregated (Related MPAN) | G165: scalar
F166: Non-Domestic Aggregated | G166: scalar
F167: Non-Domestic Aggregated (Related MPAN) | G167: scalar
F168: LV Site Specific | G168: scalar
F169: LV Sub Site Specific | G169: scalar
F170: HV Site Specific | G170: scalar
F171: Unmetered Supplies | G171: scalar
F172: LV Generation Aggregated | G172: scalar | J172: =$H134 * J73 -> -1.115 | K172: -1.115 | L172: -1.115 | M172: -1.115 | N172: -1.115 | O172: -1.115 | P172: 0 | Q172: -1.115 | R172: -1.115 | S172: -1.115
F173: LV Sub Generation Aggregated | G173: scalar | J173: -1.059 | K173: -1.059 | L173: -1.059 | M173: -1.059 | N173: -1.059 | O173: -1.059 | P173: 0 | Q173: -1.059 | R173: -1.059 | S173: 0
F174: LV Generation Site Specific | G174: scalar | J174: -1.115 | K174: -1.115 | L174: -1.115 | M174: -1.115 | N174: -1.115 | O174: -1.115 | P174: 0 | Q174: -1.115 | R174: -1.115 | S174: -1.115
F175: LV Generation Site Specific no RP Charge | G175: scalar | J175: -1.115 | K175: -1.115 | L175: -1.115 | M175: -1.115 | N175: -1.115 | O175: -1.115 | P175: 0 | Q175: -1.115 | R175: -1.115 | S175: -1.115
F176: LV Sub Generation Site Specific | G176: scalar | J176: -1.059 | K176: -1.059 | L176: -1.059 | M176: -1.059 | N176: -1.059 | O176: -1.059 | P176: 0 | Q176: -1.059 | R176: -1.059 | S176: 0
F177: LV Sub Generation Site Specific no RP Charge | G177: scalar | J177: -1.059 | K177: -1.059 | L177: -1.059 | M177: -1.059 | N177: -1.059 | O177: -1.059 | P177: 0 | Q177: -1.059 | R177: -1.059 | S177: 0
F178: HV Generation Site Specific | G178: scalar | J178: -1.036 | K178: -1.036 | L178: -1.036 | M178: -1.036 | N178: -1.036 | O178: -1.036 | P178: 0 | Q178: -1.036 | R178: 0 | S178: 0
F179: HV Generation Site Specific no RP Charge | G179: scalar | J179: -1.036 | K179: -1.036 | L179: -1.036 | M179: -1.036 | N179: -1.036 | O179: -1.036 | P179: 0 | Q179: -1.036 | R179: 0 | S179: 0
B181: Checks
E183: Check for error values | G183: number of issues | H183: =SUM(IF(ISERROR(H19:W181), 1)) -> 0
B185: End of sheet

Sheet Customer contributions
A1: =MID(CELL("filename",A1),FIND("]",CELL("filename",A1))+1,255) -> Customer contributions
A2: =Cover!D21&" - "&Cover!D23 -> SP Manweb - One
A3: =Cover!D2&" - "&Cover!D8&" v"&Cover!D10&" - "&Cover!D19 -> ARP model - Release for charge setting v7 - 2024/25
A4: =H70 & IF(H70 = 1, " issue", " issues") &" identified in checks on this sheet" -> 0 issues identified in checks on this sheet
B5: Click here to return to model map | G5: Units | H5: Constants | W5: Legal text reference
B7: Description
C9: This sheet calculates customer contributions towards assets (i.e. assets that are paid for, and should not be
C10: recovered under UoS charges)
B12: Customer contributions
C14: Maps customer contributions to customer categories
C16: =INDEX('Version control'!$H$36:$H$62,MATCH($A$1,'Version control'!$F$36:$F$62,0),1)&"-A: Network use factors" -> Section 506-A: Network use factors
E18: Network level at which users are supplied | I18: > | W18: Paragraph 30
E19: Network use factors based on customer contributed assets
J20: HV substation | K20: HV network | L20: LV substation | M20: LV network
F21: Domestic Aggregated | G21: 1 or 0 | J21: =TRANSPOSE('Fixed inputs'!J53:Y56) -> 0 | K21: 0 | L21: 0 | M21: 1
F22: Domestic Aggregated (Related MPAN) | G22: 1 or 0 | J22: 0 | K22: 0 | L22: 0 | M22: 1
F23: Non-Domestic Aggregated | G23: 1 or 0 | J23: 0 | K23: 0 | L23: 0 | M23: 1
F24: Non-Domestic Aggregated (Related MPAN) | G24: 1 or 0 | J24: 0 | K24: 0 | L24: 0 | M24: 1
F25: LV Site Specific | G25: 1 or 0 | J25: 0 | K25: 0 | L25: 0 | M25: 1
F26: LV Sub Site Specific | G26: 1 or 0 | J26: 0 | K26: 0 | L26: 1 | M26: 0
F27: HV Site Specific | G27: 1 or 0 | J27: 0 | K27: 1 | L27: 0 | M27: 0
F28: Unmetered Supplies | G28: 1 or 0 | J28: 0 | K28: 0 | L28: 0 | M28: 1
F29: LV Generation Aggregated | G29: 1 or 0 | J29: 0 | K29: 0 | L29: 0 | M29: 1
F30: LV Sub Generation Aggregated | G30: 1 or 0 | J30: 0 | K30: 0 | L30: 1 | M30: 0
F31: LV Generation Site Specific | G31: 1 or 0 | J31: 0 | K31: 0 | L31: 0 | M31: 1
F32: LV Generation Site Specific no RP Charge | G32: 1 or 0 | J32: 0 | K32: 0 | L32: 0 | M32: 1
F33: LV Sub Generation Site Specific | G33: 1 or 0 | J33: 0 | K33: 0 | L33: 1 | M33: 0
F34: LV Sub Generation Site Specific no RP Charge | G34: 1 or 0 | J34: 0 | K34: 0 | L34: 1 | M34: 0
F35: HV Generation Site Specific | G35: 1 or 0 | J35: 0 | K35: 1 | L35: 0 | M35: 0
F36: HV Generation Site Specific no RP Charge | G36: 1 or 0 | J36: 0 | K36: 1 | L36: 0 | M36: 0
C38: =INDEX('Version control'!$H$36:$H$62,MATCH($A$1,'Version control'!$F$36:$F$62,0),1)&"-B: Customer contributions" -> Section 506-B: Customer contributions
E40: Customer contributions, by network level of supply | I40: > | W40: Paragraph 29
E41: Share of customer contributions by network level and asset type
J42: Transmission exit | K42: GSPs | L42: 132kV | M42: 132kV/EHV | N42: EHV | O42: EHV/HV | P42: 132kV/HV | Q42: HV | R42: HV/LV | S42: LV circuits | T42: LV customers | U42: HV customers
F43: LV network | G43: % | L43: ='Inputs by network level'!L29 -> 0 | M43: ='Inputs by network level'!M29 -> 0 | N43: ='Inputs by network level'!N29 -> 0 | O43: ='Inputs by network level'!O29 -> 0 | P43: ='Inputs by network level'!P29 -> 0 | Q43: ='Inputs by network level'!Q29 -> 0.3263512902 | R43: ='Inputs by network level'!R29 -> 0.7109728507 | S43: ='Inputs by network level'!S29 -> 0.9309486908
F44: LV substation | G44: % | L44: ='Inputs by network level'!L30 -> 0 | M44: ='Inputs by network level'!M30 -> 0 | N44: ='Inputs by network level'!N30 -> 0 | O44: ='Inputs by network level'!O30 -> 0 | P44: ='Inputs by network level'!P30 -> 0 | Q44: ='Inputs by network level'!Q30 -> 0.3263512902 | R44: ='Inputs by network level'!R30 -> 0.7109728507 | S44: ='Inputs by network level'!S30 -> 0
F45: HV network | G45: % | L45: ='Inputs by network level'!L31 -> 0 | M45: ='Inputs by network level'!M31 -> 0 | N45: ='Inputs by network level'!N31 -> 0.2944301994 | O45: ='Inputs by network level'!O31 -> 0.1431705882 | P45: ='Inputs by network level'!P31 -> 0 | Q45: ='Inputs by network level'!Q31 -> 0.7342904029 | R45: ='Inputs by network level'!R31 -> 0 | S45: ='Inputs by network level'!S31 -> 0
F46: HV substation | G46: % | L46: ='Inputs by network level'!L32 -> 0 | M46: ='Inputs by network level'!M32 -> 0 | N46: ='Inputs by network level'!N32 -> 0.2944301994 | O46: ='Inputs by network level'!O32 -> 0.1431705882 | P46: ='Inputs by network level'!P32 -> 0 | Q46: ='Inputs by network level'!Q32 -> 0 | R46: ='Inputs by network level'!R32 -> 0 | S46: ='Inputs by network level'!S32 -> 0
E48: Customer contributions, by network level
E49: Customer contributions by network level and customer type based on mappings above
J50: Transmission exit | K50: GSPs | L50: 132kV | M50: 132kV/EHV | N50: EHV | O50: EHV/HV | P50: 132kV/HV | Q50: HV | R50: HV/LV | S50: LV circuits | T50: LV customers | U50: HV customers
F51: Domestic Aggregated | H51: % | L51: =$M21 * L$43 + $L21 * L$44 + $K21 * L$45 + $J21 * L$46 -> 0 | M51: 0 | N51: 0 | O51: 0 | P51: 0 | Q51: 0.3263512902 | R51: 0.7109728507 | S51: 0.9309486908
F52: Domestic Aggregated (Related MPAN) | H52: % | L52: 0 | M52: 0 | N52: 0 | O52: 0 | P52: 0 | Q52: 0.3263512902 | R52: 0.7109728507 | S52: 0.9309486908
F53: Non-Domestic Aggregated | H53: % | L53: 0 | M53: 0 | N53: 0 | O53: 0 | P53: 0 | Q53: 0.3263512902 | R53: 0.7109728507 | S53: 0.9309486908
F54: Non-Domestic Aggregated (Related MPAN) | H54: % | L54: 0 | M54: 0 | N54: 0 | O54: 0 | P54: 0 | Q54: 0.3263512902 | R54: 0.7109728507 | S54: 0.9309486908
F55: LV Site Specific | H55: % | L55: 0 | M55: 0 | N55: 0 | O55: 0 | P55: 0 | Q55: 0.3263512902 | R55: 0.7109728507 | S55: 0.9309486908
F56: LV Sub Site Specific | H56: % | L56: 0 | M56: 0 | N56: 0 | O56: 0 | P56: 0 | Q56: 0.3263512902 | R56: 0.7109728507 | S56: 0
F57: HV Site Specific | H57: % | L57: 0 | M57: 0 | N57: 0.2944301994 | O57: 0.1431705882 | P57: 0 | Q57: 0.7342904029 | R57: 0 | S57: 0
F58: Unmetered Supplies | H58: % | L58: 0 | M58: 0 | N58: 0 | O58: 0 | P58: 0 | Q58: 0.3263512902 | R58: 0.7109728507 | S58: 0.9309486908
F59: LV Generation Aggregated | H59: % | L59: 0 | M59: 0 | N59: 0 | O59: 0 | P59: 0 | Q59: 0.3263512902 | R59: 0.7109728507 | S59: 0.9309486908
F60: LV Sub Generation Aggregated | H60: % | L60: 0 | M60: 0 | N60: 0 | O60: 0 | P60: 0 | Q60: 0.3263512902 | R60: 0.7109728507 | S60: 0
F61: LV Generation Site Specific | H61: % | L61: 0 | M61: 0 | N61: 0 | O61: 0 | P61: 0 | Q61: 0.3263512902 | R61: 0.7109728507 | S61: 0.9309486908
F62: LV Generation Site Specific no RP Charge | H62: % | L62: 0 | M62: 0 | N62: 0 | O62: 0 | P62: 0 | Q62: 0.3263512902 | R62: 0.7109728507 | S62: 0.9309486908
F63: LV Sub Generation Site Specific | H63: % | L63: 0 | M63: 0 | N63: 0 | O63: 0 | P63: 0 | Q63: 0.3263512902 | R63: 0.7109728507 | S63: 0
F64: LV Sub Generation Site Specific no RP Charge | H64: % | L64: 0 | M64: 0 | N64: 0 | O64: 0 | P64: 0 | Q64: 0.3263512902 | R64: 0.7109728507 | S64: 0
F65: HV Generation Site Specific | H65: % | L65: 0 | M65: 0 | N65: 0.2944301994 | O65: 0.1431705882 | P65: 0 | Q65: 0.7342904029 | R65: 0 | S65: 0
F66: HV Generation Site Specific no RP Charge | H66: % | L66: 0 | M66: 0 | N66: 0.2944301994 | O66: 0.1431705882 | P66: 0 | Q66: 0.7342904029 | R66: 0 | S66: 0
B68: Checks
E70: Check for error values | G70: number of issues | H70: =SUM(IF(ISERROR(H21:U66), 1)) -> 0
B72: End of sheet

Sheet Volume adjustments
A1: =MID(CELL("filename",A1),FIND("]",CELL("filename",A1))+1,255) -> Volume adjustments
A2: =Cover!D21&" - "&Cover!D23 -> SP Manweb - One
A3: =Cover!D2&" - "&Cover!D8&" v"&Cover!D10&" - "&Cover!D19 -> ARP model - Release for charge setting v7 - 2024/25
A4: =H693 & IF(H693 = 1, " issue", " issues") &" identified in checks on this sheet" -> 0 issues identified in checks on this sheet
B5: Click here to return to model map | G5: Units | H5: Constants | J5: Domestic Aggregated | K5: Domestic Aggregated (Related MPAN) | L5: Non-Domestic Aggregated | M5: Non-Domestic Aggregated (Related MPAN) | N5: LV Site Specific | O5: LV Sub Site Specific | P5: HV Site Specific | Q5: Unmetered Supplies | R5: LV Generation Aggregated | S5: LV Sub Generation Aggregated | T5: LV Generation Site Specific | U5: LV Generation Site Specific no RP Charge | V5: LV Sub Generation Site Specific | W5: LV Sub Generation Site Specific no RP Charge | X5: HV Generation Site Specific | Y5: HV Generation Site Specific no RP Charge | AA5: Legal text reference
B7: Description
C9: This sheet calculates volumes (kWh, MPAN, import and exceeded capacity) to be used throughout the model.
C10: This sheet first calculates the discounts to be applied to LDNO volumes, then combines these with volumes for
C11: all the way customers.
B13: LDNO discounts
C15: =INDEX('Version control'!$H$36:$H$62,MATCH($A$1,'Version control'!$F$36:$F$62,0),1)&"-A: LDNO discounts" -> Section 507-A: LDNO discounts
D17: This section maps the LDNO discounts from the PCDM to different customer categories
D18: Generation LDNO customers do not receive the standard LDNO discounts, and this adjustment is made in this section
E20: Discounts from PCDM | I20: >
E21: LDNO discounts calculated in the PCDM | AA21: Paragraph 97
F22: LDNO LV: LV user | G22: % | H22: ='General inputs'!H33 -> 0.3944551209
F23: LDNO HV: LV user | G23: % | H23: ='General inputs'!H34 -> 0.5604265994
F24: LDNO HV: LV Sub user | G24: % | H24: ='General inputs'!H35 -> 0.2724475054
F25: LDNO HV: HV user | G25: % | H25: ='General inputs'!H36 -> 0.1787927473
E27: Discount mapping | I27: > | AA27: Paragraphs 98 & 99
E28: Maps customer types to LDNO discount categories and calculates the appropriate discount to be applied to
E29: each customer
F30: LDNO LV: LV user | G30: 1 or 0 | J30: ='Fixed inputs'!J46 -> 1 | K30: ='Fixed inputs'!K46 -> 1 | L30: ='Fixed inputs'!L46 -> 1 | M30: ='Fixed inputs'!M46 -> 1 | N30: ='Fixed inputs'!N46 -> 1 | O30: ='Fixed inputs'!O46 -> 0 | P30: ='Fixed inputs'!P46 -> 0 | Q30: ='Fixed inputs'!Q46 -> 1 | R30: ='Fixed inputs'!R46 -> 0 | S30: ='Fixed inputs'!S46 -> 0 | T30: ='Fixed inputs'!T46 -> 0 | U30: ='Fixed inputs'!U46 -> 0 | V30: ='Fixed inputs'!V46 -> 0 | W30: ='Fixed inputs'!W46 -> 0 | X30: ='Fixed inputs'!X46 -> 0 | Y30: ='Fixed inputs'!Y46 -> 0
F31: LDNO HV: LV user | G31: 1 or 0 | J31: ='Fixed inputs'!J47 -> 1 | K31: ='Fixed inputs'!K47 -> 1 | L31: ='Fixed inputs'!L47 -> 1 | M31: ='Fixed inputs'!M47 -> 1 | N31: ='Fixed inputs'!N47 -> 1 | O31: ='Fixed inputs'!O47 -> 0 | P31: ='Fixed inputs'!P47 -> 0 | Q31: ='Fixed inputs'!Q47 -> 1 | R31: ='Fixed inputs'!R47 -> 0 | S31: ='Fixed inputs'!S47 -> 0 | T31: ='Fixed inputs'!T47 -> 0 | U31: ='Fixed inputs'!U47 -> 0 | V31: ='Fixed inputs'!V47 -> 0 | W31: ='Fixed inputs'!W47 -> 0 | X31: ='Fixed inputs'!X47 -> 0 | Y31: ='Fixed inputs'!Y47 -> 0
F32: LDNO HV: LV Sub user | G32: 1 or 0 | J32: ='Fixed inputs'!J48 -> 0 | K32: ='Fixed inputs'!K48 -> 0 | L32: ='Fixed inputs'!L48 -> 0 | M32: ='Fixed inputs'!M48 -> 0 | N32: ='Fixed inputs'!N48 -> 0 | O32: ='Fixed inputs'!O48 -> 1 | P32: ='Fixed inputs'!P48 -> 0 | Q32: ='Fixed inputs'!Q48 -> 0 | R32: ='Fixed inputs'!R48 -> 0 | S32: ='Fixed inputs'!S48 -> 0 | T32: ='Fixed inputs'!T48 -> 0 | U32: ='Fixed inputs'!U48 -> 0 | V32: ='Fixed inputs'!V48 -> 0 | W32: ='Fixed inputs'!W48 -> 0 | X32: ='Fixed inputs'!X48 -> 0 | Y32: ='Fixed inputs'!Y48 -> 0
F33: LDNO HV: HV user | G33: 1 or 0 | J33: ='Fixed inputs'!J49 -> 0 | K33: ='Fixed inputs'!K49 -> 0 | L33: ='Fixed inputs'!L49 -> 0 | M33: ='Fixed inputs'!M49 -> 0 | N33: ='Fixed inputs'!N49 -> 0 | O33: ='Fixed inputs'!O49 -> 0 | P33: ='Fixed inputs'!P49 -> 1 | Q33: ='Fixed inputs'!Q49 -> 0 | R33: ='Fixed inputs'!R49 -> 0 | S33: ='Fixed inputs'!S49 -> 0 | T33: ='Fixed inputs'!T49 -> 0 | U33: ='Fixed inputs'!U49 -> 0 | V33: ='Fixed inputs'!V49 -> 0 | W33: ='Fixed inputs'!W49 -> 0 | X33: ='Fixed inputs'!X49 -> 0 | Y33: ='Fixed inputs'!Y49 -> 0
F34: LV discount | G34: % | J34: =J30 * $H$22 -> 0.3944551209 | K34: 0.3944551209 | L34: 0.3944551209 | M34: 0.3944551209 | N34: 0.3944551209 | O34: 0 | P34: 0 | Q34: 0.3944551209 | R34: 0 | S34: 0 | T34: 0 | U34: 0 | V34: 0 | W34: 0 | X34: 0 | Y34: 0
F35: HV discount | G35: % | J35: =SUMPRODUCT(J31:J33,$H$23:$H$25) -> 0.5604265994 | K35: 0.5604265994 | L35: 0.5604265994 | M35: 0.5604265994 | N35: 0.5604265994 | O35: 0.2724475054 | P35: 0.1787927473 | Q35: 0.5604265994 | R35: 0 | S35: 0 | T35: 0 | U35: 0 | V35: 0 | W35: 0 | X35: 0 | Y35: 0
E37: Discount override | I37: > | AA37: Paragraphs 98 & 99
E38: This table overrides discount factors for certain categories of user
F39: Flag for overriding MWh discount rate | G39: TRUE / FALSE | J39: ='Fixed inputs'!J105 -> FALSE | K39: ='Fixed inputs'!K105 -> FALSE | L39: ='Fixed inputs'!L105 -> FALSE | M39: ='Fixed inputs'!M105 -> FALSE | N39: ='Fixed inputs'!N105 -> FALSE | O39: ='Fixed inputs'!O105 -> FALSE | P39: ='Fixed inputs'!P105 -> FALSE | Q39: ='Fixed inputs'!Q105 -> FALSE | R39: ='Fixed inputs'!R105 -> TRUE | S39: ='Fixed inputs'!S105 -> TRUE | T39: ='Fixed inputs'!T105 -> TRUE | U39: ='Fixed inputs'!U105 -> TRUE | V39: ='Fixed inputs'!V105 -> TRUE | W39: ='Fixed inputs'!W105 -> TRUE | X39: ='Fixed inputs'!X105 -> TRUE | Y39: ='Fixed inputs'!Y105 -> TRUE
F40: Flag for overriding MPAN discount rate | G40: TRUE / FALSE | J40: ='Fixed inputs'!J109 -> FALSE | K40: ='Fixed inputs'!K109 -> FALSE | L40: ='Fixed inputs'!L109 -> FALSE | M40: ='Fixed inputs'!M109 -> FALSE | N40: ='Fixed inputs'!N109 -> FALSE | O40: ='Fixed inputs'!O109 -> FALSE | P40: ='Fixed inputs'!P109 -> FALSE | Q40: ='Fixed inputs'!Q109 -> FALSE | R40: ='Fixed inputs'!R109 -> TRUE | S40: ='Fixed inputs'!S109 -> TRUE | T40: ='Fixed inputs'!T109 -> TRUE | U40: ='Fixed inputs'!U109 -> TRUE | V40: ='Fixed inputs'!V109 -> TRUE | W40: ='Fixed inputs'!W109 -> TRUE | X40: ='Fixed inputs'!X109 -> TRUE | Y40: ='Fixed inputs'!Y109 -> TRUE
F41: Flag for overriding import capacity discount rate | G41: TRUE / FALSE | J41: ='Fixed inputs'!J113 -> FALSE | K41: ='Fixed inputs'!K113 -> FALSE | L41: ='Fixed inputs'!L113 -> FALSE | M41: ='Fixed inputs'!M113 -> FALSE | N41: ='Fixed inputs'!N113 -> FALSE | O41: ='Fixed inputs'!O113 -> FALSE | P41: ='Fixed inputs'!P113 -> FALSE | Q41: ='Fixed inputs'!Q113 -> FALSE | R41: ='Fixed inputs'!R113 -> TRUE | S41: ='Fixed inputs'!S113 -> TRUE | T41: ='Fixed inputs'!T113 -> TRUE | U41: ='Fixed inputs'!U113 -> TRUE | V41: ='Fixed inputs'!V113 -> TRUE | W41: ='Fixed inputs'!W113 -> TRUE | X41: ='Fixed inputs'!X113 -> TRUE | Y41: ='Fixed inputs'!Y113 -> TRUE
F42: Flag for overriding exceeded capacity discount rate | G42: TRUE / FALSE | J42: ='Fixed inputs'!J117 -> FALSE | K42: ='Fixed inputs'!K117 -> FALSE | L42: ='Fixed inputs'!L117 -> FALSE | M42: ='Fixed inputs'!M117 -> FALSE | N42: ='Fixed inputs'!N117 -> FALSE | O42: ='Fixed inputs'!O117 -> FALSE | P42: ='Fixed inputs'!P117 -> FALSE | Q42: ='Fixed inputs'!Q117 -> FALSE | R42: ='Fixed inputs'!R117 -> TRUE | S42: ='Fixed inputs'!S117 -> TRUE | T42: ='Fixed inputs'!T117 -> TRUE | U42: ='Fixed inputs'!U117 -> TRUE | V42: ='Fixed inputs'!V117 -> TRUE | W42: ='Fixed inputs'!W117 -> TRUE | X42: ='Fixed inputs'!X117 -> TRUE | Y42: ='Fixed inputs'!Y117 -> TRUE
F43: Flag for overriding reactive power units discount rate | G43: TRUE / FALSE | J43: ='Fixed inputs'!J121 -> FALSE | K43: ='Fixed inputs'!K121 -> FALSE | L43: ='Fixed inputs'!L121 -> FALSE | M43: ='Fixed inputs'!M121 -> FALSE | N43: ='Fixed inputs'!N121 -> FALSE | O43: ='Fixed inputs'!O121 -> FALSE | P43: ='Fixed inputs'!P121 -> FALSE | Q43: ='Fixed inputs'!Q121 -> FALSE | R43: ='Fixed inputs'!R121 -> TRUE | S43: ='Fixed inputs'!S121 -> TRUE | T43: ='Fixed inputs'!T121 -> TRUE | U43: ='Fixed inputs'!U121 -> TRUE | V43: ='Fixed inputs'!V121 -> TRUE | W43: ='Fixed inputs'!W121 -> TRUE | X43: ='Fixed inputs'!X121 -> TRUE | Y43: ='Fixed inputs'!Y121 -> TRUE
F45: Override MWh discount rate | G45: % | J45: ='Fixed inputs'!J106 -> 0 | K45: ='Fixed inputs'!K106 -> 0 | L45: ='Fixed inputs'!L106 -> 0 | M45: ='Fixed inputs'!M106 -> 0 | N45: ='Fixed inputs'!N106 -> 0 | O45: ='Fixed inputs'!O106 -> 0 | P45: ='Fixed inputs'!P106 -> 0 | Q45: ='Fixed inputs'!Q106 -> 0 | R45: ='Fixed inputs'!R106 -> 0 | S45: ='Fixed inputs'!S106 -> 0 | T45: ='Fixed inputs'!T106 -> 0 | U45: ='Fixed inputs'!U106 -> 0 | V45: ='Fixed inputs'!V106 -> 0 | W45: ='Fixed inputs'!W106 -> 0 | X45: ='Fixed inputs'!X106 -> 0 | Y45: ='Fixed inputs'!Y106 -> 0
F46: Override MPAN discount rate | G46: % | J46: ='Fixed inputs'!J110 -> 0 | K46: ='Fixed inputs'!K110 -> 0 | L46: ='Fixed inputs'!L110 -> 0 | M46: ='Fixed inputs'!M110 -> 0 | N46: ='Fixed inputs'!N110 -> 0 | O46: ='Fixed inputs'!O110 -> 0 | P46: ='Fixed inputs'!P110 -> 0 | Q46: ='Fixed inputs'!Q110 -> 0 | R46: ='Fixed inputs'!R110 -> 1 | S46: ='Fixed inputs'!S110 -> 1 | T46: ='Fixed inputs'!T110 -> 1 | U46: ='Fixed inputs'!U110 -> 1 | V46: ='Fixed inputs'!V110 -> 1 | W46: ='Fixed inputs'!W110 -> 1 | X46: ='Fixed inputs'!X110 -> 1 | Y46: ='Fixed inputs'!Y110 -> 1
F47: Override import capacity discount rate | G47: % | J47: ='Fixed inputs'!J114 -> 0 | K47: ='Fixed inputs'!K114 -> 0 | L47: ='Fixed inputs'!L114 -> 0 | M47: ='Fixed inputs'!M114 -> 0 | N47: ='Fixed inputs'!N114 -> 0 | O47: ='Fixed inputs'!O114 -> 0 | P47: ='Fixed inputs'!P114 -> 0 | Q47: ='Fixed inputs'!Q114 -> 0 | R47: ='Fixed inputs'!R114 -> 0 | S47: ='Fixed inputs'!S114 -> 0 | T47: ='Fixed inputs'!T114 -> 0 | U47: ='Fixed inputs'!U114 -> 0 | V47: ='Fixed inputs'!V114 -> 0 | W47: ='Fixed inputs'!W114 -> 0 | X47: ='Fixed inputs'!X114 -> 0 | Y47: ='Fixed inputs'!Y114 -> 0
F48: Override exceeded capacity discount rate | G48: % | J48: ='Fixed inputs'!J118 -> 0 | K48: ='Fixed inputs'!K118 -> 0 | L48: ='Fixed inputs'!L118 -> 0 | M48: ='Fixed inputs'!M118 -> 0 | N48: ='Fixed inputs'!N118 -> 0 | O48: ='Fixed inputs'!O118 -> 0 | P48: ='Fixed inputs'!P118 -> 0 | Q48: ='Fixed inputs'!Q118 -> 0 | R48: ='Fixed inputs'!R118 -> 0 | S48: ='Fixed inputs'!S118 -> 0 | T48: ='Fixed inputs'!T118 -> 0 | U48: ='Fixed inputs'!U118 -> 0 | V48: ='Fixed inputs'!V118 -> 0 | W48: ='Fixed inputs'!W118 -> 0 | X48: ='Fixed inputs'!X118 -> 0 | Y48: ='Fixed inputs'!Y118 -> 0
F49: Override reactive power units discount rate | G49: % | J49: ='Fixed inputs'!J122 -> 0 | K49: ='Fixed inputs'!K122 -> 0 | L49: ='Fixed inputs'!L122 -> 0 | M49: ='Fixed inputs'!M122 -> 0 | N49: ='Fixed inputs'!N122 -> 0 | O49: ='Fixed inputs'!O122 -> 0 | P49: ='Fixed inputs'!P122 -> 0 | Q49: ='Fixed inputs'!Q122 -> 0 | R49: ='Fixed inputs'!R122 -> 0 | S49: ='Fixed inputs'!S122 -> 0 | T49: ='Fixed inputs'!T122 -> 0 | U49: ='Fixed inputs'!U122 -> 0 | V49: ='Fixed inputs'!V122 -> 0 | W49: ='Fixed inputs'!W122 -> 0 | X49: ='Fixed inputs'!X122 -> 0 | Y49: ='Fixed inputs'!Y122 -> 0
B51: Volume discounting
C53: =INDEX('Version control'!$H$36:$H$62,MATCH($A$1,'Version control'!$F$36:$F$62,0),1)&"-B: Aggregation of volumes" -> Section 507-B: Aggregation of volumes
D55: Volumes for all the way tariffs are imported from the inputs, separately for each residual band.
E57: All the way volume forecast - No Residual | I57: >
F58: Rate 1 units | G58: MWh | K58: ='Inputs by customer type'!K26 -> 32.089 | L58: ='Inputs by customer type'!L26 -> 48.92907436 | M58: ='Inputs by customer type'!M26 -> 5.328 | N58: ='Inputs by customer type'!N26 -> 17.87464222 | O58: ='Inputs by customer type'!O26 -> 1.02893858 | P58: ='Inputs by customer type'!P26 -> 175.3916604 | R58: ='Inputs by customer type'!R26 -> 2038.954569 | S58: ='Inputs by customer type'!S26 -> 34.08550267 | T58: ='Inputs by customer type'!T26 -> 3793.449 | U58: ='Inputs by customer type'!U26 -> 0 | V58: ='Inputs by customer type'!V26 -> 1172.297 | W58: ='Inputs by customer type'!W26 -> 0 | X58: ='Inputs by customer type'!X26 -> 51281.671 | Y58: ='Inputs by customer type'!Y26 -> 0
F59: Rate 2 units | G59: MWh | K59: ='Inputs by customer type'!K27 -> 557.914 | L59: ='Inputs by customer type'!L27 -> 260.6422565 | M59: ='Inputs by customer type'!M27 -> 317.86 | N59: ='Inputs by customer type'!N27 -> 105.4816807 | O59: ='Inputs by customer type'!O27 -> 4.150458719 | P59: ='Inputs by customer type'!P27 -> 1149.126321 | R59: ='Inputs by customer type'!R27 -> 12274.52828 | S59: ='Inputs by customer type'!S27 -> 143.9227273 | T59: ='Inputs by customer type'!T27 -> 18380.287 | U59: ='Inputs by customer type'!U27 -> 0 | V59: ='Inputs by customer type'!V27 -> 5289.195 | W59: ='Inputs by customer type'!W27 -> 0 | X59: ='Inputs by customer type'!X27 -> 176930.155 | Y59: ='Inputs by customer type'!Y27 -> 0
F60: Rate 3 units | G60: MWh | K60: ='Inputs by customer type'!K28 -> 6679.759 | L60: ='Inputs by customer type'!L28 -> 218.7632633 | M60: ='Inputs by customer type'!M28 -> 3640.25 | N60: ='Inputs by customer type'!N28 -> 94.33406445 | O60: ='Inputs by customer type'!O28 -> 5.884740792 | P60: ='Inputs by customer type'!P28 -> 1706.545262 | R60: ='Inputs by customer type'!R28 -> 6127.115168 | S60: ='Inputs by customer type'!S28 -> 95.50759893 | T60: ='Inputs by customer type'!T28 -> 20626.524 | U60: ='Inputs by customer type'!U28 -> 0 | V60: ='Inputs by customer type'!V28 -> 6499.353 | W60: ='Inputs by customer type'!W28 -> 0 | X60: ='Inputs by customer type'!X28 -> 157737.588 | Y60: ='Inputs by customer type'!Y28 -> 0
F61: MPANs | G61: MPANs | K61: ='Inputs by customer type'!K29 -> 2859 | L61: ='Inputs by customer type'!L29 -> 43 | M61: ='Inputs by customer type'!M29 -> 940 | N61: ='Inputs by customer type'!N29 -> 28 | O61: ='Inputs by customer type'!O29 -> 5 | P61: ='Inputs by customer type'!P29 -> 59 | R61: ='Inputs by customer type'!R29 -> 2180 | S61: ='Inputs by customer type'!S29 -> 24 | T61: ='Inputs by customer type'!T29 -> 344 | U61: ='Inputs by customer type'!U29 -> 0 | V61: ='Inputs by customer type'!V29 -> 42 | W61: ='Inputs by customer type'!W29 -> 0 | X61: ='Inputs by customer type'!X29 -> 152 | Y61: ='Inputs by customer type'!Y29 -> 0
F62: Import capacity | G62: kVA | K62: ='Inputs by customer type'!K30 -> 0 | L62: ='Inputs by customer type'!L30 -> 0 | M62: ='Inputs by customer type'!M30 -> 0 | N62: ='Inputs by customer type'!N30 -> 1378 | O62: ='Inputs by customer type'!O30 -> 118 | P62: ='Inputs by customer type'!P30 -> 6929 | R62: ='Inputs by customer type'!R30 -> 0 | S62: ='Inputs by customer type'!S30 -> 0 | T62: ='Inputs by customer type'!T30 -> 0 | U62: ='Inputs by customer type'!U30 -> 0 | V62: ='Inputs by customer type'!V30 -> 0 | W62: ='Inputs by customer type'!W30 -> 0 | X62: ='Inputs by customer type'!X30 -> 0 | Y62: ='Inputs by customer type'!Y30 -> 0
F63: Exceeded capacity | G63: kVA | K63: ='Inputs by customer type'!K31 -> 0 | L63: ='Inputs by customer type'!L31 -> 0 | M63: ='Inputs by customer type'!M31 -> 0 | N63: ='Inputs by customer type'!N31 -> 4 | O63: ='Inputs by customer type'!O31 -> 0 | P63: ='Inputs by customer type'!P31 -> 246.9166667 | R63: ='Inputs by customer type'!R31 -> 0 | S63: ='Inputs by customer type'!S31 -> 0 | T63: ='Inputs by customer type'!T31 -> 0 | U63: ='Inputs by customer type'!U31 -> 0 | V63: ='Inputs by customer type'!V31 -> 0 | W63: ='Inputs by customer type'!W31 -> 0 | X63: ='Inputs by customer type'!X31 -> 0 | Y63: ='Inputs by customer type'!Y31 -> 0
F64: Reactive power units | G64: MVArh | K64: ='Inputs by customer type'!K32 -> 0 | L64: ='Inputs by customer type'!L32 -> 0 | M64: ='Inputs by customer type'!M32 -> 0 | N64: ='Inputs by customer type'!N32 -> 49 | O64: ='Inputs by customer type'!O32 -> 4.248 | P64: ='Inputs by customer type'!P32 -> 1606.79 | R64: ='Inputs by customer type'!R32 -> 0 | S64: ='Inputs by customer type'!S32 -> 0 | T64: ='Inputs by customer type'!T32 -> 5712.562 | U64: ='Inputs by customer type'!U32 -> 0 | V64: ='Inputs by customer type'!V32 -> 573.778 | W64: ='Inputs by customer type'!W32 -> 0 | X64: ='Inputs by customer type'!X32 -> 9164.714 | Y64: ='Inputs by customer type'!Y32 -> 0
E66: All the way volume forecast - Residual Band 1 | I66: >
F67: Rate 1 units | G67: MWh | J67: ='Inputs by customer type'!J35 -> 542392.9205 | L67: ='Inputs by customer type'!L35 -> 13142.79174 | N67: ='Inputs by customer type'!N35 -> 28709.25947 | O67: ='Inputs by customer type'!O35 -> 9636.740466 | P67: ='Inputs by customer type'!P35 -> 11697.3744 | Q67: ='Inputs by customer type'!Q35 -> 6404.747543
F68: Rate 2 units | G68: MWh | J68: ='Inputs by customer type'!J36 -> 1892156.584 | L68: ='Inputs by customer type'!L36 -> 66780.27256 | N68: ='Inputs by customer type'!N36 -> 129817.1052 | O68: ='Inputs by customer type'!O36 -> 48097.83145 | P68: ='Inputs by customer type'!P36 -> 57111.12232 | Q68: ='Inputs by customer type'!Q36 -> 35748.58558
F69: Rate 3 units | G69: MWh | J69: ='Inputs by customer type'!J37 -> 1827461.78 | L69: ='Inputs by customer type'!L37 -> 53491.72347 | N69: ='Inputs by customer type'!N37 -> 117418.1964 | O69: ='Inputs by customer type'!O37 -> 40457.07613 | P69: ='Inputs by customer type'!P37 -> 59452.75135 | Q69: ='Inputs by customer type'!Q37 -> 82463.46021
F70: MPANs | G70: MPANs | J70: ='Inputs by customer type'!J38 -> 1400937 | L70: ='Inputs by customer type'!L38 -> 38321 | N70: ='Inputs by customer type'!N38 -> 2869 | O70: ='Inputs by customer type'!O38 -> 1010 | P70: ='Inputs by customer type'!P38 -> 248 | Q70: ='Inputs by customer type'!Q38 -> 570
F71: Import capacity | G71: kVA | J71: ='Inputs by customer type'!J39 -> 0 | L71: ='Inputs by customer type'!L39 -> 0 | N71: ='Inputs by customer type'!N39 -> 147844 | O71: ='Inputs by customer type'!O39 -> 56061 | P71: ='Inputs by customer type'!P39 -> 53000 | Q71: ='Inputs by customer type'!Q39 -> 0
F72: Exceeded capacity | G72: kVA | J72: ='Inputs by customer type'!J40 -> 0 | L72: ='Inputs by customer type'!L40 -> 0 | N72: ='Inputs by customer type'!N40 -> 7679.5 | O72: ='Inputs by customer type'!O40 -> 4072.833333 | P72: ='Inputs by customer type'!P40 -> 4000.333333 | Q72: ='Inputs by customer type'!Q40 -> 0
F73: Reactive power units | G73: MVArh | J73: ='Inputs by customer type'!J41 -> 0 | L73: ='Inputs by customer type'!L41 -> 0 | N73: ='Inputs by customer type'!N41 -> 23543.742 | O73: ='Inputs by customer type'!O41 -> 11326.072 | P73: ='Inputs by customer type'!P41 -> 15001.021 | Q73: ='Inputs by customer type'!Q41 -> 0
E75: All the way volume forecast - Residual Band 2 | I75: >
F76: Rate 1 units | G76: MWh | L76: ='Inputs by customer type'!L44 -> 24501.17931 | N76: ='Inputs by customer type'!N44 -> 35914.50927 | O76: ='Inputs by customer type'!O44 -> 18046.1326 | P76: ='Inputs by customer type'!P44 -> 44472.44994
F77: Rate 2 units | G77: MWh | L77: ='Inputs by customer type'!L45 -> 125535.0506 | N77: ='Inputs by customer type'!N45 -> 161968.832 | O77: ='Inputs by customer type'!O45 -> 87720.41963 | P77: ='Inputs by customer type'!P45 -> 205198.7036
F78: Rate 3 units | G78: MWh | L78: ='Inputs by customer type'!L46 -> 101325.4576 | N78: ='Inputs by customer type'!N46 -> 143438.7859 | O78: ='Inputs by customer type'!O46 -> 76645.07202 | P78: ='Inputs by customer type'!P46 -> 214345.2089
F79: MPANs | G79: MPANs | L79: ='Inputs by customer type'!L47 -> 30423 | N79: ='Inputs by customer type'!N47 -> 1990 | O79: ='Inputs by customer type'!O47 -> 801 | P79: ='Inputs by customer type'!P47 -> 289
F80: Import capacity | G80: kVA | L80: ='Inputs by customer type'!L48 -> 0 | N80: ='Inputs by customer type'!N48 -> 228911 | O80: ='Inputs by customer type'!O48 -> 95342 | P80: ='Inputs by customer type'!P48 -> 197665
F81: Exceeded capacity | G81: kVA | L81: ='Inputs by customer type'!L49 -> 0 | N81: ='Inputs by customer type'!N49 -> 3181.166667 | O81: ='Inputs by customer type'!O49 -> 3639 | P81: ='Inputs by customer type'!P49 -> 3025.583333
F82: Reactive power units | G82: MVArh | L82: ='Inputs by customer type'!L50 -> 0 | N82: ='Inputs by customer type'!N50 -> 26742.13 | O82: ='Inputs by customer type'!O50 -> 14727.264 | P82: ='Inputs by customer type'!P50 -> 39577.704
E84: All the way volume forecast - Residual Band 3 | I84: >
F85: Rate 1 units | G85: MWh | L85: ='Inputs by customer type'!L53 -> 26645.7987 | N85: ='Inputs by customer type'!N53 -> 12485.11259 | O85: ='Inputs by customer type'!O53 -> 14865.90106 | P85: ='Inputs by customer type'!P53 -> 41065.02512
F86: Rate 2 units | G86: MWh | L86: ='Inputs by customer type'!L54 -> 136841.0219 | N86: ='Inputs by customer type'!N54 -> 56592.58328 | O86: ='Inputs by customer type'!O54 -> 72160.0338 | P86: ='Inputs by customer type'!P54 -> 192800.3585
F87: Rate 3 units | G87: MWh | L87: ='Inputs by customer type'!L55 -> 111661.8786 | N87: ='Inputs by customer type'!N55 -> 50801.73103 | O87: ='Inputs by customer type'!O55 -> 63081.44984 | P87: ='Inputs by customer type'!P55 -> 204256.1313
F88: MPANs | G88: MPANs | L88: ='Inputs by customer type'!L56 -> 15615 | N88: ='Inputs by customer type'!N56 -> 481 | O88: ='Inputs by customer type'!O56 -> 428 | P88: ='Inputs by customer type'!P56 -> 124
F89: Import capacity | G89: kVA | L89: ='Inputs by customer type'!L57 -> 0 | N89: ='Inputs by customer type'!N57 -> 90300 | O89: ='Inputs by customer type'!O57 -> 82725 | P89: ='Inputs by customer type'!P57 -> 166886
F90: Exceeded capacity | G90: kVA | L90: ='Inputs by customer type'!L58 -> 0 | N90: ='Inputs by customer type'!N58 -> 289.5833333 | O90: ='Inputs by customer type'!O58 -> 995.5833333 | P90: ='Inputs by customer type'!P58 -> 3033.916667
F91: Reactive power units | G91: MVArh | L91: ='Inputs by customer type'!L59 -> 0 | N91: ='Inputs by customer type'!N59 -> 9391.513 | O91: ='Inputs by customer type'!O59 -> 10892.271 | P91: ='Inputs by customer type'!P59 -> 32304.661
E93: All the way volume forecast - Residual Band 4 | I93: >
F94: Rate 1 units | G94: MWh | L94: ='Inputs by customer type'!L62 -> 85383.98342 | N94: ='Inputs by customer type'!N62 -> 15097.08583 | O94: ='Inputs by customer type'!O62 -> 58559.21413 | P94: ='Inputs by customer type'!P62 -> 57171.93113
F95: Rate 2 units | G95: MWh | L95: ='Inputs by customer type'!L63 -> 426416.0441 | N95: ='Inputs by customer type'!N63 -> 70646.93601 | O95: ='Inputs by customer type'!O63 -> 282729.1607 | P95: ='Inputs by customer type'!P63 -> 256813.3171
F96: Rate 3 units | G96: MWh | L96: ='Inputs by customer type'!L64 -> 375148.9194 | N96: ='Inputs by customer type'!N64 -> 64792.58314 | O96: ='Inputs by customer type'!O64 -> 262460.5752 | P96: ='Inputs by customer type'!P64 -> 301300.8094
F97: MPANs | G97: MPANs | L97: ='Inputs by customer type'!L65 -> 16866 | N97: ='Inputs by customer type'!N65 -> 290 | O97: ='Inputs by customer type'!O65 -> 819 | P97: ='Inputs by customer type'!P65 -> 91
F98: Import capacity | G98: kVA | L98: ='Inputs by customer type'!L66 -> 0 | N98: ='Inputs by customer type'!N66 -> 110205 | O98: ='Inputs by customer type'!O66 -> 322654 | P98: ='Inputs by customer type'!P66 -> 227191
F99: Exceeded capacity | G99: kVA | L99: ='Inputs by customer type'!L67 -> 0 | N99: ='Inputs by customer type'!N67 -> 333.9166667 | O99: ='Inputs by customer type'!O67 -> 2721.666667 | P99: ='Inputs by customer type'!P67 -> 2536.166667
F100: Reactive power units | G100: MVArh | L100: ='Inputs by customer type'!L68 -> 0 | N100: ='Inputs by customer type'!N68 -> 14088.576 | O100: ='Inputs by customer type'!O68 -> 45798.346 | P100: ='Inputs by customer type'!P68 -> 31588.052
D102: Volumes for LNDO LV tariffs are imported from the inputs, separately for each residual band.
E104: LDNO LV volume forecast - No Residual | I104: >
F105: Rate 1 units | G105: MWh | K105: ='Inputs by customer type'!K73 -> 0 | L105: ='Inputs by customer type'!L73 -> 0 | M105: ='Inputs by customer type'!M73 -> 0 | N105: ='Inputs by customer type'!N73 -> 0 | O105: ='Inputs by customer type'!O73 -> 0 | P105: ='Inputs by customer type'!P73 -> 0 | R105: ='Inputs by customer type'!R73 -> 106.8876791 | T105: ='Inputs by customer type'!T73 -> 0
F106: Rate 2 units | G106: MWh | K106: ='Inputs by customer type'!K74 -> 0 | L106: ='Inputs by customer type'!L74 -> 0 | M106: ='Inputs by customer type'!M74 -> 0 | N106: ='Inputs by customer type'!N74 -> 0 | O106: ='Inputs by customer type'!O74 -> 0 | P106: ='Inputs by customer type'!P74 -> 0 | R106: ='Inputs by customer type'!R74 -> 399.9344765 | T106: ='Inputs by customer type'!T74 -> 0
F107: Rate 3 units | G107: MWh | K107: ='Inputs by customer type'!K75 -> 0 | L107: ='Inputs by customer type'!L75 -> 0 | M107: ='Inputs by customer type'!M75 -> 0 | N107: ='Inputs by customer type'!N75 -> 0 | O107: ='Inputs by customer type'!O75 -> 0 | P107: ='Inputs by customer type'!P75 -> 0 | R107: ='Inputs by customer type'!R75 -> 328.9019928 | T107: ='Inputs by customer type'!T75 -> 0
F108: MPANs | G108: MPANs | K108: ='Inputs by customer type'!K76 -> 0 | L108: ='Inputs by customer type'!L76 -> 0 | M108: ='Inputs by customer type'!M76 -> 0 | N108: ='Inputs by customer type'!N76 -> 0 | O108: ='Inputs by customer type'!O76 -> 0 | P108: ='Inputs by customer type'!P76 -> 0 | R108: ='Inputs by customer type'!R76 -> 384 | T108: ='Inputs by customer type'!T76 -> 0
F109: Import capacity | G109: kVA | K109: ='Inputs by customer type'!K77 -> 0 | L109: ='Inputs by customer type'!L77 -> 0 | M109: ='Inputs by customer type'!M77 -> 0 | N109: ='Inputs by customer type'!N77 -> 0 | O109: ='Inputs by customer type'!O77 -> 0 | P109: ='Inputs by customer type'!P77 -> 0 | R109: ='Inputs by customer type'!R77 -> 0 | T109: ='Inputs by customer type'!T77 -> 0
F110: Exceeded capacity | G110: kVA | K110: ='Inputs by customer type'!K78 -> 0 | L110: ='Inputs by customer type'!L78 -> 0 | M110: ='Inputs by customer type'!M78 -> 0 | N110: ='Inputs by customer type'!N78 -> 0 | O110: ='Inputs by customer type'!O78 -> 0 | P110: ='Inputs by customer type'!P78 -> 0 | R110: ='Inputs by customer type'!R78 -> 0 | T110: ='Inputs by customer type'!T78 -> 0
F111: Reactive power units | G111: MVArh | K111: ='Inputs by customer type'!K79 -> 0 | L111: ='Inputs by customer type'!L79 -> 0 | M111: ='Inputs by customer type'!M79 -> 0 | N111: ='Inputs by customer type'!N79 -> 0 | O111: ='Inputs by customer type'!O79 -> 0 | P111: ='Inputs by customer type'!P79 -> 0 | R111: ='Inputs by customer type'!R79 -> 0 | T111: ='Inputs by customer type'!T79 -> 0
E113: LDNO LV volume forecast - Residual Band 1 | I113: >
F114: Rate 1 units | G114: MWh | J114: ='Inputs by customer type'!J82 -> 10639.12071 | L114: ='Inputs by customer type'!L82 -> 102.4349764 | N114: ='Inputs by customer type'!N82 -> 56.75283952 | O114: ='Inputs by customer type'!O82 -> 0 | P114: ='Inputs by customer type'!P82 -> 0 | Q114: ='Inputs by customer type'!Q82 -> 2.152615385
F115: Rate 2 units | G115: MWh | J115: ='Inputs by customer type'!J83 -> 36658.88084 | L115: ='Inputs by customer type'!L83 -> 541.7721884 | N115: ='Inputs by customer type'!N83 -> 257.7457581 | O115: ='Inputs by customer type'!O83 -> 0 | P115: ='Inputs by customer type'!P83 -> 0 | Q115: ='Inputs by customer type'!Q83 -> 27.2700232
F116: Rate 3 units | G116: MWh | J116: ='Inputs by customer type'!J84 -> 33040.2969 | L116: ='Inputs by customer type'!L84 -> 402.9213104 | N116: ='Inputs by customer type'!N84 -> 225.0450034 | O116: ='Inputs by customer type'!O84 -> 0 | P116: ='Inputs by customer type'!P84 -> 0 | Q116: ='Inputs by customer type'!Q84 -> 30.74966606
F117: MPANs | G117: MPANs | J117: ='Inputs by customer type'!J85 -> 27457 | L117: ='Inputs by customer type'!L85 -> 174 | N117: ='Inputs by customer type'!N85 -> 10 | O117: ='Inputs by customer type'!O85 -> 0 | P117: ='Inputs by customer type'!P85 -> 0 | Q117: ='Inputs by customer type'!Q85 -> 33
F118: Import capacity | G118: kVA | J118: ='Inputs by customer type'!J86 -> 0 | L118: ='Inputs by customer type'!L86 -> 0 | N118: ='Inputs by customer type'!N86 -> 703 | O118: ='Inputs by customer type'!O86 -> 0 | P118: ='Inputs by customer type'!P86 -> 0 | Q118: ='Inputs by customer type'!Q86 -> 0
F119: Exceeded capacity | G119: kVA | J119: ='Inputs by customer type'!J87 -> 0 | L119: ='Inputs by customer type'!L87 -> 0 | N119: ='Inputs by customer type'!N87 -> 1 | O119: ='Inputs by customer type'!O87 -> 0 | P119: ='Inputs by customer type'!P87 -> 0 | Q119: ='Inputs by customer type'!Q87 -> 0
F120: Reactive power units | G120: MVArh | J120: ='Inputs by customer type'!J88 -> 0 | L120: ='Inputs by customer type'!L88 -> 0 | N120: ='Inputs by customer type'!N88 -> 14.888 | O120: ='Inputs by customer type'!O88 -> 0 | P120: ='Inputs by customer type'!P88 -> 0 | Q120: ='Inputs by customer type'!Q88 -> 0
E122: LDNO LV volume forecast - Residual Band 2 | I122: >
F123: Rate 1 units | G123: MWh | L123: ='Inputs by customer type'!L91 -> 58.60408248 | N123: ='Inputs by customer type'!N91 -> 315.67574 | O123: ='Inputs by customer type'!O91 -> 0 | P123: ='Inputs by customer type'!P91 -> 0
F124: Rate 2 units | G124: MWh | L124: ='Inputs by customer type'!L92 -> 312.4494662 | N124: ='Inputs by customer type'!N92 -> 1470.864512 | O124: ='Inputs by customer type'!O92 -> 0 | P124: ='Inputs by customer type'!P92 -> 0
F125: Rate 3 units | G125: MWh | L125: ='Inputs by customer type'!L93 -> 236.4865741 | N125: ='Inputs by customer type'!N93 -> 1332.71297 | O125: ='Inputs by customer type'!O93 -> 0 | P125: ='Inputs by customer type'!P93 -> 0
F126: MPANs | G126: MPANs | L126: ='Inputs by customer type'!L94 -> 82 | N126: ='Inputs by customer type'!N94 -> 31 | O126: ='Inputs by customer type'!O94 -> 0 | P126: ='Inputs by customer type'!P94 -> 0
F127: Import capacity | G127: kVA | L127: ='Inputs by customer type'!L95 -> 0 | N127: ='Inputs by customer type'!N95 -> 3745 | O127: ='Inputs by customer type'!O95 -> 0 | P127: ='Inputs by customer type'!P95 -> 0
F128: Exceeded capacity | G128: kVA | L128: ='Inputs by customer type'!L96 -> 0 | N128: ='Inputs by customer type'!N96 -> 25.33333333 | O128: ='Inputs by customer type'!O96 -> 0 | P128: ='Inputs by customer type'!P96 -> 0
F129: Reactive power units | G129: MVArh | L129: ='Inputs by customer type'!L97 -> 0 | N129: ='Inputs by customer type'!N97 -> 223.528 | O129: ='Inputs by customer type'!O97 -> 0 | P129: ='Inputs by customer type'!P97 -> 0
E131: LDNO LV volume forecast - Residual Band 3 | I131: >
F132: Rate 1 units | G132: MWh | L132: ='Inputs by customer type'!L100 -> 62.41962176 | N132: ='Inputs by customer type'!N100 -> 239.6837292 | O132: ='Inputs by customer type'!O100 -> 0 | P132: ='Inputs by customer type'!P100 -> 0
F133: Rate 2 units | G133: MWh | L133: ='Inputs by customer type'!L101 -> 317.2807996 | N133: ='Inputs by customer type'!N101 -> 1046.505638 | O133: ='Inputs by customer type'!O101 -> 0 | P133: ='Inputs by customer type'!P101 -> 0
F134: Rate 3 units | G134: MWh | L134: ='Inputs by customer type'!L102 -> 256.6094359 | N134: ='Inputs by customer type'!N102 -> 986.3809646 | O134: ='Inputs by customer type'!O102 -> 0 | P134: ='Inputs by customer type'!P102 -> 0
F135: MPANs | G135: MPANs | L135: ='Inputs by customer type'!L103 -> 66 | N135: ='Inputs by customer type'!N103 -> 14 | O135: ='Inputs by customer type'!O103 -> 0 | P135: ='Inputs by customer type'!P103 -> 0
F136: Import capacity | G136: kVA | L136: ='Inputs by customer type'!L104 -> 0 | N136: ='Inputs by customer type'!N104 -> 2577 | O136: ='Inputs by customer type'!O104 -> 0 | P136: ='Inputs by customer type'!P104 -> 0
F137: Exceeded capacity | G137: kVA | L137: ='Inputs by customer type'!L105 -> 0 | N137: ='Inputs by customer type'!N105 -> 0 | O137: ='Inputs by customer type'!O105 -> 0 | P137: ='Inputs by customer type'!P105 -> 0
F138: Reactive power units | G138: MVArh | L138: ='Inputs by customer type'!L106 -> 0 | N138: ='Inputs by customer type'!N106 -> 76.532 | O138: ='Inputs by customer type'!O106 -> 0 | P138: ='Inputs by customer type'!P106 -> 0
E140: LDNO LV volume forecast - Residual Band 4 | I140: >
F141: Rate 1 units | G141: MWh | L141: ='Inputs by customer type'!L109 -> 62.34448398 | N141: ='Inputs by customer type'!N109 -> 578.8656912 | O141: ='Inputs by customer type'!O109 -> 0 | P141: ='Inputs by customer type'!P109 -> 0
F142: Rate 2 units | G142: MWh | L142: ='Inputs by customer type'!L110 -> 323.2969414 | N142: ='Inputs by customer type'!N110 -> 2651.742092 | O142: ='Inputs by customer type'!O110 -> 0 | P142: ='Inputs by customer type'!P110 -> 0
F143: Rate 3 units | G143: MWh | L143: ='Inputs by customer type'!L111 -> 259.9625062 | N143: ='Inputs by customer type'!N111 -> 2596.492062 | O143: ='Inputs by customer type'!O111 -> 0 | P143: ='Inputs by customer type'!P111 -> 0
F144: MPANs | G144: MPANs | L144: ='Inputs by customer type'!L112 -> 32 | N144: ='Inputs by customer type'!N112 -> 9 | O144: ='Inputs by customer type'!O112 -> 0 | P144: ='Inputs by customer type'!P112 -> 0
F145: Import capacity | G145: kVA | L145: ='Inputs by customer type'!L113 -> 0 | N145: ='Inputs by customer type'!N113 -> 2888 | O145: ='Inputs by customer type'!O113 -> 0 | P145: ='Inputs by customer type'!P113 -> 0
F146: Exceeded capacity | G146: kVA | L146: ='Inputs by customer type'!L114 -> 0 | N146: ='Inputs by customer type'!N114 -> 0 | O146: ='Inputs by customer type'!O114 -> 0 | P146: ='Inputs by customer type'!P114 -> 0
F147: Reactive power units | G147: MVArh | L147: ='Inputs by customer type'!L115 -> 0 | N147: ='Inputs by customer type'!N115 -> 70.558 | O147: ='Inputs by customer type'!O115 -> 0 | P147: ='Inputs by customer type'!P115 -> 0
D149: Volumes for LNDO HV tariffs are imported from the inputs, separately for each residual band.
E151: LDNO HV volume forecast - No Residual | I151: >
F152: Rate 1 units | G152: MWh | K152: ='Inputs by customer type'!K120 -> 0 | L152: ='Inputs by customer type'!L120 -> 0 | M152: ='Inputs by customer type'!M120 -> 0 | N152: ='Inputs by customer type'!N120 -> 0 | O152: ='Inputs by customer type'!O120 -> 0 | P152: ='Inputs by customer type'!P120 -> 0 | R152: ='Inputs by customer type'!R120 -> 98.54483415 | S152: ='Inputs by customer type'!S120 -> 0 | T152: ='Inputs by customer type'!T120 -> 47.366 | U152: ='Inputs by customer type'!U120 -> 0 | V152: ='Inputs by customer type'!V120 -> 0 | W152: ='Inputs by customer type'!W120 -> 0 | X152: ='Inputs by customer type'!X120 -> 122.746 | Y152: ='Inputs by customer type'!Y120 -> 0
F153: Rate 2 units | G153: MWh | K153: ='Inputs by customer type'!K121 -> 0 | L153: ='Inputs by customer type'!L121 -> 0 | M153: ='Inputs by customer type'!M121 -> 0 | N153: ='Inputs by customer type'!N121 -> 0 | O153: ='Inputs by customer type'!O121 -> 0 | P153: ='Inputs by customer type'!P121 -> 0 | R153: ='Inputs by customer type'!R121 -> 472.0442685 | S153: ='Inputs by customer type'!S121 -> 0 | T153: ='Inputs by customer type'!T121 -> 262.865 | U153: ='Inputs by customer type'!U121 -> 0 | V153: ='Inputs by customer type'!V121 -> 0 | W153: ='Inputs by customer type'!W121 -> 0 | X153: ='Inputs by customer type'!X121 -> 497.669 | Y153: ='Inputs by customer type'!Y121 -> 0
F154: Rate 3 units | G154: MWh | K154: ='Inputs by customer type'!K122 -> 0 | L154: ='Inputs by customer type'!L122 -> 0 | M154: ='Inputs by customer type'!M122 -> 0 | N154: ='Inputs by customer type'!N122 -> 0 | O154: ='Inputs by customer type'!O122 -> 0 | P154: ='Inputs by customer type'!P122 -> 0 | R154: ='Inputs by customer type'!R122 -> 208.2744828 | S154: ='Inputs by customer type'!S122 -> 0 | T154: ='Inputs by customer type'!T122 -> 292.089 | U154: ='Inputs by customer type'!U122 -> 0 | V154: ='Inputs by customer type'!V122 -> 0 | W154: ='Inputs by customer type'!W122 -> 0 | X154: ='Inputs by customer type'!X122 -> 505.047 | Y154: ='Inputs by customer type'!Y122 -> 0
F155: MPANs | G155: MPANs | K155: ='Inputs by customer type'!K123 -> 0 | L155: ='Inputs by customer type'!L123 -> 0 | M155: ='Inputs by customer type'!M123 -> 0 | N155: ='Inputs by customer type'!N123 -> 0 | O155: ='Inputs by customer type'!O123 -> 0 | P155: ='Inputs by customer type'!P123 -> 0 | R155: ='Inputs by customer type'!R123 -> 54 | S155: ='Inputs by customer type'!S123 -> 0 | T155: ='Inputs by customer type'!T123 -> 4 | U155: ='Inputs by customer type'!U123 -> 0 | V155: ='Inputs by customer type'!V123 -> 0 | W155: ='Inputs by customer type'!W123 -> 0 | X155: ='Inputs by customer type'!X123 -> 1 | Y155: ='Inputs by customer type'!Y123 -> 0
F156: Import capacity | G156: kVA | K156: ='Inputs by customer type'!K124 -> 0 | L156: ='Inputs by customer type'!L124 -> 0 | M156: ='Inputs by customer type'!M124 -> 0 | N156: ='Inputs by customer type'!N124 -> 0 | O156: ='Inputs by customer type'!O124 -> 0 | P156: ='Inputs by customer type'!P124 -> 0 | R156: ='Inputs by customer type'!R124 -> 0 | S156: ='Inputs by customer type'!S124 -> 0 | T156: ='Inputs by customer type'!T124 -> 0 | U156: ='Inputs by customer type'!U124 -> 0 | V156: ='Inputs by customer type'!V124 -> 0 | W156: ='Inputs by customer type'!W124 -> 0 | X156: ='Inputs by customer type'!X124 -> 0 | Y156: ='Inputs by customer type'!Y124 -> 0
F157: Exceeded capacity | G157: kVA | K157: ='Inputs by customer type'!K125 -> 0 | L157: ='Inputs by customer type'!L125 -> 0 | M157: ='Inputs by customer type'!M125 -> 0 | N157: ='Inputs by customer type'!N125 -> 0 | O157: ='Inputs by customer type'!O125 -> 0 | P157: ='Inputs by customer type'!P125 -> 0 | R157: ='Inputs by customer type'!R125 -> 0 | S157: ='Inputs by customer type'!S125 -> 0 | T157: ='Inputs by customer type'!T125 -> 0 | U157: ='Inputs by customer type'!U125 -> 0 | V157: ='Inputs by customer type'!V125 -> 0 | W157: ='Inputs by customer type'!W125 -> 0 | X157: ='Inputs by customer type'!X125 -> 0 | Y157: ='Inputs by customer type'!Y125 -> 0
F158: Reactive power units | G158: MVArh | K158: ='Inputs by customer type'!K126 -> 0 | L158: ='Inputs by customer type'!L126 -> 0 | M158: ='Inputs by customer type'!M126 -> 0 | N158: ='Inputs by customer type'!N126 -> 0 | O158: ='Inputs by customer type'!O126 -> 0 | P158: ='Inputs by customer type'!P126 -> 0 | R158: ='Inputs by customer type'!R126 -> 0 | S158: ='Inputs by customer type'!S126 -> 0 | T158: ='Inputs by customer type'!T126 -> 74.465 | U158: ='Inputs by customer type'!U126 -> 0 | V158: ='Inputs by customer type'!V126 -> 0 | W158: ='Inputs by customer type'!W126 -> 0 | X158: ='Inputs by customer type'!X126 -> 399.52 | Y158: ='Inputs by customer type'!Y126 -> 0
E160: LDNO HV volume forecast - Residual Band 1 | I160: >
F161: Rate 1 units | G161: MWh | J161: ='Inputs by customer type'!J129 -> 16244.06642 | L161: ='Inputs by customer type'!L129 -> 181.9761529 | N161: ='Inputs by customer type'!N129 -> 324.2429003 | O161: ='Inputs by customer type'!O129 -> 0 | P161: ='Inputs by customer type'!P129 -> 173.4767683 | Q161: ='Inputs by customer type'!Q129 -> 9.271428571
F162: Rate 2 units | G162: MWh | J162: ='Inputs by customer type'!J130 -> 55415.25811 | L162: ='Inputs by customer type'!L130 -> 949.1240056 | N162: ='Inputs by customer type'!N130 -> 1417.191686 | O162: ='Inputs by customer type'!O130 -> 0 | P162: ='Inputs by customer type'!P130 -> 761.8387172 | Q162: ='Inputs by customer type'!Q130 -> 113.3077282
F163: Rate 3 units | G163: MWh | J163: ='Inputs by customer type'!J131 -> 50907.20679 | L163: ='Inputs by customer type'!L131 -> 765.1743585 | N163: ='Inputs by customer type'!N131 -> 1353.35151 | O163: ='Inputs by customer type'!O131 -> 0 | P163: ='Inputs by customer type'!P131 -> 746.5764264 | Q163: ='Inputs by customer type'!Q131 -> 137.4635853
F164: MPANs | G164: MPANs | J164: ='Inputs by customer type'!J132 -> 41239 | L164: ='Inputs by customer type'!L132 -> 204 | N164: ='Inputs by customer type'!N132 -> 37 | O164: ='Inputs by customer type'!O132 -> 0 | P164: ='Inputs by customer type'!P132 -> 4 | Q164: ='Inputs by customer type'!Q132 -> 66
F165: Import capacity | G165: kVA | J165: ='Inputs by customer type'!J133 -> 0 | L165: ='Inputs by customer type'!L133 -> 0 | N165: ='Inputs by customer type'!N133 -> 2163 | O165: ='Inputs by customer type'!O133 -> 0 | P165: ='Inputs by customer type'!P133 -> 1084 | Q165: ='Inputs by customer type'!Q133 -> 0
F166: Exceeded capacity | G166: kVA | J166: ='Inputs by customer type'!J134 -> 0 | L166: ='Inputs by customer type'!L134 -> 0 | N166: ='Inputs by customer type'!N134 -> 95 | O166: ='Inputs by customer type'!O134 -> 0 | P166: ='Inputs by customer type'!P134 -> 0 | Q166: ='Inputs by customer type'!Q134 -> 0
F167: Reactive power units | G167: MVArh | J167: ='Inputs by customer type'!J135 -> 0 | L167: ='Inputs by customer type'!L135 -> 0 | N167: ='Inputs by customer type'!N135 -> 613.156 | O167: ='Inputs by customer type'!O135 -> 0 | P167: ='Inputs by customer type'!P135 -> 192.51 | Q167: ='Inputs by customer type'!Q135 -> 0
E169: LDNO HV volume forecast - Residual Band 2 | I169: >
F170: Rate 1 units | G170: MWh | L170: ='Inputs by customer type'!L138 -> 185.3728647 | N170: ='Inputs by customer type'!N138 -> 1672.803784 | O170: ='Inputs by customer type'!O138 -> 42.61611591 | P170: ='Inputs by customer type'!P138 -> 884.3606002
F171: Rate 2 units | G171: MWh | L171: ='Inputs by customer type'!L139 -> 947.7328578 | N171: ='Inputs by customer type'!N139 -> 7289.29594 | O171: ='Inputs by customer type'!O139 -> 186.301609 | P171: ='Inputs by customer type'!P139 -> 4167.42421
F172: Rate 3 units | G172: MWh | L172: ='Inputs by customer type'!L140 -> 715.6996843 | N172: ='Inputs by customer type'!N140 -> 6643.555381 | O172: ='Inputs by customer type'!O140 -> 180.9085619 | P172: ='Inputs by customer type'!P140 -> 4144.63778
F173: MPANs | G173: MPANs | L173: ='Inputs by customer type'!L141 -> 150 | N173: ='Inputs by customer type'!N141 -> 106 | O173: ='Inputs by customer type'!O141 -> 2 | P173: ='Inputs by customer type'!P141 -> 10
F174: Import capacity | G174: kVA | L174: ='Inputs by customer type'!L142 -> 0 | N174: ='Inputs by customer type'!N142 -> 12820 | O174: ='Inputs by customer type'!O142 -> 290 | P174: ='Inputs by customer type'!P142 -> 6759
F175: Exceeded capacity | G175: kVA | L175: ='Inputs by customer type'!L143 -> 0 | N175: ='Inputs by customer type'!N143 -> 0 | O175: ='Inputs by customer type'!O143 -> 0 | P175: ='Inputs by customer type'!P143 -> 0
F176: Reactive power units | G176: MVArh | L176: ='Inputs by customer type'!L144 -> 0 | N176: ='Inputs by customer type'!N144 -> 769.776 | O176: ='Inputs by customer type'!O144 -> 48.858 | P176: ='Inputs by customer type'!P144 -> 367.234
E178: LDNO HV volume forecast - Residual Band 3 | I178: >
F179: Rate 1 units | G179: MWh | L179: ='Inputs by customer type'!L147 -> 257.1795732 | N179: ='Inputs by customer type'!N147 -> 1420.250036 | O179: ='Inputs by customer type'!O147 -> 0 | P179: ='Inputs by customer type'!P147 -> 958.5728137
F180: Rate 2 units | G180: MWh | L180: ='Inputs by customer type'!L148 -> 1330.853802 | N180: ='Inputs by customer type'!N148 -> 6088.181595 | O180: ='Inputs by customer type'!O148 -> 0 | P180: ='Inputs by customer type'!P148 -> 4183.885134
F181: Rate 3 units | G181: MWh | L181: ='Inputs by customer type'!L149 -> 1085.633748 | N181: ='Inputs by customer type'!N149 -> 5645.063962 | O181: ='Inputs by customer type'!O149 -> 0 | P181: ='Inputs by customer type'!P149 -> 4605.628423
F182: MPANs | G182: MPANs | L182: ='Inputs by customer type'!L150 -> 193 | N182: ='Inputs by customer type'!N150 -> 55 | O182: ='Inputs by customer type'!O150 -> 0 | P182: ='Inputs by customer type'!P150 -> 4
F183: Import capacity | G183: kVA | L183: ='Inputs by customer type'!L151 -> 0 | N183: ='Inputs by customer type'!N151 -> 9987 | O183: ='Inputs by customer type'!O151 -> 0 | P183: ='Inputs by customer type'!P151 -> 5100
F184: Exceeded capacity | G184: kVA | L184: ='Inputs by customer type'!L152 -> 0 | N184: ='Inputs by customer type'!N152 -> 0 | O184: ='Inputs by customer type'!O152 -> 0 | P184: ='Inputs by customer type'!P152 -> 0
F185: Reactive power units | G185: MVArh | L185: ='Inputs by customer type'!L153 -> 0 | N185: ='Inputs by customer type'!N153 -> 542.872 | O185: ='Inputs by customer type'!O153 -> 0 | P185: ='Inputs by customer type'!P153 -> 4.326
E187: LDNO HV volume forecast - Residual Band 4 | I187: >
F188: Rate 1 units | G188: MWh | L188: ='Inputs by customer type'!L156 -> 354.1166783 | N188: ='Inputs by customer type'!N156 -> 5607.432279 | O188: ='Inputs by customer type'!O156 -> 1843.338884 | P188: ='Inputs by customer type'!P156 -> 725.6008178
F189: Rate 2 units | G189: MWh | L189: ='Inputs by customer type'!L157 -> 1836.535658 | N189: ='Inputs by customer type'!N157 -> 24660.76078 | O189: ='Inputs by customer type'!O157 -> 8365.398391 | P189: ='Inputs by customer type'!P157 -> 3214.929939
F190: Rate 3 units | G190: MWh | L190: ='Inputs by customer type'!L158 -> 1474.605939 | N190: ='Inputs by customer type'!N158 -> 23702.92715 | O190: ='Inputs by customer type'!O158 -> 7158.690438 | P190: ='Inputs by customer type'!P158 -> 3280.246371
F191: MPANs | G191: MPANs | L191: ='Inputs by customer type'!L159 -> 133 | N191: ='Inputs by customer type'!N159 -> 111 | O191: ='Inputs by customer type'!O159 -> 22 | P191: ='Inputs by customer type'!P159 -> 3
F192: Import capacity | G192: kVA | L192: ='Inputs by customer type'!L160 -> 0 | N192: ='Inputs by customer type'!N160 -> 52867 | O192: ='Inputs by customer type'!O160 -> 14471 | P192: ='Inputs by customer type'!P160 -> 6600
F193: Exceeded capacity | G193: kVA | L193: ='Inputs by customer type'!L161 -> 0 | N193: ='Inputs by customer type'!N161 -> 14.66666667 | O193: ='Inputs by customer type'!O161 -> 0 | P193: ='Inputs by customer type'!P161 -> 0
F194: Reactive power units | G194: MVArh | L194: ='Inputs by customer type'!L162 -> 0 | N194: ='Inputs by customer type'!N162 -> 3518.704 | O194: ='Inputs by customer type'!O162 -> 3178.464 | P194: ='Inputs by customer type'!P162 -> 14.748
D196: Total volumes, aggregated across all residual bands, are then calculated.
E198: All the way volume forecast | I198: > | AA198: Paragraph 52
F199: Rate 1 units | G199: MWh | J199: =SUM( J67, J76, J85, J94, J58 ) -> 542392.9205 | K199: 32.089 | L199: 149722.6823 | M199: 5.328 | N199: 92223.8418 | O199: 101109.0172 | P199: 154582.1723 | Q199: 6404.747543 | R199: 2038.954569 | S199: 34.08550267 | T199: 3793.449 | U199: 0 | V199: 1172.297 | W199: 0 | X199: 51281.671 | Y199: 0
F200: Rate 2 units | G200: MWh | J200: 1892156.584 | K200: 557.914 | L200: 755833.0314 | M200: 317.86 | N200: 419130.9381 | O200: 490711.5961 | P200: 713072.6279 | Q200: 35748.58558 | R200: 12274.52828 | S200: 143.9227273 | T200: 18380.287 | U200: 0 | V200: 5289.195 | W200: 0 | X200: 176930.155 | Y200: 0
F201: Rate 3 units | G201: MWh | J201: 1827461.78 | K201: 6679.759 | L201: 641846.7424 | M201: 3640.25 | N201: 376545.6306 | O201: 442650.0579 | P201: 781061.4461 | Q201: 82463.46021 | R201: 6127.115168 | S201: 95.50759893 | T201: 20626.524 | U201: 0 | V201: 6499.353 | W201: 0 | X201: 157737.588 | Y201: 0
F202: MPANs | G202: MPANs | J202: 1400937 | K202: 2859 | L202: 101268 | M202: 940 | N202: 5658 | O202: 3063 | P202: 811 | Q202: 570 | R202: 2180 | S202: 24 | T202: 344 | U202: 0 | V202: 42 | W202: 0 | X202: 152 | Y202: 0
F203: Import capacity | G203: kVA | N203: 578638 | O203: 556900 | P203: 651671
F204: Exceeded capacity | G204: kVA | N204: 11488.16667 | O204: 11429.08333 | P204: 12842.91667
F205: Reactive power units | G205: MVArh | N205: 73814.961 | O205: 82748.201 | P205: 120078.228 | T205: =SUM( T73, T82, T91, T100, T64 ) -> 5712.562 | V205: =SUM( V73, V82, V91, V100, V64 ) -> 573.778 | X205: =SUM( X73, X82, X91, X100, X64 ) -> 9164.714
E207: LDNO LV volume forecast | I207: > | AA207: Paragraph 52
F208: Rate 1 units | G208: MWh | J208: =SUM( J114, J123, J132, J141, J105 ) -> 10639.12071 | K208: 0 | L208: 285.8031646 | M208: 0 | N208: 1190.978 | Q208: =SUM( Q114, Q123, Q132, Q141, Q105 ) -> 2.152615385 | R208: 106.8876791 | T208: =SUM( T114, T123, T132, T141, T105 ) -> 0
F209: Rate 2 units | G209: MWh | J209: 36658.88084 | K209: 0 | L209: 1494.799396 | M209: 0 | N209: 5426.858 | Q209: 27.2700232 | R209: 399.9344765 | T209: =SUM( T115, T124, T133, T142, T106 ) -> 0
F210: Rate 3 units | G210: MWh | J210: 33040.2969 | K210: 0 | L210: 1155.979827 | M210: 0 | N210: 5140.631 | Q210: 30.74966606 | R210: 328.9019928 | T210: =SUM( T116, T125, T134, T143, T107 ) -> 0
F211: MPANs | G211: MPANs | J211: 27457 | K211: 0 | L211: 354 | M211: 0 | N211: 64 | Q211: 33 | R211: 384 | T211: =SUM( T117, T126, T135, T144, T108 ) -> 0
F212: Import capacity | G212: kVA | N212: =SUM( N118, N127, N136, N145, N109 ) -> 9913
F213: Exceeded capacity | G213: kVA | N213: =SUM( N119, N128, N137, N146, N110 ) -> 26.33333333
F214: Reactive power units | G214: MVArh | N214: =SUM( N120, N129, N138, N147, N111 ) -> 385.506 | T214: =SUM( T120, T129, T138, T147, T111 ) -> 0
E216: LDNO HV volume forecast | I216: > | AA216: Paragraph 52
F217: Rate 1 units | G217: MWh | J217: =SUM( J161, J170, J179, J188, J152 ) -> 16244.06642 | K217: 0 | L217: 978.6452691 | M217: 0 | N217: 9024.729 | O217: 1885.955 | P217: 2742.011 | Q217: 9.271428571 | R217: 98.54483415 | S217: 0 | T217: 47.366 | V217: =SUM( V161, V170, V179, V188, V152 ) -> 0 | X217: =SUM( X161, X170, X179, X188, X152 ) -> 122.746
F218: Rate 2 units | G218: MWh | J218: 55415.25811 | K218: 0 | L218: 5064.246323 | M218: 0 | N218: 39455.43 | O218: 8551.7 | P218: 12328.078 | Q218: 113.3077282 | R218: 472.0442685 | S218: 0 | T218: 262.865 | V218: =SUM( V162, V171, V180, V189, V153 ) -> 0 | X218: =SUM( X162, X171, X180, X189, X153 ) -> 497.669
F219: Rate 3 units | G219: MWh | J219: 50907.20679 | K219: 0 | L219: 4041.11373 | M219: 0 | N219: 37344.898 | O219: 7339.599 | P219: 12777.089 | Q219: 137.4635853 | R219: 208.2744828 | S219: 0 | T219: 292.089 | V219: =SUM( V163, V172, V181, V190, V154 ) -> 0 | X219: =SUM( X163, X172, X181, X190, X154 ) -> 505.047
F220: MPANs | G220: MPANs | J220: 41239 | K220: 0 | L220: 680 | M220: 0 | N220: 309 | O220: 24 | P220: 21 | Q220: 66 | R220: 54 | S220: 0 | T220: 4 | V220: =SUM( V164, V173, V182, V191, V155 ) -> 0 | X220: =SUM( X164, X173, X182, X191, X155 ) -> 1
F221: Import capacity | G221: kVA | N221: 77837 | O221: 14761 | P221: 19543
F222: Exceeded capacity | G222: kVA | N222: 109.6666667 | O222: 0 | P222: 0
F223: Reactive power units | G223: MVArh | N223: 5444.508 | O223: 3227.322 | P223: 578.818 | T223: =SUM( T167, T176, T185, T194, T158 ) -> 74.465 | V223: =SUM( V167, V176, V185, V194, V158 ) -> 0 | X223: =SUM( X167, X176, X185, X194, X158 ) -> 399.52
C225: =INDEX('Version control'!$H$36:$H$62,MATCH($A$1,'Version control'!$F$36:$F$62,0),1)&"-C: Volume discounting" -> Section 507-C: Volume discounting
C227: Applies LDNO discounts and aggregates with volumes from all the way customers
E229: Unit rate 1 | I229: > | AA229: Paragraph 53
F231: All the way customers | G231: MWh | J231: =J$199 -> 542392.9205 | K231: 32.089 | L231: 149722.6823 | M231: 5.328 | N231: 92223.8418 | O231: 101109.0172 | P231: 154582.1723 | Q231: 6404.747543 | R231: 2038.954569 | S231: 34.08550267 | T231: 3793.449 | U231: 0 | V231: 1172.297 | W231: 0 | X231: 51281.671 | Y231: 0
F232: LDNO LV | G232: MWh | J232: =J$208 -> 10639.12071 | K232: 0 | L232: 285.8031646 | M232: 0 | N232: 1190.978 | O232: 0 | P232: 0 | Q232: 2.152615385 | R232: 106.8876791 | S232: 0 | T232: 0 | U232: 0 | V232: 0 | W232: 0 | X232: 0 | Y232: 0
F233: LDNO HV | G233: MWh | J233: =J$217 -> 16244.06642 | K233: 0 | L233: 978.6452691 | M233: 0 | N233: 9024.729 | O233: 1885.955 | P233: 2742.011 | Q233: 9.271428571 | R233: 98.54483415 | S233: 0 | T233: 47.366 | U233: 0 | V233: 0 | W233: 0 | X233: 122.746 | Y233: 0
F234: LDNO LV discount rate applied | G234: % | J234: =IF(J$39, J$45, J$34) -> 0.3944551209 | K234: =IF(K$39, K$45, K$34) -> 0.3944551209 | L234: 0.3944551209 | M234: 0.3944551209 | N234: 0.3944551209 | O234: 0 | P234: 0 | Q234: 0.3944551209 | R234: 0 | S234: 0 | T234: 0 | U234: 0 | V234: 0 | W234: 0 | X234: 0 | Y234: 0
F235: LDNO HV discount rate applied | G235: % | J235: =IF(J$39, J$45, J$35) -> 0.5604265994 | K235: =IF(K$39, K$45, K$35) -> 0.5604265994 | L235: 0.5604265994 | M235: 0.5604265994 | N235: 0.5604265994 | O235: 0.2724475054 | P235: 0.1787927473 | Q235: 0.5604265994 | R235: 0 | S235: 0 | T235: 0 | U235: 0 | V235: 0 | W235: 0 | X235: 0 | Y235: 0
F236: LDNO LV, discounted | G236: MWh | J236: =J232 * (1 - J234) -> 6442.465064 | K236: 0 | L236: 173.0666428 | M236: 0 | N236: 721.190629 | O236: 0 | P236: 0 | Q236: 1.303505223 | R236: 106.8876791 | S236: 0 | T236: 0 | U236: 0 | V236: 0 | W236: 0 | X236: 0 | Y236: 0
F237: LDNO HV, discounted | G237: MWh | J237: 7140.459514 | K237: 0 | L237: 430.1864289 | M237: 0 | N237: 3967.030816 | O237: 1372.131265 | P237: 2251.75932 | Q237: 4.075473385 | R237: 98.54483415 | S237: 0 | T237: 47.366 | U237: 0 | V237: 0 | W237: 0 | X237: 122.746 | Y237: 0
... 403 more rows

Sheet Pseudo-load coefficients
A1: =MID(CELL("filename",A1),FIND("]",CELL("filename",A1))+1,255) -> Pseudo-load coefficients
A2: =Cover!D21&" - "&Cover!D23 -> SP Manweb - One
A3: =Cover!D2&" - "&Cover!D8&" v"&Cover!D10&" - "&Cover!D19 -> ARP model - Release for charge setting v7 - 2024/25
A4: =H306 & IF(H306 = 1, " issue", " issues") &" identified in checks on this sheet" -> 0 issues identified in checks on this sheet
B5: Click here to return to model map | G5: Units | H5: Constants | J5: Domestic Aggregated | K5: Domestic Aggregated (Related MPAN) | L5: Non-Domestic Aggregated | M5: Non-Domestic Aggregated (Related MPAN) | N5: LV Site Specific | O5: LV Sub Site Specific | P5: HV Site Specific | Q5: Unmetered Supplies | R5: LV Generation Aggregated | S5: LV Sub Generation Aggregated | T5: LV Generation Site Specific | U5: LV Generation Site Specific no RP Charge | V5: LV Sub Generation Site Specific | W5: LV Sub Generation Site Specific no RP Charge | X5: HV Generation Site Specific | Y5: HV Generation Site Specific no RP Charge | AA5: Legal text reference
B7: Description
C9: This sheet calculates the pseudo load coefficients used in the calculation of unit rates and system simultaneous peak demand.
C10: The pseudo load coefficient is specified by customer category, network level and unit rate.
C11: The calculations in this sheet follow the steps set out in Paragraph 70.
B13: Step 1: Ratio of coincidence to load factor assuming units evenly spread within time bands, and peak falls in Red period
C15: This section first calculates the split of MWh by unit rate, aggregating "related MPAN" and "Aggregated" tariffs. | I15: > | AA15: Paragraphs 52A & 70 (c) i
C16: The last part of this section then calculates the ratio of coincidence to load factor based on a simplified load profile.
C18: =INDEX('Version control'!$H$36:$H$62,MATCH($A$1,'Version control'!$F$36:$F$62,0),1)&"-A: Flags and hours in timebands" -> Section 508-A: Flags and hours in timebands
E20: Flag for unmetered customers | G20: TRUE/FALSE | J20: ='Fixed inputs'!J127 -> FALSE | K20: ='Fixed inputs'!K127 -> FALSE | L20: ='Fixed inputs'!L127 -> FALSE | M20: ='Fixed inputs'!M127 -> FALSE | N20: ='Fixed inputs'!N127 -> FALSE | O20: ='Fixed inputs'!O127 -> FALSE | P20: ='Fixed inputs'!P127 -> FALSE | Q20: ='Fixed inputs'!Q127 -> TRUE | R20: ='Fixed inputs'!R127 -> FALSE | S20: ='Fixed inputs'!S127 -> FALSE | T20: ='Fixed inputs'!T127 -> FALSE | U20: ='Fixed inputs'!U127 -> FALSE | V20: ='Fixed inputs'!V127 -> FALSE | W20: ='Fixed inputs'!W127 -> FALSE | X20: ='Fixed inputs'!X127 -> FALSE | Y20: ='Fixed inputs'!Y127 -> FALSE
E22: Hours per timeband | I22: > | AA22: Paragraph 40
E23: UMS customers use Black & Yellow timebands, other customers use Red & Amber
F24: Red or Black | G24: hours | J24: =IF(J$20, 'General inputs'!$H19, 'General inputs'!$H24) -> 783 | K24: =IF(K$20, 'General inputs'!$H19, 'General inputs'!$H24) -> 783 | L24: =IF(L$20, 'General inputs'!$H19, 'General inputs'!$H24) -> 783 | M24: =IF(M$20, 'General inputs'!$H19, 'General inputs'!$H24) -> 783 | N24: =IF(N$20, 'General inputs'!$H19, 'General inputs'!$H24) -> 783 | O24: =IF(O$20, 'General inputs'!$H19, 'General inputs'!$H24) -> 783 | P24: =IF(P$20, 'General inputs'!$H19, 'General inputs'!$H24) -> 783 | Q24: =IF(Q$20, 'General inputs'!$H19, 'General inputs'!$H24) -> 258 | R24: =IF(R$20, 'General inputs'!$H19, 'General inputs'!$H24) -> 783 | S24: =IF(S$20, 'General inputs'!$H19, 'General inputs'!$H24) -> 783 | T24: =IF(T$20, 'General inputs'!$H19, 'General inputs'!$H24) -> 783 | U24: =IF(U$20, 'General inputs'!$H19, 'General inputs'!$H24) -> 783 | V24: =IF(V$20, 'General inputs'!$H19, 'General inputs'!$H24) -> 783 | W24: =IF(W$20, 'General inputs'!$H19, 'General inputs'!$H24) -> 783 | X24: =IF(X$20, 'General inputs'!$H19, 'General inputs'!$H24) -> 783 | Y24: =IF(Y$20, 'General inputs'!$H19, 'General inputs'!$H24) -> 783
F25: Amber or Yellow | G25: hours | J25: =IF(J$20, 'General inputs'!$H20, 'General inputs'!$H25) -> 3417.5 | K25: =IF(K$20, 'General inputs'!$H20, 'General inputs'!$H25) -> 3417.5 | L25: =IF(L$20, 'General inputs'!$H20, 'General inputs'!$H25) -> 3417.5 | M25: =IF(M$20, 'General inputs'!$H20, 'General inputs'!$H25) -> 3417.5 | N25: =IF(N$20, 'General inputs'!$H20, 'General inputs'!$H25) -> 3417.5 | O25: =IF(O$20, 'General inputs'!$H20, 'General inputs'!$H25) -> 3417.5 | P25: =IF(P$20, 'General inputs'!$H20, 'General inputs'!$H25) -> 3417.5 | Q25: =IF(Q$20, 'General inputs'!$H20, 'General inputs'!$H25) -> 3942.5 | R25: =IF(R$20, 'General inputs'!$H20, 'General inputs'!$H25) -> 3417.5 | S25: =IF(S$20, 'General inputs'!$H20, 'General inputs'!$H25) -> 3417.5 | T25: =IF(T$20, 'General inputs'!$H20, 'General inputs'!$H25) -> 3417.5 | U25: =IF(U$20, 'General inputs'!$H20, 'General inputs'!$H25) -> 3417.5 | V25: =IF(V$20, 'General inputs'!$H20, 'General inputs'!$H25) -> 3417.5 | W25: =IF(W$20, 'General inputs'!$H20, 'General inputs'!$H25) -> 3417.5 | X25: =IF(X$20, 'General inputs'!$H20, 'General inputs'!$H25) -> 3417.5 | Y25: =IF(Y$20, 'General inputs'!$H20, 'General inputs'!$H25) -> 3417.5
F26: Green | G26: hours | J26: =IF(J$20, 'General inputs'!$H21, 'General inputs'!$H26) -> 4559.5 | K26: =IF(K$20, 'General inputs'!$H21, 'General inputs'!$H26) -> 4559.5 | L26: =IF(L$20, 'General inputs'!$H21, 'General inputs'!$H26) -> 4559.5 | M26: =IF(M$20, 'General inputs'!$H21, 'General inputs'!$H26) -> 4559.5 | N26: =IF(N$20, 'General inputs'!$H21, 'General inputs'!$H26) -> 4559.5 | O26: =IF(O$20, 'General inputs'!$H21, 'General inputs'!$H26) -> 4559.5 | P26: =IF(P$20, 'General inputs'!$H21, 'General inputs'!$H26) -> 4559.5 | Q26: =IF(Q$20, 'General inputs'!$H21, 'General inputs'!$H26) -> 4559.5 | R26: =IF(R$20, 'General inputs'!$H21, 'General inputs'!$H26) -> 4559.5 | S26: =IF(S$20, 'General inputs'!$H21, 'General inputs'!$H26) -> 4559.5 | T26: =IF(T$20, 'General inputs'!$H21, 'General inputs'!$H26) -> 4559.5 | U26: =IF(U$20, 'General inputs'!$H21, 'General inputs'!$H26) -> 4559.5 | V26: =IF(V$20, 'General inputs'!$H21, 'General inputs'!$H26) -> 4559.5 | W26: =IF(W$20, 'General inputs'!$H21, 'General inputs'!$H26) -> 4559.5 | X26: =IF(X$20, 'General inputs'!$H21, 'General inputs'!$H26) -> 4559.5 | Y26: =IF(Y$20, 'General inputs'!$H21, 'General inputs'!$H26) -> 4559.5
C28: =INDEX('Version control'!$H$36:$H$62,MATCH($A$1,'Version control'!$F$36:$F$62,0),1)&"-B: Average load by timeband" -> Section 508-B: Average load by timeband
E30: Split of units by time pattern regime
F31: Unit rate 1 | G31: MWh | J31: ='Volume adjustments'!J238 -> 555975.8451 | K31: ='Volume adjustments'!K238 -> 32.089 | L31: ='Volume adjustments'!L238 -> 150325.9353 | M31: ='Volume adjustments'!M238 -> 5.328 | N31: ='Volume adjustments'!N238 -> 96912.06325 | O31: ='Volume adjustments'!O238 -> 102481.1485 | P31: ='Volume adjustments'!P238 -> 156833.9316 | Q31: ='Volume adjustments'!Q238 -> 6410.126522 | R31: ='Volume adjustments'!R238 -> 2244.387082 | S31: ='Volume adjustments'!S238 -> 34.08550267 | T31: ='Volume adjustments'!T238 -> 3840.815 | U31: ='Volume adjustments'!U238 -> 0 | V31: ='Volume adjustments'!V238 -> 1172.297 | W31: ='Volume adjustments'!W238 -> 0 | X31: ='Volume adjustments'!X238 -> 51404.417 | Y31: ='Volume adjustments'!Y238 -> 0
F32: Unit rate 2 | G32: MWh | J32: ='Volume adjustments'!J249 -> 1938714.255 | K32: ='Volume adjustments'!K249 -> 557.914 | L32: ='Volume adjustments'!L249 -> 758964.3075 | M32: ='Volume adjustments'!M249 -> 317.86 | N32: ='Volume adjustments'!N249 -> 439760.7018 | O32: ='Volume adjustments'!O249 -> 496933.4067 | P32: ='Volume adjustments'!P249 -> 723196.535 | Q32: ='Volume adjustments'!Q249 -> 35814.90587 | R32: ='Volume adjustments'!R249 -> 13146.50703 | S32: ='Volume adjustments'!S249 -> 143.9227273 | T32: ='Volume adjustments'!T249 -> 18643.152 | U32: ='Volume adjustments'!U249 -> 0 | V32: ='Volume adjustments'!V249 -> 5289.195 | W32: ='Volume adjustments'!W249 -> 0 | X32: ='Volume adjustments'!X249 -> 177427.824 | Y32: ='Volume adjustments'!Y249 -> 0
